Workbook

Sheet AFR_Down (hidden)

Sheet COVER
A1: Due to ROE on October 15th | H1: ILLINOIS STATE BOARD OF EDUCATION
A2: Due to ISBE on November 16th | H2: School Business Services Division
A3: SD/JA17 | H3: 100 North First Street, Springfield, Illinois 62777-0001
H4: 217/785-8779
C5: School District | H5: Illinois School District/Joint Agreement
C6: Joint Agreement | H6: Annual Financial Report *
H7: 2018-06-30
H9: Accounting Basis: | S9: Certified Public Accountant Information
A10: School District/Joint Agreement Information
A11: (See instructions on inside of this page.) | O11: CASH
A12: School District/Joint Agreement Number: | O12: ACCRUAL | S12: Name of Auditing Firm:
A13: ='AFR18'!B2 -> 99-999-9999-99
A14: County Name: | S14: Name of Audit Supervisor:
A16: Name of School District/Joint Agreement: | S16: Address:
A17: ='AFR18'!B3 -> 2017-18 State Totals - SD Only
A18: Address: | H18: Filing Status: | S18: City: | W18: State: | Y18: Zip Code:
L19: Submit electronic AFR directly to ISBE
A20: City: | S20: Phone Number: | X20: Fax Number:
H21: Click on the Link to Submit:
A22: Email Address: | H22: www.isbe.net/sfms/afr/afr.htm | S22: IL Registration Number:
A24: Zip Code: | S24: Email Address:
C27: Annual Financial Report | H27: Single Audit Status:
C28: Type of Auditor's Report Issued: | V28: ISBE Use Only
C29: Qualified | J29: YES | L29: NO | M29: Are Federal expenditures greater than $750,000?
C30: Adverse | J30: YES | L30: NO | M30: Is all Single Audit Information completed and attached?
C31: Disclaimer | J31: YES | L31: NO | M31: Were any financial Statement or federal awards findings issued?
C34: Reviewed by District Superintendent/Administrator | L34: Reviewed by Township Treasurer (Cook County only) | T34: x | U34: Reviewed by Regional Superintendent
K35: Name of Township:
A37: District Superintendent/Administrator Name (Type or Print): | H37: Township Treasurer Name (type or print) | S37: Regional Superintendent Name (Type or Print):
A39: Email Address: | H39: Email Address: | S39: Email Address:
A41: Telephone: | D41: Fax Number: | H41: Telephone: | O41: Fax Number: | S41: Telephone: | W41: Fax Number:
A43: Signature & Date: | H43: Signature & Date: | S43: Signature & Date:
A45: * This form is based on 23 Illinois Administrative Code 100, Subtitle A, Chapter I, Subchapter C (Part 100).
A46: ISBE Form SD50-35/JA50-60 (2/17)
A47: Revised 5/8

Sheet Assets-Liab 5-6
C1: (10) | D1: (20) | E1: (30) | F1: (40) | G1: (50) | H1: (60) | I1: (70) | J1: (80) | K1: (90) | M1: Account Groups
A2: ASSETS | B2: Acct. # | C2: Educational | D2: Operations & Maintenance | E2: Debt Services | F2: Transportation | G2: Municipal Retirement/Social Security | H2: Capital Projects | I2: Working Cash | J2: Tort | K2: Fire Prevention & Safety | L2: Agency Fund | M2: General Fixed Assets | N2: General Long-Term Debt
A3: CURRENT ASSETS (100)
A4: Cash (Accounts 111 through 115) | C4: ='AFR18'!B3357 -> 6394854601 | D4: ='AFR18'!B3360 -> 1161745795 | E4: ='AFR18'!B3363 -> 1406996759 | F4: ='AFR18'!B3365 -> 702483027.4 | G4: ='AFR18'!B3368 -> 392872202.5 | H4: ='AFR18'!B3371 -> 2159598583 | I4: ='AFR18'!B3373 -> 1708898617 | J4: ='AFR18'!B6163 -> 197077214.9 | K4: ='AFR18'!B3492 -> 249518443.8 | L4: ='AFR18'!B3381 -> 209725158.6
A5: Investments | B5: 120 | C5: ='AFR18'!B19 -> 2085627941 | D5: ='AFR18'!B51 -> 352727831 | E5: ='AFR18'!B75 -> 192660768 | F5: ='AFR18'!B99 -> 210291838 | G5: ='AFR18'!B123 -> 109853870 | H5: ='AFR18'!B145 -> 459294954 | I5: ='AFR18'!B2831 -> 476588747 | J5: ='AFR18'!B6164 -> 56347587 | K5: ='AFR18'!B3496 -> 88053333 | L5: ='AFR18'!B2838 -> 38351905
A6: Taxes Receivable | B6: 130 | C6: ='AFR18'!B11 -> 4463715231 | D6: ='AFR18'!B43 -> 451223371 | E6: ='AFR18'!B72 -> 458957980 | F6: ='AFR18'!B91 -> 161275392 | G6: ='AFR18'!B119 -> 159360043 | H6: ='AFR18'!B3465 -> 8781382 | I6: ='AFR18'!B2826 -> 29635396 | J6: ='AFR18'!B6165 -> 65198172 | K6: ='AFR18'!B3494 -> 11028094
A7: Interfund Receivables | B7: 140 | C7: ='AFR18'!B6027 -> 59419409 | D7: ='AFR18'!B6028 -> 32891331 | E7: ='AFR18'!B6029 -> 586973 | F7: ='AFR18'!B6030 -> 3408503 | G7: ='AFR18'!B6031 -> 569641 | H7: ='AFR18'!B6032 -> 615768 | I7: ='AFR18'!B6033 -> 42282890 | J7: ='AFR18'!B6034 -> 308635 | K7: ='AFR18'!B6035 -> 98208
A8: Intergovernmental Accounts Receivable | B8: 150 | C8: ='AFR18'!B6036 -> 541440282 | D8: ='AFR18'!B6037 -> 6168796 | E8: ='AFR18'!B6038 -> 46274563 | F8: ='AFR18'!B6039 -> 134818430 | G8: ='AFR18'!B6040 -> 842754 | H8: ='AFR18'!B6041 -> 7919945 | I8: ='AFR18'!B6042 -> 13233739 | J8: ='AFR18'!B6043 -> 26 | K8: ='AFR18'!B6044 -> 0
A9: Other Receivables | B9: 160 | C9: ='AFR18'!B6045 -> 43408202 | D9: ='AFR18'!B6046 -> 4023302 | E9: ='AFR18'!B6047 -> 833494 | F9: ='AFR18'!B6048 -> 4532239 | G9: ='AFR18'!B6049 -> 480959 | H9: ='AFR18'!B6050 -> 3880069 | I9: ='AFR18'!B6051 -> 2838161 | J9: ='AFR18'!B6052 -> 36397 | K9: ='AFR18'!B6053 -> 123279 | L9: ='AFR18'!B6054 -> 3044871
A10: Inventory | B10: 170 | C10: ='AFR18'!B18 -> 10965222 | D10: ='AFR18'!B50 -> 98822 | E10: ='AFR18'!B6055 -> 0 | F10: ='AFR18'!B98 -> 0 | G10: ='AFR18'!B6056 -> 223 | H10: ='AFR18'!B144 -> 0 | I10: ='AFR18'!B6057 -> 0 | J10: ='AFR18'!B6058 -> 0 | K10: ='AFR18'!B3495 -> 0 | L10: ='AFR18'!B2837 -> 0
A11: Prepaid Items | B11: 180 | C11: ='AFR18'!B6059 -> 27033910 | D11: ='AFR18'!B6060 -> 1183384 | E11: ='AFR18'!B6061 -> 9279578 | F11: ='AFR18'!B6062 -> 2807942 | G11: ='AFR18'!B6063 -> 57075 | H11: ='AFR18'!B6064 -> 150825 | I11: ='AFR18'!B6065 -> 0 | J11: ='AFR18'!B6066 -> 2546242 | K11: ='AFR18'!B6067 -> 0 | L11: ='AFR18'!B6068 -> 0
A12: Other Current Assets (Describe & Itemize) | B12: 190 | C12: ='AFR18'!B22 -> 8487467 | D12: ='AFR18'!B54 -> 817216 | E12: ='AFR18'!B76 -> 13754738 | F12: ='AFR18'!B102 -> 188063 | G12: ='AFR18'!B125 -> 22713 | H12: ='AFR18'!B148 -> 34045 | I12: ='AFR18'!B2833 -> -28997 | J12: ='AFR18'!B6069 -> 691 | K12: ='AFR18'!B3497 -> 17 | L12: ='AFR18'!B2840 -> 2055945
A13: Total Current Assets | C13: =SUM(C4:C12) -> 1.363495227e+10 | D13: =SUM(D4:D12) -> 2010879848 | E13: 2129344853 | F13: 1219805434 | G13: 664059480.5 | H13: 2640275571 | I13: 2273448553 | J13: 321514964.9 | K13: 348821374.8 | L13: 253177879.6
A14: CAPITAL ASSETS (200)
A15: Works of Art & Historical Treasures | B15: 210 | M15: ='AFR18'!B6243 -> 182272
A16: Land | B16: 220 | M16: ='AFR18'!B219 -> 1324789248
A17: Building & Building Improvements | B17: 230 | M17: ='AFR18'!B220 -> 3.504172748e+10
A18: Site Improvements & Infrastructure | B18: 240 | M18: ='AFR18'!B221 -> 1971193146
A19: Capitalized Equipment | B19: 250 | M19: ='AFR18'!B222 -> 3714249063
A20: Construction in Progress | B20: 260 | M20: ='AFR18'!B2810 -> 1061757475
A21: Amount Available in Debt Service Funds | B21: 340 | N21: ='AFR18'!B228 -> 1649628613
A22: Amount to be Provided for Payment on Bonds | B22: 350 | N22: ='AFR18'!B229 -> 20000728898
A23: Total Capital Assets | M23: =SUM(M15:M20) -> 4.311389868e+10 | N23: =SUM(N21:N22) -> 21650357511
A24: CURRENT LIABILITIES (400)
A25: Interfund Payables | B25: 410 | C25: ='AFR18'!B6071 -> 41244931 | D25: ='AFR18'!B6072 -> 16661191 | E25: ='AFR18'!B6073 -> 4530630 | F25: ='AFR18'!B6074 -> 25468142 | G25: ='AFR18'!B6075 -> 5349622 | H25: ='AFR18'!B6076 -> 14605891 | J25: ='AFR18'!B6077 -> 35295475 | K25: ='AFR18'!B6078 -> 2056950
A26: Intergovernmental Accounts Payable | B26: 420 | C26: ='AFR18'!B6079 -> 6940274 | D26: ='AFR18'!B6080 -> 1005135 | E26: ='AFR18'!B6081 -> 0 | F26: ='AFR18'!B6082 -> 795076 | G26: ='AFR18'!B6083 -> 51743 | H26: ='AFR18'!B6084 -> 8973820 | I26: ='AFR18'!B6085 -> 2603 | J26: ='AFR18'!B6086 -> 0 | K26: ='AFR18'!B6087 -> 0
A27: Other Payables | B27: 430 | C27: ='AFR18'!B6088 -> 719768648 | D27: ='AFR18'!B6089 -> 84346179 | E27: ='AFR18'!B6090 -> 4361003 | F27: ='AFR18'!B6091 -> 25650569 | G27: ='AFR18'!B6092 -> 2602990 | H27: ='AFR18'!B6093 -> 127441372 | I27: ='AFR18'!B6094 -> 797239 | J27: ='AFR18'!B6095 -> 5300146 | K27: ='AFR18'!B6096 -> 14911041
A28: Contracts Payable | B28: 440 | C28: ='AFR18'!B6097 -> 17909637 | D28: ='AFR18'!B6098 -> 5886022 | E28: ='AFR18'!B6099 -> 1250 | F28: ='AFR18'!B6100 -> 937785 | G28: ='AFR18'!B6101 -> 196148 | H28: ='AFR18'!B6102 -> 14975533 | I28: ='AFR18'!B6103 -> 0 | J28: ='AFR18'!B6104 -> 19510 | K28: ='AFR18'!B6105 -> 120250
A29: Loans Payable | B29: 460 | C29: ='AFR18'!B6106 -> 13787050 | D29: ='AFR18'!B6107 -> 2183 | E29: ='AFR18'!B6108 -> 64839 | F29: ='AFR18'!B6109 -> 3114575 | G29: ='AFR18'!B6110 -> 0 | H29: ='AFR18'!B6111 -> 4826350 | I29: ='AFR18'!B6112 -> 0 | J29: ='AFR18'!B6113 -> 0 | K29: ='AFR18'!B6114 -> 0
A30: Salaries & Benefits Payable | B30: 470 | C30: ='AFR18'!B6115 -> 630064834 | D30: ='AFR18'!B6116 -> 3194984 | E30: ='AFR18'!B6117 -> 0 | F30: ='AFR18'!B6118 -> 2368819 | G30: ='AFR18'!B6119 -> 6132972 | H30: ='AFR18'!B6120 -> 17008 | I30: ='AFR18'!B6121 -> 0 | J30: ='AFR18'!B6122 -> 692857 | K30: ='AFR18'!B6123 -> 14716
A31: Payroll Deductions & Withholdings | B31: 480 | C31: ='AFR18'!B32 -> 114934456 | D31: ='AFR18'!B63 -> 109272 | E31: ='AFR18'!B6124 -> 0 | F31: ='AFR18'!B110 -> 661028 | G31: ='AFR18'!B130 -> 5603839 | H31: ='AFR18'!B152 -> 9113 | I31: ='AFR18'!B6125 -> 0 | J31: ='AFR18'!B6126 -> 34076 | K31: ='AFR18'!B3507 -> -223
A32: Deferred Revenues & Other Current Liabilities | B32: 490 | C32: ='AFR18'!B34 -> 4530643413 | D32: ='AFR18'!B65 -> 535113520 | E32: ='AFR18'!B80 -> 466225040 | F32: ='AFR18'!B112 -> 300149230 | G32: ='AFR18'!B131 -> 175968464 | H32: ='AFR18'!B154 -> 17494828 | I32: ='AFR18'!B2854 -> 16411818 | J32: ='AFR18'!B6127 -> 57898759 | K32: ='AFR18'!B3508 -> 12492502
A33: Due to Activity Fund Organizations | B33: 493 | C33: ='AFR18'!B6128 -> 48216156 | D33: ='AFR18'!B6129 -> 1500000 | E33: ='AFR18'!B6130 -> 0 | F33: ='AFR18'!B6131 -> 0 | G33: ='AFR18'!B6132 -> 0 | H33: ='AFR18'!B6133 -> 0 | I33: ='AFR18'!B6134 -> 0 | J33: ='AFR18'!B6135 -> 0 | K33: ='AFR18'!B6136 -> 0 | L33: ='AFR18'!B2860 -> 207635603.6
A34: Total Current Liabilities | C34: =SUM(C25:C33) -> 6123509399 | D34: =SUM(D25:D33) -> 647818486 | E34: 475182762 | F34: 359145224 | G34: 195905778 | H34: 188343915 | I34: 17211660 | J34: 99240823 | K34: 29595236 | L34: =L33 -> 207635603.6
A35: LONG-TERM LIABILITIES (500)
A36: Long-Term Debt Payable (General Obligation, Revenue, Other) | B36: 511 | N36: ='AFR18'!B231 -> 21650268294
A37: Total Long-Term Liabilities | N37: =N36 -> 21650268294
A38: Reserved Fund Balance | B38: 714 | C38: ='AFR18'!B2381 -> 245198419 | D38: ='AFR18'!B2383 -> 205831719 | E38: ='AFR18'!B2450 -> 1036906569 | F38: ='AFR18'!B2421 -> 167255841 | G38: ='AFR18'!B2423 -> 145891999 | H38: ='AFR18'!B2481 -> 1239661355 | I38: ='AFR18'!B2857 -> 97680018 | J38: ='AFR18'!B6160 -> 75903320 | K38: ='AFR18'!B3512 -> 74160835 | L38: ='AFR18'!B3017 -> 40766271
A39: Unreserved Fund balance | B39: 730 | C39: ='AFR18'!B38 -> 7266244448 | D39: ='AFR18'!B69 -> 1157229643 | E39: ='AFR18'!B86 -> 617255521.9 | F39: ='AFR18'!B116 -> 693404368.9 | G39: ='AFR18'!B135 -> 322261703.6 | H39: ='AFR18'!B158 -> 1212270301 | I39: ='AFR18'!B2858 -> 2158556875 | J39: ='AFR18'!B6161 -> 146370821.8 | K39: ='AFR18'!B3513 -> 245065303.6 | L39: ='AFR18'!B3018 -> 4771805
A40: Investment in General Fixed Assets | M40: ='AFR18'!B226 -> 4.311389868e+10
A41: Total Liabilities and Fund Balance | C41: =SUM(C34,C38:C39) -> 1.363495227e+10 | D41: =SUM(D34,D38:D39) -> 2010879848 | E41: 2129344853 | F41: 1219805434 | G41: 664059480.6 | H41: 2640275571 | I41: 2273448553 | J41: 321514964.8 | K41: 348821374.6 | L41: 253173679.6 | M41: =M40 -> 4.311389868e+10 | N41: =N37 -> 21650268294

Sheet Acct Summary 7-8
C1: (10) | D1: (20) | E1: (30) | F1: (40) | G1: (50) | H1: (60) | I1: (70) | J1: (80) | K1: (90)
A2: Description | B2: Acct # | C2: Educational | D2: Operations & Maintenance | E2: Debt Services | F2: Transportation | G2: Municipal Retirement/ Social Security | H2: Capital Projects | I2: Working Cash | J2: Tort | K2: Fire Prevention & Safety
A3: RECEIPTS/REVENUES
A4: Local Sources | B4: 1000 | C4: ='Revenues 9-14'!C109 -> 1.432471937e+10 | D4: ='Revenues 9-14'!D109 -> 1717672247 | E4: ='Revenues 9-14'!E109 -> 1816697760 | F4: ='Revenues 9-14'!F109 -> 693611509.2 | G4: ='Revenues 9-14'!G109 -> 634963075.3 | H4: ='Revenues 9-14'!H109 -> 183466992.6 | I4: ='Revenues 9-14'!I109 -> 92905180.31 | J4: ='Revenues 9-14'!J109 -> 344492569 | K4: ='Revenues 9-14'!K109 -> 58257138.36
A5: Flow-Through Receipts/Revenues from One District to Another District | B5: 2000 | C5: ='Revenues 9-14'!C114 -> 12940252 | D5: ='Revenues 9-14'!D114 -> 1116071 | F5: ='Revenues 9-14'!F114 -> 75372 | G5: ='Revenues 9-14'!G114 -> 0
A6: State Sources | B6: 3000 | C6: ='Revenues 9-14'!C173 -> 6447581623 | D6: ='Revenues 9-14'!D173 -> 546116589 | E6: ='Revenues 9-14'!E173 -> 342932209 | F6: ='Revenues 9-14'!F173 -> 687642458.5 | G6: ='Revenues 9-14'!G173 -> 13223355 | H6: ='Revenues 9-14'!H173 -> 55672630 | I6: ='Revenues 9-14'!I173 -> 0 | J6: ='Revenues 9-14'!J173 -> 5513371 | K6: ='Revenues 9-14'!K173 -> 500364
A7: Federal Sources | B7: 4000 | C7: ='Revenues 9-14'!C274 -> 2063186079 | D7: ='Revenues 9-14'!D274 -> 7855997 | E7: ='Revenues 9-14'!E274 -> 48923768 | F7: ='Revenues 9-14'!F274 -> 1708570 | G7: ='Revenues 9-14'!G274 -> 2166556 | H7: ='AFR18'!B2603 -> 755447 | I7: ='Revenues 9-14'!I274 -> 0 | J7: ='Revenues 9-14'!J274 -> 0 | K7: ='Revenues 9-14'!K274 -> 0
A8: Total Direct Receipts/Revenues | C8: =SUM(C4:C7) -> 2.284842732e+10 | D8: =SUM(D4:D7) -> 2272760904 | E8: 2208553737 | F8: 1383037910 | G8: 650352986.3 | H8: 239895069.6 | I8: 92905180.31 | J8: 350005940 | K8: 58757502.36
A9: Receipts/Revenues for "On Behalf" Payments 2 | B9: 3998 | C9: ='AFR18'!B4059 -> 6495681801 | D9: ='AFR18'!B4060 -> 8409771 | E9: ='AFR18'!B4061 -> 0 | F9: ='AFR18'!B4062 -> 829841 | G9: ='AFR18'!B4063 -> 0 | H9: ='AFR18'!B4064 -> 19598113 | J9: ='AFR18'!B6170 -> 7417186 | K9: ='AFR18'!B4067 -> 0
A10: Total Receipts/Revenues | C10: =SUM(C8:C9) -> 2.934410912e+10 | D10: =SUM(D8:D9) -> 2281170675 | E10: 2208553737 | F10: 1383867751 | G10: 650352986.3 | H10: 259493182.6 | I10: 92905180.31 | J10: 357423126 | K10: 58757502.36
A11: DISBURSEMENTS/EXPENDITURES
A12: Instruction | B12: 1000 | C12: ='Expenditures 15-22'!K33 -> 1.457539478e+10 | G12: ='Expenditures 15-22'!K229 -> 242327922.3
A13: Support Services | B13: 2000 | C13: ='Expenditures 15-22'!K74 -> 6104729135 | D13: ='Expenditures 15-22'!K129 -> 2177573155 | F13: ='Expenditures 15-22'!K184 -> 1165802950 | G13: ='Expenditures 15-22'!K279 -> 375052639.6 | H13: ='Expenditures 15-22'!K303 -> 1506014787 | J13: ='Expenditures 15-22'!K330 -> 366322852.2 | K13: ='Expenditures 15-22'!K352 -> 165652408.1
A14: Community Services | B14: 3000 | C14: ='Expenditures 15-22'!K75 -> 157232594 | D14: ='Expenditures 15-22'!K130 -> 1877916 | F14: ='Expenditures 15-22'!K185 -> 1465697 | G14: ='Expenditures 15-22'!K280 -> 5728822
A15: Payments to Other Districts & Govermental Units | B15: 4000 | C15: ='Expenditures 15-22'!K102 -> 741197906.9 | D15: ='Expenditures 15-22'!K139 -> 5672478 | E15: ='Expenditures 15-22'!K160 -> 139983 | F15: ='Expenditures 15-22'!K196 -> 15567144 | G15: ='Expenditures 15-22'!K285 -> 2520532 | H15: ='Expenditures 15-22'!K310 -> 868100 | J15: ='Expenditures 15-22'!K334 -> 497836 | K15: ='Expenditures 15-22'!K357 -> 238830
A16: Debt Service | B16: 5000 | C16: ='Expenditures 15-22'!K112 -> 34149433 | D16: ='Expenditures 15-22'!K149 -> 465579 | E16: ='Expenditures 15-22'!K172 -> 2998987778 | F16: ='Expenditures 15-22'!K208 -> 16375090 | G16: ='Expenditures 15-22'!K293 -> 0 | J16: ='Expenditures 15-22'!K340 -> 31029 | K16: ='Expenditures 15-22'!K365 -> 741730
A17: Total Direct Disbursements/Expenditures | C17: =SUM(C12:C16) -> 2.161270385e+10 | D17: 2185589128 | E17: 2999127761 | F17: 1199210881 | G17: 625629915.9 | H17: 1506882887 | J17: =SUM(J12:J16) -> 366851717.2 | K17: =SUM(K12:K16) -> 166632968.1
A18: Disbursements/Expenditures for "On Behalf" Payments 2 | B18: 4180 | C18: ='AFR18'!B4077 -> 6495681801 | D18: ='AFR18'!B4078 -> 8409771 | E18: ='AFR18'!B4121 -> 0 | F18: ='AFR18'!B4079 -> 829841 | G18: ='AFR18'!B4122 -> 0 | H18: ='AFR18'!B4080 -> 19598113 | J18: ='AFR18'!B6174 -> 7417186 | K18: ='AFR18'!B4081 -> 0
A19: Total Disbursements/Expenditures | C19: =SUM(C17:C18) -> 2.810838565e+10 | D19: 2193998899 | E19: 2999127761 | F19: 1200040722 | G19: 625629915.9 | H19: 1526481000 | J19: =SUM(J17:J18) -> 374268903.2 | K19: =SUM(K17:K18) -> 166632968.1
A20: Excess of Direct Receipts/Revenues Over (Under) Direct Disbursements/Expenditures 3 | C20: =C8-C17 -> 1235723474 | D20: =D8-D17 -> 87171775.85 | E20: -790574024.2 | F20: 183827028.5 | G20: 24723070.44 | H20: -1266987817 | I20: 92905180.31 | J20: -16845777.14 | K20: -107875465.7
A21: OTHER SOURCES/USES OF FUNDS
A22: OTHER SOURCES OF FUNDS (7000)
A23: PERMANENT TRANSFER FROM VARIOUS FUNDS
A24: Abolishment of Working Cash Fund | B24: 7110 | C24: ='AFR18'!B266 -> 19734469
A25: Abatement of Working Cash Fund | C25: ='AFR18'!B7694 -> 67070538 | D25: ='AFR18'!B7695 -> 146451090 | E25: ='AFR18'!B7696 -> 12249576 | F25: ='AFR18'!B7697 -> 21978696 | G25: ='AFR18'!B7698 -> 701289 | H25: ='AFR18'!B7699 -> 72653795 | J25: ='AFR18'!B7700 -> 866900 | K25: ='AFR18'!B7701 -> 6995555
A26: Transfer of Working Cash Fund Interest | B26: 7120 | C26: ='AFR18'!B267 -> 5656749 | D26: ='AFR18'!B378 -> 4568411 | E26: ='AFR18'!B3436 -> 1738 | F26: ='AFR18'!B2708 -> 3415270 | G26: ='AFR18'!B3438 -> 85000 | H26: ='AFR18'!B3439 -> 9154948 | J26: ='AFR18'!B6177 -> 0 | K26: ='AFR18'!B3523 -> 4557
A27: Transfer Among Funds | B27: 7130 | C27: ='AFR18'!B4958 -> 60484612 | D27: ='AFR18'!B4959 -> 213013589 | F27: ='AFR18'!B4960 -> 685225
A28: Transfer of Interest | B28: 7140 | C28: ='AFR18'!B2703 -> 289340251 | D28: ='AFR18'!B2704 -> 9311959 | E28: ='AFR18'!B2706 -> 13646687 | F28: ='AFR18'!B2709 -> 403684 | G28: ='AFR18'!B2712 -> 47069 | H28: ='AFR18'!B2715 -> 2365437 | I28: ='AFR18'!B2718 -> 3316000 | J28: ='AFR18'!B6178 -> 7793 | K28: ='AFR18'!B3524 -> 0
A29: Transfer from Capital Project Fund to O&M Fund | B29: 7150 | D29: ='AFR18'!B3107 -> 7462720
A30: Transfer of Excess Fire Prevention & Safety Tax and Interest Proceeds to Debt Service Fund 4 | B30: 7160 | D30: ='AFR18'!B3644 -> 52950
A31: Transfer to Excess Fire Prevention & Safety Bond and Interest Proceeds to Debt Service Fund 4 | B31: 7170 | E31: ='AFR18'!B3645 -> 147304
A32: SALE OF BONDS (7200)
A33: Principal on Bonds Sold | B33: 7210 | C33: ='AFR18'!B269 -> 13385462 | D33: ='AFR18'!B3024 -> 13890615 | E33: ='AFR18'!B3028 -> 2656880773 | F33: ='AFR18'!B3029 -> 7932465 | H33: ='AFR18'!B564 -> 956982138 | I33: ='AFR18'!B597 -> 311901711 | J33: ='AFR18'!B6179 -> 1000197 | K33: ='AFR18'!B3525 -> 98166880
A34: Premium on Bonds Sold | B34: 7220 | C34: ='AFR18'!B270 -> 24190 | D34: ='AFR18'!B3025 -> 444418 | E34: ='AFR18'!B446 -> 116325619 | F34: ='AFR18'!B3030 -> 0 | H34: ='AFR18'!B565 -> 41601698 | I34: ='AFR18'!B598 -> 7162087 | J34: ='AFR18'!B6180 -> 0 | K34: ='AFR18'!B3526 -> 3675955
A35: Accrued Interest on Bonds Sold | B35: 7230 | C35: ='AFR18'!B271 -> 0 | D35: ='AFR18'!B3026 -> 0 | E35: ='AFR18'!B447 -> 220808 | F35: ='AFR18'!B3031 -> 0 | H35: ='AFR18'!B566 -> 575570 | I35: ='AFR18'!B599 -> 0 | J35: ='AFR18'!B6181 -> 0 | K35: ='AFR18'!B3527 -> 0
A36: Sale or Compensation for Fixed Assets 5 | B36: 7300 | C36: ='AFR18'!B3476 -> 895457 | D36: ='AFR18'!B3477 -> 1559255 | E36: ='AFR18'!B4163 -> 0 | F36: ='AFR18'!B3478 -> 10866998 | G36: ='AFR18'!B3479 -> 0 | H36: ='AFR18'!B3480 -> 14441016 | J36: ='AFR18'!B6182 -> 0 | K36: ='AFR18'!B3528 -> 49338
A37: Transfer to Debt Service to Pay Principal on Capital Leases | B37: 7400 | E37: =SUM(C54:D57,H54:H57) -> 63657582
A38: Transfer to Debt Service to Pay Interest on Capital Leases | B38: 7500 | E38: =SUM(C58:D61,H58:H61) -> 4073256
A39: Transfer to Debt Service to Pay Principal on Revenue Bonds | B39: 7600 | E39: =SUM(C62:D65) -> 37253089
A40: Transfer to Debt Service Fund to Pay Interest on Revenue Bonds | B40: 7700 | E40: =SUM(C66:D69) -> 16133922
A41: Transfer to Capital Projects Fund | B41: 7800 | H41: =SUM(C70:D73) -> 350706755
A42: ISBE Loan Proceeds | B42: 7900 | C42: ='AFR18'!B6236 -> 2228850 | D42: ='AFR18'!B6237 -> 0 | E42: ='AFR18'!B6238 -> 377894 | F42: ='AFR18'!B6239 -> 0 | G42: ='AFR18'!B6240 -> 0 | H42: ='AFR18'!B6241 -> 0 | K42: ='AFR18'!B6242 -> 0
A43: Other Sources Not Classified Elsewhere | B43: 7990 | C43: ='AFR18'!B3174 -> 33869368 | D43: ='AFR18'!B3180 -> 21280735 | E43: ='AFR18'!B3219 -> 172821616 | F43: ='AFR18'!B3197 -> 14870822 | G43: ='AFR18'!B3203 -> 0 | H43: ='AFR18'!B3241 -> 112195370 | I43: ='AFR18'!B3262 -> 1488458 | J43: ='AFR18'!B6183 -> 17908 | K43: ='AFR18'!B3529 -> 2623139
A44: Total Other Sources of Funds | C44: =SUM(C24:C43) -> 492689946 | D44: 418035742 | E44: 3093789864 | F44: 60153160 | G44: 833358 | H44: 1560676727 | I44: 323868256 | J44: 1892798 | K44: 111515424
A45: OTHER USES OF FUNDS (8000)
A46: PERMANENT TRANSFER TO VARIOUS OTHER FUNDS (8100)
A47: Abolishment or Abatement of the Working Cash Fund | B47: 8110 | I47: =SUM(C24,C25:H25,J25:K25) -> 348701908
A48: Transfer of Working Cash Fund Interest | B48: 8120 | I48: =SUM(C26:H26,J26,K26) -> 22886673
A49: Transfer Among Funds | B49: 8130 | C49: ='AFR18'!B4968 -> 130408311 | D49: ='AFR18'!B4969 -> 39896536 | F49: ='AFR18'!B4970 -> 103878579
A50: Transfer of Interest | B50: 8140 | C50: ='AFR18'!B2740 -> 9299700 | D50: ='AFR18'!B2752 -> 12043528 | E50: ='AFR18'!B2763 -> 287290136 | F50: ='AFR18'!B2786 -> 3307350 | G50: ='AFR18'!B3205 -> 47510 | H50: ='AFR18'!B2794 -> 3583747 | J50: ='AFR18'!B6185 -> 2866909
A51: Transfer from Capital Project Fund to O&M Fund | B51: 8150 | H51: =D29 -> 7462720
A52: Transfer of Excess Fire Prevention & Safety Tax & Interest Proceeds to O&M Fund | B52: 8160 | K52: =D30 -> 52950
A53: Transfer of Excess Fire Prevention & Safety Bond and Interest Proceeds to Debt Service Fund | B53: 8170 | K53: =E31 -> 147304
A54: Taxes Pledged to pay Prinicipal on Capital Leases | B54: 8410 | C54: ='AFR18'!B6186 -> 11537228 | D54: ='AFR18'!B6187 -> 3153335 | H54: ='AFR18'!B6188 -> 3470287
A55: Grants/Reimbursements Pledged to Pay Principal on Capital Leases | B55: 8420 | C55: ='AFR18'!B7597 -> 286379 | D55: ='AFR18'!B7598 -> 0 | H55: ='AFR18'!B7599 -> 0
A56: Other Revenues Pledged to Pay Principal on Capital Leases | B56: 8430 | C56: ='AFR18'!B7600 -> 8911150 | D56: ='AFR18'!B7601 -> 1784421 | H56: ='AFR18'!B7602 -> 17000
A57: Fund Balances Transfers Pledged to Pay Principal on Capital Leases | B57: 8440 | C57: ='AFR18'!B7603 -> 17136081 | D57: ='AFR18'!B7604 -> 3531133 | H57: ='AFR18'!B7605 -> 13830568
A58: Taxes Pledged to Pay Interest on Capital Leases | B58: 8510 | C58: ='AFR18'!B6189 -> 1140727 | D58: ='AFR18'!B6190 -> 398105 | H58: ='AFR18'!B6191 -> 670231
A59: Grants/Reimbursements Pledged to Pay Interest on Capital Leases | B59: 8520 | C59: ='AFR18'!B7606 -> 90923 | D59: ='AFR18'!B7607 -> 0 | H59: ='AFR18'!B7608 -> 0
A60: Other Revenues Pledged to Pay Interest on Capital Leases | B60: 8530 | C60: ='AFR18'!B7609 -> 353175 | D60: ='AFR18'!B7610 -> 48687 | H60: ='AFR18'!B7611 -> 0
A61: Fund Balances Transfers Pledged to Pay Interest on Capital Leases | B61: 8540 | C61: ='AFR18'!B7612 -> 521244 | D61: ='AFR18'!B7613 -> 813112 | H61: ='AFR18'!B7614 -> 37052
A62: Taxes Pledged to Pay Prinicipal on Revenue Bonds | B62: 8610 | C62: ='AFR18'!B6192 -> 2231032 | D62: ='AFR18'!B6193 -> 3207546
A63: Grants/Reimbursements Pledged to Pay Principal on Revenue Bonds | B63: 8620 | C63: ='AFR18'!B7615 -> 795000 | D63: ='AFR18'!B7616 -> 410400
A64: Other Revenues Pledged to Pay Principal on Revenue Bonds | B64: 8630 | C64: ='AFR18'!B7617 -> 1664755 | D64: ='AFR18'!B7618 -> 3075016
A65: Fund Balance Transfers Pledged to Pay Principal on Revenue Bonds | B65: 8640 | C65: ='AFR18'!B7619 -> 14103898 | D65: ='AFR18'!B7620 -> 11765442
A66: Taxes Pledged to Pay Interest on Revenue Bonds | B66: 8710 | C66: ='AFR18'!B6194 -> 1048241 | D66: ='AFR18'!B6195 -> 4850284
A67: Grants/Reimbursements Pledged to Pay Interest on Revenue Bonds | B67: 8720 | C67: ='AFR18'!B7621 -> 903175 | D67: ='AFR18'!B7622 -> 0
A68: Other Revenues Pledged to Pay Interest on Revenue Bonds | B68: 8730 | C68: ='AFR18'!B7623 -> 288908 | D68: ='AFR18'!B7624 -> 2148844
A69: Fund Balance Transfers Pledged to Pay Interest on Revenue Bonds | B69: 8740 | C69: ='AFR18'!B7625 -> 2143075 | D69: ='AFR18'!B7626 -> 4751395
A70: Taxes Transferred to Pay for Capital Projects | B70: 8810 | C70: ='AFR18'!B6196 -> 0 | D70: ='AFR18'!B6197 -> 500000
A71: Grants/Reimbursements Pledged to Pay for Capital Projects | B71: 8820 | C71: ='AFR18'!B7627 -> 40433 | D71: ='AFR18'!B7628 -> 40311
A72: Other Revenues Pledged for Capital Projects | B72: 8830 | C72: ='AFR18'!B7629 -> 175000 | D72: ='AFR18'!B7630 -> 36348180
A73: Fund Balance Transfers Pledged to Pay for Capital Projects | B73: 8840 | C73: ='AFR18'!B7631 -> 64380359 | D73: ='AFR18'!B7632 -> 249222472
A74: Transfer to Debt Service Fund to Pay Principal on ISBE Loans | B74: 8910 | C74: ='AFR18'!B6198 -> 782766 | D74: ='AFR18'!B6199 -> 14127 | F74: ='AFR18'!B6200 -> 0 | G74: ='AFR18'!B6201 -> 0 | H74: ='AFR18'!B6202 -> 0 | K74: ='AFR18'!B6203 -> 0
A75: Other Uses Not Classified Elsewhere | B75: 8990 | C75: ='AFR18'!B3176 -> 123178562 | D75: ='AFR18'!B3182 -> 88363426 | E75: ='AFR18'!B3221 -> 1798259672 | F75: ='AFR18'!B3199 -> 10210782 | G75: ='AFR18'!B6204 -> 0 | H75: ='AFR18'!B3243 -> 37519303 | I75: ='AFR18'!B6205 -> 46412640 | J75: ='AFR18'!B6206 -> 2602928 | K75: ='AFR18'!B3531 -> 848251
A76: Total Other Uses of Funds | C76: =SUM(C47:C75) -> 391420122 | D76: =SUM(D47:D75) -> 466366300 | E76: 2085549808 | F76: 117396711 | G76: 47510 | H76: 66590908 | I76: 418001221 | J76: 5469837 | K76: 1048505
A77: Total Other Sources/Uses of Funds 6 | C77: =(C44-C76) -> 101269824 | D77: =(D44-D76) -> -48330558 | E77: 1008240056 | F77: -57243551 | G77: 785848 | H77: 1494085819 | I77: -94132965 | J77: -3577039 | K77: 110466919
A78: Excess of Receipts/Revenues and Other Sources of Funds (Over/Under) Expenditures/Disbursements and Other Uses of Funds | C78: =SUM(C20+C77) -> 1336993298 | D78: =SUM(D20+D77) -> 38841217.85 | E78: =SUM(E20+E77) -> 217666031.8 | F78: 126583477.5 | G78: 25508918.44 | H78: 227098001.5 | I78: -1227784.69 | J78: -20422816.14 | K78: 2591453.31
A79: Fund Balances - July 1, 2017 | C79: ='AFR18'!B1563 -> 6173172812 | D79: ='AFR18'!B1577 -> 1322527707 | E79: ='AFR18'!B1591 -> 1437267403 | F79: ='AFR18'!B1605 -> 734320909 | G79: ='AFR18'!B1619 -> 442554093 | H79: ='AFR18'!B1633 -> 2224706463 | I79: ='AFR18'!B3267 -> 2257414987 | J79: ='AFR18'!B6210 -> 242093776 | K79: ='AFR18'!B3535 -> 316435890
A80: Other Changes in Fund Balances - Increases (Decreases) (Describe & Itemize) | C80: ='AFR18'!B2509 -> 1276757 | D80: ='AFR18'!B2521 -> 1692437 | E80: ='AFR18'!B2583 -> -771344 | F80: ='AFR18'!B2548 -> -244177 | G80: ='AFR18'!B2560 -> 90691 | H80: ='AFR18'!B2609 -> -138403 | I80: ='AFR18'!B3268 -> 49690 | J80: ='AFR18'!B6211 -> 603182 | K80: ='AFR18'!B3536 -> 238630
A81: Fund Balances - June 30, 2018 | C81: =SUM(C78:C80) -> 7511442867 | D81: =SUM(D78:D80) -> 1363061362 | E81: 1654162091 | F81: 860660209.5 | G81: 468153702.4 | H81: 2451666062 | I81: 2256236892 | J81: 222274141.9 | K81: 319265973.3

Sheet Revenues 9-14
C1: (10) | D1: (20) | E1: (30) | F1: (40) | G1: (50) | H1: (60) | I1: (70) | J1: (80) | K1: (90)
A2: Description | B2: Acct # | C2: Educational | D2: Operations & Maintenance | E2: Debt Services | F2: Transportation | G2: Municipal Retirement/ Social Security | H2: Capital Projects | I2: Working Cash | J2: Tort | K2: Fire Prevention & Safety
A3: RECEIPTS/REVENUES FROM LOCAL SOURCES (1000)
A4: AD VALOREM TAXES LEVIED BY LOCAL EDUCATION AGENCY
A5: Designated Purposes Levies 7 | C5: ='AFR18'!B5007 -> 1.227529269e+10 | D5: ='AFR18'!B5274 -> 1520014415 | E5: ='AFR18'!B5455 -> 1580829142 | F5: ='AFR18'!B5499 -> 627846419.7 | G5: ='AFR18'!B5667 -> 265871329.8 | H5: ='AFR18'!B5817 -> 9526435 | I5: ='AFR18'!B5862 -> 68670218.56 | J5: ='AFR18'!B6244 -> 336663561 | K5: ='AFR18'!B5931 -> 54998681.56
A6: Leasing Purposes Levy 8 | B6: 1130 | C6: ='AFR18'!B4972 -> 28556306.71 | D6: ='AFR18'!B5276 -> 8189083
A7: Special Education Purposes Levy | B7: 1140 | C7: ='AFR18'!B5009 -> 484315829.3 | D7: ='AFR18'!B5277 -> 145750 | F7: ='AFR18'!B5501 -> 0 | G7: ='AFR18'!B5668 -> 1812761 | H7: ='AFR18'!B6245 -> 0
A8: FICA/Medicare Only Purposes Levies | B8: 1150 | G8: ='AFR18'!B5669 -> 308614694.5
A9: Area Vocational Construction Purposes Levy | B9: 1160 | D9: ='AFR18'!B5278 -> 0 | E9: ='AFR18'!B5457 -> 0 | H9: ='AFR18'!B6989 -> 0
A10: Summer School Purposes Levy | B10: 1170 | C10: ='AFR18'!B5010 -> 202
A11: Other Tax Levies (Describe & Itemize) | B11: 1190 | C11: ='AFR18'!B5011 -> 172919 | D11: ='AFR18'!B5279 -> 2296059 | E11: ='AFR18'!B5458 -> 3614308 | F11: ='AFR18'!B5502 -> 2902022 | G11: ='AFR18'!B5670 -> 1606190 | H11: ='AFR18'!B5818 -> 37018 | I11: ='AFR18'!B5863 -> 200731 | J11: ='AFR18'!B6246 -> 415238 | K11: ='AFR18'!B5932 -> 230168
A12: Total Ad Valorem Taxes Levied By District | C12: =SUM(C5:C11) -> 1.278833795e+10 | D12: =SUM(D5:D11) -> 1530645307 | E12: 1584443450 | F12: 630748441.7 | G12: 577904975.3 | H12: 9563453 | I12: 68870949.56 | J12: 337078799 | K12: 55228849.56
A13: PAYMENTS IN LIEU OF TAXES
A14: Mobile Home Privilege Tax | B14: 1210 | C14: ='AFR18'!B5013 -> 1384224.27 | D14: ='AFR18'!B5281 -> 230371.61 | E14: ='AFR18'!B5460 -> 246213.46 | F14: ='AFR18'!B5504 -> 93301.52 | G14: ='AFR18'!B5672 -> 127526 | H14: ='AFR18'!B5820 -> 1380 | I14: ='AFR18'!B5865 -> 15244.8 | J14: ='AFR18'!B6248 -> 117082.29 | K14: ='AFR18'!B5934 -> 17107.8
A15: Payments from Local Housing Authorities | B15: 1220 | C15: ='AFR18'!B5014 -> 1456414 | D15: ='AFR18'!B5282 -> 208542 | E15: ='AFR18'!B5461 -> 50717 | F15: ='AFR18'!B5505 -> 14725 | G15: ='AFR18'!B5673 -> 46992 | H15: ='AFR18'!B5821 -> 0 | I15: ='AFR18'!B5866 -> 2799 | J15: ='AFR18'!B6249 -> 19439 | K15: ='AFR18'!B5935 -> 2940
A16: Corporate Personal Property Replacement Taxes 9 | B16: 1230 | C16: ='AFR18'!B5015 -> 429992057.5 | D16: ='AFR18'!B5283 -> 79902948 | E16: ='AFR18'!B5462 -> 63714897 | F16: ='AFR18'!B5506 -> 9073520 | G16: ='AFR18'!B5674 -> 50487566 | H16: ='AFR18'!B5822 -> 2858909 | I16: ='AFR18'!B5867 -> 353851 | J16: ='AFR18'!B6250 -> 1617577 | K16: ='AFR18'!B5936 -> 10000
A17: Other Payments in Lieu of Taxes (Describe & Itemize) | B17: 1290 | C17: ='AFR18'!B5016 -> 18579713 | D17: ='AFR18'!B5284 -> 990609.7 | E17: ='AFR18'!B5463 -> 589190 | F17: ='AFR18'!B5507 -> 386976 | G17: ='AFR18'!B5675 -> 113249 | H17: ='AFR18'!B5823 -> 2022291 | I17: ='AFR18'!B5868 -> 3344 | J17: ='AFR18'!B6251 -> 35743 | K17: ='AFR18'!B5937 -> 22591
A18: Total Payments in Lieu of Taxes | C18: =SUM(C14:C17) -> 451412408.8 | D18: =SUM(D14:D17) -> 81332471.31 | E18: 64601017.46 | F18: 9568522.52 | G18: 50775333 | H18: 4882580 | I18: 375238.8 | J18: 1789841.29 | K18: 52638.8
A19: Tuition
A20: Regular - Tuition from Pupils or Parents (In State) | B20: 1311 | C20: ='AFR18'!B5018 -> 17250859
A21: Regular - Tuition from Other Districts (In State) | B21: 1312 | C21: ='AFR18'!B5019 -> 4092120
A22: Regular - Tuition from Other Sources (In State) | B22: 1313 | C22: ='AFR18'!B5020 -> 3305114.52
A23: Regular - Tuition from Other Sources (Out of State) | B23: 1314 | C23: ='AFR18'!B6253 -> 444886
A24: Summer Sch - Tuition from Pupils or Parents (In State) | B24: 1321 | C24: ='AFR18'!B5021 -> 16093527
A25: Summer Sch - Tuition from Other Districts (In State) | B25: 1322 | C25: ='AFR18'!B5022 -> 416252
A26: Summer Sch - Tuition from Other Sources (In State) | B26: 1323 | C26: ='AFR18'!B5023 -> 668152
A27: Summer Sch - Tuition from Other Sources (Out of State) | B27: 1324 | C27: ='AFR18'!B6254 -> 0
A28: CTE - Tuition from Pupils or Parents (In State) | B28: 1331 | C28: ='AFR18'!B5024 -> 94779
A29: CTE - Tuition from Other Districts (In State) | B29: 1332 | C29: ='AFR18'!B5025 -> 287538
A30: CTE - Tuition from Other Sources (In State) | B30: 1333 | C30: ='AFR18'!B5026 -> 0
A31: CTE - Tuition from Other Sources (Out of State) | B31: 1334 | C31: ='AFR18'!B6255 -> 0
A32: Special Ed - Tuition from Pupils or Parents (In State) | B32: 1341 | C32: ='AFR18'!B5027 -> 4219602
A33: Special Ed - Tuition from Other Districts (In State) | B33: 1342 | C33: ='AFR18'!B5028 -> 25169238
A34: Special Ed - Tuition from Other Sources (In State) | B34: 1343 | C34: ='AFR18'!B5029 -> 351167
A35: Special Ed - Tuition from Other Sources (Out of State) | B35: 1344 | C35: ='AFR18'!B6256 -> 50790
A36: Adult - Tuition from Pupils or Parents (In State) | B36: 1351 | C36: ='AFR18'!B5030 -> 3645479
A37: Adult - Tuition from Other Districts (In State) | B37: 1352 | C37: ='AFR18'!B5031 -> 2360
A38: Adult - Tuition from Other Sources (In State) | B38: 1353 | C38: ='AFR18'!B5032 -> 615343
A39: Adult - Tuition from Other Sources (Out of State) | B39: 1354 | C39: ='AFR18'!B6257 -> 174691
A40: Total Tuition | C40: =SUM(C20:C39) -> 76881897.52
A41: TRANSPORTATION FEES
A42: Regular -Transp Fees from Pupils or Parents (In State) | B42: 1411 | F42: ='AFR18'!B5509 -> 6794979
A43: Regular - Transp Fees from Other Districts (In State) | B43: 1412 | F43: ='AFR18'!B5510 -> 14908598
A44: Regular - Transp Fees from Other Sources (In State) | B44: 1413 | F44: ='AFR18'!B5511 -> 990977
A45: Regular - Transp Fees from Co-curricular Activities (In State) | B45: 1415 | F45: ='AFR18'!B5512 -> 5114422
A46: Regular Transp Fees from Other Sources (Out of State) | B46: 1416 | F46: ='AFR18'!B6258 -> 42183
A47: Summer Sch - Transp. Fees from Pupils or Parents (In State) | B47: 1421 | F47: ='AFR18'!B5513 -> 259775
A48: Summer Sch - Transp. Fees from Other Districts (In State) | B48: 1422 | F48: ='AFR18'!B5514 -> 59325
A49: Summer Sch - Transp. Fees from Other Sources (In State) | B49: 1423 | F49: ='AFR18'!B5515 -> 8000
A50: Summer Sch - Transp. Fees from Other Sources (Out of State) | B50: 1424 | F50: ='AFR18'!B6259 -> 0
A51: CTE - Transp Fees from Pupils or Parents (In State) | B51: 1431 | F51: ='AFR18'!B5516 -> 52017
A52: CTE - Transp Fees from Other Districts (In State) | B52: 1432 | F52: ='AFR18'!B5517 -> 16511
A53: CTE - Transp Fees from Other Sources (In State) | B53: 1433 | F53: ='AFR18'!B5518 -> 11321
A54: CTE - Transp Fees from Other Sources (Out of State) | B54: 1434 | F54: ='AFR18'!B6260 -> 0
A55: Special Ed - Transp Fees from Pupils or Parents (In State) | B55: 1441 | F55: ='AFR18'!B5519 -> 133200
A56: Special Ed - Transp Fees from Other Districts (In State) | B56: 1442 | F56: ='AFR18'!B5520 -> 4217175
A57: Special Ed - Transp Fees from Other Sources (In State) | B57: 1443 | F57: ='AFR18'!B5521 -> 187716
A58: Special Ed - Transp Fees from Other Sources (Out of State) | B58: 1444 | F58: ='AFR18'!B7710 -> 0
A59: Adult - Transp Fees from Pupils or Parents (In State) | B59: 1451 | F59: ='AFR18'!B5522 -> 0
A60: Adult - Transp Fees from Other Districts (In State) | B60: 1452 | F60: ='AFR18'!B5523 -> 0
A61: Adult - Transp Fees from Other Sources (In State) | B61: 1453 | F61: ='AFR18'!B5524 -> 15171
A62: Adult - Transp Fees from Other Sources (Out of State) | B62: 1454 | F62: ='AFR18'!B6261 -> 0
A63: Total Transportation Fees | F63: =SUM(F42:F62) -> 32811370
A64: EARNINGS ON INVESTMENTS
A65: Interest on Investments | B65: 1510 | C65: ='AFR18'!B5034 -> 92528063.68 | D65: ='AFR18'!B5286 -> 13863731.03 | E65: ='AFR18'!B5465 -> 12293462.54 | F65: ='AFR18'!B5526 -> 7708961 | G65: ='AFR18'!B5677 -> 5132579 | H65: ='AFR18'!B5825 -> 23261024.82 | I65: ='AFR18'!B5870 -> 24251951.95 | J65: ='AFR18'!B6262 -> 2106532 | K65: ='AFR18'!B5939 -> 2918421
A66: Gain or Loss on Sale of Investments | B66: 1520 | C66: ='AFR18'!B5035 -> -944805 | D66: ='AFR18'!B5287 -> -635518 | E66: ='AFR18'!B5466 -> 814098 | F66: ='AFR18'!B5527 -> -317679 | G66: ='AFR18'!B5678 -> -296936 | H66: ='AFR18'!B5826 -> -785625 | I66: ='AFR18'!B5871 -> -763506 | J66: ='AFR18'!B6263 -> -124706 | K66: ='AFR18'!B5940 -> -173153
A67: Total Earnings on Investments | C67: =SUM(C65:C66) -> 91583258.68 | D67: =SUM(D65:D66) -> 13228213.03 | E67: 13107560.54 | F67: 7391282 | G67: 4835643 | H67: 22475399.82 | I67: 23488445.95 | J67: 1981826 | K67: 2745268
A68: FOOD SERVICE
A69: Sales to Pupils - Lunch | B69: 1611 | C69: ='AFR18'!B5977 -> 137024027.7
A70: Sales to Pupils - Breakfast | B70: 1612 | C70: ='AFR18'!B5037 -> 2876457
A71: Sales to Pupils - A la Carte | B71: 1613 | C71: ='AFR18'!B5038 -> 36610244
A72: Sales to Pupils - Other (Describe & Itemize) | B72: 1614 | C72: ='AFR18'!B5039 -> 8054753
A73: Sales to Adults | B73: 1620 | C73: ='AFR18'!B5040 -> 4351472.91
A74: Other Food Service (Describe & Itemize) | B74: 1690 | C74: ='AFR18'!B5041 -> 14148177
A75: Total Food Service | C75: =SUM(C69:C74) -> 203065131.6
A76: DISTRICT/SCHOOL ACTIVITY INCOME
A77: Admissions - Athletic | B77: 1711 | C77: ='AFR18'!B5043 -> 20724459.78 | D77: ='AFR18'!B5289 -> 24252
A78: Admissions - Other (Describe & Itemize) | B78: 1719 | C78: ='AFR18'!B5044 -> 3169823 | D78: ='AFR18'!B5290 -> 322758
A79: Fees | B79: 1720 | C79: ='AFR18'!B5045 -> 69074689 | D79: ='AFR18'!B5291 -> 2298443
A80: Book Store Sales | B80: 1730 | C80: ='AFR18'!B5046 -> 4895864 | D80: ='AFR18'!B5292 -> 0
A81: Other District/School Activity Revenue (Describe & Itemize) | B81: 1790 | C81: ='AFR18'!B5047 -> 18308761 | D81: ='AFR18'!B5293 -> 228932
A82: Total District/School Activity Income | C82: =SUM(C77:C81) -> 116173596.8 | D82: =SUM(D77:D81) -> 2874385
A83: TEXTBOOK INCOME
A84: Rentals - Regular Textbooks | B84: 1811 | C84: ='AFR18'!B5049 -> 98284857.29
A85: Rentals - Summer School Textbooks | B85: 1812 | C85: ='AFR18'!B5050 -> 928974
A86: Rentals - Adult/Continuing Education Textbooks | B86: 1813 | C86: ='AFR18'!B5051 -> 668033
A87: Rentals - Other (Describe & Itemize) | B87: 1819 | C87: ='AFR18'!B5052 -> 2683545
A88: Sales - Regular Textbooks | B88: 1821 | C88: ='AFR18'!B5053 -> 2101789
A89: Sales - Summer School Textbooks | B89: 1822 | C89: ='AFR18'!B5054 -> 70650
A90: Sales - Adult/Continuing Education Textbooks | B90: 1823 | C90: ='AFR18'!B5055 -> 34664
A91: Sales - Other (Describe & Itemize) | B91: 1829 | C91: ='AFR18'!B5056 -> 135061
A92: Other (Describe & Itemize) | B92: 1890 | C92: ='AFR18'!B5057 -> 2472347
A93: Total Textbook Income | C93: =SUM(C84:C92) -> 107379920.3
A94: OTHER REVENUE FROM LOCAL SOURCES
A95: Rentals | B95: 1910 | C95: ='AFR18'!B5059 -> 11025312 | D95: ='AFR18'!B5295 -> 30604051.36
A96: Contributions and Donations from Private Sources | B96: 1920 | C96: ='AFR18'!B5060 -> 23642234.25 | D96: ='AFR18'!B5296 -> 6114286 | E96: ='AFR18'!B5468 -> 1750000 | F96: ='AFR18'!B5529 -> 101579 | G96: ='AFR18'!B5680 -> 15764 | H96: ='AFR18'!B5828 -> 11322363.3 | I96: ='AFR18'!B5873 -> 59999 | J96: ='AFR18'!B6265 -> 2802 | K96: ='AFR18'!B5942 -> 0
A97: Impact Fees from Municipal or County Governments | B97: 1930 | C97: ='AFR18'!B6266 -> 1407073 | D97: ='AFR18'!B6267 -> 2740217.14 | E97: ='AFR18'!B6268 -> 520000 | F97: ='AFR18'!B6269 -> 7087 | G97: ='AFR18'!B6270 -> 0 | H97: ='AFR18'!B6271 -> 7767287 | I97: ='AFR18'!B6272 -> 0 | J97: ='AFR18'!B6273 -> 0 | K97: ='AFR18'!B6274 -> 0
A98: Services Provided Other Districts | B98: 1940 | C98: ='AFR18'!B5061 -> 12034366 | D98: ='AFR18'!B5297 -> 1079759 | F98: ='AFR18'!B5530 -> 705899
A99: Refund of Prior Years' Expenditures | B99: 1950 | C99: ='AFR18'!B5062 -> 40603746.24 | D99: ='AFR18'!B5298 -> 3705813 | E99: ='AFR18'!B5469 -> 165796 | F99: ='AFR18'!B5531 -> 3196144 | G99: ='AFR18'!B5681 -> 70677 | H99: ='AFR18'!B5829 -> 657360 | J99: ='AFR18'!B6275 -> 1677598 | K99: ='AFR18'!B5943 -> 16098
A100: Payments of Surplus Moneys from TIF Districts | B100: 1960 | C100: ='AFR18'!B6276 -> 138774696 | D100: ='AFR18'!B6277 -> 8329878 | E100: ='AFR18'!B6278 -> 2645511 | F100: ='AFR18'!B6279 -> 180208 | G100: ='AFR18'!B6280 -> 184603 | H100: ='AFR18'!B6281 -> 9933371 | I100: ='AFR18'!B6282 -> 109937 | J100: ='AFR18'!B6283 -> 128260 | K100: ='AFR18'!B6284 -> 124975
A101: Drivers' Education Fees | B101: 1970 | C101: ='AFR18'!B6285 -> 7478192
A102: Proceeds from Vendors' Contracts | B102: 1980 | C102: ='AFR18'!B6286 -> 2231902 | D102: ='AFR18'!B6287 -> 2676962 | E102: ='AFR18'!B6288 -> 173305 | F102: ='AFR18'!B6289 -> 0 | G102: ='AFR18'!B6290 -> 0 | H102: ='AFR18'!B6291 -> 104244 | I102: ='AFR18'!B6292 -> 0 | J102: ='AFR18'!B6293 -> 0 | K102: ='AFR18'!B6294 -> 0
A103: School Facility Occupation Tax Proceeds | B103: 1983 | E103: ='AFR18'!B7674 -> 35306169 | H103: ='AFR18'!B7677 -> 75023622.49
A104: Payment from Other Districts | B104: 1991 | C104: ='AFR18'!B4707 -> 4862869 | D104: ='AFR18'!B5299 -> 876630 | E104: ='AFR18'!B5470 -> 766615 | F104: ='AFR18'!B4973 -> 1661788 | G104: ='AFR18'!B6295 -> 234735 | H104: ='AFR18'!B5830 -> 30276
A105: Sale of Vocational Projects | B105: 1992 | C105: ='AFR18'!B5063 -> 2231649
A106: Other Local Fees | B106: 1993 | C106: ='AFR18'!B5064 -> 46485943 | D106: ='AFR18'!B6990 -> 2747391 | E106: ='AFR18'!B6991 -> 6425679 | F106: ='AFR18'!B6992 -> 182652 | G106: ='AFR18'!B7582 -> 32723 | H106: ='AFR18'!B7583 -> 1539978 | J106: ='AFR18'!B7584 -> 439 | K106: ='AFR18'!B7585 -> 34902
A107: Other Local Revenues (Describe & Itemize) | B107: 1999 | C107: ='AFR18'!B5065 -> 199107225.4 | D107: ='AFR18'!B5300 -> 30716883.25 | E107: ='AFR18'!B5471 -> 106792657 | F107: ='AFR18'!B5532 -> 7056536 | G107: ='AFR18'!B5682 -> 908622 | H107: ='AFR18'!B5831 -> 40167058 | I107: ='AFR18'!B5875 -> 610 | J107: ='AFR18'!B6296 -> 1833003.73 | K107: ='AFR18'!B5944 -> 54407
A108: Total Other Revenue from Local Sources | C108: =SUM(C95:C107) -> 489885207.9 | D108: =SUM(D95:D107) -> 89591870.75 | E108: =SUM(E95:E107) -> 154545732 | F108: 13091893 | G108: 1447124 | H108: 146545559.8 | I108: 170546 | J108: 3642102.73 | K108: 230382
A109: Total Receipts/Revenues from Local Sources | B109: 1000 | C109: =SUM(C12,C18,C40,C63,C67,C75,C82,C93,C108) -> 1.432471937e+10 | D109: 1717672247 | E109: 1816697760 | F109: 693611509.2 | G109: 634963075.3 | H109: 183466992.6 | I109: 92905180.31 | J109: 344492569 | K109: 58257138.36
A110: FLOW-THROUGH RECEIPTS/REVENUES FROM ONE DISTRICT TO ANOTHER DISTRICT (2000)
A111: Flow-through Revenue from State Sources | B111: 2100 | C111: ='AFR18'!B5068 -> 10335828 | D111: ='AFR18'!B5303 -> 605000 | F111: ='AFR18'!B5535 -> 45553 | G111: ='AFR18'!B5684 -> 0
A112: Flow-through Revenue from Federal Sources | B112: 2200 | C112: ='AFR18'!B5069 -> 2447361 | D112: ='AFR18'!B5304 -> 0 | F112: ='AFR18'!B5536 -> 29339 | G112: ='AFR18'!B5685 -> 0
A113: Other Flow-Through (Describe & Itemize) | B113: 2300 | C113: ='AFR18'!B5070 -> 157063 | D113: ='AFR18'!B5305 -> 511071 | F113: ='AFR18'!B5537 -> 480 | G113: ='AFR18'!B5686 -> 0
A114: Total Flow-Through Receipts/Revenues from One District to Another District | B114: 2000 | C114: =SUM(C111:C113) -> 12940252 | D114: =SUM(D111:D113) -> 1116071 | F114: =SUM(F111:F113) -> 75372 | G114: =SUM(G111:G113) -> 0
A115: RECEIPTS/REVENUES FROM STATE SOURCES (3000)
A116: UNRESTRICTED GRANTS-IN-AID
A117: Evidence-Based Funding Formula (Section 18-8.15) | B117: 3001 | C117: ='AFR18'!B5072 -> 5304504837 | D117: ='AFR18'!B5307 -> 543668721 | E117: ='AFR18'!B5474 -> 336372009 | F117: ='AFR18'!B5539 -> 47718521 | G117: ='AFR18'!B5688 -> 12636095 | H117: ='AFR18'!B5833 -> 36938304 | J117: ='AFR18'!B6299 -> 5512259 | K117: ='AFR18'!B5946 -> 475364
A118: General State Aid - Hold Harmless/Supplemental | B118: 3002 | C118: ='AFR18'!B4820 -> 18449707 | D118: ='AFR18'!B4821 -> 651682 | E118: ='AFR18'!B4822 -> 0 | F118: ='AFR18'!B4823 -> 0 | G118: ='AFR18'!B4824 -> 0 | H118: ='AFR18'!B4825 -> 0 | J118: ='AFR18'!B6300 -> 0 | K118: ='AFR18'!B4827 -> 0
A119: Reorganization Incentives (Accounts 3005-3021) | B119: 3005 | C119: ='AFR18'!B5073 -> 2891798 | D119: ='AFR18'!B5308 -> 0 | E119: ='AFR18'!B5475 -> 0 | F119: ='AFR18'!B5540 -> 1574961 | G119: ='AFR18'!B5689 -> 0 | H119: ='AFR18'!B5834 -> 0 | J119: ='AFR18'!B6301 -> 0 | K119: ='AFR18'!B5947 -> 0
A120: Other Unrestricted Grants-In-Aid from State Sources (Describe & Itemize) | B120: 3099 | C120: ='AFR18'!B4828 -> 1988407 | D120: ='AFR18'!B4829 -> 0 | E120: ='AFR18'!B4830 -> 0 | F120: ='AFR18'!B4831 -> 279 | G120: ='AFR18'!B4832 -> 0 | H120: ='AFR18'!B4833 -> 0 | J120: ='AFR18'!B6302 -> 0 | K120: ='AFR18'!B4835 -> 0
A121: Total Unrestricted Grants-In-Aid | C121: =SUM(C117:C120) -> 5327834749 | D121: 544320403 | E121: 336372009 | F121: 49293761 | G121: 12636095 | H121: 36938304 | J121: =SUM(J117:J120) -> 5512259 | K121: =SUM(K117:K120) -> 475364
A122: RESTRICTED GRANTS-IN-AID
A123: SPECIAL EDUCATION
A124: Special Education - Private Facility Tuition | B124: 3100 | C124: ='AFR18'!B5079 -> 144532030 | F124: ='AFR18'!B5546 -> 4038
A125: Special Education - Extraordinary | B125: 3105 | C125: ='AFR18'!B5080 -> 74146985.34 | F125: ='AFR18'!B5547 -> 5625
A126: Special Education - Personnel | B126: 3110 | C126: ='AFR18'!B5081 -> 102700466.7 | D126: ='AFR18'!B5314 -> 0 | F126: ='AFR18'!B5548 -> 121780
A127: Special Education - Orphanage - Individual | B127: 3120 | C127: ='AFR18'!B5083 -> 50199936.73 | F127: ='AFR18'!B5550 -> 183563
A128: Special Education - Orphanage - Summer | B128: 3130 | C128: ='AFR18'!B5085 -> 6525702 | F128: ='AFR18'!B5552 -> 0
A129: Special Education - Summer School | B129: 3145 | C129: ='AFR18'!B5088 -> 4501046 | F129: ='AFR18'!B5555 -> 0
A130: Special Education - Other (Describe & Itemize) | B130: 3199 | C130: ='AFR18'!B4255 -> 273421 | D130: ='AFR18'!B4256 -> 0 | F130: ='AFR18'!B4257 -> 0
A131: Total Special Education | C131: =SUM(C124:C130) -> 382879587.8 | D131: =SUM(D124:D130) -> 0 | F131: =SUM(F124:F130) -> 315006
A132: CAREER AND TECHNICAL EDUCATION (CTE)
A133: CTE - Technical Education - Tech Prep | B133: 3200 | C133: ='AFR18'!B5094 -> 1140963 | D133: ='AFR18'!B5316 -> 0 | G133: ='AFR18'!B5695 -> 5193
A134: CTE - Secondary Program Improvement (CTEI) | B134: 3220 | C134: ='AFR18'!B5098 -> 17298662 | D134: ='AFR18'!B5320 -> 0 | G134: ='AFR18'!B6304 -> 4923
A135: CTE - WECEP | B135: 3225 | C135: ='AFR18'!B5099 -> 161985 | D135: ='AFR18'!B5321 -> 0 | G135: ='AFR18'!B4717 -> 0
A136: CTE - Agriculture Education | B136: 3235 | C136: ='AFR18'!B6305 -> 1836317 | D136: ='AFR18'!B6306 -> 0 | G136: ='AFR18'!B6307 -> 89
A137: CTE - Instructor Practicum | B137: 3240 | C137: ='AFR18'!B6308 -> 46798 | D137: ='AFR18'!B6309 -> 0 | G137: ='AFR18'!B6310 -> 0
A138: CTE - Student Organizations | B138: 3270 | C138: ='AFR18'!B6311 -> 87582 | D138: ='AFR18'!B6312 -> 0 | G138: ='AFR18'!B6313 -> 0
A139: CTE - Other (Describe & Itemize) | B139: 3299 | C139: ='AFR18'!B4173 -> 1032831 | D139: ='AFR18'!B4174 -> 0 | G139: ='AFR18'!B4176 -> 0
A140: Total Career and Technical Education | C140: =SUM(C133:C139) -> 21605138 | D140: =SUM(D133:D139) -> 0 | G140: =SUM(G133:G139) -> 10205
A141: BILINGUAL EDUCATION
A142: Bilingual Ed - Downstate - TPI and TBE | B142: 3305 | C142: ='AFR18'!B5109 -> 82880458 | G142: ='AFR18'!B5700 -> 2031
A143: Bilingual Education - Transitional Bilingual Education | B143: 3310 | C143: ='AFR18'!B5110 -> 451518 | G143: ='AFR18'!B5701 -> 0
A144: Total Bilingual Ed | C144: =SUM(C142:C143) -> 83331976 | G144: =SUM(G142:G143) -> 2031
A145: State Free Lunch & Breakfast | B145: 3360 | C145: ='AFR18'!B5113 -> 7254315.2
A146: School Breakfast Initiative | B146: 3365 | C146: ='AFR18'!B4297 -> 33097 | D146: ='AFR18'!B4298 -> 0 | G146: ='AFR18'!B4299 -> 0
A147: Driver Education | B147: 3370 | C147: ='AFR18'!B5114 -> 18661339 | D147: ='AFR18'!B5330 -> 0
A148: Adult Ed (from ICCB) | B148: 3410 | C148: ='AFR18'!B5117 -> 3605207 | D148: ='AFR18'!B5333 -> 0 | E148: ='AFR18'!B6314 -> 0 | F148: ='AFR18'!B6315 -> 0 | G148: ='AFR18'!B6316 -> 0 | H148: ='AFR18'!B6317 -> 0 | I148: ='AFR18'!B6318 -> 0 | J148: ='AFR18'!B6319 -> 0 | K148: ='AFR18'!B6320 -> 0
A149: Adult Ed - Other (Describe & Itemize) | B149: 3499 | C149: ='AFR18'!B4258 -> 142381 | D149: ='AFR18'!B4259 -> 0 | E149: ='AFR18'!B6321 -> 0 | F149: ='AFR18'!B4300 -> 0 | G149: ='AFR18'!B4301 -> 0 | H149: ='AFR18'!B6322 -> 0 | I149: ='AFR18'!B6323 -> 0 | J149: ='AFR18'!B6324 -> 0 | K149: ='AFR18'!B6325 -> 0
A150: TRANSPORTATION
A151: Transportation - Regular/Vocational | B151: 3500 | C151: ='AFR18'!B5121 -> 296180 | D151: ='AFR18'!B5337 -> 65000 | F151: ='AFR18'!B5561 -> 278137337.9 | G151: ='AFR18'!B6326 -> 0
A152: Transportation - Special Education | B152: 3510 | C152: ='AFR18'!B5123 -> 48843314 | D152: ='AFR18'!B5339 -> 10000 | F152: ='AFR18'!B5563 -> 353389376.6 | G152: ='AFR18'!B6327 -> 0
A153: Transportation - Other (Describe & Itemize) | B153: 3599 | C153: ='AFR18'!B4260 -> 0 | D153: ='AFR18'!B4261 -> 0 | F153: ='AFR18'!B4262 -> 8557 | G153: ='AFR18'!B4302 -> 0
A154: Total Transportation | C154: =SUM(C151:C153) -> 49139494 | D154: =SUM(D151:D153) -> 75000 | F154: =SUM(F151:F153) -> 631535271.5 | G154: =SUM(G151:G153) -> 0
A155: Learning Improvement - Change Grants | B155: 3610 | C155: ='AFR18'!B5127 -> 75580
A156: Scientific Literacy | B156: 3660 | C156: ='AFR18'!B5133 -> 12813 | D156: ='AFR18'!B5341 -> 0 | F156: ='AFR18'!B5565 -> 0 | G156: ='AFR18'!B5703 -> 0
A157: Truant Alternative/Optional Education | B157: 3695 | C157: ='AFR18'!B5140 -> 8861289 | F157: ='AFR18'!B5571 -> 320 | G157: ='AFR18'!B5709 -> 5972
A158: Early Childhood - Block Grant | B158: 3705 | C158: ='AFR18'!B5142 -> 388808276 | D158: ='AFR18'!B5347 -> 326020 | F158: ='AFR18'!B5573 -> 6343913 | G158: ='AFR18'!B5711 -> 565581
A159: Reading Improvement Block Grant | B159: 3715 | C159: ='AFR18'!B5145 -> 830080 | F159: ='AFR18'!B5576 -> 114119 | G159: ='AFR18'!B5713 -> 0
A160: Reading Improvement Block Grant - Reading Recovery | B160: 3720 | C160: ='AFR18'!B5146 -> 2669 | F160: ='AFR18'!B5577 -> 0 | G160: ='AFR18'!B5714 -> 0
A161: Continued Reading Improvement Block Grant | B161: 3725 | C161: ='AFR18'!B6328 -> 1681 | F161: ='AFR18'!B6329 -> 0 | G161: ='AFR18'!B6330 -> 0
A162: Continued Reading Improvement Block Grant (2% Set Aside) | B162: 3726 | C162: ='AFR18'!B6331 -> 0 | F162: ='AFR18'!B6332 -> 0 | G162: ='AFR18'!B6333 -> 0
A163: Chicago General Education Block Grant | B163: 3766 | C163: ='AFR18'!B5002 -> 122606950 | D163: ='AFR18'!B5003 -> 0 | F163: ='AFR18'!B5004 -> 0 | G163: ='AFR18'!B5005 -> 0
A164: Chicago Educational Services Block Grant | B164: 3767 | C164: ='AFR18'!B5006 -> 0 | D164: ='AFR18'!B4125 -> 0 | F164: ='AFR18'!B4126 -> 0 | G164: ='AFR18'!B4127 -> 0
A165: School Safety & Educational Improvement Block Grant | B165: 3775 | C165: ='AFR18'!B4861 -> 2686 | D165: ='AFR18'!B4862 -> 4498 | E165: ='AFR18'!B4863 -> 0 | F165: ='AFR18'!B4864 -> 8752 | G165: ='AFR18'!B4865 -> 0 | H165: ='AFR18'!B4866 -> 0 | K165: ='AFR18'!B4868 -> 0
A166: Technology - Learning Technology Centers | B166: 3780 | C166: ='AFR18'!B6334 -> 151432 | D166: ='AFR18'!B6335 -> 0 | E166: ='AFR18'!B6336 -> 0 | F166: ='AFR18'!B6337 -> 0 | G166: ='AFR18'!B6338 -> 0 | H166: ='AFR18'!B6339 -> 0 | K166: ='AFR18'!B6340 -> 0
A167: State Charter Schools | B167: 3815 | C167: ='AFR18'!B4263 -> 26234 | F167: ='AFR18'!B4264 -> 0
A168: Extended Learning Opportunities - Summer Bridges | B168: 3825 | C168: ='AFR18'!B4267 -> 0 | F168: ='AFR18'!B4268 -> 0
A169: Infrastructure Improvements - Construction | B169: 3920 | D169: ='AFR18'!B4273 -> 219465 | H169: ='AFR18'!B4274 -> 2982381
A170: School Infrastructure - Maintenance | B170: 3925 | D170: ='AFR18'!B4275 -> 61379 | H170: ='AFR18'!B7652 -> 181415 | K170: ='AFR18'!B4276 -> 25000
A171: Other Restricted Revenue from State Sources (Describe & Itemize) | B171: 3999 | C171: ='AFR18'!B4738 -> 31714649 | D171: ='AFR18'!B4739 -> 1109824 | E171: ='AFR18'!B4740 -> 6560200 | F171: ='AFR18'!B4741 -> 31316 | G171: ='AFR18'!B4742 -> 3471 | H171: ='AFR18'!B4743 -> 15570530 | I171: ='AFR18'!B4161 -> 0 | J171: ='AFR18'!B6341 -> 1112 | K171: ='AFR18'!B4745 -> 0
A172: Total Restricted Grants-In-Aid | C172: =SUM(C131,C140,C144,C145:C149,C154,C155:C171) -> 1119746874 | D172: =SUM(D131,D140,D144,D145:D149,D154,D155:D171) -> 1796186 | E172: 6560200 | F172: 638348697.5 | G172: 587260 | H172: 18734326 | I172: 0 | J172: 1112 | K172: 25000
A173: Total Receipts from State Sources | B173: 3000 | C173: =SUM(C121,C172) -> 6447581623 | D173: =SUM(D121,D172) -> 546116589 | E173: 342932209 | F173: 687642458.5 | G173: 13223355 | H173: 55672630 | I173: 0 | J173: 5513371 | K173: 500364
A174: RECEIPTS/REVENUES FROM FEDERAL SOURCES (4000)
A175: UNRESTRICTED GRANTS-IN-AID RECEIVED DIRECTLY FROM FEDERAL GOVT
A176: Federal Impact Aid | B176: 4001 | C176: ='AFR18'!B5170 -> 14097406 | D176: ='AFR18'!B5368 -> 5084707 | E176: ='AFR18'!B4310 -> 287900 | F176: ='AFR18'!B5600 -> 200000 | G176: ='AFR18'!B5725 -> 0 | H176: ='AFR18'!B4311 -> 9775 | I176: ='AFR18'!B4312 -> 0 | J176: ='AFR18'!B6344 -> 0 | K176: ='AFR18'!B4314 -> 0
A177: Other Unrestricted Grants-In-Aid Received Directly from the Fed Govt (Describe & Itemize) | B177: 4009 | C177: ='AFR18'!B4890 -> 335625 | D177: ='AFR18'!B4891 -> 0 | E177: ='AFR18'!B4315 -> 0 | F177: ='AFR18'!B4892 -> 0 | G177: ='AFR18'!B4893 -> 0 | H177: ='AFR18'!B4894 -> 0 | I177: ='AFR18'!B4316 -> 0 | J177: ='AFR18'!B6345 -> 0 | K177: ='AFR18'!B4895 -> 0
A178: Total Unrestricted Grants-In-Aid Received Directly from the Federal Govt | C178: =SUM(C176:C177) -> 14433031 | D178: =SUM(D176:D177) -> 5084707 | E178: 287900 | F178: 200000 | G178: 0 | H178: 9775 | I178: 0 | J178: 0 | K178: 0
A179: RESTRICTED GRANTS-IN-AID RECEIVED DIRECTLY FROM FEDERAL GOVT
A180: Head Start | B180: 4045 | C180: ='AFR18'!B5176 -> 48134935
A181: Construction (Impact Aid) | B181: 4050 | C181: ='AFR18'!B5177 -> 0 | D181: ='AFR18'!B5370 -> 0 | H181: ='AFR18'!B5853 -> 184181
A182: MAGNET | B182: 4060 | C182: ='AFR18'!B4747 -> 103241 | D182: ='AFR18'!B4748 -> 0 | F182: ='AFR18'!B4750 -> 0 | G182: ='AFR18'!B4756 -> 0 | H182: ='AFR18'!B4757 -> 0
A183: Other Restricted Grants-In-Aid Received Directly from the Federal Govt (Describe & Itemize) | B183: 4090 | C183: ='AFR18'!B4751 -> 19810593 | D183: ='AFR18'!B4752 -> 19692 | F183: ='AFR18'!B4754 -> 0 | G183: ='AFR18'!B4759 -> 5 | H183: ='AFR18'!B4760 -> 0 | K183: ='AFR18'!B4762 -> 0
A184: Total Restricted Grants-In-Aid Received Directly from Federal Govt | C184: =SUM(C180:C183) -> 68048769 | D184: =SUM(D180:D183) -> 19692 | F184: =SUM(F180:F183) -> 0 | G184: =SUM(G180:G183) -> 5 | H184: =SUM(H180:H183) -> 184181 | K184: =SUM(K180:K183) -> 0
A185: RESTRICTED GRANTS-IN-AID RECEIVED FROM FEDERAL GOVT THRU THE STATE
A186: TITLE V
A187: Title V - Innovation and Flexibility Formula | B187: 4100 | C187: ='AFR18'!B5179 -> 16790 | D187: ='AFR18'!B5372 -> 0 | F187: ='AFR18'!B5605 -> 0 | G187: ='AFR18'!B5731 -> 0
A188: Title V - District Projects | B188: 4105 | C188: ='AFR18'!B4321 -> 0 | D188: ='AFR18'!B4322 -> 0 | F188: ='AFR18'!B4323 -> 0 | G188: ='AFR18'!B4324 -> 0
A189: Title V - Rural & Low Income Schools | B189: 4107 | C189: ='AFR18'!B4325 -> 2156985.77 | D189: ='AFR18'!B4326 -> 14427 | F189: ='AFR18'!B4327 -> 0 | G189: ='AFR18'!B4328 -> 0
A190: Title V - Other (Describe & Itemize) | B190: 4199 | C190: ='AFR18'!B4337 -> 150416 | D190: ='AFR18'!B4338 -> 0 | F190: ='AFR18'!B4339 -> 0 | G190: ='AFR18'!B4340 -> 0
A191: Total Title V | C191: =SUM(C187:C190) -> 2324191.77 | D191: =SUM(D187:D190) -> 14427 | F191: =SUM(F187:F190) -> 0 | G191: =SUM(G187:G190) -> 0
A192: FOOD SERVICE
A193: Breakfast Start-Up | B193: 4200 | C193: ='AFR18'!B6347 -> 188604 | G193: ='AFR18'!B6348 -> 0
A194: National School Lunch Program | B194: 4210 | C194: ='AFR18'!B5185 -> 429563014.9 | G194: ='AFR18'!B6349 -> 0
A195: Special Milk Program | B195: 4215 | C195: ='AFR18'!B5186 -> 1757513 | G195: ='AFR18'!B6350 -> 0
A196: School Breakfast Program | B196: 4220 | C196: ='AFR18'!B5187 -> 132267442.7 | G196: ='AFR18'!B6351 -> 0
A197: Summer Food Service Admin/Program | B197: 4225 | C197: ='AFR18'!B5188 -> 3705697 | G197: ='AFR18'!B6352 -> 0
A198: Child Care Commodity/SFS 13-Adult Day Care | B198: 4226 | C198: ='AFR18'!B5189 -> 10003623 | G198: ='AFR18'!B6353 -> 0
A199: Fresh Fruits & Vegetables | B199: 4240 | C199: ='AFR18'!B7633 -> 4994178
A200: Food Service - Other (Describe & Itemize) | B200: 4299 | C200: ='AFR18'!B4277 -> 18774327 | G200: ='AFR18'!B6354 -> 0
... 75 more rows

Sheet Expenditures 15-22
C1: (100) | D1: (200) | E1: (300) | F1: (400) | G1: (500) | H1: (600) | I1: (700) | J1: (800) | K1: (900)
A2: Description | B2: Funct # | C2: Salaries | D2: Employee Benefits | E2: Purchased Services | F2: Supplies & Materials | G2: Capital Outlay | H2: Other Objects | I2: Non-Capitalized Equipment | J2: Termination Benefits | K2: Total | L2: Budget
A3: 10 - EDUCATIONAL FUND (ED)
A4: INSTRUCTION (ED)
A5: Regular Programs | B5: 1100 | C5: ='AFR18'!B651 -> 6756811394 | D5: ='AFR18'!B709 -> 1822034677 | E5: ='AFR18'!B767 -> 118216857.6 | F5: ='AFR18'!B825 -> 298254392.1 | G5: ='AFR18'!B883 -> 39678418.5 | H5: ='AFR18'!B941 -> 9069295 | I5: ='AFR18'!B6790 -> 32723468 | J5: ='AFR18'!B6791 -> 17257721 | K5: =SUM(C5:J5) -> 9094046223
A6: Tuition Payment to Charter School | B6: 1115 | E6: ='AFR18'!B7708 -> 704161333 | K6: =SUM(C6:J6) -> 704161333
A7: Pre-K Programs | B7: 1125 | C7: ='AFR18'!B6673 -> 185428654.9 | D7: ='AFR18'!B7192 -> 53840702 | E7: ='AFR18'!B7193 -> 9331138 | F7: ='AFR18'!B7194 -> 9460143 | G7: ='AFR18'!B7195 -> 1222808 | H7: ='AFR18'!B7196 -> 190474 | I7: ='AFR18'!B6792 -> 2644749 | J7: ='AFR18'!B6793 -> 260368 | K7: 262379036.9
A8: Special Education Programs (Functions 1200-1220) | B8: 1200 | C8: ='AFR18'!B3312 -> 1906783291 | D8: ='AFR18'!B3314 -> 453122754.1 | E8: ='AFR18'!B3316 -> 83354350.01 | F8: ='AFR18'!B3318 -> 20277189.15 | G8: ='AFR18'!B3320 -> 3096769 | H8: ='AFR18'!B3322 -> 61427811 | I8: ='AFR18'!B6795 -> 1915071 | J8: ='AFR18'!B6796 -> 3426393 | K8: 2533403628
A9: Special Education Programs Pre-K | B9: 1225 | C9: ='AFR18'!B7197 -> 80776336.82 | D9: ='AFR18'!B7198 -> 20088561.55 | E9: ='AFR18'!B7199 -> 1025585 | F9: ='AFR18'!B7200 -> 1379946 | G9: ='AFR18'!B7201 -> 41129 | H9: ='AFR18'!B7202 -> 84810 | I9: ='AFR18'!B6797 -> 40845 | J9: ='AFR18'!B6798 -> 51187 | K9: 103488400.4
A10: Remedial and Supplemental Programs K-12 | B10: 1250 | C10: ='AFR18'!B3001 -> 155676132.6 | D10: ='AFR18'!B3002 -> 36379694.44 | E10: ='AFR18'!B3003 -> 21655519 | F10: ='AFR18'!B3004 -> 47886033.1 | G10: ='AFR18'!B3005 -> 5580026.27 | H10: ='AFR18'!B3006 -> 443445 | I10: ='AFR18'!B6800 -> 4395861 | J10: ='AFR18'!B6801 -> 11765 | K10: 272028476.4
A11: Remedial and Support Programs Pre-K | B11: 1275 | C11: ='AFR18'!B7203 -> 10428749 | D11: ='AFR18'!B7204 -> 2182358 | E11: ='AFR18'!B7205 -> 254676 | F11: ='AFR18'!B7206 -> 693133 | G11: ='AFR18'!B7207 -> 215730 | H11: ='AFR18'!B7208 -> 7910 | I11: ='AFR18'!B6802 -> 4530 | J11: ='AFR18'!B6803 -> 0 | K11: 13787086
A12: Adult/Continuing Education Programs | B12: 1300 | C12: ='AFR18'!B662 -> 8234532 | D12: ='AFR18'!B720 -> 757212 | E12: ='AFR18'!B778 -> 1571457 | F12: ='AFR18'!B836 -> 1015158 | G12: ='AFR18'!B894 -> 48943 | H12: ='AFR18'!B952 -> 37750 | I12: ='AFR18'!B6805 -> 9639 | J12: ='AFR18'!B6806 -> 6038 | K12: 11680729
A13: CTE Programs | B13: 1400 | C13: ='AFR18'!B663 -> 169314023.8 | D13: ='AFR18'!B721 -> 34246764.59 | E13: ='AFR18'!B779 -> 7573657 | F13: ='AFR18'!B837 -> 16213497.24 | G13: ='AFR18'!B895 -> 5440346.91 | H13: ='AFR18'!B953 -> 2902198 | I13: ='AFR18'!B6807 -> 3807079 | J13: ='AFR18'!B6808 -> 135316 | K13: 239632882.6
A14: Interscholastic Programs | B14: 1500 | C14: ='AFR18'!B664 -> 287818934.9 | D14: ='AFR18'!B722 -> 20992610.62 | E14: ='AFR18'!B780 -> 45814149.88 | F14: ='AFR18'!B838 -> 30232898.29 | G14: ='AFR18'!B896 -> 3285849 | H14: ='AFR18'!B954 -> 9645390 | I14: ='AFR18'!B6809 -> 1626475 | J14: ='AFR18'!B6810 -> 42055 | K14: 399458362.7
A15: Summer School Programs | B15: 1600 | C15: ='AFR18'!B665 -> 47699758 | D15: ='AFR18'!B723 -> 2035049.77 | E15: ='AFR18'!B781 -> 1843734 | F15: ='AFR18'!B839 -> 2687911 | G15: ='AFR18'!B897 -> 19020 | H15: ='AFR18'!B955 -> 590017 | I15: ='AFR18'!B6811 -> 0 | J15: ='AFR18'!B6812 -> 0 | K15: 54875489.77
A16: Gifted Programs | B16: 1650 | C16: ='AFR18'!B652 -> 53496043 | D16: ='AFR18'!B710 -> 9978449 | E16: ='AFR18'!B768 -> 532417 | F16: ='AFR18'!B826 -> 550399 | G16: ='AFR18'!B884 -> 5435 | H16: ='AFR18'!B942 -> 56094 | I16: ='AFR18'!B6813 -> 5564 | J16: ='AFR18'!B6814 -> 6811 | K16: 64631212
A17: Driver's Education Programs | B17: 1700 | C17: ='AFR18'!B7209 -> 37927537.71 | D17: ='AFR18'!B7210 -> 6068059.18 | E17: ='AFR18'!B7211 -> 1443876 | F17: ='AFR18'!B7212 -> 819255 | G17: ='AFR18'!B7213 -> 1066382 | H17: ='AFR18'!B7214 -> 86549 | I17: ='AFR18'!B6815 -> 456 | J17: ='AFR18'!B6816 -> 6031 | K17: 47418145.89
A18: Bilingual Programs | B18: 1800 | C18: ='AFR18'!B658 -> 357544899 | D18: ='AFR18'!B716 -> 77589893 | E18: ='AFR18'!B774 -> 3006103 | F18: ='AFR18'!B832 -> 7046593 | G18: ='AFR18'!B890 -> 98275 | H18: ='AFR18'!B948 -> 63945 | I18: ='AFR18'!B6818 -> 65477 | J18: ='AFR18'!B6819 -> 397695 | K18: 445812880
A19: Truant Alternative & Optional Programs | B19: 1900 | C19: ='AFR18'!B3313 -> 18857468.54 | D19: ='AFR18'!B3315 -> 4006045.91 | E19: ='AFR18'!B3317 -> 2109903 | F19: ='AFR18'!B3319 -> 339230 | G19: ='AFR18'!B3321 -> 94699 | H19: ='AFR18'!B3323 -> 2966979 | I19: ='AFR18'!B6820 -> 7516 | J19: ='AFR18'!B6821 -> 17392 | K19: 28399233.45
A20: Rentals | B20: 1910 | H20: ='AFR18'!B6822 -> 5189 | K20: 5189
A21: Regular K-12 Programs - Private Tuition | B21: 1911 | H21: ='AFR18'!B6824 -> 9363481 | K21: 9363481
A22: Special Education Programs K-12 - Private Tuition | B22: 1912 | H22: ='AFR18'!B6826 -> 285187645 | K22: 285187645
A23: Special Education Programs Pre-K - Tuition | B23: 1913 | H23: ='AFR18'!B6828 -> 1743072 | K23: 1743072
A24: Remedial/Supplemental Programs K-12 - Private Tuition | B24: 1914 | H24: ='AFR18'!B6830 -> 255270 | K24: 255270
A25: Remedial/Supplemental Programs Pre-K - Private Tuition | B25: 1915 | H25: ='AFR18'!B6832 -> 0 | K25: 0
A26: Adult/Continuing Education Programs - Private Tuition | B26: 1916 | H26: ='AFR18'!B6834 -> 37515 | K26: 37515
A27: CTE Programs - Private Tuition | B27: 1917 | H27: ='AFR18'!B6836 -> 1474533 | K27: 1474533
A28: Interscholastic Programs - Private Tuition | B28: 1918 | H28: ='AFR18'!B6838 -> 0 | K28: 0
A29: Summer School Programs - Private Tuition | B29: 1919 | H29: ='AFR18'!B6840 -> 978527 | K29: 978527
A30: Gifted Programs - Private Tuition | B30: 1920 | H30: ='AFR18'!B6842 -> 18386 | K30: 18386
A31: Bilingual Programs - Private Tuition | B31: 1921 | H31: ='AFR18'!B6844 -> 0 | K31: 0
A32: Truants Alternative/Optional Ed Programs - Private Tuition | B32: 1922 | H32: ='AFR18'!B6846 -> 1128041 | K32: 1128041
A33: Total Instruction | B33: 1000 | C33: =SUM(C5:C32) -> 1.007679775e+10 | D33: =SUM(D5:D32) -> 2543322831 | E33: 1001894755 | F33: 436855777.9 | G33: 59893830.68 | H33: 387764326 | I33: 47246730 | J33: 21618772 | K33: =SUM(K5:K32) -> 1.457539478e+10
A34: SUPPORT SERVICES (ED)
A35: SUPPORT SERVICES - PUPILS
A36: Attendance & Social Work Services | B36: 2110 | C36: ='AFR18'!B667 -> 268594515 | D36: ='AFR18'!B725 -> 55238225 | E36: ='AFR18'!B783 -> 12748405 | F36: ='AFR18'!B841 -> 5102169 | G36: ='AFR18'!B899 -> 128225 | H36: ='AFR18'!B957 -> 71519 | I36: ='AFR18'!B6850 -> 126742 | J36: ='AFR18'!B6851 -> 406199 | K36: =SUM(C36:J36) -> 342415999
A37: Guidance Services | B37: 2120 | C37: ='AFR18'!B668 -> 306056886.8 | D37: ='AFR18'!B726 -> 63411190.75 | E37: ='AFR18'!B784 -> 12952764 | F37: ='AFR18'!B842 -> 4145442 | G37: ='AFR18'!B900 -> 52906 | H37: ='AFR18'!B958 -> 774353 | I37: ='AFR18'!B6852 -> 67976 | J37: ='AFR18'!B6853 -> 713674 | K37: 388175192.6
A38: Health Services | B38: 2130 | C38: ='AFR18'!B669 -> 154266626.2 | D38: ='AFR18'!B727 -> 31869492.22 | E38: ='AFR18'!B785 -> 34798615 | F38: ='AFR18'!B843 -> 3419864 | G38: ='AFR18'!B901 -> 406625 | H38: ='AFR18'!B959 -> 148404 | I38: ='AFR18'!B6854 -> 265861 | J38: ='AFR18'!B6855 -> 177306 | K38: 225352793.4
A39: Psychological Services | B39: 2140 | C39: ='AFR18'!B670 -> 124928753 | D39: ='AFR18'!B728 -> 23346906 | E39: ='AFR18'!B786 -> 7533541 | F39: ='AFR18'!B844 -> 1356824 | G39: ='AFR18'!B902 -> 5340 | H39: ='AFR18'!B960 -> 36736 | I39: ='AFR18'!B6856 -> 24108 | J39: ='AFR18'!B6857 -> 252029 | K39: 157484237
A40: Speech Pathology & Audiology Services | B40: 2150 | C40: ='AFR18'!B671 -> 198791209.9 | D40: ='AFR18'!B729 -> 37521044.02 | E40: ='AFR18'!B787 -> 24515647 | F40: ='AFR18'!B845 -> 1115060 | G40: ='AFR18'!B903 -> 181147 | H40: ='AFR18'!B961 -> 43115 | I40: ='AFR18'!B6858 -> 70112 | J40: ='AFR18'!B6859 -> 252621 | K40: 262489955.9
A41: Other Support Services - Pupils (Describe & Itemize) | B41: 2190 | C41: ='AFR18'!B672 -> 70374127 | D41: ='AFR18'!B730 -> 12308047 | E41: ='AFR18'!B788 -> 12962938 | F41: ='AFR18'!B846 -> 4604410.69 | G41: ='AFR18'!B904 -> 787537 | H41: ='AFR18'!B962 -> 273263 | I41: ='AFR18'!B6860 -> 125688 | J41: ='AFR18'!B6861 -> 110171 | K41: 101546181.7
A42: Total Support Services - Pupils | B42: 2100 | C42: =SUM(C36:C41) -> 1123012118 | D42: =SUM(D36:D41) -> 223694905 | E42: 105511910 | F42: 19743769.69 | G42: 1561780 | H42: 1347390 | I42: 680487 | J42: 1912000 | K42: 1477464360
A43: SUPPORT SERVICES - INSTRUCTIONAL STAFF
A44: Improvement of Instruction Services | B44: 2210 | C44: ='AFR18'!B674 -> 280447313 | D44: ='AFR18'!B732 -> 60734288.57 | E44: ='AFR18'!B790 -> 101939249.5 | F44: ='AFR18'!B848 -> 34733575 | G44: ='AFR18'!B906 -> 6827680 | H44: ='AFR18'!B964 -> 2537993 | I44: ='AFR18'!B6864 -> 5960829 | J44: ='AFR18'!B6865 -> 654563 | K44: =SUM(C44:J44) -> 493835491.1
A45: Educational Media Services | B45: 2220 | C45: ='AFR18'!B675 -> 220799197.1 | D45: ='AFR18'!B733 -> 44852028 | E45: ='AFR18'!B791 -> 39760327.62 | F45: ='AFR18'!B849 -> 42511124 | G45: ='AFR18'!B907 -> 25432965 | H45: ='AFR18'!B965 -> 978494 | I45: ='AFR18'!B6866 -> 12420830 | J45: ='AFR18'!B6867 -> 239002 | K45: =SUM(C45:J45) -> 386993967.7
A46: Assessment & Testing | B46: 2230 | C46: ='AFR18'!B676 -> 13958619 | D46: ='AFR18'!B734 -> 1940491 | E46: ='AFR18'!B792 -> 22975295 | F46: ='AFR18'!B850 -> 6844940 | G46: ='AFR18'!B908 -> 53753 | H46: ='AFR18'!B966 -> 88172 | I46: ='AFR18'!B6868 -> 327713 | J46: ='AFR18'!B6869 -> 9163 | K46: =SUM(C46:J46) -> 46198146
A47: Total Support Services - Instructional Staff | B47: 2200 | C47: =SUM(C44:C46) -> 515205129.1 | D47: =SUM(D44:D46) -> 107526807.6 | E47: 164674872.1 | F47: 84089639 | G47: 32314398 | H47: 3604659 | I47: 18709372 | J47: 902728 | K47: 927027604.8
A48: SUPPORT SERVICES - GENERAL ADMINISTRATION
A49: Board of Education Services | B49: 2310 | C49: ='AFR18'!B678 -> 31051748 | D49: ='AFR18'!B736 -> 24918387 | E49: ='AFR18'!B794 -> 111483481.8 | F49: ='AFR18'!B852 -> 6242114.58 | G49: ='AFR18'!B910 -> 473715 | H49: ='AFR18'!B968 -> 11298552.51 | I49: ='AFR18'!B6872 -> 88893 | J49: ='AFR18'!B6873 -> 972783 | K49: =SUM(C49:J49) -> 186529674.8
A50: Executive Administration Services | B50: 2320 | C50: ='AFR18'!B679 -> 178360664.7 | D50: ='AFR18'!B737 -> 34872831 | E50: ='AFR18'!B795 -> 12258202.88 | F50: ='AFR18'!B853 -> 4057871.45 | G50: ='AFR18'!B911 -> 362208 | H50: ='AFR18'!B969 -> 3332787.63 | I50: ='AFR18'!B6874 -> 203409 | J50: ='AFR18'!B6875 -> 88106 | K50: =SUM(C50:J50) -> 233536080.6
A51: Special Area Administration Services | B51: 2330 | C51: ='AFR18'!B2664 -> 72516314 | D51: ='AFR18'!B2665 -> 16368267 | E51: ='AFR18'!B2666 -> 4964028 | F51: ='AFR18'!B2667 -> 1459349 | G51: ='AFR18'!B2668 -> 65718 | H51: ='AFR18'!B2669 -> 422099 | I51: ='AFR18'!B6876 -> 154295 | J51: ='AFR18'!B6877 -> 56073 | K51: =SUM(C51:J51) -> 96006143
A52: Tort Immunity Services | B52: 2360 - 2370 | C52: ='AFR18'!B6878 -> 1485285 | D52: ='AFR18'!B6879 -> 2427614 | E52: ='AFR18'!B6880 -> 16488900 | F52: ='AFR18'!B6881 -> 5058 | G52: ='AFR18'!B6882 -> 3344 | H52: ='AFR18'!B6883 -> 1271799 | I52: ='AFR18'!B6884 -> 0 | J52: ='AFR18'!B6885 -> 0 | K52: =SUM(C52:J52) -> 21682000
A53: Total Support Services - General Administration | B53: 2300 | C53: =SUM(C49:C52) -> 283414011.7 | D53: =SUM(D49:D52) -> 78587099 | E53: 145194612.6 | F53: 11764393.03 | G53: 904985 | H53: 16325238.14 | I53: 446597 | J53: 1116962 | K53: 537753898.5
A54: SUPPORT SERVICES - SCHOOL ADMINISTRATION
A55: Office of the Principal Services | B55: 2410 | C55: ='AFR18'!B681 -> 876687573.6 | D55: ='AFR18'!B739 -> 207302324.6 | E55: ='AFR18'!B797 -> 21808064.33 | F55: ='AFR18'!B855 -> 17287270.15 | G55: ='AFR18'!B913 -> 1114046.3 | H55: ='AFR18'!B971 -> 2373609.76 | I55: ='AFR18'!B6890 -> 1932663 | J55: ='AFR18'!B6891 -> 1750685 | K55: =SUM(C55:J55) -> 1130256237
A56: Other Support Services - School Admin (Describe & Itemize) | B56: 2490 | C56: ='AFR18'!B682 -> 43318310 | D56: ='AFR18'!B740 -> 10293320 | E56: ='AFR18'!B798 -> 382388 | F56: ='AFR18'!B856 -> 208142 | G56: ='AFR18'!B914 -> 38433 | H56: ='AFR18'!B972 -> 22530 | I56: ='AFR18'!B6892 -> 1144 | J56: ='AFR18'!B6893 -> 3083 | K56: =SUM(C56:J56) -> 54267350
A57: Total Support Services - School Administration | B57: 2400 | C57: =SUM(C55:C56) -> 920005883.6 | D57: =SUM(D55:D56) -> 217595644.6 | E57: 22190452.33 | F57: 17495412.15 | G57: 1152479.3 | H57: 2396139.76 | I57: 1933807 | J57: 1753768 | K57: 1184523587
A58: SUPPORT SERVICES - BUSINESS
A59: Direction of Business Support Services | B59: 2510 | C59: ='AFR18'!B684 -> 50308998 | D59: ='AFR18'!B742 -> 10062588 | E59: ='AFR18'!B800 -> 5915267 | F59: ='AFR18'!B858 -> 1332507 | G59: ='AFR18'!B916 -> 279262 | H59: ='AFR18'!B974 -> 736033 | I59: ='AFR18'!B6896 -> 358835 | J59: ='AFR18'!B6897 -> 60080 | K59: =SUM(C59:J59) -> 69053570
A60: Fiscal Services | B60: 2520 | C60: ='AFR18'!B685 -> 109376132.7 | D60: ='AFR18'!B743 -> 20705644 | E60: ='AFR18'!B801 -> 31438751.79 | F60: ='AFR18'!B859 -> 4536208.59 | G60: ='AFR18'!B917 -> 1177269.82 | H60: ='AFR18'!B975 -> 3208027 | I60: ='AFR18'!B6898 -> 123161 | J60: ='AFR18'!B6899 -> 327116 | K60: 170892310.9
A61: Operation & Maintenance of Plant Services | B61: 2540 | C61: ='AFR18'!B686 -> 90233291.16 | D61: ='AFR18'!B744 -> 18275345 | E61: ='AFR18'!B802 -> 72429514 | F61: ='AFR18'!B860 -> 31151230 | G61: ='AFR18'!B918 -> 13290712 | H61: ='AFR18'!B976 -> 286836 | I61: ='AFR18'!B6900 -> 1175763 | J61: ='AFR18'!B6901 -> 155124 | K61: 226997815.2
A62: Pupil Transportation Services | B62: 2550 | C62: ='AFR18'!B687 -> 19237105 | D62: ='AFR18'!B745 -> 6861872 | E62: ='AFR18'!B803 -> 109471562 | F62: ='AFR18'!B861 -> 930489 | G62: ='AFR18'!B919 -> 162356 | H62: ='AFR18'!B977 -> 3962 | I62: ='AFR18'!B6902 -> 2366 | J62: ='AFR18'!B6903 -> 142398 | K62: 136812110
A63: Food Services | B63: 2560 | C63: ='AFR18'!B688 -> 216404843.1 | D63: ='AFR18'!B746 -> 55493635 | E63: ='AFR18'!B804 -> 202617370.8 | F63: ='AFR18'!B862 -> 286163744.5 | G63: ='AFR18'!B920 -> 6014640.66 | H63: ='AFR18'!B978 -> 1369384 | I63: ='AFR18'!B6904 -> 1700647 | J63: ='AFR18'!B6905 -> 548483 | K63: 770312748.1
A64: Internal Services | B64: 2570 | C64: ='AFR18'!B689 -> 10997332 | D64: ='AFR18'!B747 -> 2285625 | E64: ='AFR18'!B805 -> 9997150.63 | F64: ='AFR18'!B863 -> 4915671 | G64: ='AFR18'!B921 -> 1726802 | H64: ='AFR18'!B979 -> 131205 | I64: ='AFR18'!B7653 -> 48069 | J64: ='AFR18'!B6906 -> 46799 | K64: 30148653.63
A65: Total Support Services - Business | B65: 2500 | C65: =SUM(C59:C64) -> 496557702 | D65: =SUM(D59:D64) -> 113684709 | E65: 431869616.2 | F65: 329029850.1 | G65: 22651042.48 | H65: 5735447 | I65: 3408841 | J65: 1280000 | K65: 1404217208
A66: SUPPORT SERVICES - CENTRAL
A67: Direction of Central Support Services | B67: 2610 | C67: ='AFR18'!B692 -> 7546862 | D67: ='AFR18'!B750 -> 1527345 | E67: ='AFR18'!B808 -> 2264478 | F67: ='AFR18'!B866 -> 261901 | G67: ='AFR18'!B924 -> 111124 | H67: ='AFR18'!B982 -> 8040 | I67: ='AFR18'!B6909 -> 212058 | J67: ='AFR18'!B6910 -> 15597 | K67: =SUM(C67:J67) -> 11947405
A68: Planning, Research, Development, & Evaluation Services | B68: 2620 | C68: ='AFR18'!B693 -> 16081191 | D68: ='AFR18'!B751 -> 2905211 | E68: ='AFR18'!B809 -> 5319354 | F68: ='AFR18'!B867 -> 824442 | G68: ='AFR18'!B925 -> 240238 | H68: ='AFR18'!B983 -> 24896 | I68: ='AFR18'!B6911 -> 4228 | J68: ='AFR18'!B6912 -> 28985 | K68: =SUM(C68:J68) -> 25428545
A69: Information Services | B69: 2630 | C69: ='AFR18'!B694 -> 24489881 | D69: ='AFR18'!B752 -> 5828418 | E69: ='AFR18'!B810 -> 16403015 | F69: ='AFR18'!B868 -> 6163384 | G69: ='AFR18'!B926 -> 6321928 | H69: ='AFR18'!B984 -> 364460 | I69: ='AFR18'!B6913 -> 2756747 | J69: ='AFR18'!B6914 -> 26459 | K69: =SUM(C69:J69) -> 62354292
A70: Staff Services | B70: 2640 | C70: ='AFR18'!B695 -> 61265263 | D70: ='AFR18'!B753 -> 29363741 | E70: ='AFR18'!B811 -> 15391306 | F70: ='AFR18'!B869 -> 1757397 | G70: ='AFR18'!B927 -> 236522 | H70: ='AFR18'!B985 -> 457091 | I70: ='AFR18'!B6915 -> 35541 | J70: ='AFR18'!B6916 -> 2445206 | K70: =SUM(C70:J70) -> 110952067
A71: Data Processing Services | B71: 2660 | C71: ='AFR18'!B697 -> 100263695.7 | D71: ='AFR18'!B755 -> 17265193 | E71: ='AFR18'!B813 -> 91617766 | F71: ='AFR18'!B871 -> 45671959 | G71: ='AFR18'!B929 -> 45564329 | H71: ='AFR18'!B987 -> 1258165 | I71: ='AFR18'!B6917 -> 19932744 | J71: ='AFR18'!B6918 -> 81267 | K71: =SUM(C71:J71) -> 321655118.7
A72: Total Support Services - Central | B72: 2600 | C72: =SUM(C67:C71) -> 209646892.7 | D72: =SUM(D67:D71) -> 56889908 | E72: 130995919 | F72: 54679083 | G72: 52474141 | H72: 2112652 | I72: 22941318 | J72: 2597514 | K72: 532337427.7
A73: Other Support Services (Describe & Itemize) | B73: 2900 | C73: ='AFR18'!B700 -> 13160841 | D73: ='AFR18'!B758 -> 7489563 | E73: ='AFR18'!B816 -> 11016685 | F73: ='AFR18'!B874 -> 6818541 | G73: ='AFR18'!B932 -> 1433450 | H73: ='AFR18'!B990 -> 835808 | I73: ='AFR18'!B6921 -> 299136 | J73: ='AFR18'!B6922 -> 351026 | K73: =SUM(C73:J73) -> 41405050
A74: Total Support Services | B74: 2000 | C74: =SUM(C42,C47,C53,C57,C65,C72,C73) -> 3561002578 | D74: 805468636.2 | E74: 1011454067 | F74: 523620688 | G74: 112492275.8 | H74: 32357333.9 | I74: 48419558 | J74: 9913998 | K74: 6104729135
A75: COMMUNITY SERVICES (ED) | B75: 3000 | C75: ='AFR18'!B702 -> 71949497 | D75: ='AFR18'!B760 -> 12853444 | E75: ='AFR18'!B818 -> 51094488 | F75: ='AFR18'!B876 -> 10866848 | G75: ='AFR18'!B934 -> 1035297 | H75: ='AFR18'!B992 -> 8089812 | I75: ='AFR18'!B6925 -> 1299904 | J75: ='AFR18'!B6926 -> 43304 | K75: =SUM(C75:J75) -> 157232594
A76: PAYMENTS TO OTHER DISTRICTS & GOVT UNITS (ED)
A77: PAYMENTS TO OTHER GOVT UNITS (IN-STATE)
A78: Payments for Regular Programs | B78: 4110 | E78: ='AFR18'!B2895 -> 74590518 | H78: ='AFR18'!B2901 -> 19978808 | K78: =SUM(E78,H78) -> 94569326
A79: Payments for Special Education Programs | B79: 4120 | E79: ='AFR18'!B2896 -> 118626014.4 | H79: ='AFR18'!B2902 -> 195518279.5 | K79: 314144293.9
A80: Payments for Adult/Continuing Education Programs | B80: 4130 | E80: ='AFR18'!B2897 -> 136372 | H80: ='AFR18'!B2903 -> 175788 | K80: 312160
A81: Payments for CTE Programs | B81: 4140 | E81: ='AFR18'!B2898 -> 2204583 | H81: ='AFR18'!B2904 -> 10350179 | K81: 12554762
A82: Payments for Community College Programs | B82: 4170 | E82: ='AFR18'!B2899 -> 1206355 | H82: ='AFR18'!B2905 -> 584025 | K82: 1790380
A83: Other Payments to In-State Govt. Units (Describe & Itemize) | B83: 4190 | E83: ='AFR18'!B2900 -> 11204062 | H83: ='AFR18'!B2906 -> 5084874 | K83: 16288936
A84: Total Payments to Dist & Other Govt Units (In-State) | B84: 4100 | E84: =SUM(E78:E83) -> 207967904.4 | H84: =SUM(H78:H83) -> 231691953.5 | K84: ='AFR18'!B2034 -> 439659857.9
A85: Payments for Regular Programs - Tuition | B85: 4210 | H85: ='AFR18'!B6927 -> 7805979 | K85: =SUM(E85,H85) -> 7805979
A86: Payments for Special Education Programs - Tuition | B86: 4220 | H86: ='AFR18'!B6929 -> 270146748 | K86: =SUM(E86,H86) -> 270146748
A87: Payments for Adult/Continuing Education Programs - Tuition | B87: 4230 | H87: ='AFR18'!B6931 -> 205900 | K87: 205900
A88: Payments for CTE Programs - Tuition | B88: 4240 | H88: ='AFR18'!B6933 -> 14796011 | K88: 14796011
A89: Payments for Community College Programs - Tuition | B89: 4270 | H89: ='AFR18'!B6935 -> 692321 | K89: 692321
A90: Payments for Other Programs - Tuition | B90: 4280 | H90: ='AFR18'!B6937 -> 1306529 | K90: 1306529
A91: Other Payments to In-State Govt Units | B91: 4290 | H91: ='AFR18'!B6939 -> 1718382 | K91: 1718382
A92: Total Payments to Other District & Govt Units -Tuition (In State) | B92: 4200 | H92: =SUM(H85:H91) -> 296671870 | K92: =SUM(K85:K91) -> 296671870
A93: Payments for Regular Programs - Transfers | B93: 4310 | H93: ='AFR18'!B6942 -> 525020 | K93: =SUM(E93,H93) -> 525020
A94: Payments for Special Education Programs - Transfers | B94: 4320 | H94: ='AFR18'!B6944 -> 2029848 | K94: 2029848
A95: Payments for Adult/Continuing Ed Programs - Transfers | B95: 4330 | H95: ='AFR18'!B6946 -> 0 | K95: 0
A96: Payments for CTE Programs - Transfers | B96: 4340 | H96: ='AFR18'!B6948 -> 700020 | K96: 700020
A97: Payments for Community College Program - Transfers | B97: 4370 | H97: ='AFR18'!B6950 -> 61960 | K97: 61960
A98: Payments for Other Programs - Transfers | B98: 4380 | H98: ='AFR18'!B6952 -> 15369 | K98: 15369
A99: Other Payments to In-State Govt Units - Transfers | B99: 4390 | E99: ='AFR18'!B6954 -> 305406 | H99: ='AFR18'!B6955 -> 1085771 | K99: 1391177
A100: Total Payments to Other District & Govt Units - Transfers (In-State) | B100: 4300 | E100: =SUM(E99) -> 305406 | H100: =SUM(H93:H99) -> 4417988 | K100: =SUM(K93:K99) -> 4723394
A101: Payments to Other Dist & Govt Units (Out-of-State) | B101: 4400 | E101: ='AFR18'!B2893 -> 910 | H101: ='AFR18'!B6960 -> 141875 | K101: =SUM(E101,H101) -> 142785
A102: Total Payments to Other District & Govt Units | B102: 4000 | E102: =SUM(E84,E100:E101) -> 208274220.4 | H102: =SUM(H84,H92,H100:H101) -> 532923686.5 | K102: =SUM(K84,K92,K100:K101) -> 741197906.9
A103: DEBT SERVICES (ED)
A104: DEBT SERVICES - INTEREST ON SHORT-TERM DEBT
A105: Tax Anticipation Warrants | B105: 5110 | H105: ='AFR18'!B994 -> 996434 | K105: =SUM(H105) -> 996434
A106: Tax Anticipation Notes | B106: 5120 | H106: ='AFR18'!B995 -> 130730 | K106: =SUM(H106) -> 130730
A107: Corporate Personal Prop. Repl. Tax Anticipation Notes | B107: 5130 | H107: ='AFR18'!B2737 -> 0 | K107: =SUM(H107) -> 0
A108: State Aid Anticipation Certificates | B108: 5140 | H108: ='AFR18'!B2738 -> 30974292 | K108: =SUM(H108) -> 30974292
A109: Other Interest on Short-Term Debt | B109: 5150 | H109: ='AFR18'!B997 -> 293196 | K109: =SUM(H109) -> 293196
A110: Total Interest on Short-Term Debt | B110: 5100 | H110: =SUM(H105:H109) -> 32394652 | K110: =SUM(K105:K109) -> 32394652
A111: Debt Services - Interest on Long-Term Debt | B111: 5200 | H111: ='AFR18'!B6962 -> 1754781 | K111: =SUM(H111) -> 1754781
A112: Total Debt Services | B112: 5000 | H112: =SUM(H110:H111) -> 34149433 | K112: =SUM(K110:K111) -> 34149433
A113: PROVISIONS FOR CONTINGENCIES (ED) | B113: 6000
A114: Total Direct Disbursements/Expenditures | C114: =SUM(C33,C74,C75,C102,C112,C113) -> 1.370974983e+10 | D114: =SUM(D33,D74,D75,D102,D112,D113) -> 3361644911 | E114: =SUM(E33,E74,E75,E102,E112,E113) -> 2272717531 | F114: 971343313.8 | G114: 173421403.5 | H114: 995284591.4 | I114: 96966192 | J114: 31576074 | K114: =SUM(K33,K74,K75,K102,K112,K113) -> 2.161270385e+10
A115: Excess (Deficiency) of Receipts/Revenues Over Disbursements/Expenditures | K115: =SUM('Revenues 9-14'!C275-'Expenditures 15-22'!K114) -> 1235723474
A117: 20 - OPERATIONS & MAINTENANCE FUND (O&M)
A118: SUPPORT SERVICES (O&M)
A119: SUPPORT SERVICES - PUPILS
A120: Other Support Services - Pupils (Describe & Itemize) | B120: 2190 | C120: ='AFR18'!B4020 -> 102425 | D120: ='AFR18'!B4021 -> 291264 | E120: ='AFR18'!B4022 -> 66473 | F120: ='AFR18'!B4023 -> 3210 | G120: ='AFR18'!B4024 -> 1754 | H120: ='AFR18'!B4025 -> 0 | I120: ='AFR18'!B6968 -> 0 | J120: ='AFR18'!B6969 -> 0 | K120: =SUM(C120:J120) -> 465126
A121: SUPPORT SERVICES - BUSINESS
A122: Direction of Business Support Services | B122: 2510 | C122: ='AFR18'!B1165 -> 2729805 | D122: ='AFR18'!B1173 -> 492107 | E122: ='AFR18'!B1181 -> 1390461 | F122: ='AFR18'!B1189 -> 49148 | G122: ='AFR18'!B1197 -> 278746 | H122: ='AFR18'!B1206 -> 49581 | I122: ='AFR18'!B6970 -> 0 | J122: ='AFR18'!B6971 -> 6031 | K122: =SUM(C122:J122) -> 4995879
A123: Facilities Acquisition & Construction Services | B123: 2530 | C123: ='AFR18'!B1166 -> 1045563 | D123: ='AFR18'!B1174 -> 150047 | E123: ='AFR18'!B1182 -> 13249969 | F123: ='AFR18'!B1190 -> 524525 | G123: ='AFR18'!B1198 -> 118952872 | H123: ='AFR18'!B1207 -> 391513 | I123: ='AFR18'!B6972 -> 1330499 | J123: ='AFR18'!B6973 -> 2098 | K123: =SUM(C123:J123) -> 135647086
A124: Operation & Maintenance of Plant Services | B124: 2540 | C124: ='AFR18'!B1167 -> 610675508.9 | D124: ='AFR18'!B1175 -> 123255576 | E124: ='AFR18'!B1183 -> 637259013 | F124: ='AFR18'!B1191 -> 469630568.3 | G124: ='AFR18'!B1199 -> 178997104.6 | H124: ='AFR18'!B1208 -> 2786918 | I124: ='AFR18'!B6974 -> 8471517 | J124: ='AFR18'!B6975 -> 613350 | K124: =SUM(C124:J124) -> 2031689556
A125: Pupil Transportation Services | B125: 2550 | C125: ='AFR18'!B3428 -> 63189 | D125: ='AFR18'!B3429 -> 13644 | E125: ='AFR18'!B3430 -> 277514.11 | F125: ='AFR18'!B3431 -> 110678 | G125: ='AFR18'!B3432 -> 103294 | H125: ='AFR18'!B3433 -> 0 | I125: ='AFR18'!B6976 -> 3303 | J125: ='AFR18'!B6977 -> 0 | K125: =SUM(C125:J125) -> 571622.11
A126: Food Services | B126: 2560 | G126: ='AFR18'!B1200 -> 331017 | I126: ='AFR18'!B6978 -> 81391 | K126: =SUM(C126:J126) -> 412408
A127: Total Support Services - Business | B127: 2500 | C127: =SUM(C122:C126) -> 614514065.9 | D127: =SUM(D122:D126) -> 123911374 | E127: 652176957.1 | F127: 470314919.3 | G127: 298663033.6 | H127: 3228012 | I127: 9886710 | J127: 621479 | K127: 2173316551
A128: Other Support Services (Describe & Itemize) | B128: 2900 | C128: ='AFR18'!B1170 -> 1113815 | D128: ='AFR18'!B1178 -> 183731 | E128: ='AFR18'!B1186 -> 1971924 | F128: ='AFR18'!B1194 -> 88374 | G128: ='AFR18'!B1203 -> 407229 | H128: ='AFR18'!B1211 -> 7015 | I128: ='AFR18'!B6981 -> 19390 | J128: ='AFR18'!B6982 -> 0 | K128: =SUM(C128:J128) -> 3791478
A129: Total Support Services | B129: 2000 | C129: =SUM(C120,C127:C128) -> 615730305.9 | D129: =SUM(D120,D127:D128) -> 124386369 | E129: 654215354.1 | F129: 470406503.3 | G129: 299072016.6 | H129: 3235027 | I129: 9906100 | J129: 621479 | K129: 2177573155
A130: COMMUNITY SERVICES (O&M) | B130: 3000 | C130: ='AFR18'!B2743 -> 314443 | D130: ='AFR18'!B2744 -> 19 | E130: ='AFR18'!B2745 -> 55322 | F130: ='AFR18'!B2746 -> 10083 | G130: ='AFR18'!B2747 -> 47171 | H130: ='AFR18'!B2748 -> 1450000 | I130: ='AFR18'!B6985 -> 878 | J130: ='AFR18'!B6986 -> 0 | K130: =SUM(C130:J130) -> 1877916
A131: PAYMENTS TO OTHER DIST & GOVT UNITS (O&M)
A132: PAYMENTS TO OTHER GOVT UNITS (IN-STATE)
A133: Payments for Regular Programs | B133: 4110 | E133: ='AFR18'!B7720 -> 390000 | H133: ='AFR18'!B7721 -> 153556 | K133: =SUM(E133,H133) -> 543556
A134: Payments for Special Education Programs | B134: 4120 | E134: ='AFR18'!B4145 -> 1586397 | H134: ='AFR18'!B2925 -> 870733 | K134: =SUM(E134,H134) -> 2457130
A135: Payments for CTE Programs | B135: 4140 | E135: ='AFR18'!B4146 -> 119567 | H135: ='AFR18'!B2926 -> 828936 | K135: =SUM(E135,H135) -> 948503
A136: Other Payments to In-State Govt. Units (Describe & Itemize) | B136: 4190 | E136: ='AFR18'!B4147 -> 261062 | H136: ='AFR18'!B2927 -> 1368312 | K136: =SUM(E136,H136) -> 1629374
A137: Total Payments to Other Govt. Units (In-State) | B137: 4100 | E137: =SUM(E133:E136) -> 2357026 | H137: =SUM(H133:H136) -> 3221537 | K137: =SUM(K133:K136) -> 5578563
A138: Payments to Other Govt. Units (Out of State) | B138: 4400 | H138: ='AFR18'!B2038 -> 93915 | K138: =SUM(E138,H138) -> 93915
A139: Total Payments to Other Dist & Govt Units | B139: 4000 | E139: =E137 -> 2357026 | H139: =SUM(H137:H138) -> 3315452 | K139: =SUM(K137:K138) -> 5672478
A140: DEBT SERVICES (O&M) | B140: 5000
A141: DEBT SERVICES - INTEREST ON SHORT-TERM DEBT
A142: Tax Anticipation Warrants | B142: 5110 | H142: ='AFR18'!B1214 -> 42020 | K142: =H142 -> 42020
A143: Tax Anticipation Notes | B143: 5120 | H143: ='AFR18'!B1215 -> 0 | K143: =H143 -> 0
A144: Corporate Personal Prop. Repl. Tax Anticipation Notes | B144: 5130 | H144: ='AFR18'!B2753 -> 0 | K144: =H144 -> 0
A145: State Aid Anticipation Certificates | B145: 5140 | H145: ='AFR18'!B2754 -> 0 | K145: =H145 -> 0
A146: Other Interest on Short-Term Debt (Describe & Itemize) | B146: 5150 | H146: ='AFR18'!B1216 -> 52484 | K146: =H146 -> 52484
A147: Total Debt Service - Interest on Short-Term Debt | B147: 5100 | H147: =SUM(H142:H146) -> 94504 | K147: =SUM(K142:K146) -> 94504
A148: DEBT SERVICE - INTERST ON LONG-TERM DEBT | B148: 5200 | H148: ='AFR18'!B6995 -> 371075 | K148: ='AFR18'!B6996 -> 371075
A149: Total Debt Services | B149: 5000 | H149: =SUM(H147:H148) -> 465579 | K149: =SUM(K147:K148) -> 465579
A150: PROVISIONS FOR CONTINGENCIES (O&M) | B150: 6000
A151: Total Direct Disbursements/Expenditures | C151: =SUM(C129,C130,C139,C149,C150) -> 616044748.9 | D151: 124386388 | E151: 656627702.1 | F151: 470416586.3 | G151: 299119187.6 | H151: 8466058 | I151: 9906978 | J151: 621479 | K151: 2185589128
A152: Excess (Deficiency) of Receipts/Revenues\Over Disbursements/ Expenditures | K152: =SUM('Revenues 9-14'!D275-'Expenditures 15-22'!K151) -> 87171775.85
A154: 30 - DEBT SERVICES (DS)
A155: PAYMENTS TO OTHER DIST & GOVT UNITS (DS) | B155: 4000 | H155: ='AFR18'!B6999 -> 0 | K155: =SUM(H155) -> 0
A156: Payments to Other Dist & Govt Units (In State)
A157: Payments for Regular Programs | B157: 4110 | H157: ='AFR18'!B7723 -> 6559 | K157: =H157 -> 6559
A158: Payments for Special Education Programs | B158: 4120 | H158: ='AFR18'!B7725 -> 95572 | K158: =H158 -> 95572
A159: Other Payments to In-State Gov't. Units (Describe & Itemize) | B159: 4190 | H159: ='AFR18'!B7727 -> 37852 | K159: =H159 -> 37852
A160: Total Payments to Other Dist & Govt Units (In-State) | B160: 4000 | H160: =SUM(H157:H159) -> 139983 | K160: =SUM(K157:K159) -> 139983
A161: DEBT SERVICES (DS) | B161: 5000
A162: DEBT SERVICES - INTEREST ON SHORT-TERM DEBT
A163: Tax Anticipation Warrants | B163: 5110 | H163: ='AFR18'!B1256 -> 17709 | K163: =SUM(H163) -> 17709
A164: Tax Anticipation Notes | B164: 5120 | H164: ='AFR18'!B1257 -> 0 | K164: =SUM(H164) -> 0
A165: Corporate Personal Prop. Repl. Tax Anticipation Notes | B165: 5130 | H165: ='AFR18'!B2758 -> 0 | K165: =SUM(H165) -> 0
A166: State Aid Anticipation Certificates | B166: 5140 | H166: ='AFR18'!B2759 -> 1949430 | K166: =SUM(H166) -> 1949430
A167: Other Interest on Short-Term Debt (Describe & Itemize) | B167: 5150 | H167: ='AFR18'!B1259 -> 616678 | K167: =SUM(H167) -> 616678
A168: Total Debt Services - Interest On Short-Term Debt | B168: 5100 | H168: =SUM(H163:H167) -> 2583817 | K168: =SUM(K163:K167) -> 2583817
A169: DEBT SERVICES - INTEREST ON LONG-TERM DEBT | B169: 5200 | H169: ='AFR18'!B1258 -> 1017999205 | K169: =H169 -> 1017999205
A170: DEBT SERVICES - PAYMENTS OF PRINCIPAL ON LONG-TERM DEBT (Lease/Purchase Principal Retired) 11 | B170: 5300 | H170: ='AFR18'!B1261 -> 1889344526 | K170: =H170 -> 1889344526
A171: DEBT SERVICES - OTHER (Describe & Itemize) | B171: 5400 | E171: ='AFR18'!B1253 -> 5178488 | H171: ='AFR18'!B1262 -> 83881742 | K171: =SUM(E171,H171) -> 89060230
A172: Total Debt Services | B172: 5000 | E172: =E171 -> 5178488 | H172: =SUM(H168:H171) -> 2993809290 | K172: =SUM(K168:K171) -> 2998987778
A173: PROVISION FOR CONTINGENCIES (DS) | B173: 6000
A174: Total Disbursements/ Expenditures | E174: =SUM(E172) -> 5178488 | H174: =SUM(H155,H160,H172:H173) -> 2993949273 | K174: =SUM(K155,K160,K172:K173) -> 2999127761
A175: Excess (Deficiency) of Receipts/Revenues Over Disbursements/Expenditures | K175: ='AFR18'!B1279 -> -790574024.2
A177: 40 - TRANSPORTATION FUND (TR)
A178: SUPPORT SERVICES (TR)
A179: SUPPORT SERVICES - PUPILS
A180: Other Support Services - Pupils (Describe & Itemize) | B180: 2190 | C180: ='AFR18'!B4027 -> 442158 | D180: ='AFR18'!B4028 -> 46296 | E180: ='AFR18'!B4029 -> 2238334 | F180: ='AFR18'!B4030 -> 27086 | G180: ='AFR18'!B4031 -> 0 | H180: ='AFR18'!B4032 -> 0 | I180: ='AFR18'!B7003 -> 0 | J180: ='AFR18'!B7004 -> 0 | K180: =SUM(C180:J180) -> 2753874
A181: SUPPORT SERVICES - BUSINESS
A182: Pupil Transportation Services | B182: 2550 | C182: ='AFR18'!B1281 -> 250349814.9 | D182: ='AFR18'!B1287 -> 43444975.32 | E182: ='AFR18'!B1293 -> 721182148.9 | F182: ='AFR18'!B1300 -> 67522247.35 | G182: ='AFR18'!B1306 -> 74031959.75 | H182: ='AFR18'!B1312 -> 3008866 | I182: ='AFR18'!B7005 -> 1504327 | J182: ='AFR18'!B7006 -> 44425 | K182: =SUM(C182:J182) -> 1161088764
A183: Other Support Services (Describe & Itemize) | B183: 2900 | C183: ='AFR18'!B1284 -> 1252696 | D183: ='AFR18'!B1290 -> 283749 | E183: ='AFR18'!B1296 -> 339444 | F183: ='AFR18'!B1303 -> 75692 | G183: ='AFR18'!B1309 -> 0 | H183: ='AFR18'!B1315 -> 8731 | I183: ='AFR18'!B7007 -> 0 | J183: ='AFR18'!B7008 -> 0 | K183: =SUM(C183:J183) -> 1960312
A184: Total Support Services | B184: 2000 | C184: =SUM(C180,C182:C183) -> 252044668.9 | D184: =SUM(D180,D182:D183) -> 43775020.32 | E184: 723759926.9 | F184: 67625025.35 | G184: 74031959.75 | H184: 3017597 | I184: 1504327 | J184: 44425 | K184: =SUM(K180,K182:K183) -> 1165802950
A185: COMMUNITY SERVICES (TR) | B185: 3000 | C185: ='AFR18'!B2766 -> 37664 | D185: ='AFR18'!B2767 -> 729 | E185: ='AFR18'!B2768 -> 174176 | F185: ='AFR18'!B2771 -> 3128 | G185: ='AFR18'!B2772 -> 0 | H185: ='AFR18'!B2773 -> 1250000 | I185: ='AFR18'!B7011 -> 0 | J185: ='AFR18'!B7012 -> 0 | K185: =SUM(C185:J185) -> 1465697
A186: PAYMENTS TO OTHER DIST & GOVT UNITS (TR)
A187: PAYMENTS TO OTHER DIST & GOVT UNITS (IN-STATE)
A188: Payments for Regular Programs | B188: 4110 | E188: ='AFR18'!B2935 -> 5050951 | H188: ='AFR18'!B2941 -> 930170 | K188: =SUM(E188,H188) -> 5981121
A189: Payments for Special Education Programs | B189: 4120 | E189: ='AFR18'!B2936 -> 7449484 | H189: ='AFR18'!B2942 -> 1115415 | K189: 8564899
A190: Payments for Adult/Continuing Education Programs | B190: 4130 | E190: ='AFR18'!B2937 -> 0 | H190: ='AFR18'!B2943 -> 0 | K190: 0
A191: Payments for CTE Programs | B191: 4140 | E191: ='AFR18'!B2938 -> 14909 | H191: ='AFR18'!B2944 -> 17023 | K191: 31932
A192: Payments for Community College Programs | B192: 4170 | E192: ='AFR18'!B2939 -> 0 | H192: ='AFR18'!B2945 -> 0 | K192: 0
A193: Other Payments to In-State Govt. Units (Describe & Itemize) | B193: 4190 | E193: ='AFR18'!B2940 -> 213942 | H193: ='AFR18'!B2946 -> 775250 | K193: 989192
A194: Total Payments to Other Govt. Units (In-State) | B194: 4100 | E194: =SUM(E188:E193) -> 12729286 | H194: =SUM(H188:H193) -> 2837858 | K194: =SUM(K188:K193) -> 15567144
A195: PAYMENTS TO OTHER GOVT UNITS (OUT-OF-STATE) | B195: 4400 | E195: ='AFR18'!B2770 -> 0 | H195: ='AFR18'!B2775 -> 0 | K195: =SUM(E195,H195) -> 0
A196: Total Payments to Other Dist & Govt Units | B196: 4000 | E196: =SUM(E194:E195) -> 12729286 | H196: =SUM(H194:H195) -> 2837858 | K196: =SUM(K194:K195) -> 15567144
A197: DEBT SERVICES (TR)
A198: DEBT SERVICE - INTEREST ON SHORT-TERM DEBT
A199: Tax Anticipation Warrants | B199: 5110 | H199: ='AFR18'!B1317 -> 10649 | K199: =SUM(H199) -> 10649
A200: Tax Anticipation Notes | B200: 5120 | H200: ='AFR18'!B1318 -> 0 | K200: =SUM(H200) -> 0
A201: Corporate Personal Prop. Repl. Tax Anticipation Notes | B201: 5130 | H201: ='AFR18'!B2777 -> 0 | K201: =SUM(H201) -> 0
A202: State Aid Anticipation Certificates | B202: 5140 | H202: ='AFR18'!B2778 -> 0 | K202: =SUM(H202) -> 0
A203: Other (Describe & Itemize) | B203: 5150 | H203: ='AFR18'!B1319 -> 173198 | K203: =SUM(H203) -> 173198
... 160 more rows

Sheet ARRA Sched 23 (hidden)
C1: ----RECEIPTS---- | D1: -------------------------------------------------------------------------------------------DISBURSEMENTS------------------------------------------------------------------------------------ | M1: -----------STAFFING------------
D2: (100) | E2: (200) | F2: (300) | G2: (400) | H2: (500) | I2: (600) | J2: (700) | K2: (800) | L2: (900)
A3: ARRA Revenue Source Code | B3: Acct # | C3: ARRA Receipts | D3: Salaries | E3: Employee Benefits | F3: Purchased Services | G3: Supplies & Materials | H3: Capital Outlay | I3: Other | J3: Non-Capitalized Equipment | K3: Termination Benefits | L3: Total Expenditures | M3: # of Staff Impacted by Salary & Benefits | N3: FTE Staff Impacted by Salary & Benefits
A4: Beginning Balance July 1, 2015 | C4: ='AFR18'!B7215 -> 0
A5: ARRA -General State Aid 13 | B5: 4850 | C5: ='AFR18'!B7216 -> 0 | D5: ='AFR18'!B7246 -> 0 | E5: ='AFR18'!B7275 -> 0 | F5: ='AFR18'!B7304 -> 0 | G5: ='AFR18'!B7333 -> 0 | H5: ='AFR18'!B7362 -> 0 | I5: ='AFR18'!B7391 -> 0 | J5: ='AFR18'!B7420 -> 0 | L5: ='AFR18'!B7449 -> 0 | M5: 7471 | N5: 7500
A6: ARRA - Title I Low Income | B6: 4851 | C6: ='AFR18'!B7217 -> 0 | D6: ='AFR18'!B7247 -> 0 | E6: ='AFR18'!B7276 -> 0 | F6: ='AFR18'!B7305 -> 0 | G6: ='AFR18'!B7334 -> 0 | H6: ='AFR18'!B7363 -> 0 | I6: ='AFR18'!B7392 -> 0 | J6: ='AFR18'!B7421 -> 0 | L6: ='AFR18'!B7450 -> 0 | M6: 7472 | N6: 7501
A7: ARRA - Title I Neglected - Private | B7: 4852 | C7: ='AFR18'!B7218 -> 0 | D7: ='AFR18'!B7248 -> 0 | E7: ='AFR18'!B7277 -> 0 | F7: ='AFR18'!B7306 -> 0 | G7: ='AFR18'!B7335 -> 0 | H7: 42916 | I7: ='AFR18'!B7393 -> 0 | J7: ='AFR18'!B7422 -> 0 | L7: ='AFR18'!B7451 -> 0 | M7: 7473 | N7: 7502
A8: ARRA - Title I Delinquent - Private | B8: 4853 | C8: ='AFR18'!B7219 -> 0 | D8: ='AFR18'!B7249 -> 0 | E8: ='AFR18'!B7278 -> 0 | F8: ='AFR18'!B7307 -> 0 | G8: ='AFR18'!B7336 -> 0 | H8: ='AFR18'!B7365 -> 0 | I8: ='AFR18'!B7394 -> 0 | J8: ='AFR18'!B7423 -> 0 | L8: ='AFR18'!B7452 -> 0 | M8: 7474 | N8: 7503
A9: ARRA - Title I School Improvement (Part A) | B9: 4854 | C9: ='AFR18'!B7220 -> 0 | D9: ='AFR18'!B7250 -> 0 | E9: ='AFR18'!B7279 -> 0 | F9: ='AFR18'!B7308 -> 0 | G9: ='AFR18'!B7337 -> 0 | H9: ='AFR18'!B7366 -> 0 | I9: ='AFR18'!B7395 -> 0 | J9: ='AFR18'!B7424 -> 0 | L9: ='AFR18'!B7453 -> 0 | M9: 7475 | N9: 7504
A10: ARRA - Title I School Improvement (Part G) | B10: 4855 | C10: ='AFR18'!B7221 -> 0 | D10: ='AFR18'!B7251 -> 0 | E10: ='AFR18'!B7280 -> 0 | F10: ='AFR18'!B7309 -> 0 | G10: ='AFR18'!B7338 -> 0 | H10: ='AFR18'!B7367 -> 0 | I10: ='AFR18'!B7396 -> 0 | J10: ='AFR18'!B7425 -> 0 | L10: ='AFR18'!B7454 -> 0 | M10: 7476 | N10: 7505
A11: ARRA - IDEA Part B Preschool | B11: 4856 | C11: ='AFR18'!B7222 -> 0 | D11: ='AFR18'!B7252 -> 0 | E11: ='AFR18'!B7281 -> 0 | F11: ='AFR18'!B7310 -> 0 | G11: ='AFR18'!B7339 -> 0 | H11: ='AFR18'!B7368 -> 0 | I11: ='AFR18'!B7397 -> 0 | J11: ='AFR18'!B7426 -> 0 | L11: ='AFR18'!B7455 -> 0 | M11: 7477 | N11: 7506
A12: ARRA - IDEA Part B Flow Through | B12: 4857 | C12: ='AFR18'!B7223 -> 0 | D12: ='AFR18'!B7253 -> 0 | E12: ='AFR18'!B7282 -> 0 | F12: ='AFR18'!B7311 -> 0 | G12: ='AFR18'!B7340 -> 0 | H12: ='AFR18'!B7369 -> 0 | I12: ='AFR18'!B7398 -> 0 | J12: ='AFR18'!B7427 -> 0 | L12: ='AFR18'!B7456 -> 0 | M12: 7478 | N12: 7507
A13: ARRA - Title II D Technology Formula | B13: 4860 | C13: ='AFR18'!B7224 -> 0 | D13: ='AFR18'!B7254 -> 0 | E13: ='AFR18'!B7283 -> 0 | F13: ='AFR18'!B7312 -> 0 | G13: ='AFR18'!B7341 -> 0 | H13: ='AFR18'!B7370 -> 0 | I13: ='AFR18'!B7399 -> 0 | J13: ='AFR18'!B7428 -> 0 | L13: ='AFR18'!B7457 -> 0 | M13: 7479 | N13: 7508
A14: ARRA - Title II D Technology Competitive | B14: 4861 | C14: ='AFR18'!B7225 -> 0 | D14: ='AFR18'!B7255 -> 0 | E14: ='AFR18'!B7284 -> 0 | F14: ='AFR18'!B7313 -> 0 | G14: ='AFR18'!B7342 -> 0 | H14: ='AFR18'!B7371 -> 0 | I14: ='AFR18'!B7400 -> 0 | J14: ='AFR18'!B7429 -> 0 | L14: ='AFR18'!B7458 -> 0 | M14: 7480 | N14: 7509
A15: ARRA - McKenney - Vento Homeless Education | B15: 4862 | C15: ='AFR18'!B7226 -> 0 | D15: ='AFR18'!B7256 -> 0 | E15: ='AFR18'!B7285 -> 0 | F15: ='AFR18'!B7314 -> 0 | G15: ='AFR18'!B7343 -> 0 | H15: ='AFR18'!B7372 -> 0 | I15: ='AFR18'!B7401 -> 0 | J15: ='AFR18'!B7430 -> 0 | L15: ='AFR18'!B7459 -> 0 | M15: 7481 | N15: 7510
A16: ARRA - Child Nutrition Equipment Assistance | B16: 4863 | C16: ='AFR18'!B7227 -> 0 | D16: ='AFR18'!B7257 -> 0 | E16: ='AFR18'!B7286 -> 0 | F16: ='AFR18'!B7315 -> 0 | G16: ='AFR18'!B7344 -> 0 | H16: ='AFR18'!B7373 -> 0 | I16: ='AFR18'!B7402 -> 0 | J16: ='AFR18'!B7431 -> 0 | L16: ='AFR18'!B7460 -> 0 | M16: 7482 | N16: 7511
A17: Impact Aid Construction Formula | B17: 4864 | C17: ='AFR18'!B7228 -> 0 | D17: ='AFR18'!B7258 -> 0 | E17: ='AFR18'!B7287 -> 0 | F17: ='AFR18'!B7316 -> 0 | G17: ='AFR18'!B7345 -> 0 | H17: ='AFR18'!B7374 -> 0 | I17: ='AFR18'!B7403 -> 0 | J17: ='AFR18'!B7432 -> 0 | L17: ='AFR18'!B7461 -> 0 | M17: 7483 | N17: 7512
A18: Impact Aid Construction Competitive | B18: 4865 | C18: ='AFR18'!B7229 -> 0 | D18: ='AFR18'!B7259 -> 0 | E18: ='AFR18'!B7288 -> 0 | F18: ='AFR18'!B7317 -> 0 | G18: ='AFR18'!B7346 -> 0 | H18: ='AFR18'!B7375 -> 0 | I18: ='AFR18'!B7404 -> 0 | J18: ='AFR18'!B7433 -> 0 | L18: ='AFR18'!B7462 -> 0 | M18: 7484 | N18: 7513
A19: No Address | B19: 4866 | C19: ='AFR18'!B7230 -> 0 | D19: ='AFR18'!B7260 -> 0 | E19: ='AFR18'!B7289 -> 0 | F19: ='AFR18'!B7318 -> 0 | G19: ='AFR18'!B7347 -> 0 | H19: ='AFR18'!B7376 -> 0 | I19: ='AFR18'!B7405 -> 0 | J19: ='AFR18'!B7434 -> 0 | L19: ='AFR18'!B7463 -> 0 | M19: 7485 | N19: 7514
A20: QSCB Tax Credits | B20: 4867 | C20: ='AFR18'!B7231 -> 0 | D20: ='AFR18'!B7261 -> 0 | E20: ='AFR18'!B7290 -> 0 | F20: ='AFR18'!B7319 -> 0 | G20: ='AFR18'!B7348 -> 0 | H20: ='AFR18'!B7377 -> 0 | I20: ='AFR18'!B7406 -> 0 | J20: ='AFR18'!B7435 -> 0 | L20: ='AFR18'!B7464 -> 0 | M20: 7486 | N20: 7515
A21: Build America Bonds Tax Credits | B21: 4868 | C21: ='AFR18'!B7232 -> 0 | D21: ='AFR18'!B7262 -> 0 | E21: ='AFR18'!B7291 -> 0 | F21: ='AFR18'!B7320 -> 0 | G21: ='AFR18'!B7349 -> 0 | H21: ='AFR18'!B7378 -> 0 | I21: ='AFR18'!B7407 -> 0 | J21: ='AFR18'!B7436 -> 0 | L21: ='AFR18'!B7465 -> 0 | M21: 7487 | N21: 7516
A22: Build America Bonds Interest Reimbursement | B22: 4869 | C22: ='AFR18'!B7233 -> 0 | D22: ='AFR18'!B7263 -> 0 | E22: ='AFR18'!B7292 -> 0 | F22: ='AFR18'!B7321 -> 0 | G22: ='AFR18'!B7350 -> 0 | H22: ='AFR18'!B7379 -> 0 | I22: ='AFR18'!B7408 -> 0 | J22: ='AFR18'!B7437 -> 0 | L22: ='AFR18'!B7466 -> 0 | M22: 7488 | N22: 7517
A23: ARRA - General State Aid-Other Govt Services Stabilization | B23: 4870 | C23: ='AFR18'!B7234 -> 0 | D23: ='AFR18'!B7264 -> 0 | E23: ='AFR18'!B7293 -> 0 | F23: ='AFR18'!B7322 -> 0 | G23: ='AFR18'!B7351 -> 0 | H23: ='AFR18'!B7380 -> 0 | I23: ='AFR18'!B7409 -> 0 | J23: ='AFR18'!B7438 -> 0 | L23: ='AFR18'!B7467 -> 0 | M23: 7489 | N23: 7518
A24: ARRA Other II | B24: 4871 | C24: ='AFR18'!B7235 -> 0 | D24: ='AFR18'!B7265 -> 0 | E24: ='AFR18'!B7294 -> 0 | F24: ='AFR18'!B7323 -> 0 | G24: ='AFR18'!B7352 -> 0 | H24: ='AFR18'!B7381 -> 0 | I24: ='AFR18'!B7410 -> 0 | J24: ='AFR18'!B7439 -> 0 | L24: ='AFR18'!B7468 -> 0 | M24: 7490 | N24: 7519
A25: ARRA Other III | B25: 4872 | C25: ='AFR18'!B7236 -> 0 | D25: ='AFR18'!B7266 -> 0 | E25: ='AFR18'!B7295 -> 0 | F25: ='AFR18'!B7324 -> 0 | G25: ='AFR18'!B7353 -> 0 | H25: ='AFR18'!B7382 -> 0 | I25: ='AFR18'!B7411 -> 0 | J25: ='AFR18'!B7440 -> 0 | L25: ='AFR18'!B7469 -> 0 | M25: 7491 | N25: 7520
A26: ARRA Other IV | B26: 4873 | C26: ='AFR18'!B7237 -> 0 | D26: ='AFR18'!B7267 -> 0 | E26: ='AFR18'!B7296 -> 0 | F26: ='AFR18'!B7325 -> 0 | G26: ='AFR18'!B7354 -> 0 | H26: ='AFR18'!B7383 -> 0 | I26: ='AFR18'!B7412 -> 0 | J26: ='AFR18'!B7441 -> 0 | L26: ='AFR18'!B7470 -> 0 | M26: 7492 | N26: 7521
A27: ARRA Other V | B27: 4874 | C27: ='AFR18'!B7238 -> 0 | D27: ='AFR18'!B7268 -> 0 | E27: ='AFR18'!B7297 -> 0 | F27: ='AFR18'!B7326 -> 0 | G27: ='AFR18'!B7355 -> 0 | H27: ='AFR18'!B7384 -> 0 | I27: ='AFR18'!B7413 -> 0 | J27: ='AFR18'!B7442 -> 0 | L27: ='AFR18'!B7471 -> 0 | M27: 7493 | N27: 7522
A28: ARRA - Early Childhood | B28: 4875 | C28: ='AFR18'!B7239 -> 0 | D28: ='AFR18'!B7269 -> 0 | E28: ='AFR18'!B7298 -> 0 | F28: ='AFR18'!B7327 -> 0 | G28: ='AFR18'!B7356 -> 0 | H28: ='AFR18'!B7385 -> 0 | I28: ='AFR18'!B7414 -> 0 | J28: ='AFR18'!B7443 -> 0 | L28: ='AFR18'!B7472 -> 0 | M28: 7494 | N28: 7523
A29: ARRA Other VII | B29: 4876 | C29: ='AFR18'!B7240 -> 0 | D29: ='AFR18'!B7270 -> 0 | E29: ='AFR18'!B7299 -> 0 | F29: ='AFR18'!B7328 -> 0 | G29: ='AFR18'!B7357 -> 0 | H29: ='AFR18'!B7386 -> 0 | I29: ='AFR18'!B7415 -> 0 | J29: ='AFR18'!B7444 -> 0 | L29: ='AFR18'!B7473 -> 0 | M29: 7495 | N29: 7524
A30: ARRA Other VIII | B30: 4877 | C30: ='AFR18'!B7241 -> 0 | D30: ='AFR18'!B7271 -> 0 | E30: ='AFR18'!B7300 -> 0 | F30: ='AFR18'!B7329 -> 0 | G30: ='AFR18'!B7358 -> 0 | H30: ='AFR18'!B7387 -> 0 | I30: ='AFR18'!B7416 -> 0 | J30: ='AFR18'!B7445 -> 0 | L30: ='AFR18'!B7474 -> 0 | M30: 7496 | N30: 7525
A31: ARRA Other IX | B31: 4878 | C31: ='AFR18'!B7242 -> 0 | D31: ='AFR18'!B7272 -> 0 | E31: ='AFR18'!B7301 -> 0 | F31: ='AFR18'!B7330 -> 0 | G31: ='AFR18'!B7359 -> 0 | H31: ='AFR18'!B7388 -> 0 | I31: ='AFR18'!B7417 -> 0 | J31: ='AFR18'!B7446 -> 0 | L31: ='AFR18'!B7475 -> 0 | M31: 7497 | N31: 7526
A32: ARRA Other X | B32: 4879 | C32: ='AFR18'!B7243 -> 0 | D32: ='AFR18'!B7273 -> 0 | E32: ='AFR18'!B7302 -> 0 | F32: ='AFR18'!B7331 -> 0 | G32: ='AFR18'!B7360 -> 0 | H32: ='AFR18'!B7389 -> 0 | I32: ='AFR18'!B7418 -> 0 | J32: ='AFR18'!B7447 -> 0 | L32: ='AFR18'!B7476 -> 0 | M32: 7498 | N32: 7527
A33: ARRA Other XI | B33: 4880 | C33: ='AFR18'!B7586 -> 0 | D33: ='AFR18'!B7587 -> 0 | E33: ='AFR18'!B7588 -> 0 | F33: ='AFR18'!B7589 -> 0 | G33: ='AFR18'!B7590 -> 0 | H33: ='AFR18'!B7591 -> 0 | I33: ='AFR18'!B7592 -> 0 | J33: ='AFR18'!B7593 -> 0 | L33: ='AFR18'!B7594 -> 0 | M33: 7588 | N33: 7589
A34: Total ARRA Programs | C34: =SUM(C5:C33) -> 0 | D34: =SUM(D5:D33) -> 0 | E34: 0 | F34: 0 | G34: 0 | H34: 42916 | I34: 0 | J34: 0 | L34: =SUM(L5:L33) -> 0 | M34: 7499 | N34: 7528
A35: Ending Balance June 30, 2016 | C35: =C4+C34-L34 -> 0
A37: 1 | B37: Were any funds from the State Fiscal Stabilization Fund Program (SFSF) General State-Aid (Account 4850, line 5)
B38: used for the following non-allowable purposes:
C39: Payments of maintenance costs;
C40: Stadiums or other facilities used for athletic contests, exhibitions or other events for which admission is charged to the general public;
C41: Purchase or upgrade of vehicles;
C42: Improvements of stand-alone facilities whose purpose is not the education of children such as central office administrative buildings;
C43: Financial assistance to students to attend private elementary or secondary schools unless the funds are used to provide special
C44: education and related services to children with disabilities as authorized by the IDEA Act;
C45: School modernization, renovation, or repair that is inconsistent with State Law.
A47: 2 | B47: If any above boxes are checked provide the total amount
B48: of questioned costs and provide an explanation below: | G48: 7574

Sheet Tax Sched 24
A1: SCHEDULE OF AD VALOREM TAX RECEIPTS
A2: Description | B2: Taxes Received 7-1-16 Thru 6-30-17 (from 2016 Levy & Prior Levies) * | C2: Taxes Received (from the 2016 Levy) | D2: Taxes Received (from 2015 & Prior Levies) (Column B - C) | E2: Total Estimated Taxes (from the 2016 Levy) | F2: Estimated Taxes Due (from the 2016 Levy) (Column E - C)
A4: Educational | B4: ='AFR18'!B1690 -> 1.194001141e+10 | C4: ='AFR18'!B1722 -> 6745121630 | D4: =B4-C4 -> 5194889780 | E4: ='AFR18'!B1754 -> 1.22259469e+10 | F4: =E4-C4 -> 5480825268
A5: Operations & Maintenance | B5: ='AFR18'!B1691 -> 1530756935 | C5: ='AFR18'!B1723 -> 673196361.2 | D5: =B5-C5 -> 857560573.5 | E5: ='AFR18'!B1755 -> 1560107329 | F5: =E5-C5 -> 886910968.2
A6: Debt Services ** | B6: ='AFR18'!B1692 -> 1584395765 | C6: ='AFR18'!B1724 -> 702602806.7 | D6: 881792958.1 | E6: ='AFR18'!B1756 -> 1583369140 | F6: 880766333.7
A7: Transportation | B7: ='AFR18'!B1693 -> 631264425.7 | C7: ='AFR18'!B1725 -> 251270218 | D7: 379994207.7 | E7: ='AFR18'!B1757 -> 601341332.6 | F7: 350071114.6
A8: Municipal Retirement/Social Security | B8: ='AFR18'!B1694 -> 274125679.8 | C8: ='AFR18'!B1726 -> 106818904.9 | D8: 167306774.9 | E8: ='AFR18'!B1758 -> 272397352.9 | F8: 165578448
A9: Capital Improvements | B9: ='AFR18'!B1697 -> 9526435 | C9: ='AFR18'!B1729 -> 7567479 | D9: 1958956 | E9: ='AFR18'!B1761 -> 9059419 | F9: 1491940
A10: Working Cash | B10: ='AFR18'!B1695 -> 68642339.56 | C10: ='AFR18'!B1727 -> 22907952.46 | D10: 45734387.1 | E10: ='AFR18'!B1759 -> 68597465.49 | F10: 45689513.03
A11: Tort Immunity | B11: ='AFR18'!B1698 -> 336083725 | C11: ='AFR18'!B1730 -> 109440295 | D11: 226643430.1 | E11: ='AFR18'!B1762 -> 334827161 | F11: 225386866
A12: Fire Prevention & Safety | B12: ='AFR18'!B1699 -> 54790902.56 | C12: ='AFR18'!B1731 -> 17175925.55 | D12: 37614977.01 | E12: ='AFR18'!B1763 -> 55378013.14 | F12: 38202087.59
A13: Leasing Levy | B13: ='AFR18'!B3671 -> 36774589.71 | C13: ='AFR18'!B3673 -> 7880801 | D13: 28893788.71 | E13: ='AFR18'!B3675 -> 35671483.59 | F13: 27790682.59
A14: Special Education | B14: ='AFR18'!B1700 -> 489420499.3 | C14: ='AFR18'!B1732 -> 235526515.7 | D14: 253893983.6 | E14: ='AFR18'!B1764 -> 497264366 | F14: 261737850.3
A15: Area Vocational Construction | B15: ='AFR18'!B1702 -> 0 | C15: ='AFR18'!B1734 -> 0 | D15: 0 | E15: ='AFR18'!B1766 -> 0 | F15: 0
A16: Social Security/Medicare Only | B16: ='AFR18'!B3392 -> 303550737.5 | C16: ='AFR18'!B3394 -> 124371955.9 | D16: 179178781.6 | E16: ='AFR18'!B3396 -> 310705586.2 | F16: 186333630.3
A17: Summer School | B17: ='AFR18'!B4048 -> 202 | C17: ='AFR18'!B4052 -> 0 | D17: 202 | E17: ='AFR18'!B4056 -> 0 | F17: 0
A18: Other (Describe & Itemize) | B18: ='AFR18'!B4049 -> 425521815 | C18: ='AFR18'!B4053 -> 406212299 | D18: 19309516 | E18: ='AFR18'!B4057 -> 414100381.2 | F18: 7888082.16
A19: No Address | B19: ='AFR18'!B1705 -> 1.768486546e+10 | C19: ='AFR18'!B1737 -> 9410093144 | D19: 8274772315 | E19: ='AFR18'!B1769 -> 1.796876593e+10 | F19: 8558672784
A21: * The formulas in column B are unprotected to be overidden when reporting on a ACCRUAL basis.
A22: ** All tax receipts for debt service payments on bonds must be recorded on line 6 (Debt Services).

Sheet Short-Term Long-Term Debt 25
A1: SCHEDULE OF SHORT-TERM DEBT
A2: Description | C2: Outstanding Beginning 7/01/16 | D2: Issued 7/01/16 Through 6/30/17 | E2: Retired 7/01/16 Through 6/30/17 | F2: Outstanding Ending 6/30/17
A3: CORPORATE PERSONAL PROPERTY REPLACEMENT TAX ANTICIPATION NOTES (CPPRT)
A4: Total CPPRT Notes | C4: ='AFR18'!B2673 -> 0 | D4: ='AFR18'!B2675 -> 0 | E4: ='AFR18'!B2677 -> 0 | F4: ='AFR18'!B2679 -> 0
A5: TAX ANTICIPATION WARRANTS (TAW)
A6: Educational Fund | C6: ='AFR18'!B1771 -> 16924218 | D6: ='AFR18'!B1785 -> 80200000 | E6: ='AFR18'!B1799 -> 87024218 | F6: =C6+D6-E6 -> 10100000
A7: Operations & Maintenance Fund | C7: ='AFR18'!B1772 -> 4000000 | D7: ='AFR18'!B1786 -> 200350 | E7: ='AFR18'!B1800 -> 4100000 | F7: =C7+D7-E7 -> 100350
A8: Debt Services - Construction | C8: ='AFR18'!B1775 -> 0 | D8: ='AFR18'!B1789 -> 0 | E8: ='AFR18'!B1803 -> 0 | F8: =C8+D8-E8 -> 0
A9: Debt Services - Working Cash | C9: ='AFR18'!B1776 -> 0 | D9: ='AFR18'!B1790 -> 0 | E9: ='AFR18'!B1804 -> 0 | F9: 0
A10: Debt Services - Refunding Bonds | C10: ='AFR18'!B1777 -> 0 | D10: ='AFR18'!B1791 -> 0 | E10: ='AFR18'!B1805 -> 0 | F10: 0
A11: Transportation Fund | C11: ='AFR18'!B1774 -> 1000000 | D11: ='AFR18'!B1788 -> 1000000 | E11: ='AFR18'!B1802 -> 1000000 | F11: 1000000
A12: Municipal Retirement/Social Security Fund | C12: ='AFR18'!B1773 -> 0 | D12: ='AFR18'!B1787 -> 0 | E12: ='AFR18'!B1801 -> 0 | F12: 0
A13: Fire Prevention & Safety Fund | C13: ='AFR18'!B3628 -> 0 | D13: ='AFR18'!B3630 -> 0 | E13: ='AFR18'!B3632 -> 0 | F13: 0
A14: Other - (Describe & Itemize) | C14: ='AFR18'!B1778 -> 0 | D14: ='AFR18'!B1792 -> 0 | E14: ='AFR18'!B1806 -> 0 | F14: 0
A15: Total TAWs | C15: =SUM(C6:C14) -> 21924218 | D15: =SUM(D6:D14) -> 81400350 | E15: =SUM(E6:E14) -> 92124218 | F15: =C15+D15-E15 -> 11200350
A16: TAX ANTICIPATION NOTES (TAN)
A17: Educational Fund | C17: ='AFR18'!B1780 -> 958017900 | D17: ='AFR18'!B1794 -> 1206439050 | E17: ='AFR18'!B1808 -> 1558106900 | F17: =C17+D17-E17 -> 606350050
A18: Operations & Maintenance Fund | C18: ='AFR18'!B1781 -> 50000 | D18: ='AFR18'!B1795 -> 80000 | E18: ='AFR18'!B1809 -> 50000 | F18: 80000
A19: Fire Prevention & Safety Fund | C19: ='AFR18'!B3629 -> 0 | D19: ='AFR18'!B3631 -> 0 | E19: ='AFR18'!B3633 -> 0 | F19: 0
A20: Other - (Describe & Itemize) | C20: ='AFR18'!B1782 -> 0 | D20: ='AFR18'!B1796 -> 0 | E20: ='AFR18'!B1810 -> 0 | F20: 0
A21: Total TANs | C21: =SUM(C17:C20) -> 958067900 | D21: =SUM(D17:D20) -> 1206519050 | E21: =SUM(E17:E20) -> 1558156900 | F21: 606430050
A22: TEACHERS'/EMPLOYEES' ORDERS (T/EO)
A23: Total T/EOs (Educational, Operations & Maintenance, & Transportation Funds) | C23: ='AFR18'!B1784 -> 0 | D23: ='AFR18'!B1798 -> 0 | E23: ='AFR18'!B1812 -> 0 | F23: 0
A24: GENERAL STATE-AID ANTICIPATION CERTIFICATES (GSAAC)
A25: Total GSAACs (All Funds) | C25: ='AFR18'!B2674 -> 0 | D25: ='AFR18'!B2676 -> 0 | E25: ='AFR18'!B2678 -> 0 | F25: 0
A26: OTHER SHORT-TERM BORROWING
A27: Total Other Short-Term Borrowing (Describe & Itemize) | C27: ='AFR18'!B6022 -> 396099891 | D27: ='AFR18'!B6023 -> 6074500 | E27: ='AFR18'!B6024 -> 394497187 | F27: 7677204
A29: SCHEDULE OF LONG-TERM DEBT
A30: Identification or Name of Issue | B30: Date of Issue (mm/dd/yy) | C30: Amount of Original Issue | D30: Type of Issue * | E30: Bonds Outstanding 7/1/16 | F30: Bonds Issued 7/01/16 thru 6/30/17 | G30: All Differences With page 8, line 25 | H30: Bonds Retired 7/1/16 thru 6/30/17 | I30: Bonds Outstanding 6/30/17 | J30: Amount to be Provided for Retirement of Bonds
I31: =SUM(E31:G31)-H31 -> 0
I32: =SUM(E32:G32)-H32 -> 0
I33: 0
I34: 0
I35: 0
I36: 0
I37: 0
I38: 0
I39: 0
I40: 0
I41: 0
I42: 0
I43: 0
I44: 0
I45: 0
I46: 0
I47: 0
I48: 0
C49: =SUM(C31:C48) -> 0 | E49: ='AFR18'!B1885 -> 21070770001 | F49: ='AFR18'!B1886 -> 4112600847 | G49: ='AFR18'!B4123 -> -266249427 | H49: ='AFR18'!B4119 -> 3266853127 | I49: 21650268294 | J49: ='AFR18'!B4118 -> 20000574898
A51: * Each type of bond issue must be identified separately with the amount:
A52: 1. Working Cash Fund Bonds | B52: 4. Fire Prevent, Safety, Environmental and Energy Bonds | E52: 7. Other
A53: 2. Funding Bonds | B53: 5. Tort Judgment Bonds | E53: 8. Other
A54: 3. Refunding Bonds | B54: 6. Building Bonds | E54: 9. Other
A56: ** This total must agree with Page 24, Line 8, 6/30/17 Annual Financial Report for all Local Education Agencies according to 23 Illinois Administrative Code - Part 100
A57: If more than one type of an individual bond issue, indicate percent of original issue that relates to each type.
A58: *** This total must equal the amount on Page 6, Line 22.

Sheet Rest Tax Levies-Tort Im 26
A1: SCHEDULE OF RESTRICTED LOCAL TAX LEVIES AND SELECTED REVENUE SOURCES
A2: Description | F2: Account No | G2: Tort Immunity a | H2: Special Education | I2: Area Vocational Construction | J2: School Facility Occupation Taxes b | K2: Driver Education
A3: Cash Basis Fund Balance as of July 1, 2016 | G3: ='AFR18'!B1894 -> 892197 | H3: ='AFR18'!B1917 -> 2437794 | I3: ='AFR18'!B1930 -> 0 | J3: ='AFR18'!B7654 -> 51885609 | K3: ='AFR18'!B7655 -> 3517061
A4: RECEIPTS:
A5: Ad Valorem Taxes Received by District | F5: 10, 20, 40 or 50-1100 | H5: ='AFR18'!B1918 -> 465361192.5 | I5: ='AFR18'!B1931 -> 0
A6: Earnings on Investments | F6: 10, 20, 40, 50 or 60-1500 | G6: ='AFR18'!B1896 -> 158 | H6: ='AFR18'!B1919 -> 5223386.1 | I6: ='AFR18'!B1932 -> 0 | J6: ='AFR18'!B7656 -> 2663537.23 | K6: ='AFR18'!B7657 -> 97435.09
A7: Drivers' Education Fees | F7: 10-1970 | K7: ='AFR18'!B7658 -> 7328379.46
A8: School Facility Occupation Tax Proceeds | F8: 30 or 60-1983 | J8: ='AFR18'!B7659 -> 92268617.58
A9: Driver Education | F9: 10 or 20-3370 | K9: ='AFR18'!B7660 -> 16513131.93
A10: Other Receipts (Describe & Itemize on tab "Itemization 32") | F10: -- | H10: ='AFR18'!B1920 -> 2509732 | I10: ='AFR18'!B1934 -> 0 | J10: ='AFR18'!B7661 -> 3103613 | K10: ='AFR18'!B7662 -> 419190
A11: Sale of Bonds | F11: 10, 20, 40 or 60-7200 | H11: ='AFR18'!B2053 -> 0 | I11: ='AFR18'!B1933 -> 0 | J11: ='AFR18'!B7663 -> 14575787
A12: Total Receipts | G12: =SUM(G5:G11) -> 158 | H12: =SUM(H5:H11) -> 473094310.6 | I12: =SUM(I5:I11) -> 0 | J12: =SUM(J5:J11) -> 112611554.8 | K12: =SUM(K5:K11) -> 24358136.48
A13: DISBURSEMENTS:
A14: Instruction | F14: 10 or 50-1000 | H14: ='AFR18'!B7666 -> 453902063.5 | K14: ='AFR18'!B7667 -> 21033894.91
A15: Facilities Acquisition & Construction Services | F15: 20 or 60-2530 | H15: ='AFR18'!B1925 -> 1902417 | I15: ='AFR18'!B1938 -> 0 | J15: ='AFR18'!B7668 -> 51379545.14 | K15: ='AFR18'!B7669 -> 114416
A16: Tort Immunity Services | F16: 10, 20, 40-2360-2370 | G16: ='AFR18'!B1901 -> 99977
A17: DEBT SERVICE
A18: Debt Services - Interest on Long-Term Debt | F18: 30-5200 | J18: ='AFR18'!B7670 -> 17078070.77
A19: Debt Services - Payments of Principal on Long-Term Debt (Lease/Purchase Principal Retired) | F19: 30-5300 | J19: ='AFR18'!B7671 -> 24612084
A20: Debt Services Other (Describe & Itemize on tab "Itemization 32") | F20: 30-5400 | J20: ='AFR18'!B7672 -> 24085
A21: Total Debt Services | J21: =SUM(J18:J20) -> 41714239.77
A22: Other Disbursements (Describe & Itemize on tab "Itemization 32") | F22: -- | H22: ='AFR18'!B1926 -> 14237679 | I22: ='AFR18'!B1939 -> 0 | J22: ='AFR18'!B7719 -> 1220276 | K22: ='AFR18'!B7675 -> 431118
A23: Total Disbursements | G23: =SUM(G14:G22) -> 99977 | H23: =SUM(H14:H22) -> 470042159.5 | I23: =SUM(I14:I22) -> 0 | J23: =SUM(J15,J21,J22) -> 94314060.91 | K23: =SUM(K14:K22) -> 21579428.91
A24: Ending Cash Basis Fund Balance as of June 30, 2017 | G24: =SUM(G3+G12)-G23 -> 792378 | H24: =(H3+H12)-H23 -> 5489945.1 | I24: =(I3+I12)-I23 -> 0 | J24: =(J3+J12)-J23 -> 70183102.9 | K24: =(K3+K12)-K23 -> 6295768.57
A25: Reserved Fund Balance | F25: 714 | G25: ='AFR18'!B7680 -> 331748 | H25: ='AFR18'!B7681 -> 360408 | I25: ='AFR18'!B7682 -> 0 | J25: ='AFR18'!B7683 -> 27022763 | K25: ='AFR18'!B7684 -> 252151
A26: Unreserved Fund Balance | F26: 730 | G26: =G24-G25 -> 460630 | H26: =H24-H25 -> 5129537.1 | I26: =I24-I25 -> 0 | J26: =J24-J25 -> 43160339.9 | K26: =K24-K25 -> 6043617.57
A28: SCHEDULE OF TORT IMMUNITY EXPENDITURES a
A30: Yes | C30: No | E30: Has the entity established an insurance reserve pursuant to 745 ILCS 10/9-103?
E31: If yes, list in the aggregate the following: | F31: Total Claims Payments: | G31: ='AFR18'!B4244 -> 2321860
F32: Total Reserve Remaining: | G32: ='AFR18'!B4245 -> 0
A33: Using the following categories, list all other Tort Immunity expenditures not
A34: included in line 30 above. Include the total dollar amount for each category.
A35: Expenditures:
A36: Workers' Compensation Act and/or Workers' Occupational Disease Act | G36: ='AFR18'!B4246 -> 1742547
A37: Unemployment Insurance Act | G37: ='AFR18'!B4247 -> 154636
A38: Insurance (Regular or Self-Insurance) | G38: ='AFR18'!B4248 -> 1785941
A39: Risk Management and Claims Service | G39: ='AFR18'!B4249 -> 489371
A40: Judgments/Settlements | G40: ='AFR18'!B4250 -> 30000
A41: Educational, Inspectional, Supervisory Services Related to Loss Prevention and/or Reduction | G41: ='AFR18'!B4251 -> 392633
A42: Reciprocal Insurance Payments (Insurance Code 72, 76, and 81) | G42: ='AFR18'!B4252 -> 0
A43: Legal Services | G43: ='AFR18'!B4253 -> 144854
A44: Principal and Interest on Tort Bonds | G44: ='AFR18'!B4254 -> 0
A46: a | B46: Schedules for Tort Immunity are to be completed only if expenditures have been reported in any fund other than the Tort Immunity Fund (80) during FY10 as a result of existing (restricted) fund balances
B47: in those other funds that are being spent down. Cell G6 above should include interest earnings only from these restricted tort immunity monies and only if reported in a fund other than Tort Immunity Fund (80).
A48: b | B48: 55 ILCS 5/5-1006.7

Sheet Cap Outlay Deprec 27
A1: Schedule of Capital Outlay and Depreciation | D1: * Statistical Information (This schedule must be completed)
A2: Description of Assets | B2: Acct # | C2: Beginning Cost 7/01/16 | D2: Additions: July 1, 2016 through June 30, 2017 | E2: Deletions 7/01/16 through 6/30/2017 | F2: Ending Cost 6/30/17 | G2: Life In Years | H2: Beginning Accumulated Depreciation 7/01/16 | I2: Additions: Depreciation Allowable 7/01/2016 through 06/30/2017 | J2: Deletions: Depreciation Deletions 7/01/2016 through 6/30/2017 | K2: Accumulated Depreciation 6-30-17 | L2: Ending Balance Undepreciated 6-30-17
A3: Works of Art & Historical Treasures | B3: 210 | C3: ='AFR18'!B6360 -> 1414796 | D3: ='AFR18'!B6361 -> 0 | E3: ='AFR18'!B7536 -> 0 | F3: =C3+D3-E3 -> 1414796 | H3: ='AFR18'!B7538 -> 2380 | I3: ='AFR18'!B7539 -> 1190 | J3: ='AFR18'!B7540 -> 0 | K3: =H3+I3-J3 -> 3570 | L3: =F3-K3 -> 1411226
A4: Land | B4: 220
A5: Non-Depreciable Land | B5: 221 | C5: ='AFR18'!B1954 -> 1268868459 | D5: ='AFR18'!B1960 -> 15644953 | E5: ='AFR18'!B1966 -> 826989 | F5: =C5+D5-E5 -> 1283686423 | L5: =F5-K5 -> 1283686423
A6: Depreciable Land | B6: 222 | C6: ='AFR18'!B7543 -> 28925765 | D6: ='AFR18'!B7544 -> 289617 | E6: ='AFR18'!B7545 -> 11295 | F6: =C6+D6-E6 -> 29204087 | G6: 50 | H6: ='AFR18'!B7547 -> 9374779 | I6: ='AFR18'!B7548 -> 545442 | J6: ='AFR18'!B7549 -> 11295 | K6: =H6+I6-J6 -> 9908926 | L6: =F6-K6 -> 19295161
A7: Buildings | B7: 230
A8: Permanent Buildings | B8: 231 | C8: ='AFR18'!B1955 -> 4.045304729e+10 | D8: ='AFR18'!B1961 -> 1440700500 | E8: ='AFR18'!B1967 -> 152934606 | F8: =C8+D8-E8 -> 4.174081319e+10 | G8: 50 | H8: ='AFR18'!B1979 -> 1.555991776e+10 | I8: ='AFR18'!B1985 -> 967276288.9 | J8: ='AFR18'!B1991 -> 63008512 | K8: =H8+I8-J8 -> 1.646418553e+10 | L8: =F8-K8 -> 2.527662765e+10
A9: Temporary Buildings | B9: 232 | C9: ='AFR18'!B7552 -> 154248989.3 | D9: ='AFR18'!B7553 -> 2441057.44 | E9: ='AFR18'!B7554 -> 0 | F9: =C9+D9-E9 -> 156690046.7 | G9: 25 | H9: ='AFR18'!B7556 -> 54060313.89 | I9: ='AFR18'!B7557 -> 4377901.55 | J9: ='AFR18'!B7558 -> 0 | K9: =H9+I9-J9 -> 58438215.44 | L9: =F9-K9 -> 98251831.26
A10: Improvements Other than Buildings (Infrastructure) | B10: 240 | C10: ='AFR18'!B1956 -> 2168632932 | D10: ='AFR18'!B1962 -> 154970773.5 | E10: ='AFR18'!B1968 -> 3885967 | F10: =C10+D10-E10 -> 2319717739 | G10: 20 | H10: ='AFR18'!B1980 -> 1008789449 | I10: ='AFR18'!B1986 -> 96805076.73 | J10: ='AFR18'!B1992 -> 3904355 | K10: =H10+I10-J10 -> 1101690171 | L10: =F10-K10 -> 1218027568
A11: Capitalized Equipment | B11: 250
A12: 10 Yr Schedule | B12: 251 | C12: ='AFR18'!B1957 -> 3252357949 | D12: ='AFR18'!B1963 -> 204169065.2 | E12: ='AFR18'!B1969 -> 89832747 | F12: =C12+D12-E12 -> 3366694268 | G12: 10 | H12: ='AFR18'!B1981 -> 2519478595 | I12: ='AFR18'!B1987 -> 182802621.4 | J12: ='AFR18'!B1993 -> 71357899 | K12: =H12+I12-J12 -> 2630923317 | L12: =F12-K12 -> 735770950.5
A13: 5 Yr Schedule | B13: 252 | C13: ='AFR18'!B1958 -> 981688584.4 | D13: ='AFR18'!B1964 -> 77113951 | E13: ='AFR18'!B1970 -> 100908480 | F13: =C13+D13-E13 -> 957894055.4 | G13: 5 ** | H13: ='AFR18'!B1982 -> 761872319.2 | I13: ='AFR18'!B1988 -> 65321270.35 | J13: ='AFR18'!B1994 -> 95916570 | K13: =H13+I13-J13 -> 731277019.5 | L13: =F13-K13 -> 226617035.8
A14: 3 Yr Schedule | B14: 253 | C14: ='AFR18'!B7561 -> 46414943.93 | D14: ='AFR18'!B7562 -> 5376737.69 | E14: ='AFR18'!B7563 -> 1307469 | F14: =C14+D14-E14 -> 50484212.62 | G14: 3 | H14: ='AFR18'!B7565 -> 40291842.95 | I14: ='AFR18'!B7566 -> 3850567 | J14: ='AFR18'!B7567 -> 1574931 | K14: =H14+I14-J14 -> 42567478.95 | L14: =F14-K14 -> 7916733.67
A15: Construction in Progress | B15: 260 | C15: ='AFR18'!B3397 -> 953569586 | D15: ='AFR18'!B3398 -> 1082582721 | E15: ='AFR18'!B3399 -> 978241833 | F15: =C15+D15-E15 -> 1057910474 | G15: -- | L15: =F15-K15 -> 1057910474
A16: Total Capital Assets | B16: 200 | C16: =SUM(C3:C15) -> 4.93091693e+10 | D16: =SUM(D3:D15) -> 2983289376 | E16: =SUM(E3:E15) -> 1327949386 | F16: =SUM(F3:F15) -> 5.096450929e+10 | H16: =SUM(H3:H15) -> 1.995378744e+10 | I16: =SUM(I3:I15) -> 1320980358 | J16: =SUM(J3:J15) -> 235773562 | K16: =H16+I16-J16 -> 2.103899423e+10 | L16: =F16-K16 -> 2.992551506e+10
A17: Non-Capitalized Equipment | B17: 700 | F17: ='AFR18'!B7570 -> 135994484 | G17: 10 | I17: ='AFR18'!B7571 -> 13599448.4
A18: Total Capital & Non-Capital Assets | C18: =SUM(C16:C17) -> 4.93091693e+10 | D18: =SUM(D16:D17) -> 2983289376 | E18: =SUM(E16:E17) -> 1327949386 | F18: =SUM(F16:F17) -> 5.110050377e+10 | H18: =SUM(H16:H17) -> 1.995378744e+10 | I18: =SUM(I16:I17) -> 1334579806 | J18: =SUM(J16:J17) -> 235773562 | K18: =SUM(K16:K17) -> 2.103899423e+10 | L18: =SUM(L16:L17) -> 2.992551506e+10
A20: * | B20: Valuation of Transpsortation Equipment must be shown at historical cost. Valuation of other equipment, buildings, and land improvement
B21: should be shown on a Historical Cost Basis or an acceptable approximation of cost. Columns C & H must agree with Columns F & K,
B22: 2016-2017 Annual Financial Report.
A23: ** | B23: Some items costing $500 or more may be depreciated over a life of approximately three years. For additional information
B24: regarding those items, refer to current instructions for completing pupil transportation reimbursements forms.

Sheet PCTC-OEPP 28-29
A1: ESTIMATED OPERATING EXPENSE PER PUPIL (OEPP)/PER CAPITA TUITION CHARGE (PCTC) COMPUTATIONS (2016-17)
A2: This schedule is completed for school districts only.
A4: Fund | B4: Sheet, Row | D4: ACCOUNT NO - TITLE | F4: Amount
A6: OPERATING EXPENSE PER PUPIL
A7: EXPENDITURES:
A8: ED | B8: Expenditures 15-22, L114 | D8: Total Expenditures | E8: $ | F8: ='Expenditures 15-22'!K114 -> 2.161270385e+10
A9: O&M | B9: Expenditures 15-22, L150 | D9: Total Expenditures | F9: ='Expenditures 15-22'!K151 -> 2185589128
A10: DS | B10: Expenditures 15-22, L168 | D10: Total Expenditures | F10: ='Expenditures 15-22'!K174 -> 2999127761
A11: TR | B11: Expenditures 15-22, L204 | D11: Total Expenditures | F11: ='Expenditures 15-22'!K210 -> 1199210881
A12: MR/SS | B12: Expenditures 15-22, L288 | D12: Total Expenditures | F12: ='Expenditures 15-22'!K295 -> 625629915.9
A13: TORT | B13: Expenditures 15-22, L331 | D13: Total Expenditures | F13: ='Expenditures 15-22'!K342 -> 366851717.2
D14: Total Expenditures | E14: $ | F14: =SUM(F8:F13) -> 2.898911325e+10
A16: LESS RECEIPTS/REVENUES OR DISBURSEMENTS/EXPENDITURES NOT APPLICABLE TO THE REGULAR K-12 PROGRAM:
A18: TR | B18: Revenues 9-14, L43, Col F | C18: ='Revenues 9-14'!B43 -> 1412 | D18: ='Revenues 9-14'!A43 -> Regular - Transp Fees from Other Districts (In State) | E18: $ | F18: ='Revenues 9-14'!F43 -> 14908598
A19: TR | B19: Revenues 9-14, L47, Col F | C19: ='Revenues 9-14'!B47 -> 1421 | D19: ='Revenues 9-14'!A47 -> Summer Sch - Transp. Fees from Pupils or Parents (In State) | F19: ='Revenues 9-14'!F47 -> 259775
A20: TR | B20: Revenues 9-14, L48, Col F | C20: ='Revenues 9-14'!B48 -> 1422 | D20: ='Revenues 9-14'!A48 -> Summer Sch - Transp. Fees from Other Districts (In State) | F20: ='Revenues 9-14'!F48 -> 59325
A21: TR | B21: Revenues 9-14, L49, Col F | C21: ='Revenues 9-14'!B49 -> 1423 | D21: ='Revenues 9-14'!A49 -> Summer Sch - Transp. Fees from Other Sources (In State) | F21: ='Revenues 9-14'!F49 -> 8000
A22: TR | B22: Revenues 9-14, L50 Col F | C22: ='Revenues 9-14'!B50 -> 1424 | D22: ='Revenues 9-14'!A50 -> Summer Sch - Transp. Fees from Other Sources (Out of State) | F22: ='Revenues 9-14'!F50 -> 0
A23: TR | B23: Revenues 9-14, L52, Col F | C23: ='Revenues 9-14'!B52 -> 1432 | D23: ='Revenues 9-14'!A52 -> CTE - Transp Fees from Other Districts (In State) | F23: ='Revenues 9-14'!F52 -> 16511
A24: TR | B24: Revenues 9-14, L56, Col F | C24: ='Revenues 9-14'!B56 -> 1442 | D24: ='Revenues 9-14'!A56 -> Special Ed - Transp Fees from Other Districts (In State) | F24: ='Revenues 9-14'!F56 -> 4217175
A25: TR | B25: Revenues 9-14, L59, Col F | C25: ='Revenues 9-14'!B59 -> 1451 | D25: ='Revenues 9-14'!A59 -> Adult - Transp Fees from Pupils or Parents (In State) | F25: ='Revenues 9-14'!F59 -> 0
A26: TR | B26: Revenues 9-14, L60, Col F | C26: ='Revenues 9-14'!B60 -> 1452 | D26: ='Revenues 9-14'!A60 -> Adult - Transp Fees from Other Districts (In State) | F26: ='Revenues 9-14'!F60 -> 0
A27: TR | B27: Revenues 9-14, L61, Col F | C27: ='Revenues 9-14'!B61 -> 1453 | D27: ='Revenues 9-14'!A61 -> Adult - Transp Fees from Other Sources (In State) | F27: ='Revenues 9-14'!F61 -> 15171
A28: TR | B28: Revenues 9-14, L62, Col F | C28: ='Revenues 9-14'!B62 -> 1454 | D28: ='Revenues 9-14'!A62 -> Adult - Transp Fees from Other Sources (Out of State) | F28: ='Revenues 9-14'!F62 -> 0
A29: O&M | B29: Revenues 9-14, L148, Col D | C29: ='Revenues 9-14'!B148 -> 3410 | D29: ='Revenues 9-14'!A148 -> Adult Ed (from ICCB) | F29: ='Revenues 9-14'!D148 -> 0
A30: O&M-TR | B30: Revenues 9-14, L149, Col D & F | C30: ='Revenues 9-14'!B149 -> 3499 | D30: ='Revenues 9-14'!A149 -> Adult Ed - Other (Describe & Itemize) | F30: =SUM('Revenues 9-14'!D149,'Revenues 9-14'!F149) -> 0
A31: O&M-TR | B31: Revenues 9-14, L218, Col D,F | C31: ='Revenues 9-14'!B218 -> 4600 | D31: ='Revenues 9-14'!A218 -> Fed - Spec Education - Preschool Flow-Through | F31: =SUM('Revenues 9-14'!D218,'Revenues 9-14'!F218) -> 0
A32: O&M-TR | B32: Revenues 9-14, L219, Col D,F | C32: ='Revenues 9-14'!B219 -> 4605 | D32: ='Revenues 9-14'!A219 -> Fed - Spec Education - Preschool Discretionary | F32: =SUM('Revenues 9-14'!D219,'Revenues 9-14'!F219) -> 0
A33: O&M | B33: Revenues 9-14, L229, Col D | C33: ='Revenues 9-14'!B229 -> 4810 | D33: ='Revenues 9-14'!A229 -> Federal - Adult Education | F33: ='Revenues 9-14'!D229 -> 0
A34: ED | B34: Expenditures 15-22, L7, Col K - (G+I) | C34: ='Expenditures 15-22'!B7 -> 1125 | D34: ='Expenditures 15-22'!A7 -> Pre-K Programs | F34: ='Expenditures 15-22'!K7-SUM('Expenditures 15-22'!G7,'Expenditures 15-22'!I7) -> 258511479.9
A35: ED | B35: Expenditures 15-22, L9, Col K - (G+I) | C35: ='Expenditures 15-22'!B9 -> 1225 | D35: ='Expenditures 15-22'!A9 -> Special Education Programs Pre-K | F35: ='Expenditures 15-22'!K9-SUM('Expenditures 15-22'!G9,'Expenditures 15-22'!I9) -> 103406426.4
A36: ED | B36: Expenditures 15-22, L11, Col K - (G+I) | C36: ='Expenditures 15-22'!B11 -> 1275 | D36: ='Expenditures 15-22'!A11 -> Remedial and Support Programs Pre-K | F36: ='Expenditures 15-22'!K11-SUM('Expenditures 15-22'!G11,'Expenditures 15-22'!I11) -> 13566826
A37: ED | B37: Expenditures 15-22, L12, Col K - (G+I) | C37: ='Expenditures 15-22'!B12 -> 1300 | D37: ='Expenditures 15-22'!A12 -> Adult/Continuing Education Programs | F37: ='Expenditures 15-22'!K12-SUM('Expenditures 15-22'!G12,'Expenditures 15-22'!I12) -> 11622147
A38: ED | B38: Expenditures 15-22, L15, Col K - (G+I) | C38: ='Expenditures 15-22'!B15 -> 1600 | D38: ='Expenditures 15-22'!A15 -> Summer School Programs | F38: ='Expenditures 15-22'!K15-SUM('Expenditures 15-22'!G15,'Expenditures 15-22'!I15) -> 54856469.77
A39: ED | B39: Expenditures 15-22, L20, Col K | C39: ='Expenditures 15-22'!B20 -> 1910 | D39: ='Expenditures 15-22'!A20 -> Rentals | F39: ='Expenditures 15-22'!K20 -> 5189
A40: ED | B40: Expenditures 15-22, L21, Col K | C40: ='Expenditures 15-22'!B21 -> 1911 | D40: ='Expenditures 15-22'!A21 -> Regular K-12 Programs - Private Tuition | F40: ='Expenditures 15-22'!K21 -> 9363481
A41: ED | B41: Expenditures 15-22, L22, Col K | C41: ='Expenditures 15-22'!B22 -> 1912 | D41: ='Expenditures 15-22'!A22 -> Special Education Programs K-12 - Private Tuition | F41: ='Expenditures 15-22'!K22 -> 285187645
A42: ED | B42: Expenditures 15-22, L23, Col K | C42: ='Expenditures 15-22'!B23 -> 1913 | D42: ='Expenditures 15-22'!A23 -> Special Education Programs Pre-K - Tuition | F42: ='Expenditures 15-22'!K23 -> 1743072
A43: ED | B43: Expenditures 15-22, L24, Col K | C43: ='Expenditures 15-22'!B24 -> 1914 | D43: ='Expenditures 15-22'!A24 -> Remedial/Supplemental Programs K-12 - Private Tuition | F43: ='Expenditures 15-22'!K24 -> 255270
A44: ED | B44: Expenditures 15-22, L25, Col K | C44: ='Expenditures 15-22'!B25 -> 1915 | D44: ='Expenditures 15-22'!A25 -> Remedial/Supplemental Programs Pre-K - Private Tuition | F44: ='Expenditures 15-22'!K25 -> 0
A45: ED | B45: Expenditures 15-22, L26, Col K | C45: ='Expenditures 15-22'!B26 -> 1916 | D45: ='Expenditures 15-22'!A26 -> Adult/Continuing Education Programs - Private Tuition | F45: ='Expenditures 15-22'!K26 -> 37515
A46: ED | B46: Expenditures 15-22, L27, Col K | C46: ='Expenditures 15-22'!B27 -> 1917 | D46: ='Expenditures 15-22'!A27 -> CTE Programs - Private Tuition | F46: ='Expenditures 15-22'!K27 -> 1474533
A47: ED | B47: Expenditures 15-22, L28, Col K | C47: ='Expenditures 15-22'!B28 -> 1918 | D47: ='Expenditures 15-22'!A28 -> Interscholastic Programs - Private Tuition | F47: ='Expenditures 15-22'!K28 -> 0
A48: ED | B48: Expenditures 15-22, L29, Col K | C48: ='Expenditures 15-22'!B29 -> 1919 | D48: ='Expenditures 15-22'!A29 -> Summer School Programs - Private Tuition | F48: ='Expenditures 15-22'!K29 -> 978527
A49: ED | B49: Expenditures 15-22, L30, Col K | C49: ='Expenditures 15-22'!B30 -> 1920 | D49: ='Expenditures 15-22'!A30 -> Gifted Programs - Private Tuition | F49: ='Expenditures 15-22'!K30 -> 18386
A50: ED | B50: Expenditures 15-22, L31, Col K | C50: ='Expenditures 15-22'!B31 -> 1921 | D50: ='Expenditures 15-22'!A31 -> Bilingual Programs - Private Tuition | F50: ='Expenditures 15-22'!K31 -> 0
A51: ED | B51: Expenditures 15-22, L32, Col K | C51: ='Expenditures 15-22'!B32 -> 1922 | D51: ='Expenditures 15-22'!A32 -> Truants Alternative/Optional Ed Programs - Private Tuition | F51: ='Expenditures 15-22'!K32 -> 1128041
A52: ED | B52: Expenditures 15-22, L75, Col K - (G+I) | C52: ='Expenditures 15-22'!B75 -> 3000 | D52: Community Services | F52: ='Expenditures 15-22'!K75-('Expenditures 15-22'!G75+'Expenditures 15-22'!I75) -> 154897393
A53: ED | B53: Expenditures 15-22, L102, Col K | C53: ='Expenditures 15-22'!B102 -> 4000 | D53: ='Expenditures 15-22'!A102 -> Total Payments to Other District & Govt Units | F53: ='Expenditures 15-22'!K102 -> 741197906.9
A54: ED | B54: Expenditures 15-22, L114, Col G | C54: - | D54: Capital Outlay | F54: ='Expenditures 15-22'!G114 -> 173421403.5
A55: ED | B55: Expenditures 15-22, L114, Col I | C55: - | D55: Non-Capitalized Equipment | F55: ='Expenditures 15-22'!I114 -> 96966192
A56: O&M | B56: Expenditures 15-22, L130, Col K - (G+I) | C56: ='Expenditures 15-22'!B130 -> 3000 | D56: Community Services | F56: ='Expenditures 15-22'!K130-('Expenditures 15-22'!G130+'Expenditures 15-22'!I130) -> 1829867
A57: O&M | B57: Expenditures 15-22, L138, Col K | C57: ='Expenditures 15-22'!B139 -> 4000 | D57: Payments to Other Govt Units (In State) | F57: ='Expenditures 15-22'!K139 -> 5672478
A58: O&M | B58: Expenditures 15-22, L150, Col G | C58: - | D58: Capital Outlay | F58: ='Expenditures 15-22'!G151 -> 299119187.6
A59: O&M | B59: Expenditures 15-22, L150, Col I | C59: - | D59: Non-Capitalized Equipment | F59: ='Expenditures 15-22'!I151 -> 9906978
A60: DS | B60: Expenditures 15-22, L154, Col K | C60: ='Expenditures 15-22'!B155 -> 4000 | D60: Payments to Other Govt Units (In State) | F60: ='Expenditures 15-22'!K155 -> 0
A61: DS | B61: Expenditures 15-22, L164, Col K | C61: ='Expenditures 15-22'!B170 -> 5300 | D61: Debt Service - Payments of Principal on Long-Term Debt | F61: ='Expenditures 15-22'!K170 -> 1889344526
A62: TR | B62: Expenditures 15-22, L179, Col K - (G+I) | C62: ='Expenditures 15-22'!B185 -> 3000 | D62: Community Services | F62: ='Expenditures 15-22'!K185-('Expenditures 15-22'!G185+'Expenditures 15-22'!I185) -> 1465697
A63: TR | B63: Expenditures 15-22, L190, Col K | C63: ='Expenditures 15-22'!B196 -> 4000 | D63: Payments to Other Govt Units (In State) | F63: ='Expenditures 15-22'!K196 -> 15567144
A64: TR | B64: Expenditures 15-22, L200, Col K | C64: ='Expenditures 15-22'!B206 -> 5300 | D64: Debt Service - Payments of Principal on Long-Term Debt | F64: ='Expenditures 15-22'!K206 -> 14776035
A65: TR | B65: Expenditures 15-22, L204, Col G | C65: - | D65: Capital Outlay | F65: ='Expenditures 15-22'!G210 -> 74031959.75
A66: TR | B66: Expenditures 15-22, L204, Col I | C66: - | D66: Non-Capitalized Equipment | F66: ='Expenditures 15-22'!I210 -> 1504327
A67: MR/SS | B67: Expenditures 15-22, L210, Col K | C67: ='Expenditures 15-22'!B216 -> 1125 | D67: ='Expenditures 15-22'!A216 -> Pre-K Programs | F67: ='Expenditures 15-22'!K216 -> 4791616.09
A68: MR/SS | B68: Expenditures 15-22, L212, Col K | C68: ='Expenditures 15-22'!B218 -> 1225 | D68: ='Expenditures 15-22'!A218 -> Special Education Programs - Pre-K | F68: ='Expenditures 15-22'!K218 -> 3627222
A69: MR/SS | B69: Expenditures 15-22, L214, Col K | C69: ='Expenditures 15-22'!B220 -> 1275 | D69: ='Expenditures 15-22'!A220 -> Remedial and Supplemental Programs - Pre-K | F69: ='Expenditures 15-22'!K220 -> 600478
A70: MR/SS | B70: Expenditures 15-22, L215, Col K | C70: ='Expenditures 15-22'!B221 -> 1300 | D70: ='Expenditures 15-22'!A221 -> Adult/Continuing Education Programs | F70: ='Expenditures 15-22'!K221 -> 705456
A71: MR/SS | B71: Expenditures 15-22, L218, Col K | C71: ='Expenditures 15-22'!B224 -> 1600 | D71: ='Expenditures 15-22'!A224 -> Summer School Programs | F71: ='Expenditures 15-22'!K224 -> 1893851.9
A72: MR/SS | B72: Expenditures 15-22, L274, Col K | C72: ='Expenditures 15-22'!B280 -> 3000 | D72: Community Services | F72: ='Expenditures 15-22'!K280 -> 5728822
A73: MR/SS | B73: Expenditures 15-22, L278, Col K | C73: ='Expenditures 15-22'!B285 -> 4000 | D73: Total Payments to Other Govt Units | F73: ='Expenditures 15-22'!K285 -> 2520532
A74: Tort | B74: Expenditures 15-22, L344, Col K | C74: 4000 | D74: Total Payments to Other Govt Units | F74: ='Expenditures 15-22'!K334 -> 497836
D75: Total Deductions for OEPP Computation (Sum of Lines 18 - 74) | E75: $ | F75: =SUM(F18:F74) -> 4261706472
D76: Total Operating Expenses Regular K-12 (Line 14 minus Line 75) | F76: =(F14-F75) -> 2.472740678e+10
D77: 9 Month ADA | F77: 1838853.89
D78: Estimated OEPP (Line 76 divided by Line 77) | E78: $ | F78: =IF(F77>0,F76/F77," Complete Line 78") -> 13447.18409
A80: PER CAPITA TUITION CHARGE
A82: LESS OFFSETTING RECEIPTS/REVENUES:
A83: TR | B83: Revenues 9-14, L42, Col F | C83: ='Revenues 9-14'!B42 -> 1411 | D83: ='Revenues 9-14'!A42 -> Regular -Transp Fees from Pupils or Parents (In State) | E83: $ | F83: ='Revenues 9-14'!F42 -> 6794979
A84: TR | B84: Revenues 9-14, L44, Col F | C84: ='Revenues 9-14'!B44 -> 1413 | D84: ='Revenues 9-14'!A44 -> Regular - Transp Fees from Other Sources (In State) | F84: ='Revenues 9-14'!F44 -> 990977
A85: TR | B85: Revenues 9-14, L45, Col F | C85: ='Revenues 9-14'!B45 -> 1415 | D85: ='Revenues 9-14'!A45 -> Regular - Transp Fees from Co-curricular Activities (In State) | F85: ='Revenues 9-14'!F45 -> 5114422
A86: TR | B86: Revenues 9-14, L46, Col F | C86: 1416 | D86: ='Revenues 9-14'!A46 -> Regular Transp Fees from Other Sources (Out of State) | F86: ='Revenues 9-14'!F46 -> 42183
A87: TR | B87: Revenues 9-14, L51, Col F | C87: ='Revenues 9-14'!B51 -> 1431 | D87: ='Revenues 9-14'!A51 -> CTE - Transp Fees from Pupils or Parents (In State) | F87: ='Revenues 9-14'!F51 -> 52017
A88: TR | B88: Revenues 9-14, L53, Col F | C88: ='Revenues 9-14'!B53 -> 1433 | D88: ='Revenues 9-14'!A53 -> CTE - Transp Fees from Other Sources (In State) | F88: ='Revenues 9-14'!F53 -> 11321
A89: TR | B89: Revenues 9-14, L54, Col F | C89: ='Revenues 9-14'!B54 -> 1434 | D89: ='Revenues 9-14'!A54 -> CTE - Transp Fees from Other Sources (Out of State) | F89: ='Revenues 9-14'!F54 -> 0
A90: TR | B90: Revenues 9-14, L55, Col F | C90: ='Revenues 9-14'!B55 -> 1441 | D90: ='Revenues 9-14'!A55 -> Special Ed - Transp Fees from Pupils or Parents (In State) | F90: ='Revenues 9-14'!F55 -> 133200
A91: TR | B91: Revenues 9-14, L57, Col F | C91: ='Revenues 9-14'!B57 -> 1443 | D91: ='Revenues 9-14'!A57 -> Special Ed - Transp Fees from Other Sources (In State) | F91: ='Revenues 9-14'!F57 -> 187716
A92: TR | B92: Revenues 9-14, L58, Col F | C92: ='Revenues 9-14'!B58 -> 1444 | D92: ='Revenues 9-14'!A58 -> Special Ed - Transp Fees from Other Sources (Out of State) | F92: ='Revenues 9-14'!F58 -> 0
A93: ED | B93: Revenues 9-14, L75, Col C | C93: 1600 | D93: ='Revenues 9-14'!A75 -> Total Food Service | F93: ='Revenues 9-14'!C75 -> 203065131.6
A94: ED-O&M | B94: Revenues 9-14, L82, Col C,D | C94: 1700 | D94: ='Revenues 9-14'!A82 -> Total District/School Activity Income | F94: =SUM('Revenues 9-14'!C82:D82) -> 119047981.8
A95: ED | B95: Revenues 9-14, L84, Col C | C95: ='Revenues 9-14'!B84 -> 1811 | D95: ='Revenues 9-14'!A84 -> Rentals - Regular Textbooks | F95: ='Revenues 9-14'!C84 -> 98284857.29
A96: ED | B96: Revenues 9-14, L87, Col C | C96: ='Revenues 9-14'!B87 -> 1819 | D96: ='Revenues 9-14'!A87 -> Rentals - Other (Describe & Itemize) | F96: ='Revenues 9-14'!C87 -> 2683545
A97: ED | B97: Revenues 9-14, L88, Col C | C97: ='Revenues 9-14'!B88 -> 1821 | D97: ='Revenues 9-14'!A88 -> Sales - Regular Textbooks | F97: ='Revenues 9-14'!C88 -> 2101789
A98: ED | B98: Revenues 9-14, L91, Col C | C98: ='Revenues 9-14'!B91 -> 1829 | D98: ='Revenues 9-14'!A91 -> Sales - Other (Describe & Itemize) | F98: ='Revenues 9-14'!C91 -> 135061
A99: ED | B99: Revenues 9-14, L92, Col C | C99: ='Revenues 9-14'!B92 -> 1890 | D99: ='Revenues 9-14'!A92 -> Other (Describe & Itemize) | F99: ='Revenues 9-14'!C92 -> 2472347
A100: ED-O&M | B100: Revenues 9-14, L95, Col C,D | C100: ='Revenues 9-14'!B95 -> 1910 | D100: ='Revenues 9-14'!A95 -> Rentals | F100: =SUM('Revenues 9-14'!C95:D95) -> 41629363.36
A101: ED-O&M-TR | B101: Revenues 9-14, L98, Col C,D,F | C101: ='Revenues 9-14'!B98 -> 1940 | D101: ='Revenues 9-14'!A98 -> Services Provided Other Districts | F101: =SUM('Revenues 9-14'!C98:D98,'Revenues 9-14'!F98) -> 13820024
A102: ED-O&M-DS-TR-MR/SS | B102: Revenues 9-14, L104, Col C,D,E,F,G | C102: ='Revenues 9-14'!B104 -> 1991 | D102: ='Revenues 9-14'!A104 -> Payment from Other Districts | F102: =SUM('Revenues 9-14'!C104:G104) -> 8402637
A103: ED | B103: Revenues 9-14, L106, Col C | C103: ='Revenues 9-14'!B106 -> 1993 | D103: ='Revenues 9-14'!A106 -> Other Local Fees | F103: =('Revenues 9-14'!C106) -> 46485943
A104: ED-O&M-TR | B104: Revenues 9-14, L131, Col C,D,F | C104: 3100 | D104: ='Revenues 9-14'!A131 -> Total Special Education | F104: =SUM('Revenues 9-14'!C131:D131,'Revenues 9-14'!F131) -> 383194593.8
A105: ED-O&M-MR/SS | B105: Revenues 9-14, L133, Col C,D,G | C105: 3200 | D105: ='Revenues 9-14'!A140 -> Total Career and Technical Education | F105: =SUM('Revenues 9-14'!C133:D133,'Revenues 9-14'!G133) -> 1146156
A106: ED-MR/SS | B106: Revenues 9-14, L144, Col C,G | C106: 3300 | D106: ='Revenues 9-14'!A144 -> Total Bilingual Ed | F106: =SUM('Revenues 9-14'!C144,'Revenues 9-14'!G144) -> 83334007
A107: ED | B107: Revenues 9-14, L145, Col C | C107: ='Revenues 9-14'!B145 -> 3360 | D107: ='Revenues 9-14'!A145 -> State Free Lunch & Breakfast | F107: ='Revenues 9-14'!C145 -> 7254315.2
A108: ED-O&M-MR/SS | B108: Revenues 9-14, L146, Col C,D,G | C108: ='Revenues 9-14'!B146 -> 3365 | D108: ='Revenues 9-14'!A146 -> School Breakfast Initiative | F108: =SUM('Revenues 9-14'!C146:D146,'Revenues 9-14'!G146) -> 33097
A109: ED-O&M | B109: Revenues 9-14, L147,Col C,D | C109: ='Revenues 9-14'!B147 -> 3370 | D109: ='Revenues 9-14'!A147 -> Driver Education | F109: =SUM('Revenues 9-14'!C147:D147) -> 18661339
A110: ED-O&M-TR-MR/SS | B110: Revenues 9-14, L154, Col C,D,F,G | C110: 3500 | D110: ='Revenues 9-14'!A154 -> Total Transportation | F110: =SUM('Revenues 9-14'!C154:D154,'Revenues 9-14'!F154:G154) -> 680749765.5
A111: ED | B111: Revenues 9-14, L155, Col C | C111: ='Revenues 9-14'!B155 -> 3610 | D111: ='Revenues 9-14'!A155 -> Learning Improvement - Change Grants | F111: ='Revenues 9-14'!C155 -> 75580
A112: ED-O&M-TR-MR/SS | B112: Revenues 9-14, L156, Col C,D,F,G | C112: ='Revenues 9-14'!B156 -> 3660 | D112: ='Revenues 9-14'!A156 -> Scientific Literacy | F112: =SUM('Revenues 9-14'!C156:D156,'Revenues 9-14'!F156:G156) -> 12813
A113: ED-TR-MR/SS | B113: Revenues 9-14, L157, Col C,F,G | C113: ='Revenues 9-14'!B157 -> 3695 | D113: ='Revenues 9-14'!A157 -> Truant Alternative/Optional Education | F113: =SUM('Revenues 9-14'!C157,'Revenues 9-14'!F157:G157) -> 8867581
A114: ED-TR-MR/SS | B114: Revenues 9-14, L159, Col C,F,G | C114: ='Revenues 9-14'!B159 -> 3715 | D114: ='Revenues 9-14'!A159 -> Reading Improvement Block Grant | F114: =SUM('Revenues 9-14'!C159,'Revenues 9-14'!F159:G159) -> 944199
A115: ED-TR-MR/SS | B115: Revenues 9-14, L160, Col C,F,G | C115: ='Revenues 9-14'!B160 -> 3720 | D115: ='Revenues 9-14'!A160 -> Reading Improvement Block Grant - Reading Recovery | F115: =SUM('Revenues 9-14'!C160,'Revenues 9-14'!F160:G160) -> 2669
A116: ED-TR-MR/SS | B116: Revenues 9-14, L161, Col C,F,G | C116: ='Revenues 9-14'!B161 -> 3725 | D116: ='Revenues 9-14'!A161 -> Continued Reading Improvement Block Grant | F116: =SUM('Revenues 9-14'!C161,'Revenues 9-14'!F161:G161) -> 1681
A117: ED-TR-MR/SS | B117: Revenues 9-14, L162, Col C,F,G | C117: ='Revenues 9-14'!B162 -> 3726 | D117: ='Revenues 9-14'!A162 -> Continued Reading Improvement Block Grant (2% Set Aside) | F117: =SUM('Revenues 9-14'!C162,'Revenues 9-14'!F162:G162) -> 0
A118: ED-O&M-TR-MR/SS | B118: Revenues 9-14, L163, Col C,D,F,G | C118: ='Revenues 9-14'!B163 -> 3766 | D118: ='Revenues 9-14'!A163 -> Chicago General Education Block Grant | F118: =SUM('Revenues 9-14'!C163:D163,'Revenues 9-14'!F163:G163) -> 122606950
A119: ED-O&M-TR-MR/SS | B119: Revenues 9-14, L164, Col C,D,F,G | C119: ='Revenues 9-14'!B164 -> 3767 | D119: ='Revenues 9-14'!A164 -> Chicago Educational Services Block Grant | F119: =SUM('Revenues 9-14'!C164:D164,'Revenues 9-14'!F164:G164) -> 0
A120: ED-O&M-DS-TR-MR/SS | B120: Revenues 9-14, L165, Col C,D,E,F,G | C120: ='Revenues 9-14'!B165 -> 3775 | D120: ='Revenues 9-14'!A165 -> School Safety & Educational Improvement Block Grant | F120: =SUM('Revenues 9-14'!C165:G165) -> 15936
A121: ED-O&M-DS-TR-MR/SS | B121: Revenues 9-14, L166, Col C,D,E,F,G | C121: ='Revenues 9-14'!B166 -> 3780 | D121: ='Revenues 9-14'!A166 -> Technology - Learning Technology Centers | F121: =SUM('Revenues 9-14'!C166:G166) -> 151432
A122: ED-TR | B122: Revenues 9-14, L167, Col C,F | C122: ='Revenues 9-14'!B167 -> 3815 | D122: ='Revenues 9-14'!A167 -> State Charter Schools | F122: =SUM('Revenues 9-14'!C167,'Revenues 9-14'!F167) -> 26234
A123: O&M | B123: Revenues 9-14, L170, Col D | C123: ='Revenues 9-14'!B170 -> 3925 | D123: ='Revenues 9-14'!A170 -> School Infrastructure - Maintenance | F123: ='Revenues 9-14'!D170 -> 61379
A124: ED-O&M-DS-TR-MR/SS-Tort | B124: Revenues 9-14, L171, Col C-G,J | C124: ='Revenues 9-14'!B171 -> 3999 | D124: Other Restricted Revenue from State Sources | F124: =SUM('Revenues 9-14'!C171:G171,'Revenues 9-14'!J171) -> 39420572
A125: ED | B125: Revenues 9-14, L180, Col C | C125: ='Revenues 9-14'!B180 -> 4045 | D125: ='Revenues 9-14'!A180 & " (Subtract)" -> Head Start (Subtract) | F125: =SUM(-'Revenues 9-14'!C180) -> -48134935
A126: ED-O&M-TR-MR/SS | B126: Revenues 9-14, L184, Col C,D,F,G | C126: - | D126: =('Revenues 9-14'!A184) -> Total Restricted Grants-In-Aid Received Directly from Federal Govt | F126: =SUM('Revenues 9-14'!C184:D184,'Revenues 9-14'!F184:G184) -> 68068466
A127: ED-O&M-TR-MR/SS | B127: Revenues 9-14, L191, Col C,D,F,G | C127: - | D127: ='Revenues 9-14'!A191 -> Total Title V | F127: =SUM('Revenues 9-14'!C191:D191,'Revenues 9-14'!F191:G191) -> 2338618.77
A128: ED-MR/SS | B128: Revenues 9-14, L201, Col C,G | C128: - | D128: ='Revenues 9-14'!A201 -> Total Food Service | F128: =SUM('Revenues 9-14'!C201,'Revenues 9-14'!G201) -> 601254399.6
A129: ED-O&M-TR-MR/SS | B129: Revenues 9-14, L211, Col C,D,F,G | C129: - | D129: ='Revenues 9-14'!A211 -> Total Title I | F129: =SUM('Revenues 9-14'!C211:D211,'Revenues 9-14'!F211:G211) -> 643167831
A130: ED-O&M-TR-MR/SS | B130: Revenues 9-14, L216, Col C,D,F,G | C130: - | D130: ='Revenues 9-14'!A216 -> Total Title IV | F130: =SUM('Revenues 9-14'!C216:D216,'Revenues 9-14'!F216:G216) -> 21260869
A131: ED-O&M-TR-MR/SS | B131: Revenues 9-14, L220, Col C,D,F,G | C131: ='Revenues 9-14'!B220 -> 4620 | D131: ='Revenues 9-14'!A220 -> Fed - Spec Education - IDEA - Flow Through/Low Incidence | F131: =SUM('Revenues 9-14'!C220:D220,'Revenues 9-14'!F220:G220) -> 351849559.1
A132: ED-O&M-TR-MR/SS | B132: Revenues 9-14, L221, Col C,D,F,G | C132: ='Revenues 9-14'!B221 -> 4625 | D132: ='Revenues 9-14'!A221 -> Fed - Spec Education - IDEA - Room & Board | F132: =SUM('Revenues 9-14'!C221:D221,'Revenues 9-14'!F221:G221) -> 38060147
A133: ED-O&M-TR-MR/SS | B133: Revenues 9-14, L222, Col C,D,F,G | C133: ='Revenues 9-14'!B222 -> 4630 | D133: ='Revenues 9-14'!A222 -> Fed - Spec Education - IDEA - Discretionary | F133: =SUM('Revenues 9-14'!C222:D222,'Revenues 9-14'!F222:G222) -> 47137 | G133: 6297
A134: ED-O&M-TR-MR/SS | B134: Revenues 9-14, L223, Col C,D,F,G | C134: ='Revenues 9-14'!B223 -> 4699 | D134: ='Revenues 9-14'!A223 -> Fed - Spec Education - IDEA - Other (Describe & Itemize) | F134: =SUM('Revenues 9-14'!C223:D223,'Revenues 9-14'!F223:G223) -> 198257
A135: ED-O&M-MR/SS | B135: Revenues 9-14, L228, Col C,D,G | C135: 4700 | D135: ='Revenues 9-14'!A228 -> Total CTE - Perkins | F135: =SUM('Revenues 9-14'!C228:D228,'Revenues 9-14'!G228) -> 15448122 | G135: 6303
A136: ED-O&M-TR-MR/SS-Tort | B136: Revenue-L231, Col C,D,F,G | C136: 4851 | D136: ='Revenues 9-14'!A231 -> ARRA - Title I - Low Income | F136: =SUM('Revenues 9-14'!C231:D231,'Revenues 9-14'!F231:G231) -> 0
A137: ED-O&M-TR-MR/SS-Tort | B137: Revenue-L232, Col C,D,E,F,G,J | C137: 4852 | D137: ='Revenues 9-14'!A232 -> ARRA - Title I - Neglected, Private | F137: =SUM('Revenues 9-14'!C232:G232,'Revenues 9-14'!J232) -> 0
A138: ED-O&M-TR-MR/SS-Tort | B138: Revenue L233, Col C,D,E,F,G,J | C138: 4853 | D138: ='Revenues 9-14'!A233 -> ARRA - Title I - Delinquent, Private | F138: =SUM('Revenues 9-14'!C233:G233,'Revenues 9-14'!J233) -> 0
A139: ED-O&M-TR-MR/SS-Tort | B139: Revenue L234, Col C,D,E,F,G,J | C139: 4854 | D139: ='Revenues 9-14'!A234 -> ARRA A- Title I - School Improvement (Part A) | F139: =SUM('Revenues 9-14'!C234:G234,'Revenues 9-14'!J234) -> 0
A140: ED-O&M-TR-MR/SS-Tort | B140: Revenue L235, Col C,D,E,F,G,J | C140: 4855 | D140: ='Revenues 9-14'!A235 -> ARRA - Title I - School Improvement (Part G) | F140: =SUM('Revenues 9-14'!C235:G235,'Revenues 9-14'!J235) -> 0
A142: ED-O&M-TR-MR/SS-Tort | B142: Revenue L237, Col C,D,E,F,G,J | C142: 4857 | D142: ='Revenues 9-14'!A237 -> ARRA - IDEA - Part B - Flow-Through | F142: =SUM('Revenues 9-14'!C237:G237,'Revenues 9-14'!J237) -> 14557
A143: ED-O&M-TR-MR/SS-Tort | B143: Revenue L238, Col C,D,E,F,G,J | C143: 4860 | D143: ='Revenues 9-14'!A238 -> ARRA - Title IID - Technology-Formula | F143: =SUM('Revenues 9-14'!C238:G238,'Revenues 9-14'!J238) -> 0
A144: ED-O&M-TR-MR/SS-Tort | B144: Revenue L239, Col C,D,E,F,G,J | C144: 4861 | D144: ='Revenues 9-14'!A239 -> ARRA - Title IID - Technology-Competitive | F144: =SUM('Revenues 9-14'!C239:G239,'Revenues 9-14'!J239) -> 0
A145: ED-O&M-TR-MR/SS | B145: Revenue L240, Col C, D,F,G | C145: 4862 | D145: ='Revenues 9-14'!A240 -> ARRA - McKinney - Vento Homeless Education | F145: =SUM('Revenues 9-14'!C240:D240,'Revenues 9-14'!F240:G240) -> 0
A146: ED-O&M-TR-MR/SS-Tort | B146: Revenue L244, Col C,D,E,F,G,J | C146: 4866 | D146: ='Revenues 9-14'!A244 -> Qualified Zone Academy Bond Tax Credits | F146: =SUM('Revenues 9-14'!C244:G244,'Revenues 9-14'!J244) -> 2737113
A147: ED-O&M-TR-MR/SS-Tort | B147: Revenue L245, Col C,D,E,F,G,J | C147: 4867 | D147: ='Revenues 9-14'!A245 -> Qualified School Construction Bond Credits | F147: =SUM('Revenues 9-14'!C245:G245,'Revenues 9-14'!J245) -> 13525768
A148: ED-O&M-TR-MR/SS-Tort | B148: Revenue L246, Col C,D,E,F,G,J | C148: 4868 | D148: ='Revenues 9-14'!A246 -> Build America Bond Tax Credits | F148: =SUM('Revenues 9-14'!C246:G246,'Revenues 9-14'!J246) -> 1770463
A149: ED-O&M-TR-MR/SS-Tort | B149: Revenue L247, Col C,D,E,F,G,J | C149: 4869 | D149: ='Revenues 9-14'!A247 -> Build America Bond Interest Reimbursement | F149: =SUM('Revenues 9-14'!C247:G247,'Revenues 9-14'!J247) -> 34505654
A150: ED-O&M-TR-MR/SS-Tort | B150: Revenue L249, Col C,D,E,F,G,J | C150: 4871 | D150: ='Revenues 9-14'!A249 -> Other ARRA Funds - II | F150: =SUM('Revenues 9-14'!C249:G249,'Revenues 9-14'!J249) -> 0
A151: ED-O&M-TR-MR/SS-Tort | B151: Revenue L250, Col C,D,E,F,G,J | C151: 4872 | D151: ='Revenues 9-14'!A250 -> Other ARRA Funds - III | F151: =SUM('Revenues 9-14'!C250:G250,'Revenues 9-14'!J250) -> 0
A152: ED-O&M-TR-MR/SS-Tort | B152: Revenue L251, Col C,D,E,F,G,J | C152: 4873 | D152: ='Revenues 9-14'!A251 -> Other ARRA Funds - IV | F152: =SUM('Revenues 9-14'!C251:G251,'Revenues 9-14'!J251) -> 0
A153: ED-O&M-TR-MR/SS-Tort | B153: Revenue L252, Col C,D,E,F,G,J | C153: 4874 | D153: ='Revenues 9-14'!A252 -> Other ARRA Funds - V | F153: =SUM('Revenues 9-14'!C252:G252,'Revenues 9-14'!J252) -> 0
A154: ED-O&M-TR-MR/SS-Tort | B154: Revenue L253, Col C,D,E,F,G,J | C154: 4875 | D154: ='Revenues 9-14'!A253 -> ARRA - Early Childhood
A155: ED-O&M-TR-MR/SS-Tort | B155: Revenue L254, Col C,D,E,F,G,J | C155: 4876 | D155: ='Revenues 9-14'!A254 -> Other ARRA Funds VII | F155: =SUM('Revenues 9-14'!C254:G254,'Revenues 9-14'!J254) -> 0
A156: ED-O&M-TR-MR/SS-Tort | B156: Revenue L255, Col C,D,E,F,G,J | C156: 4877 | D156: ='Revenues 9-14'!A255 -> Other ARRA Funds VIII | F156: =SUM('Revenues 9-14'!C255:G255,'Revenues 9-14'!J255) -> 0
A157: ED-O&M-TR-MR/SS-Tort | B157: Revenue L256, Col C,D,E,F,G,J | C157: 4878 | D157: ='Revenues 9-14'!A256 -> Other ARRA Funds IX | F157: =SUM('Revenues 9-14'!C256:G256,'Revenues 9-14'!J256) -> 0
A158: ED-O&M-TR-MR/SS-Tort | B158: Revenue L257, Col C,D,E,F,G,J | C158: 4879 | D158: ='Revenues 9-14'!A257 -> Other ARRA Funds X | F158: =SUM('Revenues 9-14'!C257:G257,'Revenues 9-14'!J257) -> 0
A159: ED-O&M-TR-MR/SS-Tort | B159: Revenue L258, Col C,D,E,F,G,J | C159: 4880 | D159: ='Revenues 9-14'!A258 -> Other ARRA Funds XI | F159: =SUM('Revenues 9-14'!C258:G258,'Revenues 9-14'!J258) -> 0
A160: ED-O&M-TR-MR/SS-Tort | B160: Revenue Adjustments within range of C232 thru J259 | C160: 4800 | D160: Total ARRA Program Adjustments | F160: =SUM(F136:F159) -> 52553555
A161: ED | B161: Revenues 9-14, L260, Col C | C161: 4901 | D161: Race to the Top | F161: ='Revenues 9-14'!C260 -> 54797
A162: ED-O&M-TR-MR/SS | B162: Revenues 9-14, L261, Col C,D,F,G | C162: 4902 | D162: Race to the Top-Preschool Expansion Grant | F162: =SUM('Revenues 9-14'!C261:D261,'Revenues 9-14'!F261:G261) -> 11827464
A163: ED,O&M,MR/SS | B163: Revenues 9-14, L262, Col C,D,G | C163: ='Revenues 9-14'!B262 -> 4904 | D163: ='Revenues 9-14'!A262 -> Advanced Placement Fee/International Baccalaureate | F163: =SUM('Revenues 9-14'!C262:D262,'Revenues 9-14'!G262) -> 9684
A164: ED-TR-MR/SS | B164: Revenues 9-14, L263, Col C,F,G | C164: ='Revenues 9-14'!B263 -> 4905 | D164: ='Revenues 9-14'!A263 -> Emergency Immigrant Assistance | F164: =SUM('Revenues 9-14'!C263,'Revenues 9-14'!F263:G263) -> 1331582 | G164: 6306
A165: ED-TR-MR/SS | B165: Revenues 9-14, L264, Col C,F,G | C165: ='Revenues 9-14'!B264 -> 4909 | D165: ='Revenues 9-14'!A264 -> Title III - English Language Acquisition | F165: =SUM('Revenues 9-14'!C264,'Revenues 9-14'!F264:G264) -> 25207736
A166: ED-TR-MR/SS | B166: Revenues 9-14, L265, Col C,F,G | C166: ='Revenues 9-14'!B265 -> 4910 | D166: ='Revenues 9-14'!A265 -> Learn & Serve America | F166: =SUM('Revenues 9-14'!C265,'Revenues 9-14'!F265:G265) -> 54013
A167: ED-O&M-TR-MR/SS | B167: Revenues 9-14, L266, Col C,D,F,G | C167: ='Revenues 9-14'!B266 -> 4920 | D167: ='Revenues 9-14'!A266 -> McKinney Education for Homeless Children | F167: =SUM('Revenues 9-14'!C266:D266,'Revenues 9-14'!F266:G266) -> 1864272
A168: ED-O&M-TR-MR/SS | B168: Revenues 9-14, L267, Col C,D,F,G | C168: ='Revenues 9-14'!B267 -> 4930 | D168: ='Revenues 9-14'!A267 -> Title II - Eisenhower Professional Development Formula | F168: =SUM('Revenues 9-14'!C267:D267,'Revenues 9-14'!F267:G267) -> 1650086
A169: ED-O&M-TR-MR/SS | B169: Revenues 9-14, L268, Col C,D,F,G | C169: ='Revenues 9-14'!B268 -> 4932 | D169: ='Revenues 9-14'!A268 -> Title II - Teacher Quality | F169: =SUM('Revenues 9-14'!C268:D268,'Revenues 9-14'!F268:G268) -> 72146912.99
A170: ED-O&M-TR-MR/SS | B170: Revenues 9-14, L269, Col C,D,F,G | C170: ='Revenues 9-14'!B269 -> 4960 | D170: ='Revenues 9-14'!A269 -> Federal Charter Schools | F170: =SUM('Revenues 9-14'!C269:D269,'Revenues 9-14'!F269:G269) -> 213723
A171: ED-O&M-TR-MR/SS | B171: Revenues 9-14, L270, Col C,D,F,G | C171: ='Revenues 9-14'!B270 -> 4991 | D171: ='Revenues 9-14'!A270 -> Medicaid Matching Funds - Administrative Outreach | F171: =SUM('Revenues 9-14'!C270:D270,'Revenues 9-14'!F270:G270) -> 39798275.89 | G171: 6320
A172: ED-O&M-TR-MR/SS | B172: Revenues 9-14, L271, Col C,D,F,G | C172: ='Revenues 9-14'!B271 -> 4992 | D172: ='Revenues 9-14'!A271 -> Medicaid Matching Funds - Fee-for-Service Program | F172: =SUM('Revenues 9-14'!C271:D271,'Revenues 9-14'!F271:G271) -> 108844120.9
A173: ED-O&M-TR-MR/SS | B173: Revenues 9-14, L272, Col C,D,F,G | C173: ='Revenues 9-14'!B272 -> 4999 | F173: =SUM('Revenues 9-14'!C272:D272,'Revenues 9-14'!F272:G272) -> 31322173
A174: ED-TR-MR/SS | B174: Revenues (Part of EBF Payment) | C174: 3100 | D174: Special Education Contributions from EBF Funds **
A175: ED-MR/SS | B175: Revenues (Part of EBF Payment) | C175: 3300 | D175: English Learning (Bilingual) Contributions from EBF Funds ***
D177: Total Allowance for PCTC Computation | E177: $ | F177: =SUM(F83:F135,F160:F175) -> 3938452661
D178: Net Operating Expense for PCTC Computation | F178: ='PCTC-OEPP 28-29'!F76-F177 -> 2.078895412e+10
D179: Total Depreciation Allowance (from page 27, Col I) | F179: ='Cap Outlay Deprec 27'!I18 -> 1334579806
D180: Total Allowance for PCTC Computation | F180: =F178+F179 -> 2.212353392e+10
D181: 9 Mo ADA | F181: ='PCTC-OEPP 28-29'!F77 -> 1838853.89
D182: Total Estimated PCTC | E182: $ | F182: =F180/F181 -> 12031.15378 | G182: 6323
G183: 6326

Sheet AFR18 (hidden)
C1: ORIGINAL ADDRESS | D1: DIFFERENCE | E1: WARNING
A2: i | B2: 99-999-9999-99 | C2: =COVER!A13 -> 99-999-9999-99
A3: i | B3: 2017-18 State Totals - SD Only | C3: =COVER!A17 -> 2017-18 State Totals - SD Only
A4: i
A5: i | B5: X
A6: i
A7: i | B7: X | F7: Vlookup from worksheet Column F | G7: variance between mine without ESTL and Rich's | I7: Add Adjusted back in to compare to new data run 5/7 | J7: Add column F and J | L7: New State Totals Data Pull 5/7 | N7: Variance between my State Totals and new Data 5/7 | O7: Variance B - L | P7: Crete Monee AFR | Q7: Data pull 5/7 + Crete = New State Totals | R7: variance comparison: J + P - Q
A8: 1 | D8: =B8-C8 -> 0 | E8: =IF((D8 = 0),"OK",IF((D8<-5),"CHECK ME!",IF((D8>5),"Check Me!","OK"))) -> OK
A9: 2 | D9: 0 | E9: OK
A10: 3 | D10: 0 | E10: OK
A11: 4 | B11: 4463715231 | C11: ='Assets-Liab 5-6'!C6 -> 4463715231 | D11: 0 | E11: OK | F11: 4448063366 | G11: 0 | I11: 1317518 | J11: 4449380884 | L11: 4449380884 | N11: =SUM(J11-L11) -> 0 | O11: 0 | P11: =VLOOKUP(A11,'Data Pull totals 5-8'!A:C,3,0) -> 14334347 | Q11: 4463715231 | R11: =SUM(L11+P11-Q11) -> 0
A12: 5 | B12: 0 | D12: 0 | E12: OK | F12: 0 | G12: 0 | I12: 0 | J12: 0 | L12: 0 | N12: =SUM(J12-L12) -> 0 | O12: 0 | P12: 0 | Q12: 0 | R12: =SUM(L12+P12-Q12) -> 0
A13: 6 | B13: 0 | D13: 0 | E13: OK | F13: 0 | G13: 0 | I13: 0 | J13: 0 | L13: 0 | N13: 0 | O13: 0 | P13: 0 | Q13: 0 | R13: 0
A14: 7 | B14: 0 | D14: 0 | E14: OK | F14: 0 | G14: 0 | I14: 0 | J14: 0 | L14: 0 | N14: 0 | O14: 0 | P14: 0 | Q14: 0 | R14: 0
A15: 8 | B15: 0 | D15: 0 | E15: OK | F15: 0 | G15: 0 | I15: 0 | J15: 0 | L15: 0 | N15: 0 | O15: 0 | P15: 0 | Q15: 0 | R15: 0
A16: 9 | B16: 0 | D16: 0 | E16: OK | F16: 0 | G16: 0 | I16: 0 | J16: 0 | L16: 0 | N16: 0 | O16: 0 | P16: 0 | Q16: 0 | R16: 0
A17: 10 | B17: 0 | D17: 0 | E17: OK | F17: 0 | G17: 0 | I17: 0 | J17: 0 | L17: 0 | N17: 0 | O17: 0 | P17: 0 | Q17: 0 | R17: 0
A18: 11 | B18: 10965222 | C18: ='Assets-Liab 5-6'!C10 -> 10965222 | D18: 0 | E18: OK | F18: 10965222 | G18: 0 | I18: 0 | J18: 10965222 | L18: 10965222 | N18: 0 | O18: 0 | P18: =VLOOKUP(A18,'Data Pull totals 5-8'!A:C,3,0) -> 0 | Q18: 10965222 | R18: 0
A19: 12 | B19: 2085627941 | C19: ='Assets-Liab 5-6'!C5 -> 2085627941 | D19: 0 | E19: OK | F19: 2085627941 | G19: 0 | I19: 0 | J19: 2085627941 | L19: 2085627941 | N19: 0 | O19: 0 | P19: =VLOOKUP(A19,'Data Pull totals 5-8'!A:C,3,0) -> 0 | Q19: 2085627941 | R19: 0
A20: 13 | B20: 0 | D20: 0 | E20: OK | F20: 0 | G20: 0 | I20: 0 | J20: 0 | L20: 0 | N20: 0 | O20: 0 | P20: 0 | Q20: 0 | R20: 0
A21: 14 | B21: 0 | D21: 0 | E21: OK | F21: 0 | G21: 0 | I21: 0 | J21: 0 | L21: 0 | N21: 0 | O21: 0 | P21: 0 | Q21: 0 | R21: 0
A22: 15 | B22: 8487467 | C22: ='Assets-Liab 5-6'!C12 -> 8487467 | D22: 0 | E22: OK | F22: 8487467 | G22: 0 | I22: 0 | J22: 8487467 | L22: 8487467 | N22: 0 | O22: 0 | P22: =VLOOKUP(A22,'Data Pull totals 5-8'!A:C,3,0) -> 0 | Q22: 8487467 | R22: 0
A23: 16 | B23: 1.363495227e+10 | C23: ='Assets-Liab 5-6'!C13 -> 1.363495227e+10 | D23: 0 | E23: OK | F23: 1.355036095e+10 | G23: 0 | I23: 53962316 | J23: 1.360432326e+10 | L23: 1.360432326e+10 | N23: 0 | O23: 0 | P23: =VLOOKUP(A23,'Data Pull totals 5-8'!A:C,3,0) -> 30629001 | Q23: 1.363495227e+10 | R23: 0
A24: 17 | B24: 0 | D24: 0 | E24: OK | F24: 0 | G24: 0 | I24: 0 | J24: 0 | L24: 0 | N24: 0 | O24: 0 | P24: 0 | Q24: 0 | R24: 0
A25: 18 | B25: 0 | D25: 0 | E25: OK | F25: 0 | G25: 0 | I25: 0 | J25: 0 | L25: 0 | N25: 0 | O25: 0 | P25: 0 | Q25: 0 | R25: 0
A26: 19 | B26: 0 | D26: 0 | E26: OK | F26: 0 | G26: 0 | I26: 0 | J26: 0 | L26: 0 | N26: 0 | O26: 0 | P26: 0 | Q26: 0 | R26: 0
A27: 20 | B27: 0 | D27: 0 | E27: OK | F27: 0 | G27: 0 | I27: 0 | J27: 0 | L27: 0 | N27: 0 | O27: 0 | P27: 0 | Q27: 0 | R27: 0
A28: 21 | B28: 0 | D28: 0 | E28: OK | F28: 0 | G28: 0 | I28: 0 | J28: 0 | L28: 0 | N28: 0 | O28: 0 | P28: 0 | Q28: 0 | R28: 0
A29: 22 | B29: 0 | D29: 0 | E29: OK | F29: 0 | G29: 0 | I29: 0 | J29: 0 | L29: 0 | N29: 0 | O29: 0 | P29: 0 | Q29: 0 | R29: 0
A30: 23 | B30: 0 | D30: 0 | E30: OK | F30: 0 | G30: 0 | I30: 0 | J30: 0 | L30: 0 | N30: 0 | O30: 0 | P30: 0 | Q30: 0 | R30: 0
A31: 24 | B31: 0 | D31: 0 | E31: OK | F31: 0 | G31: 0 | I31: 0 | J31: 0 | L31: 0 | N31: 0 | O31: 0 | P31: 0 | Q31: 0 | R31: 0
A32: 25 | B32: 114934456 | C32: ='Assets-Liab 5-6'!C31 -> 114934456 | D32: 0 | E32: OK | F32: 113203890 | G32: 0 | I32: 0 | J32: 113203890 | L32: 113203890 | N32: 0 | O32: 0 | P32: =VLOOKUP(A32,'Data Pull totals 5-8'!A:C,3,0) -> 1730566 | Q32: 114934456 | R32: 0
A33: 26 | B33: 0 | D33: 0 | E33: OK | F33: 0 | G33: 0 | I33: 0 | J33: 0 | L33: 0 | N33: 0 | O33: 0 | P33: 0 | Q33: 0 | R33: 0
A34: 27 | B34: 4530643413 | C34: ='Assets-Liab 5-6'!C32 -> 4530643413 | D34: 0 | E34: OK | F34: 4513626912 | G34: 0 | I34: 2900055 | J34: 4516526967 | L34: 4516526967 | N34: 0 | O34: 0 | P34: =VLOOKUP(A34,'Data Pull totals 5-8'!A:C,3,0) -> 14116446 | Q34: 4530643413 | R34: 0
A35: 28 | B35: 0 | D35: 0 | E35: OK | F35: 0 | G35: 0 | I35: 0 | J35: 0 | L35: 0 | N35: 0 | O35: 0 | P35: 0 | Q35: 0 | R35: 0
A36: 29 | B36: 0 | D36: 0 | E36: OK | F36: 0 | G36: 0 | I36: 0 | J36: 0 | L36: 0 | N36: 0 | O36: 0 | P36: 0 | Q36: 0 | R36: 0
A37: 30 | B37: 6123509399 | C37: ='Assets-Liab 5-6'!C34 -> 6123509399 | D37: 0 | E37: OK | F37: 6096164847 | G37: 0 | I37: 7739318 | J37: 6103904165 | L37: 6103904165 | N37: 0 | O37: 0 | P37: =VLOOKUP(A37,'Data Pull totals 5-8'!A:C,3,0) -> 19605234 | Q37: 6123509399 | R37: 0
A38: 31 | B38: 7266244448 | C38: ='Assets-Liab 5-6'!C39 -> 7266244448 | D38: 0 | E38: OK | F38: 7211838169 | G38: 0 | I38: 43452423 | J38: 7255290592 | L38: 7255290592 | N38: 0 | O38: 0 | P38: =VLOOKUP(A38,'Data Pull totals 5-8'!A:C,3,0) -> 10953856 | Q38: 7266244448 | R38: 0
A39: 32 | B39: 1.363495227e+10 | C39: ='Assets-Liab 5-6'!C41 -> 1.363495227e+10 | D39: 0 | E39: OK | F39: 1.355036095e+10 | G39: 1.907348633e-06 | I39: 53962316 | J39: 1.360432326e+10 | L39: 1.360432326e+10 | N39: 0 | O39: 0 | P39: =VLOOKUP(A39,'Data Pull totals 5-8'!A:C,3,0) -> 30629001 | Q39: 1.363495227e+10 | R39: 0
A40: 33 | B40: 0 | D40: 0 | E40: OK | F40: 0 | G40: 0 | I40: 0 | J40: 0 | L40: 0 | N40: 0 | O40: 0 | P40: 0 | Q40: 0 | R40: 0
A41: 34 | B41: 0 | D41: 0 | E41: OK | F41: 0 | G41: 0 | I41: 0 | J41: 0 | L41: 0 | N41: 0 | O41: 0 | P41: 0 | Q41: 0 | R41: 0
A42: 35 | B42: 0 | D42: 0 | E42: OK | F42: 0 | G42: 0 | I42: 0 | J42: 0 | L42: 0 | N42: 0 | O42: 0 | P42: 0 | Q42: 0 | R42: 0
A43: 36 | B43: 451223371 | C43: ='Assets-Liab 5-6'!D6 -> 451223371 | D43: 0 | E43: OK | F43: 448761911 | G43: 0 | I43: 329379 | J43: 449091290 | L43: 449091290 | N43: 0 | O43: 0 | P43: =VLOOKUP(A43,'Data Pull totals 5-8'!A:C,3,0) -> 2132081 | Q43: 451223371 | R43: 0
A44: 37 | B44: 0 | D44: 0 | E44: OK | F44: 0 | G44: 0 | I44: 0 | J44: 0 | L44: 0 | N44: 0 | O44: 0 | P44: 0 | Q44: 0 | R44: 0
A45: 38 | B45: 0 | D45: 0 | E45: OK | F45: 0 | G45: 0 | I45: 0 | J45: 0 | L45: 0 | N45: 0 | O45: 0 | P45: 0 | Q45: 0 | R45: 0
A46: 39 | B46: 0 | D46: 0 | E46: OK | F46: 0 | G46: 0 | I46: 0 | J46: 0 | L46: 0 | N46: 0 | O46: 0 | P46: 0 | Q46: 0 | R46: 0
A47: 40 | B47: 0 | D47: 0 | E47: OK | F47: 0 | G47: 0 | I47: 0 | J47: 0 | L47: 0 | N47: 0 | O47: 0 | P47: 0 | Q47: 0 | R47: 0
A48: 41 | B48: 0 | D48: 0 | E48: OK | F48: 0 | G48: 0 | I48: 0 | J48: 0 | L48: 0 | N48: 0 | O48: 0 | P48: 0 | Q48: 0 | R48: 0
A49: 42 | B49: 0 | D49: 0 | E49: OK | F49: 0 | G49: 0 | I49: 0 | J49: 0 | L49: 0 | N49: 0 | O49: 0 | P49: 0 | Q49: 0 | R49: 0
A50: 43 | B50: 98822 | C50: ='Assets-Liab 5-6'!D10 -> 98822 | D50: 0 | E50: OK | F50: 98822 | G50: 0 | I50: 0 | J50: 98822 | L50: 98822 | N50: 0 | O50: 0 | P50: =VLOOKUP(A50,'Data Pull totals 5-8'!A:C,3,0) -> 0 | Q50: 98822 | R50: 0
A51: 44 | B51: 352727831 | C51: ='Assets-Liab 5-6'!D5 -> 352727831 | D51: 0 | E51: OK | F51: 352727831 | G51: 0 | I51: 0 | J51: 352727831 | L51: 352727831 | N51: 0 | O51: 0 | P51: =VLOOKUP(A51,'Data Pull totals 5-8'!A:C,3,0) -> 0 | Q51: 352727831 | R51: 0
A52: 45 | B52: 0 | D52: 0 | E52: OK | F52: 0 | G52: 0 | I52: 0 | J52: 0 | L52: 0 | N52: 0 | O52: 0 | P52: 0 | Q52: 0 | R52: 0
A53: 46 | B53: 0 | D53: 0 | E53: OK | F53: 0 | G53: 0 | I53: 0 | J53: 0 | L53: 0 | N53: 0 | O53: 0 | P53: 0 | Q53: 0 | R53: 0
A54: 47 | B54: 817216 | C54: ='Assets-Liab 5-6'!D12 -> 817216 | D54: 0 | E54: OK | F54: 809521 | G54: 0 | I54: 0 | J54: 809521 | L54: 809521 | N54: 0 | O54: 0 | P54: =VLOOKUP(A54,'Data Pull totals 5-8'!A:C,3,0) -> 7695 | Q54: 817216 | R54: 0
A55: 48 | B55: 2010879848 | C55: ='Assets-Liab 5-6'!D13 -> 2010879848 | D55: 0 | E55: OK | F55: 2002695131 | G55: 0 | I55: 1694294 | J55: 2004389425 | L55: 2004389425 | N55: 0 | O55: 0 | P55: =VLOOKUP(A55,'Data Pull totals 5-8'!A:C,3,0) -> 6490423 | Q55: 2010879848 | R55: 0
A56: 49 | B56: 0 | D56: 0 | E56: OK | F56: 0 | G56: 0 | I56: 0 | J56: 0 | L56: 0 | N56: 0 | O56: 0 | P56: 0 | Q56: 0 | R56: 0
A57: 50 | B57: 0 | D57: 0 | E57: OK | F57: 0 | G57: 0 | I57: 0 | J57: 0 | L57: 0 | N57: 0 | O57: 0 | P57: 0 | Q57: 0 | R57: 0
A58: 51 | B58: 0 | D58: 0 | E58: OK | F58: 0 | G58: 0 | I58: 0 | J58: 0 | L58: 0 | N58: 0 | O58: 0 | P58: 0 | Q58: 0 | R58: 0
A59: 52 | B59: 0 | D59: 0 | E59: OK | F59: 0 | G59: 0 | I59: 0 | J59: 0 | L59: 0 | N59: 0 | O59: 0 | P59: 0 | Q59: 0 | R59: 0
A60: 53 | B60: 0 | D60: 0 | E60: OK | F60: 0 | G60: 0 | I60: 0 | J60: 0 | L60: 0 | N60: 0 | O60: 0 | P60: 0 | Q60: 0 | R60: 0
A61: 54 | B61: 0 | D61: 0 | E61: OK | F61: 0 | G61: 0 | I61: 0 | J61: 0 | L61: 0 | N61: 0 | O61: 0 | P61: 0 | Q61: 0 | R61: 0
A62: 55 | B62: 0 | D62: 0 | E62: OK | F62: 0 | G62: 0 | I62: 0 | J62: 0 | L62: 0 | N62: 0 | O62: 0 | P62: 0 | Q62: 0 | R62: 0
A63: 56 | B63: 109272 | C63: ='Assets-Liab 5-6'!D31 -> 109272 | D63: 0 | E63: OK | F63: 109272 | G63: 0 | I63: 0 | J63: 109272 | L63: 109272 | N63: 0 | O63: 0 | P63: =VLOOKUP(A63,'Data Pull totals 5-8'!A:C,3,0) -> 0 | Q63: 109272 | R63: 0
A64: 57 | B64: 0 | D64: 0 | E64: OK | F64: 0 | G64: 0 | I64: 0 | J64: 0 | L64: 0 | N64: 0 | O64: 0 | P64: 0 | Q64: 0 | R64: 0
A65: 58 | B65: 535113520 | C65: ='Assets-Liab 5-6'!D32 -> 535113520 | D65: 0 | E65: OK | F65: 532786195 | G65: 0 | I65: 210583 | J65: 532996778 | L65: 532996778 | N65: 0 | O65: 0 | P65: =VLOOKUP(A65,'Data Pull totals 5-8'!A:C,3,0) -> 2116742 | Q65: 535113520 | R65: 0
A66: 59 | B66: 0 | D66: 0 | E66: OK | F66: 0 | G66: 0 | I66: 0 | J66: 0 | L66: 0 | N66: 0 | O66: 0 | P66: 0 | Q66: 0 | R66: 0
A67: 60 | B67: 0 | D67: 0 | E67: OK | F67: 0 | G67: 0 | I67: 0 | J67: 0 | L67: 0 | N67: 0 | O67: 0 | P67: 0 | Q67: 0 | R67: 0
A68: 61 | B68: 647818486 | C68: ='Assets-Liab 5-6'!D34 -> 647818486 | D68: 0 | E68: OK | F68: 645023376 | G68: 0 | I68: 383022 | J68: 645406398 | L68: 645406398 | N68: 0 | O68: 0 | P68: =VLOOKUP(A68,'Data Pull totals 5-8'!A:C,3,0) -> 2412088 | Q68: 647818486 | R68: 0
A69: 62 | B69: 1157229643 | C69: ='Assets-Liab 5-6'!D39 -> 1157229643 | D69: 0 | E69: OK | F69: 1153151308 | G69: 0 | I69: 0 | J69: 1153151308 | L69: 1153151308 | N69: 0 | O69: 0 | P69: =VLOOKUP(A69,'Data Pull totals 5-8'!A:C,3,0) -> 4078335 | Q69: 1157229643 | R69: 0
A70: 63 | B70: 2010879848 | C70: ='Assets-Liab 5-6'!D41 -> 2010879848 | D70: 0 | E70: OK | F70: 2002695131 | G70: 0 | I70: 1694294 | J70: 2004389425 | L70: 2004389425 | N70: 0 | O70: 0 | P70: =VLOOKUP(A70,'Data Pull totals 5-8'!A:C,3,0) -> 6490423 | Q70: 2010879848 | R70: 0
A71: 64 | B71: 0 | D71: 0 | E71: OK | F71: 0 | G71: 0 | I71: 0 | J71: 0 | L71: 0 | N71: 0 | O71: 0 | P71: 0 | Q71: 0 | R71: 0
A72: 65 | B72: 458957980 | C72: ='Assets-Liab 5-6'!E6 -> 458957980 | D72: =B72-C72 -> 0 | E72: =IF((D72 = 0),"OK",IF((D72<-5),"CHECK ME!",IF((D72>5),"Check Me!","OK"))) -> OK | F72: 451900114 | G72: 0 | I72: 1138861 | J72: 453038975 | L72: 453038975 | N72: 0 | O72: 0 | P72: =VLOOKUP(A72,'Data Pull totals 5-8'!A:C,3,0) -> 5919005 | Q72: 458957980 | R72: 0
A73: 66 | B73: 0 | D73: 0 | E73: OK | F73: 0 | G73: 0 | I73: 0 | J73: 0 | L73: 0 | N73: 0 | O73: 0 | P73: 0 | Q73: 0 | R73: 0
A74: 67 | B74: 0 | D74: 0 | E74: OK | F74: 0 | G74: 0 | I74: 0 | J74: 0 | L74: 0 | N74: 0 | O74: 0 | P74: 0 | Q74: 0 | R74: 0
A75: 68 | B75: 192660768 | C75: ='Assets-Liab 5-6'!E5 -> 192660768 | D75: 0 | E75: OK | F75: 192660768 | G75: 0 | I75: 0 | J75: 192660768 | L75: 192660768 | N75: 0 | O75: 0 | P75: =VLOOKUP(A75,'Data Pull totals 5-8'!A:C,3,0) -> 0 | Q75: 192660768 | R75: 0
A76: 69 | B76: 13754738 | C76: ='Assets-Liab 5-6'!E12 -> 13754738 | D76: 0 | E76: OK | F76: 13184428 | G76: 0 | I76: 570310 | J76: 13754738 | L76: 13754738 | N76: =SUM(J76-L76) -> 0 | O76: 0 | P76: =VLOOKUP(A76,'Data Pull totals 5-8'!A:C,3,0) -> 0 | Q76: 13754738 | R76: =SUM(L76+P76-Q76) -> 0
A77: 70 | B77: 2129344853 | C77: ='Assets-Liab 5-6'!E13 -> 2129344853 | D77: 0 | E77: OK | F77: 2111629580 | G77: 0 | I77: 7370322 | J77: 2118999902 | L77: 2118999902 | N77: 0 | O77: 0 | P77: =VLOOKUP(A77,'Data Pull totals 5-8'!A:C,3,0) -> 10344951 | Q77: 2129344853 | R77: 0
A78: 71 | B78: 0 | D78: 0 | E78: OK | F78: 0 | G78: 0 | I78: 0 | J78: 0 | L78: 0 | N78: 0 | O78: 0 | P78: 0 | Q78: 0 | R78: 0
A79: 72 | B79: 0 | D79: 0 | E79: OK | F79: 0 | G79: 0 | I79: 0 | J79: 0 | L79: 0 | N79: 0 | O79: 0 | P79: 0 | Q79: 0 | R79: 0
A80: 73 | B80: 466225040 | C80: ='Assets-Liab 5-6'!E32 -> 466225040 | D80: 0 | E80: OK | F80: 459620511 | G80: 0 | I80: 728106 | J80: 460348617 | L80: 460348617 | N80: 0 | O80: 0 | P80: =VLOOKUP(A80,'Data Pull totals 5-8'!A:C,3,0) -> 5876423 | Q80: 466225040 | R80: 0
A81: 74 | B81: 0 | D81: 0 | E81: OK | F81: 0 | G81: 0 | I81: 0 | J81: 0 | L81: 0 | N81: 0 | O81: 0 | P81: 0 | Q81: 0 | R81: 0
A82: 75 | B82: 0 | D82: 0 | E82: OK | F82: 0 | G82: 0 | I82: 0 | J82: 0 | L82: 0 | N82: 0 | O82: 0 | P82: 0 | Q82: 0 | R82: 0
A83: 76 | B83: 0 | D83: 0 | E83: OK | F83: 0 | G83: 0 | I83: 0 | J83: 0 | L83: 0 | N83: 0 | O83: 0 | P83: 0 | Q83: 0 | R83: 0
A84: 77 | B84: 0 | D84: 0 | E84: OK | F84: 0 | G84: 0 | I84: 0 | J84: 0 | L84: 0 | N84: 0 | O84: 0 | P84: 0 | Q84: 0 | R84: 0
A85: 78 | B85: 475182762 | C85: ='Assets-Liab 5-6'!E34 -> 475182762 | D85: 0 | E85: OK | F85: 468578233 | G85: 0 | I85: 728106 | J85: 469306339 | L85: 469306339 | N85: 0 | O85: 0 | P85: =VLOOKUP(A85,'Data Pull totals 5-8'!A:C,3,0) -> 5876423 | Q85: 475182762 | R85: 0
A86: 79 | B86: 617255521.9 | C86: ='Assets-Liab 5-6'!E39 -> 617255521.9 | D86: 0 | E86: OK | F86: 611029366.9 | G86: 0 | I86: 1757627 | J86: 612786993.9 | L86: 612786993.9 | N86: 0 | O86: 0 | P86: =VLOOKUP(A86,'Data Pull totals 5-8'!A:C,3,0) -> 4468528 | Q86: 617255521.9 | R86: 0
A87: 80 | B87: 2129344853 | C87: ='Assets-Liab 5-6'!E41 -> 2129344853 | D87: 0 | E87: OK | F87: 2111629580 | G87: 0 | I87: 7370322 | J87: 2118999902 | L87: 2118999902 | N87: 0 | O87: 0 | P87: =VLOOKUP(A87,'Data Pull totals 5-8'!A:C,3,0) -> 10344951 | Q87: 2129344853 | R87: 0
A88: 81 | B88: 0 | D88: 0 | E88: OK | F88: 0 | G88: 0 | I88: 0 | J88: 0 | L88: 0 | N88: 0 | O88: 0 | P88: 0 | Q88: 0 | R88: 0
A89: 82 | B89: 0 | D89: 0 | E89: OK | F89: 0 | G89: 0 | I89: 0 | J89: 0 | L89: 0 | N89: 0 | O89: 0 | P89: 0 | Q89: 0 | R89: 0
A90: 83 | B90: 0 | D90: 0 | E90: OK | F90: 0 | G90: 0 | I90: 0 | J90: 0 | L90: 0 | N90: 0 | O90: 0 | P90: 0 | Q90: 0 | R90: 0
A91: 84 | B91: 161275392 | C91: ='Assets-Liab 5-6'!F6 -> 161275392 | D91: 0 | E91: OK | F91: 159191282 | G91: 0 | I91: 131752 | J91: 159323034 | L91: 159323034 | N91: 0 | O91: 0 | P91: =VLOOKUP(A91,'Data Pull totals 5-8'!A:C,3,0) -> 1952358 | Q91: 161275392 | R91: 0
A92: 85 | B92: 0 | D92: 0 | E92: OK | F92: 0 | G92: 0 | I92: 0 | J92: 0 | L92: 0 | N92: 0 | O92: 0 | P92: 0 | Q92: 0 | R92: 0
A93: 86 | B93: 0 | D93: 0 | E93: OK | F93: 0 | G93: 0 | I93: 0 | J93: 0 | L93: 0 | N93: 0 | O93: 0 | P93: 0 | Q93: 0 | R93: 0
A94: 87 | B94: 0 | D94: 0 | E94: OK | F94: 0 | G94: 0 | I94: 0 | J94: 0 | L94: 0 | N94: 0 | O94: 0 | P94: 0 | Q94: 0 | R94: 0
A95: 88 | B95: 0 | D95: 0 | E95: OK | F95: 0 | G95: 0 | I95: 0 | J95: 0 | L95: 0 | N95: 0 | O95: 0 | P95: 0 | Q95: 0 | R95: 0
A96: 89 | B96: 0 | D96: 0 | E96: OK | F96: 0 | G96: 0 | I96: 0 | J96: 0 | L96: 0 | N96: 0 | O96: 0 | P96: 0 | Q96: 0 | R96: 0
A97: 90 | B97: 0 | D97: 0 | E97: OK | F97: 0 | G97: 0 | I97: 0 | J97: 0 | L97: 0 | N97: 0 | O97: 0 | P97: 0 | Q97: 0 | R97: 0
A98: 91 | B98: 0 | C98: ='Assets-Liab 5-6'!F10 -> 0 | D98: 0 | E98: OK | F98: 0 | G98: 0 | I98: 0 | J98: 0 | L98: 0 | N98: 0 | O98: 0 | P98: 0 | Q98: 0 | R98: 0
A99: 92 | B99: 210291838 | C99: ='Assets-Liab 5-6'!F5 -> 210291838 | D99: 0 | E99: OK | F99: 210291838 | G99: 0 | I99: 0 | J99: 210291838 | L99: 210291838 | N99: 0 | O99: 0 | P99: =VLOOKUP(A99,'Data Pull totals 5-8'!A:C,3,0) -> 0 | Q99: 210291838 | R99: 0
A100: 93 | B100: 0 | D100: 0 | E100: OK | F100: 0 | G100: 0 | I100: 0 | J100: 0 | L100: 0 | N100: 0 | O100: 0 | P100: 0 | Q100: 0 | R100: 0
A101: 94 | B101: 0 | D101: 0 | E101: OK | F101: 0 | G101: 0 | I101: 0 | J101: 0 | L101: 0 | N101: 0 | O101: 0 | P101: 0 | Q101: 0 | R101: 0
A102: 95 | B102: 188063 | C102: ='Assets-Liab 5-6'!F12 -> 188063 | D102: 0 | E102: OK | F102: 188063 | G102: 0 | I102: 0 | J102: 188063 | L102: 188063 | N102: 0 | O102: 0 | P102: =VLOOKUP(A102,'Data Pull totals 5-8'!A:C,3,0) -> 0 | Q102: 188063 | R102: 0
A103: 96 | B103: 1219805434 | C103: ='Assets-Liab 5-6'!F13 -> 1219805434 | D103: 0 | E103: OK | F103: 1206381385 | G103: 0 | I103: 2519922 | J103: 1208901307 | L103: 1208901307 | N103: 0 | O103: 0 | P103: =VLOOKUP(A103,'Data Pull totals 5-8'!A:C,3,0) -> 10904127 | Q103: 1219805434 | R103: 0
A104: 97 | B104: 0 | D104: 0 | E104: OK | F104: 0 | G104: 0 | I104: 0 | J104: 0 | L104: 0 | N104: 0 | O104: 0 | P104: 0 | Q104: 0 | R104: 0
A105: 98 | B105: 0 | D105: 0 | E105: OK | F105: 0 | G105: 0 | I105: 0 | J105: 0 | L105: 0 | N105: 0 | O105: 0 | P105: 0 | Q105: 0 | R105: 0
A106: 99 | B106: 0 | D106: 0 | E106: OK | F106: 0 | G106: 0 | I106: 0 | J106: 0 | L106: 0 | N106: 0 | O106: 0 | P106: 0 | Q106: 0 | R106: 0
A107: 100 | B107: 0 | D107: 0 | E107: OK | F107: 0 | G107: 0 | I107: 0 | J107: 0 | L107: 0 | N107: 0 | O107: 0 | P107: 0 | Q107: 0 | R107: 0
A108: 101 | B108: 0 | D108: 0 | E108: OK | F108: 0 | G108: 0 | I108: 0 | J108: 0 | L108: 0 | N108: 0 | O108: 0 | P108: 0 | Q108: 0 | R108: 0
A109: 102 | B109: 0 | D109: 0 | E109: OK | F109: 0 | G109: 0 | I109: 0 | J109: 0 | L109: 0 | N109: 0 | O109: 0 | P109: 0 | Q109: 0 | R109: 0
A110: 103 | B110: 661028 | C110: ='Assets-Liab 5-6'!F31 -> 661028 | D110: 0 | E110: OK | F110: 660741 | G110: 0 | I110: 0 | J110: 660741 | L110: 660741 | N110: 0 | O110: 0 | P110: =VLOOKUP(A110,'Data Pull totals 5-8'!A:C,3,0) -> 287 | Q110: 661028 | R110: 0
A111: 104 | B111: 0 | D111: 0 | E111: OK | F111: 0 | G111: 0 | I111: 0 | J111: 0 | L111: 0 | N111: 0 | O111: 0 | P111: 0 | Q111: 0 | R111: 0
A112: 105 | B112: 300149230 | C112: ='Assets-Liab 5-6'!F32 -> 300149230 | D112: 0 | E112: OK | F112: 297476991 | G112: 0 | I112: 733927 | J112: 298210918 | L112: 298210918 | N112: 0 | O112: 0 | P112: =VLOOKUP(A112,'Data Pull totals 5-8'!A:C,3,0) -> 1938312 | Q112: 300149230 | R112: 0
A113: 106 | B113: 0 | D113: 0 | E113: OK | F113: 0 | G113: 0 | I113: 0 | J113: 0 | L113: 0 | N113: 0 | O113: 0 | P113: 0 | Q113: 0 | R113: 0
A114: 107 | B114: 0 | D114: 0 | E114: OK | F114: 0 | G114: 0 | I114: 0 | J114: 0 | L114: 0 | N114: 0 | O114: 0 | P114: 0 | Q114: 0 | R114: 0
A115: 108 | B115: 359145224 | C115: ='Assets-Liab 5-6'!F34 -> 359145224 | D115: 0 | E115: OK | F115: 356214133 | G115: 0 | I115: 858330 | J115: 357072463 | L115: 357072463 | N115: 0 | O115: 0 | P115: =VLOOKUP(A115,'Data Pull totals 5-8'!A:C,3,0) -> 2072761 | Q115: 359145224 | R115: 0
A116: 109 | B116: 693404368.9 | C116: ='Assets-Liab 5-6'!F39 -> 693404368.9 | D116: 0 | E116: OK | F116: 684573002.9 | G116: 0 | I116: 0 | J116: 684573002.9 | L116: 684573002.9 | N116: 0 | O116: 0 | P116: =VLOOKUP(A116,'Data Pull totals 5-8'!A:C,3,0) -> 8831366 | Q116: 693404368.9 | R116: 0
A117: 110 | B117: 1219805434 | C117: ='Assets-Liab 5-6'!F41 -> 1219805434 | D117: 0 | E117: OK | F117: 1206381385 | G117: 0 | I117: 2519922 | J117: 1208901307 | L117: 1208901307 | N117: 0 | O117: 0 | P117: =VLOOKUP(A117,'Data Pull totals 5-8'!A:C,3,0) -> 10904127 | Q117: 1219805434 | R117: 0
A118: 111 | B118: 0 | C118: 0 | D118: 0 | E118: OK | F118: 0 | G118: 0 | I118: 0 | J118: 0 | L118: 0 | N118: 0 | O118: 0 | P118: 0 | Q118: 0 | R118: 0
A119: 112 | B119: 159360043 | C119: ='Assets-Liab 5-6'!G6 -> 159360043 | D119: 0 | E119: OK | F119: 156883975 | G119: 0 | I119: 1526804 | J119: 158410779 | L119: 158410779 | N119: 0 | O119: 0 | P119: =VLOOKUP(A119,'Data Pull totals 5-8'!A:C,3,0) -> 949264 | Q119: 159360043 | R119: 0
A120: 113 | B120: 0 | D120: 0 | E120: OK | F120: 0 | G120: 0 | I120: 0 | J120: 0 | L120: 0 | N120: 0 | O120: 0 | P120: 0 | Q120: 0 | R120: 0
A121: 114 | B121: 0 | C121: 0 | D121: 0 | E121: OK | F121: 0 | G121: 0 | I121: 0 | J121: 0 | L121: 0 | N121: 0 | O121: 0 | P121: 0 | Q121: 0 | R121: 0
A122: 115 | B122: 0 | C122: 0 | D122: 0 | E122: OK | F122: 0 | G122: 0 | I122: 0 | J122: 0 | L122: 0 | N122: 0 | O122: 0 | P122: 0 | Q122: 0 | R122: 0
A123: 116 | B123: 109853870 | C123: ='Assets-Liab 5-6'!G5 -> 109853870 | D123: 0 | E123: OK | F123: 109853870 | G123: 0 | I123: 0 | J123: 109853870 | L123: 109853870 | N123: 0 | O123: 0 | P123: =VLOOKUP(A123,'Data Pull totals 5-8'!A:C,3,0) -> 0 | Q123: 109853870 | R123: 0
A124: 117 | B124: 0 | C124: 0 | D124: 0 | E124: OK | F124: 0 | G124: 0 | I124: 0 | J124: 0 | L124: 0 | N124: 0 | O124: 0 | P124: 0 | Q124: 0 | R124: 0
A125: 118 | B125: 22713 | C125: ='Assets-Liab 5-6'!G12 -> 22713 | D125: 0 | E125: OK | F125: 22713 | G125: 0 | I125: 0 | J125: 22713 | L125: 22713 | N125: 0 | O125: 0 | P125: =VLOOKUP(A125,'Data Pull totals 5-8'!A:C,3,0) -> 0 | Q125: 22713 | R125: 0
A126: 119 | B126: 664059480.5 | C126: ='Assets-Liab 5-6'!G13 -> 664059480.5 | D126: 0 | E126: OK | F126: 656662298.5 | G126: 0 | I126: 4937924 | J126: 661600222.5 | L126: 661600222.5 | N126: 0 | O126: 0 | P126: =VLOOKUP(A126,'Data Pull totals 5-8'!A:C,3,0) -> 2459258 | Q126: 664059480.5 | R126: 0
A127: 120 | B127: 0 | D127: 0 | E127: OK | F127: 0 | G127: 0 | I127: 0 | J127: 0 | L127: 0 | N127: 0 | O127: 0 | P127: 0 | Q127: 0 | R127: 0
A128: 121 | B128: 0 | D128: 0 | E128: OK | F128: 0 | G128: 0 | I128: 0 | J128: 0 | L128: 0 | N128: 0 | O128: 0 | P128: 0 | Q128: 0 | R128: 0
A129: 122 | B129: 0 | D129: 0 | E129: OK | F129: 0 | G129: 0 | I129: 0 | J129: 0 | L129: 0 | N129: 0 | O129: 0 | P129: 0 | Q129: 0 | R129: 0
A130: 123 | B130: 5603839 | C130: ='Assets-Liab 5-6'!G31 -> 5603839 | D130: 0 | E130: OK | F130: 5439635 | G130: 0 | I130: 0 | J130: 5439635 | L130: 5439635 | N130: 0 | O130: 0 | P130: =VLOOKUP(A130,'Data Pull totals 5-8'!A:C,3,0) -> 164204 | Q130: 5603839 | R130: 0
A131: 124 | B131: 175968464 | C131: ='Assets-Liab 5-6'!G32 -> 175968464 | D131: 0 | E131: OK | F131: 174049901 | G131: 0 | I131: 976129 | J131: 175026030 | L131: 175026030 | N131: 0 | O131: 0 | P131: =VLOOKUP(A131,'Data Pull totals 5-8'!A:C,3,0) -> 942434 | Q131: 175968464 | R131: 0
A132: 125 | B132: 0 | D132: 0 | E132: OK | F132: 0 | G132: 0 | I132: 0 | J132: 0 | L132: 0 | N132: 0 | O132: 0 | P132: 0 | Q132: 0 | R132: 0
A133: 126 | B133: 0 | D133: 0 | E133: OK | F133: 0 | G133: 0 | I133: 0 | J133: 0 | L133: 0 | N133: 0 | O133: 0 | P133: 0 | Q133: 0 | R133: 0
A134: 127 | B134: 195905778 | C134: ='Assets-Liab 5-6'!G34 -> 195905778 | D134: 0 | E134: OK | F134: 193822964 | G134: 0 | I134: 976129 | J134: 194799093 | L134: 194799093 | N134: 0 | O134: 0 | P134: =VLOOKUP(A134,'Data Pull totals 5-8'!A:C,3,0) -> 1106685 | Q134: 195905778 | R134: 0
A135: 128 | B135: 322261703.6 | C135: ='Assets-Liab 5-6'!G39 -> 322261703.6 | D135: 0 | E135: OK | F135: 318868766.6 | G135: -5.960464478e-08 | I135: 2040364 | J135: 320909130.6 | L135: 320909130.6 | N135: 0 | O135: 0 | P135: =VLOOKUP(A135,'Data Pull totals 5-8'!A:C,3,0) -> 1352573 | Q135: 322261703.6 | R135: 0
A136: 129 | B136: 664059480.6 | C136: ='Assets-Liab 5-6'!G41 -> 664059480.6 | D136: =B136-C136 -> 0 | E136: =IF((D136 = 0),"OK",IF((D136<-5),"CHECK ME!",IF((D136>5),"Check Me!","OK"))) -> OK | F136: 656662298.6 | G136: 0 | I136: 4937924 | J136: 661600222.6 | L136: 661600222.6 | N136: 0 | O136: 0 | P136: =VLOOKUP(A136,'Data Pull totals 5-8'!A:C,3,0) -> 2459258 | Q136: 664059480.6 | R136: 0
A137: 130 | B137: 0 | D137: 0 | E137: OK | F137: 0 | G137: 0 | I137: 0 | J137: 0 | L137: 0 | N137: 0 | O137: 0 | P137: 0 | Q137: 0 | R137: 0
A138: 131 | B138: 0 | D138: 0 | E138: OK | F138: 0 | G138: 0 | I138: 0 | J138: 0 | L138: 0 | N138: 0 | O138: 0 | P138: 0 | Q138: 0 | R138: 0
A139: 132 | B139: 0 | D139: 0 | E139: OK | F139: 0 | G139: 0 | I139: 0 | J139: 0 | L139: 0 | N139: 0 | O139: 0 | P139: 0 | Q139: 0 | R139: 0
A140: 133 | B140: 0 | D140: 0 | E140: OK | F140: 0 | G140: 0 | I140: 0 | J140: 0 | L140: 0 | N140: =SUM(J140-L140) -> 0 | O140: 0 | P140: 0 | Q140: 0 | R140: =SUM(L140+P140-Q140) -> 0
A141: 134 | B141: 0 | D141: 0 | E141: OK | F141: 0 | G141: 0 | I141: 0 | J141: 0 | L141: 0 | N141: 0 | O141: 0 | P141: 0 | Q141: 0 | R141: 0
A142: 135 | B142: 0 | D142: 0 | E142: OK | F142: 0 | G142: 0 | I142: 0 | J142: 0 | L142: 0 | N142: 0 | O142: 0 | P142: 0 | Q142: 0 | R142: 0
A143: 136 | B143: 0 | D143: 0 | E143: OK | F143: 0 | G143: 0 | I143: 0 | J143: 0 | L143: 0 | N143: 0 | O143: 0 | P143: 0 | Q143: 0 | R143: 0
A144: 137 | B144: 0 | C144: ='Assets-Liab 5-6'!H10 -> 0 | D144: 0 | E144: OK | F144: 0 | G144: 0 | I144: 0 | J144: 0 | L144: 0 | N144: 0 | O144: 0 | P144: 0 | Q144: 0 | R144: 0
A145: 138 | B145: 459294954 | C145: ='Assets-Liab 5-6'!H5 -> 459294954 | D145: 0 | E145: OK | F145: 459294954 | G145: 0 | I145: 0 | J145: 459294954 | L145: 459294954 | N145: 0 | O145: 0 | P145: =VLOOKUP(A145,'Data Pull totals 5-8'!A:C,3,0) -> 0 | Q145: 459294954 | R145: 0
A146: 139 | B146: 0 | D146: 0 | E146: OK | F146: 0 | G146: 0 | I146: 0 | J146: 0 | L146: 0 | N146: 0 | O146: 0 | P146: 0 | Q146: 0 | R146: 0
A147: 140 | B147: 0 | D147: 0 | E147: OK | F147: 0 | G147: 0 | I147: 0 | J147: 0 | L147: 0 | N147: 0 | O147: 0 | P147: 0 | Q147: 0 | R147: 0
A148: 141 | B148: 34045 | C148: ='Assets-Liab 5-6'!H12 -> 34045 | D148: 0 | E148: OK | F148: 34045 | G148: 0 | I148: 0 | J148: 34045 | L148: 34045 | N148: 0 | O148: 0 | P148: =VLOOKUP(A148,'Data Pull totals 5-8'!A:C,3,0) -> 0 | Q148: 34045 | R148: 0
A149: 142 | B149: 2640275571 | C149: ='Assets-Liab 5-6'!H13 -> 2640275571 | D149: 0 | E149: OK | F149: 2635375119 | G149: 0 | I149: 1386767 | J149: 2636761886 | L149: 2636761886 | N149: 0 | O149: 0 | P149: =VLOOKUP(A149,'Data Pull totals 5-8'!A:C,3,0) -> 3513685 | Q149: 2640275571 | R149: 0
A150: 143 | B150: 0 | D150: 0 | E150: OK | F150: 0 | G150: 0 | I150: 0 | J150: 0 | L150: 0 | N150: 0 | O150: 0 | P150: 0 | Q150: 0 | R150: 0
A151: 144 | B151: 0 | D151: 0 | E151: OK | F151: 0 | G151: 0 | I151: 0 | J151: 0 | L151: 0 | N151: 0 | O151: 0 | P151: 0 | Q151: 0 | R151: 0
A152: 145 | B152: 9113 | C152: ='Assets-Liab 5-6'!H31 -> 9113 | D152: 0 | E152: OK | F152: 9113 | G152: 0 | I152: 0 | J152: 9113 | L152: 9113 | N152: 0 | O152: 0 | P152: =VLOOKUP(A152,'Data Pull totals 5-8'!A:C,3,0) -> 0 | Q152: 9113 | R152: 0
A153: 146 | B153: 0 | D153: 0 | E153: OK | F153: 0 | G153: 0 | I153: 0 | J153: 0 | L153: 0 | N153: 0 | O153: 0 | P153: 0 | Q153: 0 | R153: 0
A154: 147 | B154: 17494828 | C154: ='Assets-Liab 5-6'!H32 -> 17494828 | D154: 0 | E154: OK | F154: 17494828 | G154: 0 | I154: 0 | J154: 17494828 | L154: 17494828 | N154: 0 | O154: 0 | P154: =VLOOKUP(A154,'Data Pull totals 5-8'!A:C,3,0) -> 0 | Q154: 17494828 | R154: 0
A155: 148 | B155: 0 | D155: 0 | E155: OK | F155: 0 | G155: 0 | I155: 0 | J155: 0 | L155: 0 | N155: 0 | O155: 0 | P155: 0 | Q155: 0 | R155: 0
A156: 149 | B156: 0 | D156: 0 | E156: OK | F156: 0 | G156: 0 | I156: 0 | J156: 0 | L156: 0 | N156: 0 | O156: 0 | P156: 0 | Q156: 0 | R156: 0
A157: 150 | B157: 188343915 | C157: ='Assets-Liab 5-6'!H34 -> 188343915 | D157: 0 | E157: OK | F157: 187253893 | G157: 0 | I157: 0 | J157: 187253893 | L157: 187253893 | N157: 0 | O157: 0 | P157: =VLOOKUP(A157,'Data Pull totals 5-8'!A:C,3,0) -> 1090022 | Q157: 188343915 | R157: 0
A158: 151 | B158: 1212270301 | C158: ='Assets-Liab 5-6'!H39 -> 1212270301 | D158: 0 | E158: OK | F158: 1209846638 | G158: 0 | I158: 0 | J158: 1209846638 | L158: 1209846638 | N158: 0 | O158: 0 | P158: =VLOOKUP(A158,'Data Pull totals 5-8'!A:C,3,0) -> 2423663 | Q158: 1212270301 | R158: 0
A159: 152 | B159: 2640275571 | C159: ='Assets-Liab 5-6'!H41 -> 2640275571 | D159: 0 | E159: OK | F159: 2635375119 | G159: 0 | I159: 1386767 | J159: 2636761886 | L159: 2636761886 | N159: 0 | O159: 0 | P159: =VLOOKUP(A159,'Data Pull totals 5-8'!A:C,3,0) -> 3513685 | Q159: 2640275571 | R159: 0
A160: 153 | B160: 0 | D160: 0 | E160: OK | F160: 0 | G160: 0 | I160: 0 | J160: 0 | L160: 0 | N160: 0 | O160: 0 | P160: 0 | Q160: 0 | R160: 0
A161: 154 | B161: 0 | D161: 0 | E161: OK | F161: 0 | G161: 0 | I161: 0 | J161: 0 | L161: 0 | N161: 0 | O161: 0 | P161: 0 | Q161: 0 | R161: 0
A162: 155 | B162: 0 | D162: 0 | E162: OK | F162: 0 | G162: 0 | I162: 0 | J162: 0 | L162: 0 | N162: 0 | O162: 0 | P162: 0 | Q162: 0 | R162: 0
A163: 156 | B163: 0 | D163: 0 | E163: OK | F163: 0 | G163: 0 | I163: 0 | J163: 0 | L163: 0 | N163: 0 | O163: 0 | P163: 0 | Q163: 0 | R163: 0
A164: 157 | B164: 0 | D164: 0 | E164: OK | F164: 0 | G164: 0 | I164: 0 | J164: 0 | L164: 0 | N164: 0 | O164: 0 | P164: 0 | Q164: 0 | R164: 0
A165: 158 | B165: 0 | D165: 0 | E165: OK | F165: 0 | G165: 0 | I165: 0 | J165: 0 | L165: 0 | N165: 0 | O165: 0 | P165: 0 | Q165: 0 | R165: 0
A166: 159 | B166: 0 | D166: 0 | E166: OK | F166: 0 | G166: 0 | I166: 0 | J166: 0 | L166: 0 | N166: 0 | O166: 0 | P166: 0 | Q166: 0 | R166: 0
A167: 160 | B167: 0 | D167: 0 | E167: OK | F167: 0 | G167: 0 | I167: 0 | J167: 0 | L167: 0 | N167: 0 | O167: 0 | P167: 0 | Q167: 0 | R167: 0
A168: 161 | B168: 0 | D168: 0 | E168: OK | F168: 0 | G168: 0 | I168: 0 | J168: 0 | L168: 0 | N168: 0 | O168: 0 | P168: 0 | Q168: 0 | R168: 0
A169: 162 | B169: 0 | D169: 0 | E169: OK | F169: 0 | G169: 0 | I169: 0 | J169: 0 | L169: 0 | N169: 0 | O169: 0 | P169: 0 | Q169: 0 | R169: 0
A170: 163 | B170: 0 | D170: 0 | E170: OK | F170: 0 | G170: 0 | I170: 0 | J170: 0 | L170: 0 | N170: 0 | O170: 0 | P170: 0 | Q170: 0 | R170: 0
A171: 164 | B171: 0 | D171: 0 | E171: OK | F171: 0 | G171: 0 | I171: 0 | J171: 0 | L171: 0 | N171: 0 | O171: 0 | P171: 0 | Q171: 0 | R171: 0
A172: 165 | B172: 0 | D172: 0 | E172: OK | F172: 0 | G172: 0 | I172: 0 | J172: 0 | L172: 0 | N172: 0 | O172: 0 | P172: 0 | Q172: 0 | R172: 0
A173: 166 | B173: 0 | D173: 0 | E173: OK | F173: 0 | G173: 0 | I173: 0 | J173: 0 | L173: 0 | N173: 0 | O173: 0 | P173: 0 | Q173: 0 | R173: 0
A174: 167 | B174: 0 | D174: 0 | E174: OK | F174: 0 | G174: 0 | I174: 0 | J174: 0 | L174: 0 | N174: 0 | O174: 0 | P174: 0 | Q174: 0 | R174: 0
A175: 168 | B175: 0 | D175: 0 | E175: OK | F175: 0 | G175: 0 | I175: 0 | J175: 0 | L175: 0 | N175: 0 | O175: 0 | P175: 0 | Q175: 0 | R175: 0
A176: 169 | B176: 0 | D176: 0 | E176: OK | F176: 0 | G176: 0 | I176: 0 | J176: 0 | L176: 0 | N176: 0 | O176: 0 | P176: 0 | Q176: 0 | R176: 0
A177: 170 | B177: 0 | D177: 0 | E177: OK | F177: 0 | G177: 0 | I177: 0 | J177: 0 | L177: 0 | N177: 0 | O177: 0 | P177: 0 | Q177: 0 | R177: 0
A178: 171 | B178: 0 | D178: 0 | E178: OK | F178: 0 | G178: 0 | I178: 0 | J178: 0 | L178: 0 | N178: 0 | O178: 0 | P178: 0 | Q178: 0 | R178: 0
A179: 172 | B179: 0 | D179: 0 | E179: OK | F179: 0 | G179: 0 | I179: 0 | J179: 0 | L179: 0 | N179: 0 | O179: 0 | P179: 0 | Q179: 0 | R179: 0
A180: 173 | B180: 0 | D180: 0 | E180: OK | F180: 0 | G180: 0 | I180: 0 | J180: 0 | L180: 0 | N180: 0 | O180: 0 | P180: 0 | Q180: 0 | R180: 0
A181: 174 | B181: 0 | D181: 0 | E181: OK | F181: 0 | G181: 0 | I181: 0 | J181: 0 | L181: 0 | N181: 0 | O181: 0 | P181: 0 | Q181: 0 | R181: 0
A182: 175 | B182: 0 | D182: 0 | E182: OK | F182: 0 | G182: 0 | I182: 0 | J182: 0 | L182: 0 | N182: 0 | O182: 0 | P182: 0 | Q182: 0 | R182: 0
A183: 176 | B183: 0 | D183: 0 | E183: OK | F183: 0 | G183: 0 | I183: 0 | J183: 0 | L183: 0 | N183: 0 | O183: 0 | P183: 0 | Q183: 0 | R183: 0
A184: 177 | B184: 0 | D184: 0 | E184: OK | F184: 0 | G184: 0 | I184: 0 | J184: 0 | L184: 0 | N184: 0 | O184: 0 | P184: 0 | Q184: 0 | R184: 0
A185: 178 | B185: 0 | D185: 0 | E185: OK | F185: 0 | G185: 0 | I185: 0 | J185: 0 | L185: 0 | N185: 0 | O185: 0 | P185: 0 | Q185: 0 | R185: 0
A186: 179 | B186: 0 | D186: 0 | E186: OK | F186: 0 | G186: 0 | I186: 0 | J186: 0 | L186: 0 | N186: 0 | O186: 0 | P186: 0 | Q186: 0 | R186: 0
A187: 180 | B187: 0 | D187: 0 | E187: OK | F187: 0 | G187: 0 | I187: 0 | J187: 0 | L187: 0 | N187: 0 | O187: 0 | P187: 0 | Q187: 0 | R187: 0
A188: 181 | B188: 0 | D188: 0 | E188: OK | F188: 0 | G188: 0 | I188: 0 | J188: 0 | L188: 0 | N188: 0 | O188: 0 | P188: 0 | Q188: 0 | R188: 0
A189: 182 | B189: 0 | D189: 0 | E189: OK | F189: 0 | G189: 0 | I189: 0 | J189: 0 | L189: 0 | N189: 0 | O189: 0 | P189: 0 | Q189: 0 | R189: 0
A190: 183 | B190: 0 | D190: 0 | E190: OK | F190: 0 | G190: 0 | I190: 0 | J190: 0 | L190: 0 | N190: 0 | O190: 0 | P190: 0 | Q190: 0 | R190: 0
A191: 184 | B191: 0 | D191: 0 | E191: OK | F191: 0 | G191: 0 | I191: 0 | J191: 0 | L191: 0 | N191: 0 | O191: 0 | P191: 0 | Q191: 0 | R191: 0
A192: 185 | B192: 0 | D192: 0 | E192: OK | F192: 0 | G192: 0 | I192: 0 | J192: 0 | L192: 0 | N192: 0 | O192: 0 | P192: 0 | Q192: 0 | R192: 0
A193: 186 | B193: 0 | D193: 0 | E193: OK | F193: 0 | G193: 0 | I193: 0 | J193: 0 | L193: 0 | N193: 0 | O193: 0 | P193: 0 | Q193: 0 | R193: 0
A194: 187 | B194: 0 | D194: 0 | E194: OK | F194: 0 | G194: 0 | I194: 0 | J194: 0 | L194: 0 | N194: 0 | O194: 0 | P194: 0 | Q194: 0 | R194: 0
A195: 188 | B195: 0 | D195: 0 | E195: OK | F195: 0 | G195: 0 | I195: 0 | J195: 0 | L195: 0 | N195: 0 | O195: 0 | P195: 0 | Q195: 0 | R195: 0
A196: 189 | B196: 0 | D196: 0 | E196: OK | F196: 0 | G196: 0 | I196: 0 | J196: 0 | L196: 0 | N196: 0 | O196: 0 | P196: 0 | Q196: 0 | R196: 0
A197: 190 | B197: 0 | D197: 0 | E197: OK | F197: 0 | G197: 0 | I197: 0 | J197: 0 | L197: 0 | N197: 0 | O197: 0 | P197: 0 | Q197: 0 | R197: 0
A198: 191 | B198: 0 | D198: 0 | E198: OK | F198: 0 | G198: 0 | I198: 0 | J198: 0 | L198: 0 | N198: 0 | O198: 0 | P198: 0 | Q198: 0 | R198: 0
A199: 192 | B199: 0 | D199: 0 | E199: OK | F199: 0 | G199: 0 | I199: 0 | J199: 0 | L199: 0 | N199: 0 | O199: 0 | P199: 0 | Q199: 0 | R199: 0
A200: 193 | B200: 0 | D200: =B200-C200 -> 0 | E200: =IF((D200 = 0),"OK",IF((D200<-5),"CHECK ME!",IF((D200>5),"Check Me!","OK"))) -> OK | F200: 0 | G200: 0 | I200: 0 | J200: 0 | L200: 0 | N200: 0 | O200: 0 | P200: 0 | Q200: 0 | R200: 0
... 4300 more rows

Sheet Crete Monee Totals 5-8 (hidden)
A1: txtFieldNum | B1: 56099201U26
A2: 4 | B2: 14334347
A3: 16 | B3: 30629001
A4: 25 | B4: 1730566
A5: 27 | B5: 14116446
A6: 30 | B6: 19605234
A7: 31 | B7: 10953856
A8: 32 | B8: 30629001
A9: 36 | B9: 2132081
A10: 47 | B10: 7695
A11: 48 | B11: 6490423
A12: 58 | B12: 2116742
A13: 61 | B13: 2412088
A14: 62 | B14: 4078335
A15: 63 | B15: 6490423
A16: 65 | B16: 5919005
A17: 70 | B17: 10344951
A18: 73 | B18: 5876423
A19: 78 | B19: 5876423
A20: 79 | B20: 4468528
A21: 80 | B21: 10344951
A22: 84 | B22: 1952358
A23: 96 | B23: 10904127
A24: 103 | B24: 287
A25: 105 | B25: 1938312
A26: 108 | B26: 2072761
A27: 109 | B27: 8831366
A28: 110 | B28: 10904127
A29: 112 | B29: 949264
A30: 119 | B30: 2459258
A31: 123 | B31: 164204
A32: 124 | B32: 942434
A33: 127 | B33: 1106685
A34: 128 | B34: 1352573
A35: 129 | B35: 2459258
A36: 142 | B36: 3513685
A37: 150 | B37: 1090022
A38: 151 | B38: 2423663
A39: 152 | B39: 3513685
A40: 212 | B40: 2491235
A41: 213 | B41: 116080449
A42: 215 | B42: 3274556
A43: 218 | B43: 121846240
A44: 219 | B44: 121846240
A45: 220 | B45: 121846240
A46: 221 | B46: 4468528
A47: 222 | B47: 88543477
A48: 223 | B48: 93012005
A49: 224 | B49: 93012005
A50: 226 | B50: 93012005
A51: 227 | B51: 93012005
A52: 644 | B52: 15639539
A53: 656 | B53: 14262
A54: 657 | B54: 1217562
A55: 658 | B55: 72722
A56: 659 | B56: 24516748
A57: 660 | B57: 716700
A58: 661 | B58: 545674
A59: 662 | B59: 407918
A60: 663 | B60: 552677
A61: 664 | B61: 925333
A62: 665 | B62: 122631
A63: 666 | B63: 3270933
A64: 667 | B64: 536529
A65: 668 | B65: 166571
A66: 670 | B66: 703100
A67: 672 | B67: 422769
A68: 673 | B68: 422769
A69: 674 | B69: 2283482
A70: 675 | B70: 975580
A71: 676 | B71: 3259062
A72: 677 | B72: 210941
A73: 678 | B73: 356891
A74: 679 | B74: 454017
A75: 681 | B75: 783586
A76: 684 | B76: 1805435
A77: 686 | B77: 125637
A78: 687 | B78: 279819
A79: 688 | B79: 450916
A80: 690 | B80: 645901
A81: 692 | B81: 1502273
A82: 693 | B82: 18334
A83: 694 | B83: 10981906
A84: 695 | B84: 34607
A85: 696 | B85: 35533261
A86: 702 | B86: 1836213
A87: 715 | B87: 15165
A88: 716 | B88: 1383
A89: 717 | B89: 4137422
A90: 718 | B90: 99797
A91: 719 | B91: 85298
A92: 720 | B92: 76979
A93: 721 | B93: 33060
A94: 722 | B94: 95944
A95: 723 | B95: 8178
A96: 724 | B96: 399256
A97: 725 | B97: 72814
A98: 726 | B98: 36656
A99: 728 | B99: 109470
A100: 729 | B100: 10087
A101: 730 | B101: 59684
A102: 731 | B102: 211742
A103: 732 | B103: 596206
A104: 733 | B104: 271224
A105: 734 | B105: 867430
A106: 735 | B106: 46656
A107: 736 | B107: 39231
A108: 737 | B108: 120654
A109: 739 | B109: 161667
A110: 742 | B110: 368208
A111: 744 | B111: 20875
A112: 745 | B112: 41714
A113: 746 | B113: 71989
A114: 748 | B114: 103882
A115: 750 | B115: 238460
A116: 752 | B116: 2194566
A117: 753 | B117: 628
A118: 754 | B118: 6332616
A119: 760 | B119: 53466
A120: 767 | B120: 1260
A121: 773 | B121: 139303
A122: 775 | B122: 971343
A123: 777 | B123: 2926
A124: 778 | B124: 2538
A125: 779 | B125: 1113
A126: 780 | B126: 178
A127: 782 | B127: 6755
A128: 783 | B128: 291050
A129: 784 | B129: 14090
A130: 785 | B130: 116748
A131: 786 | B131: 421888
A132: 787 | B132: 412094
A133: 788 | B133: 4873
A134: 789 | B134: 1105122
A135: 790 | B135: 4180
A136: 791 | B136: 300
A137: 792 | B137: 4480
A138: 793 | B138: 56480
A139: 794 | B139: 12739
A140: 795 | B140: 129880
A141: 797 | B141: 6817
A142: 800 | B142: 205916
A143: 803 | B143: 42327
A144: 804 | B144: 117631
A145: 806 | B145: 1477224
A146: 808 | B146: 1637182
A147: 810 | B147: 3381343
A148: 811 | B148: 263488
A149: 812 | B149: 4616174
A150: 818 | B150: 734213
A151: 825 | B151: 2557
A152: 831 | B152: 107889
A153: 832 | B153: 215
A154: 833 | B154: 1599137
A155: 834 | B155: 26645
A156: 835 | B156: 11465
A157: 836 | B157: 4043
A158: 837 | B158: 20500
A159: 840 | B159: 62653
A160: 841 | B160: 21204
A161: 842 | B161: 8711
A162: 843 | B162: 44930
A163: 844 | B163: 74845
A164: 845 | B164: 23077
A165: 846 | B165: 4025
A166: 847 | B166: 27102
A167: 848 | B167: 32975
A168: 849 | B168: 4855
A169: 850 | B169: 37830
A170: 851 | B170: 43726
A171: 852 | B171: 11098
A172: 853 | B172: 114
A173: 855 | B173: 1003597
A174: 858 | B174: 1058535
A175: 861 | B175: 23291
A176: 862 | B176: 92459
A177: 864 | B177: 476423
A178: 866 | B178: 592173
A179: 867 | B179: 331
A180: 868 | B180: 1853469
A181: 869 | B181: 51681
A182: 870 | B182: 3504287
A183: 876 | B183: 43455
A184: 889 | B184: 20260
A185: 891 | B185: 79768
A186: 912 | B186: 62053
A187: 916 | B187: 62053
A188: 922 | B188: 10747
A189: 924 | B189: 10747
A190: 926 | B190: 72800
A191: 928 | B191: 152568
A192: 934 | B192: 4414
A193: 947 | B193: 37763
A194: 949 | B194: 2535379
A195: 957 | B195: 2741
A196: 960 | B196: 2741
A197: 961 | B197: 19941
A198: 962 | B198: -4506
A199: 963 | B199: 15435
A200: 964 | B200: 4206
... 668 more rows

Sheet Data Pull totals 5-8 (hidden)
A1: txtFieldNum | B1: 2018 | C1: Crete Monee | D1: 5-7 data w/o Crete | E1: 5/7 data | F1: variance
A2: 4 | B2: 4463715231 | C2: =VLOOKUP(A2,'Crete Monee Totals 5-8'!A:B,2,0) -> 14334347 | D2: =SUM(B2-C2) -> 4449380884 | E2: =VLOOKUP(A2,'AFR18'!A:L,12,0) -> 4449380884 | F2: =SUM(D2-E2) -> 0
A3: 11 | B3: 10965222 | C3: 0 | D3: =SUM(B3-C3) -> 10965222 | E3: =VLOOKUP(A3,'AFR18'!A:L,12,0) -> 10965222 | F3: =SUM(D3-E3) -> 0
A4: 12 | B4: 2085627941 | C4: 0 | D4: 2085627941 | E4: =VLOOKUP(A4,'AFR18'!A:L,12,0) -> 2085627941 | F4: 0
A5: 15 | B5: 8487467 | C5: 0 | D5: 8487467 | E5: =VLOOKUP(A5,'AFR18'!A:L,12,0) -> 8487467 | F5: 0
A6: 16 | B6: 1.363495227e+10 | C6: =VLOOKUP(A6,'Crete Monee Totals 5-8'!A:B,2,0) -> 30629001 | D6: 1.360432326e+10 | E6: =VLOOKUP(A6,'AFR18'!A:L,12,0) -> 1.360432326e+10 | F6: 0
A7: 25 | B7: 114934456 | C7: =VLOOKUP(A7,'Crete Monee Totals 5-8'!A:B,2,0) -> 1730566 | D7: 113203890 | E7: =VLOOKUP(A7,'AFR18'!A:L,12,0) -> 113203890 | F7: 0
A8: 27 | B8: 4530643413 | C8: =VLOOKUP(A8,'Crete Monee Totals 5-8'!A:B,2,0) -> 14116446 | D8: 4516526967 | E8: =VLOOKUP(A8,'AFR18'!A:L,12,0) -> 4516526967 | F8: 0
A9: 30 | B9: 6123509399 | C9: =VLOOKUP(A9,'Crete Monee Totals 5-8'!A:B,2,0) -> 19605234 | D9: 6103904165 | E9: =VLOOKUP(A9,'AFR18'!A:L,12,0) -> 6103904165 | F9: 0
A10: 31 | B10: 7266244448 | C10: =VLOOKUP(A10,'Crete Monee Totals 5-8'!A:B,2,0) -> 10953856 | D10: 7255290592 | E10: =VLOOKUP(A10,'AFR18'!A:L,12,0) -> 7255290592 | F10: 0
A11: 32 | B11: 1.363495227e+10 | C11: =VLOOKUP(A11,'Crete Monee Totals 5-8'!A:B,2,0) -> 30629001 | D11: 1.360432326e+10 | E11: =VLOOKUP(A11,'AFR18'!A:L,12,0) -> 1.360432326e+10 | F11: 0
A12: 36 | B12: 451223371 | C12: =VLOOKUP(A12,'Crete Monee Totals 5-8'!A:B,2,0) -> 2132081 | D12: 449091290 | E12: =VLOOKUP(A12,'AFR18'!A:L,12,0) -> 449091290 | F12: 0
A13: 43 | B13: 98822 | C13: 0 | D13: 98822 | E13: =VLOOKUP(A13,'AFR18'!A:L,12,0) -> 98822 | F13: 0
A14: 44 | B14: 352727831 | C14: 0 | D14: 352727831 | E14: =VLOOKUP(A14,'AFR18'!A:L,12,0) -> 352727831 | F14: 0
A15: 47 | B15: 817216 | C15: =VLOOKUP(A15,'Crete Monee Totals 5-8'!A:B,2,0) -> 7695 | D15: 809521 | E15: =VLOOKUP(A15,'AFR18'!A:L,12,0) -> 809521 | F15: 0
A16: 48 | B16: 2010879848 | C16: =VLOOKUP(A16,'Crete Monee Totals 5-8'!A:B,2,0) -> 6490423 | D16: 2004389425 | E16: =VLOOKUP(A16,'AFR18'!A:L,12,0) -> 2004389425 | F16: 0
A17: 56 | B17: 109272 | C17: 0 | D17: 109272 | E17: =VLOOKUP(A17,'AFR18'!A:L,12,0) -> 109272 | F17: 0
A18: 58 | B18: 535113520 | C18: =VLOOKUP(A18,'Crete Monee Totals 5-8'!A:B,2,0) -> 2116742 | D18: 532996778 | E18: =VLOOKUP(A18,'AFR18'!A:L,12,0) -> 532996778 | F18: 0
A19: 61 | B19: 647818486 | C19: =VLOOKUP(A19,'Crete Monee Totals 5-8'!A:B,2,0) -> 2412088 | D19: 645406398 | E19: =VLOOKUP(A19,'AFR18'!A:L,12,0) -> 645406398 | F19: 0
A20: 62 | B20: 1157229643 | C20: =VLOOKUP(A20,'Crete Monee Totals 5-8'!A:B,2,0) -> 4078335 | D20: 1153151308 | E20: =VLOOKUP(A20,'AFR18'!A:L,12,0) -> 1153151308 | F20: 0
A21: 63 | B21: 2010879848 | C21: =VLOOKUP(A21,'Crete Monee Totals 5-8'!A:B,2,0) -> 6490423 | D21: 2004389425 | E21: =VLOOKUP(A21,'AFR18'!A:L,12,0) -> 2004389425 | F21: 0
A22: 65 | B22: 458957980 | C22: =VLOOKUP(A22,'Crete Monee Totals 5-8'!A:B,2,0) -> 5919005 | D22: 453038975 | E22: =VLOOKUP(A22,'AFR18'!A:L,12,0) -> 453038975 | F22: 0
A23: 68 | B23: 192660768 | C23: 0 | D23: 192660768 | E23: =VLOOKUP(A23,'AFR18'!A:L,12,0) -> 192660768 | F23: 0
A24: 69 | B24: 13754738 | C24: 0 | D24: 13754738 | E24: =VLOOKUP(A24,'AFR18'!A:L,12,0) -> 13754738 | F24: 0
A25: 70 | B25: 2129344853 | C25: =VLOOKUP(A25,'Crete Monee Totals 5-8'!A:B,2,0) -> 10344951 | D25: 2118999902 | E25: =VLOOKUP(A25,'AFR18'!A:L,12,0) -> 2118999902 | F25: 0
A26: 73 | B26: 466225040 | C26: =VLOOKUP(A26,'Crete Monee Totals 5-8'!A:B,2,0) -> 5876423 | D26: 460348617 | E26: =VLOOKUP(A26,'AFR18'!A:L,12,0) -> 460348617 | F26: 0
A27: 78 | B27: 475182762 | C27: =VLOOKUP(A27,'Crete Monee Totals 5-8'!A:B,2,0) -> 5876423 | D27: 469306339 | E27: =VLOOKUP(A27,'AFR18'!A:L,12,0) -> 469306339 | F27: 0
A28: 79 | B28: 617255521.9 | C28: =VLOOKUP(A28,'Crete Monee Totals 5-8'!A:B,2,0) -> 4468528 | D28: 612786993.9 | E28: =VLOOKUP(A28,'AFR18'!A:L,12,0) -> 612786993.9 | F28: 0
A29: 80 | B29: 2129344853 | C29: =VLOOKUP(A29,'Crete Monee Totals 5-8'!A:B,2,0) -> 10344951 | D29: 2118999902 | E29: =VLOOKUP(A29,'AFR18'!A:L,12,0) -> 2118999902 | F29: 0
A30: 84 | B30: 161275392 | C30: =VLOOKUP(A30,'Crete Monee Totals 5-8'!A:B,2,0) -> 1952358 | D30: 159323034 | E30: =VLOOKUP(A30,'AFR18'!A:L,12,0) -> 159323034 | F30: 0
A31: 92 | B31: 210291838 | C31: 0 | D31: 210291838 | E31: =VLOOKUP(A31,'AFR18'!A:L,12,0) -> 210291838 | F31: 0
A32: 95 | B32: 188063 | C32: 0 | D32: 188063 | E32: =VLOOKUP(A32,'AFR18'!A:L,12,0) -> 188063 | F32: 0
A33: 96 | B33: 1219805434 | C33: =VLOOKUP(A33,'Crete Monee Totals 5-8'!A:B,2,0) -> 10904127 | D33: 1208901307 | E33: =VLOOKUP(A33,'AFR18'!A:L,12,0) -> 1208901307 | F33: 0
A34: 103 | B34: 661028 | C34: =VLOOKUP(A34,'Crete Monee Totals 5-8'!A:B,2,0) -> 287 | D34: 660741 | E34: =VLOOKUP(A34,'AFR18'!A:L,12,0) -> 660741 | F34: 0
A35: 105 | B35: 300149230 | C35: =VLOOKUP(A35,'Crete Monee Totals 5-8'!A:B,2,0) -> 1938312 | D35: 298210918 | E35: =VLOOKUP(A35,'AFR18'!A:L,12,0) -> 298210918 | F35: 0
A36: 108 | B36: 359145224 | C36: =VLOOKUP(A36,'Crete Monee Totals 5-8'!A:B,2,0) -> 2072761 | D36: 357072463 | E36: =VLOOKUP(A36,'AFR18'!A:L,12,0) -> 357072463 | F36: 0
A37: 109 | B37: 693404368.9 | C37: =VLOOKUP(A37,'Crete Monee Totals 5-8'!A:B,2,0) -> 8831366 | D37: 684573002.9 | E37: =VLOOKUP(A37,'AFR18'!A:L,12,0) -> 684573002.9 | F37: 0
A38: 110 | B38: 1219805434 | C38: =VLOOKUP(A38,'Crete Monee Totals 5-8'!A:B,2,0) -> 10904127 | D38: 1208901307 | E38: =VLOOKUP(A38,'AFR18'!A:L,12,0) -> 1208901307 | F38: 0
A39: 112 | B39: 159360043 | C39: =VLOOKUP(A39,'Crete Monee Totals 5-8'!A:B,2,0) -> 949264 | D39: 158410779 | E39: =VLOOKUP(A39,'AFR18'!A:L,12,0) -> 158410779 | F39: 0
A40: 116 | B40: 109853870 | C40: 0 | D40: 109853870 | E40: =VLOOKUP(A40,'AFR18'!A:L,12,0) -> 109853870 | F40: 0
A41: 118 | B41: 22713 | C41: 0 | D41: 22713 | E41: =VLOOKUP(A41,'AFR18'!A:L,12,0) -> 22713 | F41: 0
A42: 119 | B42: 664059480.5 | C42: =VLOOKUP(A42,'Crete Monee Totals 5-8'!A:B,2,0) -> 2459258 | D42: 661600222.5 | E42: =VLOOKUP(A42,'AFR18'!A:L,12,0) -> 661600222.5 | F42: 0
A43: 123 | B43: 5603839 | C43: =VLOOKUP(A43,'Crete Monee Totals 5-8'!A:B,2,0) -> 164204 | D43: 5439635 | E43: =VLOOKUP(A43,'AFR18'!A:L,12,0) -> 5439635 | F43: 0
A44: 124 | B44: 175968464 | C44: =VLOOKUP(A44,'Crete Monee Totals 5-8'!A:B,2,0) -> 942434 | D44: 175026030 | E44: =VLOOKUP(A44,'AFR18'!A:L,12,0) -> 175026030 | F44: 0
A45: 127 | B45: 195905778 | C45: =VLOOKUP(A45,'Crete Monee Totals 5-8'!A:B,2,0) -> 1106685 | D45: 194799093 | E45: =VLOOKUP(A45,'AFR18'!A:L,12,0) -> 194799093 | F45: 0
A46: 128 | B46: 322261703.6 | C46: =VLOOKUP(A46,'Crete Monee Totals 5-8'!A:B,2,0) -> 1352573 | D46: 320909130.6 | E46: =VLOOKUP(A46,'AFR18'!A:L,12,0) -> 320909130.6 | F46: 0
A47: 129 | B47: 664059480.6 | C47: =VLOOKUP(A47,'Crete Monee Totals 5-8'!A:B,2,0) -> 2459258 | D47: 661600222.6 | E47: =VLOOKUP(A47,'AFR18'!A:L,12,0) -> 661600222.6 | F47: 0
A48: 138 | B48: 459294954 | C48: 0 | D48: 459294954 | E48: =VLOOKUP(A48,'AFR18'!A:L,12,0) -> 459294954 | F48: 0
A49: 141 | B49: 34045 | C49: 0 | D49: 34045 | E49: =VLOOKUP(A49,'AFR18'!A:L,12,0) -> 34045 | F49: 0
A50: 142 | B50: 2640275571 | C50: =VLOOKUP(A50,'Crete Monee Totals 5-8'!A:B,2,0) -> 3513685 | D50: 2636761886 | E50: =VLOOKUP(A50,'AFR18'!A:L,12,0) -> 2636761886 | F50: 0
A51: 145 | B51: 9113 | C51: 0 | D51: 9113 | E51: =VLOOKUP(A51,'AFR18'!A:L,12,0) -> 9113 | F51: 0
A52: 147 | B52: 17494828 | C52: 0 | D52: 17494828 | E52: =VLOOKUP(A52,'AFR18'!A:L,12,0) -> 17494828 | F52: 0
A53: 150 | B53: 188343915 | C53: =VLOOKUP(A53,'Crete Monee Totals 5-8'!A:B,2,0) -> 1090022 | D53: 187253893 | E53: =VLOOKUP(A53,'AFR18'!A:L,12,0) -> 187253893 | F53: 0
A54: 151 | B54: 1212270301 | C54: =VLOOKUP(A54,'Crete Monee Totals 5-8'!A:B,2,0) -> 2423663 | D54: 1209846638 | E54: =VLOOKUP(A54,'AFR18'!A:L,12,0) -> 1209846638 | F54: 0
A55: 152 | B55: 2640275571 | C55: =VLOOKUP(A55,'Crete Monee Totals 5-8'!A:B,2,0) -> 3513685 | D55: 2636761886 | E55: =VLOOKUP(A55,'AFR18'!A:L,12,0) -> 2636761886 | F55: 0
A56: 212 | B56: 1324789248 | C56: =VLOOKUP(A56,'Crete Monee Totals 5-8'!A:B,2,0) -> 2491235 | D56: 1322298013 | E56: =VLOOKUP(A56,'AFR18'!A:L,12,0) -> 1322298013 | F56: 0
A57: 213 | B57: 3.504172748e+10 | C57: =VLOOKUP(A57,'Crete Monee Totals 5-8'!A:B,2,0) -> 116080449 | D57: 3.492564703e+10 | E57: =VLOOKUP(A57,'AFR18'!A:L,12,0) -> 3.492564703e+10 | F57: 0
A58: 214 | B58: 1971193146 | C58: 0 | D58: 1971193146 | E58: =VLOOKUP(A58,'AFR18'!A:L,12,0) -> 1971193146 | F58: 0
A59: 215 | B59: 3714249063 | C59: =VLOOKUP(A59,'Crete Monee Totals 5-8'!A:B,2,0) -> 3274556 | D59: 3710974507 | E59: =VLOOKUP(A59,'AFR18'!A:L,12,0) -> 3710974507 | F59: 0
A60: 218 | B60: 4.311389868e+10 | C60: =VLOOKUP(A60,'Crete Monee Totals 5-8'!A:B,2,0) -> 121846240 | D60: 4.299205244e+10 | E60: =VLOOKUP(A60,'AFR18'!A:L,12,0) -> 4.299205244e+10 | F60: 0
A61: 219 | B61: 4.311389868e+10 | C61: =VLOOKUP(A61,'Crete Monee Totals 5-8'!A:B,2,0) -> 121846240 | D61: 4.299205244e+10 | E61: =VLOOKUP(A61,'AFR18'!A:L,12,0) -> 4.299205244e+10 | F61: 0
A62: 220 | B62: 4.311389868e+10 | C62: =VLOOKUP(A62,'Crete Monee Totals 5-8'!A:B,2,0) -> 121846240 | D62: 4.299205244e+10 | E62: =VLOOKUP(A62,'AFR18'!A:L,12,0) -> 4.299205244e+10 | F62: 0
A63: 221 | B63: 1649628613 | C63: =VLOOKUP(A63,'Crete Monee Totals 5-8'!A:B,2,0) -> 4468528 | D63: 1645160085 | E63: =VLOOKUP(A63,'AFR18'!A:L,12,0) -> 1645160085 | F63: 0
A64: 222 | B64: 20000728898 | C64: =VLOOKUP(A64,'Crete Monee Totals 5-8'!A:B,2,0) -> 88543477 | D64: 19912185421 | E64: =VLOOKUP(A64,'AFR18'!A:L,12,0) -> 19912185421 | F64: 0
A65: 223 | B65: 21650357511 | C65: =VLOOKUP(A65,'Crete Monee Totals 5-8'!A:B,2,0) -> 93012005 | D65: 21557345506 | E65: =VLOOKUP(A65,'AFR18'!A:L,12,0) -> 21557345506 | F65: 0
A66: 224 | B66: 21650268294 | C66: =VLOOKUP(A66,'Crete Monee Totals 5-8'!A:B,2,0) -> 93012005 | D66: 21557256289 | E66: =VLOOKUP(A66,'AFR18'!A:L,12,0) -> 21557256289 | F66: 0
A67: 226 | B67: 21650268294 | C67: =VLOOKUP(A67,'Crete Monee Totals 5-8'!A:B,2,0) -> 93012005 | D67: =SUM(B67-C67) -> 21557256289 | E67: =VLOOKUP(A67,'AFR18'!A:L,12,0) -> 21557256289 | F67: =SUM(D67-E67) -> 0
A68: 227 | B68: 21650268294 | C68: =VLOOKUP(A68,'Crete Monee Totals 5-8'!A:B,2,0) -> 93012005 | D68: 21557256289 | E68: =VLOOKUP(A68,'AFR18'!A:L,12,0) -> 21557256289 | F68: 0
A69: 259 | B69: 19734469 | C69: 0 | D69: 19734469 | E69: =VLOOKUP(A69,'AFR18'!A:L,12,0) -> 19734469 | F69: 0
A70: 260 | B70: 5656749 | C70: 0 | D70: 5656749 | E70: =VLOOKUP(A70,'AFR18'!A:L,12,0) -> 5656749 | F70: 0
A71: 262 | B71: 13385462 | C71: 0 | D71: 13385462 | E71: =VLOOKUP(A71,'AFR18'!A:L,12,0) -> 13385462 | F71: 0
A72: 263 | B72: 24190 | C72: 0 | D72: 24190 | E72: =VLOOKUP(A72,'AFR18'!A:L,12,0) -> 24190 | F72: 0
A73: 371 | B73: 4568411 | C73: 0 | D73: 4568411 | E73: =VLOOKUP(A73,'AFR18'!A:L,12,0) -> 4568411 | F73: 0
A74: 439 | B74: 116325619 | C74: 0 | D74: 116325619 | E74: =VLOOKUP(A74,'AFR18'!A:L,12,0) -> 116325619 | F74: 0
A75: 440 | B75: 220808 | C75: 0 | D75: 220808 | E75: =VLOOKUP(A75,'AFR18'!A:L,12,0) -> 220808 | F75: 0
A76: 557 | B76: 956982138 | C76: 0 | D76: 956982138 | E76: =VLOOKUP(A76,'AFR18'!A:L,12,0) -> 956982138 | F76: 0
A77: 558 | B77: 41601698 | C77: 0 | D77: 41601698 | E77: =VLOOKUP(A77,'AFR18'!A:L,12,0) -> 41601698 | F77: 0
A78: 559 | B78: 575570 | C78: 0 | D78: 575570 | E78: =VLOOKUP(A78,'AFR18'!A:L,12,0) -> 575570 | F78: 0
A79: 590 | B79: 311901711 | C79: 0 | D79: 311901711 | E79: =VLOOKUP(A79,'AFR18'!A:L,12,0) -> 311901711 | F79: 0
A80: 591 | B80: 7162087 | C80: 0 | D80: 7162087 | E80: =VLOOKUP(A80,'AFR18'!A:L,12,0) -> 7162087 | F80: 0
A81: 644 | B81: 6756811394 | C81: =VLOOKUP(A81,'Crete Monee Totals 5-8'!A:B,2,0) -> 15639539 | D81: 6741171855 | E81: =VLOOKUP(A81,'AFR18'!A:L,12,0) -> 6741171855 | F81: 0
A82: 645 | B82: 53496043 | C82: 0 | D82: 53496043 | E82: =VLOOKUP(A82,'AFR18'!A:L,12,0) -> 53496043 | F82: 0
A83: 651 | B83: 357544899 | C83: 0 | D83: 357544899 | E83: =VLOOKUP(A83,'AFR18'!A:L,12,0) -> 357544899 | F83: 0
A84: 655 | B84: 8234532 | C84: 0 | D84: 8234532 | E84: =VLOOKUP(A84,'AFR18'!A:L,12,0) -> 8234532 | F84: 0
A85: 656 | B85: 169314023.8 | C85: =VLOOKUP(A85,'Crete Monee Totals 5-8'!A:B,2,0) -> 14262 | D85: 169299761.8 | E85: =VLOOKUP(A85,'AFR18'!A:L,12,0) -> 169299761.8 | F85: 0
A86: 657 | B86: 287818934.9 | C86: =VLOOKUP(A86,'Crete Monee Totals 5-8'!A:B,2,0) -> 1217562 | D86: 286601372.9 | E86: =VLOOKUP(A86,'AFR18'!A:L,12,0) -> 286601372.9 | F86: 0
A87: 658 | B87: 47699758 | C87: =VLOOKUP(A87,'Crete Monee Totals 5-8'!A:B,2,0) -> 72722 | D87: 47627036 | E87: =VLOOKUP(A87,'AFR18'!A:L,12,0) -> 47627036 | F87: 0
A88: 659 | B88: 1.007679775e+10 | C88: =VLOOKUP(A88,'Crete Monee Totals 5-8'!A:B,2,0) -> 24516748 | D88: 1.005228101e+10 | E88: =VLOOKUP(A88,'AFR18'!A:L,12,0) -> 1.005228101e+10 | F88: 0
A89: 660 | B89: 268594515 | C89: =VLOOKUP(A89,'Crete Monee Totals 5-8'!A:B,2,0) -> 716700 | D89: 267877815 | E89: =VLOOKUP(A89,'AFR18'!A:L,12,0) -> 267877815 | F89: 0
A90: 661 | B90: 306056886.8 | C90: =VLOOKUP(A90,'Crete Monee Totals 5-8'!A:B,2,0) -> 545674 | D90: 305511212.8 | E90: =VLOOKUP(A90,'AFR18'!A:L,12,0) -> 305511212.8 | F90: 0
A91: 662 | B91: 154266626.2 | C91: =VLOOKUP(A91,'Crete Monee Totals 5-8'!A:B,2,0) -> 407918 | D91: 153858708.2 | E91: =VLOOKUP(A91,'AFR18'!A:L,12,0) -> 153858708.2 | F91: 0
A92: 663 | B92: 124928753 | C92: =VLOOKUP(A92,'Crete Monee Totals 5-8'!A:B,2,0) -> 552677 | D92: 124376076 | E92: =VLOOKUP(A92,'AFR18'!A:L,12,0) -> 124376076 | F92: 0
A93: 664 | B93: 198791209.9 | C93: =VLOOKUP(A93,'Crete Monee Totals 5-8'!A:B,2,0) -> 925333 | D93: 197865876.9 | E93: =VLOOKUP(A93,'AFR18'!A:L,12,0) -> 197865876.9 | F93: 0
A94: 665 | B94: 70374127 | C94: =VLOOKUP(A94,'Crete Monee Totals 5-8'!A:B,2,0) -> 122631 | D94: 70251496 | E94: =VLOOKUP(A94,'AFR18'!A:L,12,0) -> 70251496 | F94: 0
A95: 666 | B95: 1123012118 | C95: =VLOOKUP(A95,'Crete Monee Totals 5-8'!A:B,2,0) -> 3270933 | D95: 1119741185 | E95: =VLOOKUP(A95,'AFR18'!A:L,12,0) -> 1119741185 | F95: 0
A96: 667 | B96: 280447313 | C96: =VLOOKUP(A96,'Crete Monee Totals 5-8'!A:B,2,0) -> 536529 | D96: 279910784 | E96: =VLOOKUP(A96,'AFR18'!A:L,12,0) -> 279910784 | F96: 0
A97: 668 | B97: 220799197.1 | C97: =VLOOKUP(A97,'Crete Monee Totals 5-8'!A:B,2,0) -> 166571 | D97: 220632626.1 | E97: =VLOOKUP(A97,'AFR18'!A:L,12,0) -> 220632626.1 | F97: 0
A98: 669 | B98: 13958619 | C98: 0 | D98: 13958619 | E98: =VLOOKUP(A98,'AFR18'!A:L,12,0) -> 13958619 | F98: 0
A99: 670 | B99: 515205129.1 | C99: =VLOOKUP(A99,'Crete Monee Totals 5-8'!A:B,2,0) -> 703100 | D99: 514502029.1 | E99: =VLOOKUP(A99,'AFR18'!A:L,12,0) -> 514502029.1 | F99: 0
A100: 671 | B100: 31051748 | C100: 0 | D100: 31051748 | E100: =VLOOKUP(A100,'AFR18'!A:L,12,0) -> 31051748 | F100: 0
A101: 672 | B101: 178360664.7 | C101: =VLOOKUP(A101,'Crete Monee Totals 5-8'!A:B,2,0) -> 422769 | D101: 177937895.7 | E101: =VLOOKUP(A101,'AFR18'!A:L,12,0) -> 177937895.7 | F101: 0
A102: 673 | B102: 283414011.7 | C102: =VLOOKUP(A102,'Crete Monee Totals 5-8'!A:B,2,0) -> 422769 | D102: 282991242.7 | E102: =VLOOKUP(A102,'AFR18'!A:L,12,0) -> 282991242.7 | F102: 0
A103: 674 | B103: 876687573.6 | C103: =VLOOKUP(A103,'Crete Monee Totals 5-8'!A:B,2,0) -> 2283482 | D103: 874404091.6 | E103: =VLOOKUP(A103,'AFR18'!A:L,12,0) -> 874404091.6 | F103: 0
A104: 675 | B104: 43318310 | C104: =VLOOKUP(A104,'Crete Monee Totals 5-8'!A:B,2,0) -> 975580 | D104: 42342730 | E104: =VLOOKUP(A104,'AFR18'!A:L,12,0) -> 42342730 | F104: 0
A105: 676 | B105: 920005883.6 | C105: =VLOOKUP(A105,'Crete Monee Totals 5-8'!A:B,2,0) -> 3259062 | D105: 916746821.6 | E105: =VLOOKUP(A105,'AFR18'!A:L,12,0) -> 916746821.6 | F105: 0
A106: 677 | B106: 50308998 | C106: =VLOOKUP(A106,'Crete Monee Totals 5-8'!A:B,2,0) -> 210941 | D106: 50098057 | E106: =VLOOKUP(A106,'AFR18'!A:L,12,0) -> 50098057 | F106: 0
A107: 678 | B107: 109376132.7 | C107: =VLOOKUP(A107,'Crete Monee Totals 5-8'!A:B,2,0) -> 356891 | D107: 109019241.7 | E107: =VLOOKUP(A107,'AFR18'!A:L,12,0) -> 109019241.7 | F107: 0
A108: 679 | B108: 90233291.16 | C108: =VLOOKUP(A108,'Crete Monee Totals 5-8'!A:B,2,0) -> 454017 | D108: 89779274.16 | E108: =VLOOKUP(A108,'AFR18'!A:L,12,0) -> 89779274.16 | F108: 0
A109: 680 | B109: 19237105 | C109: 0 | D109: 19237105 | E109: =VLOOKUP(A109,'AFR18'!A:L,12,0) -> 19237105 | F109: 0
A110: 681 | B110: 216404843.1 | C110: =VLOOKUP(A110,'Crete Monee Totals 5-8'!A:B,2,0) -> 783586 | D110: 215621257.1 | E110: =VLOOKUP(A110,'AFR18'!A:L,12,0) -> 215621257.1 | F110: 0
A111: 682 | B111: 10997332 | C111: 0 | D111: 10997332 | E111: =VLOOKUP(A111,'AFR18'!A:L,12,0) -> 10997332 | F111: 0
A112: 684 | B112: 496557702 | C112: =VLOOKUP(A112,'Crete Monee Totals 5-8'!A:B,2,0) -> 1805435 | D112: 494752267 | E112: =VLOOKUP(A112,'AFR18'!A:L,12,0) -> 494752267 | F112: 0
A113: 685 | B113: 7546862 | C113: 0 | D113: 7546862 | E113: =VLOOKUP(A113,'AFR18'!A:L,12,0) -> 7546862 | F113: 0
A114: 686 | B114: 16081191 | C114: =VLOOKUP(A114,'Crete Monee Totals 5-8'!A:B,2,0) -> 125637 | D114: 15955554 | E114: =VLOOKUP(A114,'AFR18'!A:L,12,0) -> 15955554 | F114: 0
A115: 687 | B115: 24489881 | C115: =VLOOKUP(A115,'Crete Monee Totals 5-8'!A:B,2,0) -> 279819 | D115: 24210062 | E115: =VLOOKUP(A115,'AFR18'!A:L,12,0) -> 24210062 | F115: 0
A116: 688 | B116: 61265263 | C116: =VLOOKUP(A116,'Crete Monee Totals 5-8'!A:B,2,0) -> 450916 | D116: 60814347 | E116: =VLOOKUP(A116,'AFR18'!A:L,12,0) -> 60814347 | F116: 0
A117: 690 | B117: 100263695.7 | C117: =VLOOKUP(A117,'Crete Monee Totals 5-8'!A:B,2,0) -> 645901 | D117: 99617794.68 | E117: =VLOOKUP(A117,'AFR18'!A:L,12,0) -> 99617794.68 | F117: 0
A118: 692 | B118: 209646892.7 | C118: =VLOOKUP(A118,'Crete Monee Totals 5-8'!A:B,2,0) -> 1502273 | D118: 208144619.7 | E118: =VLOOKUP(A118,'AFR18'!A:L,12,0) -> 208144619.7 | F118: 0
A119: 693 | B119: 13160841 | C119: =VLOOKUP(A119,'Crete Monee Totals 5-8'!A:B,2,0) -> 18334 | D119: 13142507 | E119: =VLOOKUP(A119,'AFR18'!A:L,12,0) -> 13142507 | F119: 0
A120: 694 | B120: 3561002578 | C120: =VLOOKUP(A120,'Crete Monee Totals 5-8'!A:B,2,0) -> 10981906 | D120: 3550020672 | E120: =VLOOKUP(A120,'AFR18'!A:L,12,0) -> 3550020672 | F120: 0
A121: 695 | B121: 71949497 | C121: =VLOOKUP(A121,'Crete Monee Totals 5-8'!A:B,2,0) -> 34607 | D121: 71914890 | E121: =VLOOKUP(A121,'AFR18'!A:L,12,0) -> 71914890 | F121: 0
A122: 696 | B122: 1.370974983e+10 | C122: =VLOOKUP(A122,'Crete Monee Totals 5-8'!A:B,2,0) -> 35533261 | D122: 1.367421657e+10 | E122: =VLOOKUP(A122,'AFR18'!A:L,12,0) -> 1.367421657e+10 | F122: 0
A123: 702 | B123: 1822034677 | C123: =VLOOKUP(A123,'Crete Monee Totals 5-8'!A:B,2,0) -> 1836213 | D123: 1820198464 | E123: =VLOOKUP(A123,'AFR18'!A:L,12,0) -> 1820198464 | F123: 0
A124: 703 | B124: 9978449 | C124: 0 | D124: 9978449 | E124: =VLOOKUP(A124,'AFR18'!A:L,12,0) -> 9978449 | F124: 0
A125: 709 | B125: 77589893 | C125: 0 | D125: 77589893 | E125: =VLOOKUP(A125,'AFR18'!A:L,12,0) -> 77589893 | F125: 0
A126: 713 | B126: 757212 | C126: 0 | D126: 757212 | E126: =VLOOKUP(A126,'AFR18'!A:L,12,0) -> 757212 | F126: 0
A127: 714 | B127: 34246764.59 | C127: 0 | D127: 34246764.59 | E127: =VLOOKUP(A127,'AFR18'!A:L,12,0) -> 34246764.59 | F127: 0
A128: 715 | B128: 20992610.62 | C128: =VLOOKUP(A128,'Crete Monee Totals 5-8'!A:B,2,0) -> 15165 | D128: 20977445.62 | E128: =VLOOKUP(A128,'AFR18'!A:L,12,0) -> 20977445.62 | F128: 0
A129: 716 | B129: 2035049.77 | C129: =VLOOKUP(A129,'Crete Monee Totals 5-8'!A:B,2,0) -> 1383 | D129: 2033666.77 | E129: =VLOOKUP(A129,'AFR18'!A:L,12,0) -> 2033666.77 | F129: 0
A130: 717 | B130: 2543322831 | C130: =VLOOKUP(A130,'Crete Monee Totals 5-8'!A:B,2,0) -> 4137422 | D130: 2539185409 | E130: =VLOOKUP(A130,'AFR18'!A:L,12,0) -> 2539185409 | F130: 0
A131: 718 | B131: 55238225 | C131: =VLOOKUP(A131,'Crete Monee Totals 5-8'!A:B,2,0) -> 99797 | D131: =SUM(B131-C131) -> 55138428 | E131: =VLOOKUP(A131,'AFR18'!A:L,12,0) -> 55138428 | F131: =SUM(D131-E131) -> 0
A132: 719 | B132: 63411190.75 | C132: =VLOOKUP(A132,'Crete Monee Totals 5-8'!A:B,2,0) -> 85298 | D132: 63325892.75 | E132: =VLOOKUP(A132,'AFR18'!A:L,12,0) -> 63325892.75 | F132: 0
A133: 720 | B133: 31869492.22 | C133: =VLOOKUP(A133,'Crete Monee Totals 5-8'!A:B,2,0) -> 76979 | D133: 31792513.22 | E133: =VLOOKUP(A133,'AFR18'!A:L,12,0) -> 31792513.22 | F133: 0
A134: 721 | B134: 23346906 | C134: =VLOOKUP(A134,'Crete Monee Totals 5-8'!A:B,2,0) -> 33060 | D134: 23313846 | E134: =VLOOKUP(A134,'AFR18'!A:L,12,0) -> 23313846 | F134: 0
A135: 722 | B135: 37521044.02 | C135: =VLOOKUP(A135,'Crete Monee Totals 5-8'!A:B,2,0) -> 95944 | D135: 37425100.02 | E135: =VLOOKUP(A135,'AFR18'!A:L,12,0) -> 37425100.02 | F135: 0
A136: 723 | B136: 12308047 | C136: =VLOOKUP(A136,'Crete Monee Totals 5-8'!A:B,2,0) -> 8178 | D136: 12299869 | E136: =VLOOKUP(A136,'AFR18'!A:L,12,0) -> 12299869 | F136: 0
A137: 724 | B137: 223694905 | C137: =VLOOKUP(A137,'Crete Monee Totals 5-8'!A:B,2,0) -> 399256 | D137: 223295649 | E137: =VLOOKUP(A137,'AFR18'!A:L,12,0) -> 223295649 | F137: 0
A138: 725 | B138: 60734288.57 | C138: =VLOOKUP(A138,'Crete Monee Totals 5-8'!A:B,2,0) -> 72814 | D138: 60661474.57 | E138: =VLOOKUP(A138,'AFR18'!A:L,12,0) -> 60661474.57 | F138: 0
A139: 726 | B139: 44852028 | C139: =VLOOKUP(A139,'Crete Monee Totals 5-8'!A:B,2,0) -> 36656 | D139: 44815372 | E139: =VLOOKUP(A139,'AFR18'!A:L,12,0) -> 44815372 | F139: 0
A140: 727 | B140: 1940491 | C140: 0 | D140: 1940491 | E140: =VLOOKUP(A140,'AFR18'!A:L,12,0) -> 1940491 | F140: 0
A141: 728 | B141: 107526807.6 | C141: =VLOOKUP(A141,'Crete Monee Totals 5-8'!A:B,2,0) -> 109470 | D141: 107417337.6 | E141: =VLOOKUP(A141,'AFR18'!A:L,12,0) -> 107417337.6 | F141: 0
A142: 729 | B142: 24918387 | C142: =VLOOKUP(A142,'Crete Monee Totals 5-8'!A:B,2,0) -> 10087 | D142: 24908300 | E142: =VLOOKUP(A142,'AFR18'!A:L,12,0) -> 24908300 | F142: 0
A143: 730 | B143: 34872831 | C143: =VLOOKUP(A143,'Crete Monee Totals 5-8'!A:B,2,0) -> 59684 | D143: 34813147 | E143: =VLOOKUP(A143,'AFR18'!A:L,12,0) -> 34813147 | F143: 0
A144: 731 | B144: 78587099 | C144: =VLOOKUP(A144,'Crete Monee Totals 5-8'!A:B,2,0) -> 211742 | D144: 78375357 | E144: =VLOOKUP(A144,'AFR18'!A:L,12,0) -> 78375357 | F144: 0
A145: 732 | B145: 207302324.6 | C145: =VLOOKUP(A145,'Crete Monee Totals 5-8'!A:B,2,0) -> 596206 | D145: 206706118.6 | E145: =VLOOKUP(A145,'AFR18'!A:L,12,0) -> 206706118.6 | F145: 0
A146: 733 | B146: 10293320 | C146: =VLOOKUP(A146,'Crete Monee Totals 5-8'!A:B,2,0) -> 271224 | D146: 10022096 | E146: =VLOOKUP(A146,'AFR18'!A:L,12,0) -> 10022096 | F146: 0
A147: 734 | B147: 217595644.6 | C147: =VLOOKUP(A147,'Crete Monee Totals 5-8'!A:B,2,0) -> 867430 | D147: 216728214.6 | E147: =VLOOKUP(A147,'AFR18'!A:L,12,0) -> 216728214.6 | F147: 0
A148: 735 | B148: 10062588 | C148: =VLOOKUP(A148,'Crete Monee Totals 5-8'!A:B,2,0) -> 46656 | D148: 10015932 | E148: =VLOOKUP(A148,'AFR18'!A:L,12,0) -> 10015932 | F148: 0
A149: 736 | B149: 20705644 | C149: =VLOOKUP(A149,'Crete Monee Totals 5-8'!A:B,2,0) -> 39231 | D149: 20666413 | E149: =VLOOKUP(A149,'AFR18'!A:L,12,0) -> 20666413 | F149: 0
A150: 737 | B150: 18275345 | C150: =VLOOKUP(A150,'Crete Monee Totals 5-8'!A:B,2,0) -> 120654 | D150: 18154691 | E150: =VLOOKUP(A150,'AFR18'!A:L,12,0) -> 18154691 | F150: 0
A151: 738 | B151: 6861872 | C151: 0 | D151: 6861872 | E151: =VLOOKUP(A151,'AFR18'!A:L,12,0) -> 6861872 | F151: 0
A152: 739 | B152: 55493635 | C152: =VLOOKUP(A152,'Crete Monee Totals 5-8'!A:B,2,0) -> 161667 | D152: 55331968 | E152: =VLOOKUP(A152,'AFR18'!A:L,12,0) -> 55331968 | F152: 0
A153: 740 | B153: 2285625 | C153: 0 | D153: 2285625 | E153: =VLOOKUP(A153,'AFR18'!A:L,12,0) -> 2285625 | F153: 0
A154: 742 | B154: 113684709 | C154: =VLOOKUP(A154,'Crete Monee Totals 5-8'!A:B,2,0) -> 368208 | D154: 113316501 | E154: =VLOOKUP(A154,'AFR18'!A:L,12,0) -> 113316501 | F154: 0
A155: 743 | B155: 1527345 | C155: 0 | D155: 1527345 | E155: =VLOOKUP(A155,'AFR18'!A:L,12,0) -> 1527345 | F155: 0
A156: 744 | B156: 2905211 | C156: =VLOOKUP(A156,'Crete Monee Totals 5-8'!A:B,2,0) -> 20875 | D156: 2884336 | E156: =VLOOKUP(A156,'AFR18'!A:L,12,0) -> 2884336 | F156: 0
A157: 745 | B157: 5828418 | C157: =VLOOKUP(A157,'Crete Monee Totals 5-8'!A:B,2,0) -> 41714 | D157: 5786704 | E157: =VLOOKUP(A157,'AFR18'!A:L,12,0) -> 5786704 | F157: 0
A158: 746 | B158: 29363741 | C158: =VLOOKUP(A158,'Crete Monee Totals 5-8'!A:B,2,0) -> 71989 | D158: 29291752 | E158: =VLOOKUP(A158,'AFR18'!A:L,12,0) -> 29291752 | F158: 0
A159: 748 | B159: 17265193 | C159: =VLOOKUP(A159,'Crete Monee Totals 5-8'!A:B,2,0) -> 103882 | D159: 17161311 | E159: =VLOOKUP(A159,'AFR18'!A:L,12,0) -> 17161311 | F159: 0
A160: 750 | B160: 56889908 | C160: =VLOOKUP(A160,'Crete Monee Totals 5-8'!A:B,2,0) -> 238460 | D160: 56651448 | E160: =VLOOKUP(A160,'AFR18'!A:L,12,0) -> 56651448 | F160: 0
A161: 751 | B161: 7489563 | C161: 0 | D161: 7489563 | E161: =VLOOKUP(A161,'AFR18'!A:L,12,0) -> 7489563 | F161: 0
A162: 752 | B162: 805468636.2 | C162: =VLOOKUP(A162,'Crete Monee Totals 5-8'!A:B,2,0) -> 2194566 | D162: 803274070.2 | E162: =VLOOKUP(A162,'AFR18'!A:L,12,0) -> 803274070.2 | F162: 0
A163: 753 | B163: 12853444 | C163: =VLOOKUP(A163,'Crete Monee Totals 5-8'!A:B,2,0) -> 628 | D163: 12852816 | E163: =VLOOKUP(A163,'AFR18'!A:L,12,0) -> 12852816 | F163: 0
A164: 754 | B164: 3361644911 | C164: =VLOOKUP(A164,'Crete Monee Totals 5-8'!A:B,2,0) -> 6332616 | D164: 3355312295 | E164: =VLOOKUP(A164,'AFR18'!A:L,12,0) -> 3355312295 | F164: 0
A165: 760 | B165: 118216857.6 | C165: =VLOOKUP(A165,'Crete Monee Totals 5-8'!A:B,2,0) -> 53466 | D165: 118163391.6 | E165: =VLOOKUP(A165,'AFR18'!A:L,12,0) -> 118163391.6 | F165: 0
A166: 761 | B166: 532417 | C166: 0 | D166: 532417 | E166: =VLOOKUP(A166,'AFR18'!A:L,12,0) -> 532417 | F166: 0
A167: 767 | B167: 3006103 | C167: =VLOOKUP(A167,'Crete Monee Totals 5-8'!A:B,2,0) -> 1260 | D167: 3004843 | E167: =VLOOKUP(A167,'AFR18'!A:L,12,0) -> 3004843 | F167: 0
A168: 771 | B168: 1571457 | C168: 0 | D168: 1571457 | E168: =VLOOKUP(A168,'AFR18'!A:L,12,0) -> 1571457 | F168: 0
A169: 772 | B169: 7573657 | C169: 0 | D169: 7573657 | E169: =VLOOKUP(A169,'AFR18'!A:L,12,0) -> 7573657 | F169: 0
A170: 773 | B170: 45814149.88 | C170: =VLOOKUP(A170,'Crete Monee Totals 5-8'!A:B,2,0) -> 139303 | D170: 45674846.88 | E170: =VLOOKUP(A170,'AFR18'!A:L,12,0) -> 45674846.88 | F170: 0
A171: 774 | B171: 1843734 | C171: 0 | D171: 1843734 | E171: =VLOOKUP(A171,'AFR18'!A:L,12,0) -> 1843734 | F171: 0
A172: 775 | B172: 1001894755 | C172: =VLOOKUP(A172,'Crete Monee Totals 5-8'!A:B,2,0) -> 971343 | D172: 1000923412 | E172: =VLOOKUP(A172,'AFR18'!A:L,12,0) -> 1000923412 | F172: 0
A173: 776 | B173: 12748405 | C173: 0 | D173: 12748405 | E173: =VLOOKUP(A173,'AFR18'!A:L,12,0) -> 12748405 | F173: 0
A174: 777 | B174: 12952764 | C174: =VLOOKUP(A174,'Crete Monee Totals 5-8'!A:B,2,0) -> 2926 | D174: 12949838 | E174: =VLOOKUP(A174,'AFR18'!A:L,12,0) -> 12949838 | F174: 0
A175: 778 | B175: 34798615 | C175: =VLOOKUP(A175,'Crete Monee Totals 5-8'!A:B,2,0) -> 2538 | D175: 34796077 | E175: =VLOOKUP(A175,'AFR18'!A:L,12,0) -> 34796077 | F175: 0
A176: 779 | B176: 7533541 | C176: =VLOOKUP(A176,'Crete Monee Totals 5-8'!A:B,2,0) -> 1113 | D176: 7532428 | E176: =VLOOKUP(A176,'AFR18'!A:L,12,0) -> 7532428 | F176: 0
A177: 780 | B177: 24515647 | C177: =VLOOKUP(A177,'Crete Monee Totals 5-8'!A:B,2,0) -> 178 | D177: 24515469 | E177: =VLOOKUP(A177,'AFR18'!A:L,12,0) -> 24515469 | F177: 0
A178: 781 | B178: 12962938 | C178: 0 | D178: 12962938 | E178: =VLOOKUP(A178,'AFR18'!A:L,12,0) -> 12962938 | F178: 0
A179: 782 | B179: 105511910 | C179: =VLOOKUP(A179,'Crete Monee Totals 5-8'!A:B,2,0) -> 6755 | D179: 105505155 | E179: =VLOOKUP(A179,'AFR18'!A:L,12,0) -> 105505155 | F179: 0
A180: 783 | B180: 101939249.5 | C180: =VLOOKUP(A180,'Crete Monee Totals 5-8'!A:B,2,0) -> 291050 | D180: 101648199.5 | E180: =VLOOKUP(A180,'AFR18'!A:L,12,0) -> 101648199.5 | F180: 0
A181: 784 | B181: 39760327.62 | C181: =VLOOKUP(A181,'Crete Monee Totals 5-8'!A:B,2,0) -> 14090 | D181: 39746237.62 | E181: =VLOOKUP(A181,'AFR18'!A:L,12,0) -> 39746237.62 | F181: 0
A182: 785 | B182: 22975295 | C182: =VLOOKUP(A182,'Crete Monee Totals 5-8'!A:B,2,0) -> 116748 | D182: 22858547 | E182: =VLOOKUP(A182,'AFR18'!A:L,12,0) -> 22858547 | F182: 0
A183: 786 | B183: 164674872.1 | C183: =VLOOKUP(A183,'Crete Monee Totals 5-8'!A:B,2,0) -> 421888 | D183: 164252984.1 | E183: =VLOOKUP(A183,'AFR18'!A:L,12,0) -> 164252984.1 | F183: 0
A184: 787 | B184: 111483481.8 | C184: =VLOOKUP(A184,'Crete Monee Totals 5-8'!A:B,2,0) -> 412094 | D184: 111071387.8 | E184: =VLOOKUP(A184,'AFR18'!A:L,12,0) -> 111071387.8 | F184: 0
A185: 788 | B185: 12258202.88 | C185: =VLOOKUP(A185,'Crete Monee Totals 5-8'!A:B,2,0) -> 4873 | D185: 12253329.88 | E185: =VLOOKUP(A185,'AFR18'!A:L,12,0) -> 12253329.88 | F185: 0
A186: 789 | B186: 145194612.6 | C186: =VLOOKUP(A186,'Crete Monee Totals 5-8'!A:B,2,0) -> 1105122 | D186: 144089490.6 | E186: =VLOOKUP(A186,'AFR18'!A:L,12,0) -> 144089490.6 | F186: 0
A187: 790 | B187: 21808064.33 | C187: =VLOOKUP(A187,'Crete Monee Totals 5-8'!A:B,2,0) -> 4180 | D187: 21803884.33 | E187: =VLOOKUP(A187,'AFR18'!A:L,12,0) -> 21803884.33 | F187: 0
A188: 791 | B188: 382388 | C188: =VLOOKUP(A188,'Crete Monee Totals 5-8'!A:B,2,0) -> 300 | D188: 382088 | E188: =VLOOKUP(A188,'AFR18'!A:L,12,0) -> 382088 | F188: 0
A189: 792 | B189: 22190452.33 | C189: =VLOOKUP(A189,'Crete Monee Totals 5-8'!A:B,2,0) -> 4480 | D189: 22185972.33 | E189: =VLOOKUP(A189,'AFR18'!A:L,12,0) -> 22185972.33 | F189: 0
A190: 793 | B190: 5915267 | C190: =VLOOKUP(A190,'Crete Monee Totals 5-8'!A:B,2,0) -> 56480 | D190: 5858787 | E190: =VLOOKUP(A190,'AFR18'!A:L,12,0) -> 5858787 | F190: 0
A191: 794 | B191: 31438751.79 | C191: =VLOOKUP(A191,'Crete Monee Totals 5-8'!A:B,2,0) -> 12739 | D191: 31426012.79 | E191: =VLOOKUP(A191,'AFR18'!A:L,12,0) -> 31426012.79 | F191: 0
A192: 795 | B192: 72429514 | C192: =VLOOKUP(A192,'Crete Monee Totals 5-8'!A:B,2,0) -> 129880 | D192: 72299634 | E192: =VLOOKUP(A192,'AFR18'!A:L,12,0) -> 72299634 | F192: 0
A193: 796 | B193: 109471562 | C193: 0 | D193: 109471562 | E193: =VLOOKUP(A193,'AFR18'!A:L,12,0) -> 109471562 | F193: 0
A194: 797 | B194: 202617370.8 | C194: =VLOOKUP(A194,'Crete Monee Totals 5-8'!A:B,2,0) -> 6817 | D194: 202610553.8 | E194: =VLOOKUP(A194,'AFR18'!A:L,12,0) -> 202610553.8 | F194: 0
A195: 798 | B195: 9997150.63 | C195: 0 | D195: =SUM(B195-C195) -> 9997150.63 | E195: =VLOOKUP(A195,'AFR18'!A:L,12,0) -> 9997150.63 | F195: =SUM(D195-E195) -> 0
A196: 800 | B196: 431869616.2 | C196: =VLOOKUP(A196,'Crete Monee Totals 5-8'!A:B,2,0) -> 205916 | D196: 431663700.2 | E196: =VLOOKUP(A196,'AFR18'!A:L,12,0) -> 431663700.2 | F196: 0
A197: 801 | B197: 2264478 | C197: 0 | D197: 2264478 | E197: =VLOOKUP(A197,'AFR18'!A:L,12,0) -> 2264478 | F197: 0
A198: 802 | B198: 5319354 | C198: 0 | D198: 5319354 | E198: =VLOOKUP(A198,'AFR18'!A:L,12,0) -> 5319354 | F198: 0
A199: 803 | B199: 16403015 | C199: =VLOOKUP(A199,'Crete Monee Totals 5-8'!A:B,2,0) -> 42327 | D199: 16360688 | E199: =VLOOKUP(A199,'AFR18'!A:L,12,0) -> 16360688 | F199: 0
A200: 804 | B200: 15391306 | C200: =VLOOKUP(A200,'Crete Monee Totals 5-8'!A:B,2,0) -> 117631 | D200: 15273675 | E200: =VLOOKUP(A200,'AFR18'!A:L,12,0) -> 15273675 | F200: 0
... 2207 more rows

Sheet Sheet4 (hidden)
A1: ChrAgreNum | B1: cds_dst_name | C1: 3612 | D1: 3613 | F1: ChrAgreNum | G1: cds_dst_name | H1: 3612
A2: 01001001026 | B2: Payson CUSD 1 | F2: 01001001026 | G2: Payson CUSD 1
A3: 01001002026 | B3: Liberty CUSD 2 | F3: 01001002026 | G3: Liberty CUSD 2
A4: 01001003026 | B4: Central CUSD 3 | F4: 01001003026 | G4: Central CUSD 3
A5: 01001004026 | B5: CUSD 4 | F5: 01001004026 | G5: CUSD 4
A6: 01001172022 | B6: Quincy SD 172 | F6: 01001172022 | G6: Quincy SD 172
A7: 01005001026 | B7: Brown County CUSD 1 | F7: 01005001026 | G7: Brown County CUSD 1
A8: 01009015026 | B8: Beardstown CUSD 15 | F8: 01009015026 | G8: Beardstown CUSD 15
A9: 01009064026 | B9: Virginia CUSD 64 | F9: 01009064026 | G9: Virginia CUSD 64
A10: 01009262026 | B10: A-C Central CUSD 262 | F10: 01009262026 | G10: A-C Central CUSD 262
A11: 01069001026 | B11: Franklin CUSD 1 | F11: 01069001026 | G11: Franklin CUSD 1
A12: 01069006026 | B12: Waverly CUSD 6 | F12: 01069006026 | G12: Waverly CUSD 6
A13: 01069011026 | B13: Meredosia-Chambersburg CUSD 11 | F13: 01069011026 | G13: Meredosia-Chambersburg CUSD 11
A14: 01069027026 | B14: Triopia CUSD 27 | F14: 01069027026 | G14: Triopia CUSD 27
A15: 01069117022 | B15: Jacksonville SD 117 | F15: 01069117022 | G15: Jacksonville SD 117
A16: 01075003026 | B16: Pleasant Hill CUSD 3 | F16: 01075003026 | G16: Pleasant Hill CUSD 3
A17: 01075004026 | B17: Griggsville-Perry CUSD 4 | F17: 01075004026 | G17: Griggsville-Perry CUSD 4
A18: 01075010026 | B18: Pikeland CUSD 10 | F18: 01075010026 | G18: Pikeland CUSD 10
A19: 01075012026 | B19: Western CUSD 12 | F19: 01075012026 | G19: Western CUSD 12
A20: 01086001026 | B20: Winchester CUSD 1 | F20: 01086001026 | G20: Winchester CUSD 1
A21: 01086002026 | B21: Scott-Morgan CUSD 2 | F21: 01086002026 | G21: Scott-Morgan CUSD 2
A22: 03003001026 | B22: Mulberry Grove CUSD 1 | F22: 03003001026 | G22: Mulberry Grove CUSD 1
A23: 03003002026 | B23: Bond County CUSD 2 | F23: 03003002026 | G23: Bond County CUSD 2
A24: 03011001026 | B24: Morrisonville CUSD 1 | F24: 03011001026 | G24: Morrisonville CUSD 1
A25: 03011003026 | B25: Taylorville CUSD 3 | F25: 03011003026 | G25: Taylorville CUSD 3
A26: 03011004026 | B26: Edinburg CUSD 4 | F26: 03011004026 | G26: Edinburg CUSD 4
A27: 03011008026 | B27: Pana CUSD 8 | F27: 03011008026 | G27: Pana CUSD 8
A28: 03011014024 | B28: South Fork SD 14 | F28: 03011014024 | G28: South Fork SD 14
A29: 03025010026 | B29: Altamont CUSD 10 | F29: 03025010026 | G29: Altamont CUSD 10
A30: 03025020026 | B30: Beecher City CUSD 20 | F30: 03025020026 | G30: Beecher City CUSD 20
A31: 03025030026 | B31: Dieterich CUSD 30 | F31: 03025030026 | G31: Dieterich CUSD 30
A32: 03025040026 | B32: Effingham CUSD 40 | F32: 03025040026 | G32: Effingham CUSD 40
A33: 03025050026 | B33: Teutopolis CUSD 50 | F33: 03025050026 | G33: Teutopolis CUSD 50
A34: 03026201026 | B34: Brownstown CUSD 201 | F34: 03026201026 | G34: Brownstown CUSD 201
A35: 03026202026 | B35: St Elmo CUSD 202 | F35: 03026202026 | G35: St Elmo CUSD 202
A36: 03026203026 | B36: Vandalia CUSD 203 | F36: 03026203026 | G36: Vandalia CUSD 203
A37: 03026204026 | B37: Ramsey CUSD 204 | F37: 03026204026 | G37: Ramsey CUSD 204
A38: 03068002026 | B38: Panhandle CUSD 2 | F38: 03068002026 | G38: Panhandle CUSD 2
A39: 03068003026 | B39: Hillsboro CUSD 3 | F39: 03068003026 | G39: Hillsboro CUSD 3
A40: 03068012026 | B40: Litchfield CUSD 12 | F40: 03068012026 | G40: Litchfield CUSD 12
A41: 03068022026 | B41: Nokomis CUSD 22 | F41: 03068022026 | G41: Nokomis CUSD 22
A42: 04004100026 | B42: Belvidere CUSD 100 | F42: 04004100026 | G42: Belvidere CUSD 100
A43: 04004200026 | B43: North Boone CUSD 200 | F43: 04004200026 | G43: North Boone CUSD 200
A44: 04101122022 | B44: Harlem UD 122 | F44: 04101122022 | G44: Harlem UD 122
A45: 04101131004 | B45: Kinnikinnick CCSD 131 | F45: 04101131004 | G45: Kinnikinnick CCSD 131
A46: 04101133004 | B46: Prairie Hill CCSD 133 | F46: 04101133004 | G46: Prairie Hill CCSD 133
A47: 04101134004 | B47: Shirland CCSD 134 | F47: 04101134004 | G47: Shirland CCSD 134
A48: 04101140004 | B48: Rockton SD 140 | F48: 04101140004 | G48: Rockton SD 140
A49: 04101205025 | B49: Rockford SD 205 | F49: 04101205025 | G49: Rockford SD 205
A50: 04101207016 | B50: Hononegah CHD 207 | F50: 04101207016 | G50: Hononegah CHD 207
A51: 04101320026 | B51: County of Winnebago SD 320 | F51: 04101320026 | G51: County of Winnebago SD 320
A52: 04101321026 | B52: Pecatonica CUSD 321 | F52: 04101321026 | G52: Pecatonica CUSD 321
A53: 04101322026 | B53: Durand CUSD 322 | F53: 04101322026 | G53: Durand CUSD 322
A54: 04101323026 | B54: Winnebago CUSD 323 | F54: 04101323026 | G54: Winnebago CUSD 323
A55: 05016015004 | B55: Palatine CCSD 15 | F55: 05016015004 | G55: Palatine CCSD 15
A56: 05016021004 | B56: Wheeling CCSD 21 | F56: 05016021004 | G56: Wheeling CCSD 21
A57: 05016023002 | B57: Prospect Heights SD 23 | F57: 05016023002 | G57: Prospect Heights SD 23
A58: 05016025002 | B58: Arlington Heights SD 25 | F58: 05016025002 | G58: Arlington Heights SD 25
A59: 05016026002 | B59: River Trails SD 26 | F59: 05016026002 | G59: River Trails SD 26
A60: 05016027002 | B60: Northbrook ESD 27 | F60: 05016027002 | G60: Northbrook ESD 27
A61: 05016028002 | B61: Northbrook SD 28 | F61: 05016028002 | G61: Northbrook SD 28
A62: 05016029002 | B62: Sunset Ridge SD 29 | F62: 05016029002 | G62: Sunset Ridge SD 29
A63: 05016030002 | B63: Northbrook/Glenview SD 30 | F63: 05016030002 | G63: Northbrook/Glenview SD 30
A64: 05016031002 | B64: West Northfield SD 31 | F64: 05016031002 | G64: West Northfield SD 31
A65: 05016034004 | B65: Glenview CCSD 34 | F65: 05016034004 | G65: Glenview CCSD 34
A66: 05016035002 | B66: Glencoe SD 35 | F66: 05016035002 | G66: Glencoe SD 35
A67: 05016036002 | B67: Winnetka SD 36 | F67: 05016036002 | G67: Winnetka SD 36
A68: 05016037002 | B68: Avoca SD 37 | F68: 05016037002 | G68: Avoca SD 37
A69: 05016038002 | B69: Kenilworth SD 38 | F69: 05016038002 | G69: Kenilworth SD 38
A70: 05016039002 | B70: Wilmette SD 39 | F70: 05016039002 | G70: Wilmette SD 39
A71: 05016054004 | B71: Schaumburg CCSD 54 | F71: 05016054004 | G71: Schaumburg CCSD 54
A72: 05016057002 | B72: Mount Prospect SD 57 | F72: 05016057002 | G72: Mount Prospect SD 57
A73: 05016059004 | B73: Comm Cons SD 59 | F73: 05016059004 | G73: Comm Cons SD 59
A74: 05016062004 | B74: CCSD 62 | F74: 05016062004 | G74: CCSD 62
A75: 05016063002 | B75: East Maine SD 63 | F75: 05016063002 | G75: East Maine SD 63
A76: 05016064004 | B76: Park Ridge CCSD 64 | F76: 05016064004 | G76: Park Ridge CCSD 64
A77: 05016065004 | B77: Evanston CCSD 65 | F77: 05016065004 | G77: Evanston CCSD 65
A78: 05016067002 | B78: Golf ESD 67 | F78: 05016067002 | G78: Golf ESD 67
A79: 05016068002 | B79: Skokie SD 68 | F79: 05016068002 | G79: Skokie SD 68
A80: 05016069002 | B80: Skokie SD 69 | F80: 05016069002 | G80: Skokie SD 69
A81: 05016070002 | B81: Morton Grove SD 70 | F81: 05016070002 | G81: Morton Grove SD 70
A82: 05016071002 | B82: Niles ESD 71 | F82: 05016071002 | G82: Niles ESD 71
A83: 05016072002 | B83: Fairview SD 72 | F83: 05016072002 | G83: Fairview SD 72
A84: 05016073002 | B84: East Prairie SD 73 | F84: 05016073002 | G84: East Prairie SD 73
A85: 05016073502 | B85: Skokie SD 73-5 | F85: 05016073502 | G85: Skokie SD 73-5
A86: 05016074002 | B86: Lincolnwood SD 74 | F86: 05016074002 | G86: Lincolnwood SD 74
A87: 05016202017 | B87: Evanston Twp HSD 202 | F87: 05016202017 | G87: Evanston Twp HSD 202
A88: 05016203017 | B88: New Trier Twp HSD 203 | F88: 05016203017 | G88: New Trier Twp HSD 203
A89: 05016207017 | B89: Maine Township HSD 207 | F89: 05016207017 | G89: Maine Township HSD 207
A90: 05016211017 | B90: Township HSD 211 | F90: 05016211017 | G90: Township HSD 211
A91: 05016214017 | B91: Township HSD 214 | F91: 05016214017 | G91: Township HSD 214
A92: 05016219017 | B92: Niles Twp HSD 219 | F92: 05016219017 | G92: Niles Twp HSD 219
A93: 05016225017 | B93: Northfield Twp HSD 225 | F93: 05016225017 | G93: Northfield Twp HSD 225
A94: 06016078002 | B94: Rosemont ESD 78 | F94: 06016078002 | G94: Rosemont ESD 78
A95: 06016079002 | B95: Pennoyer SD 79 | F95: 06016079002 | G95: Pennoyer SD 79
A96: 06016080002 | B96: Norridge SD 80 | F96: 06016080002 | G96: Norridge SD 80 | H96: 5985
A97: 06016081002 | B97: Schiller Park SD 81 | F97: 06016081002 | G97: Schiller Park SD 81
A98: 06016083002 | B98: Mannheim SD 83 | F98: 06016083002 | G98: Mannheim SD 83
A99: 06016084002 | B99: Franklin Park SD 84 | F99: 06016084002 | G99: Franklin Park SD 84
A100: 06016084502 | B100: Rhodes SD 84-5 | F100: 06016084502 | G100: Rhodes SD 84-5
A101: 06016085502 | B101: River Grove SD 85-5 | F101: 06016085502 | G101: River Grove SD 85-5
A102: 06016086002 | B102: Union Ridge SD 86 | F102: 06016086002 | G102: Union Ridge SD 86
A103: 06016087002 | B103: Berkeley SD 87 | F103: 06016087002 | G103: Berkeley SD 87
A104: 06016088002 | B104: Bellwood SD 88 | F104: 06016088002 | G104: Bellwood SD 88
A105: 06016089002 | B105: Maywood-Melrose Park-Broadview 89 | F105: 06016089002 | G105: Maywood-Melrose Park-Broadview 89
A106: 06016090002 | B106: River Forest SD 90 | F106: 06016090002 | G106: River Forest SD 90
A107: 06016091002 | B107: Forest Park SD 91 | F107: 06016091002 | G107: Forest Park SD 91
A108: 06016092002 | B108: Lindop SD 92 | F108: 06016092002 | G108: Lindop SD 92
A109: 06016092502 | B109: Westchester SD 92-5 | F109: 06016092502 | G109: Westchester SD 92-5
A110: 06016093002 | B110: Hillside SD 93 | F110: 06016093002 | G110: Hillside SD 93
A111: 06016094002 | B111: Komarek SD 94 | F111: 06016094002 | G111: Komarek SD 94
A112: 06016095002 | B112: Brookfield Lagrange Park SD 95 | F112: 06016095002 | G112: Brookfield Lagrange Park SD 95
A113: 06016096002 | B113: Riverside SD 96 | F113: 06016096002 | G113: Riverside SD 96
A114: 06016097002 | B114: Oak Park ESD 97 | F114: 06016097002 | G114: Oak Park ESD 97
A115: 06016098002 | B115: Berwyn North SD 98 | F115: 06016098002 | G115: Berwyn North SD 98
A116: 06016099002 | B116: Cicero SD 99 | F116: 06016099002 | G116: Cicero SD 99
A117: 06016100002 | B117: Berwyn South SD 100 | F117: 06016100002 | G117: Berwyn South SD 100
A118: 06016101002 | B118: Western Springs SD 101 | F118: 06016101002 | G118: Western Springs SD 101
A119: 06016102002 | B119: La Grange SD 102 | F119: 06016102002 | G119: La Grange SD 102
A120: 06016103002 | B120: Lyons SD 103 | F120: 06016103002 | G120: Lyons SD 103
A121: 06016105002 | B121: La Grange SD 105 South | F121: 06016105002 | G121: La Grange SD 105 South
A122: 06016106002 | B122: LaGrange Highlands SD 106 | F122: 06016106002 | G122: LaGrange Highlands SD 106
A123: 06016107002 | B123: Pleasantdale SD 107 | F123: 06016107002 | G123: Pleasantdale SD 107
A124: 06016200013 | B124: Oak Park - River Forest SD 200 | F124: 06016200013 | G124: Oak Park - River Forest SD 200
A125: 06016201017 | B125: J S Morton HSD 201 | F125: 06016201017 | G125: J S Morton HSD 201
A126: 06016204017 | B126: Lyons Twp HSD 204 | F126: 06016204017 | G126: Lyons Twp HSD 204
A127: 06016208017 | B127: Riverside-Brookfield Twp SD 208 | F127: 06016208017 | G127: Riverside-Brookfield Twp SD 208
A128: 06016209017 | B128: Proviso Twp HSD 209 | F128: 06016209017 | G128: Proviso Twp HSD 209
A129: 06016212016 | B129: Leyden CHSD 212 | F129: 06016212016 | G129: Leyden CHSD 212
A130: 06016234016 | B130: Ridgewood CHSD 234 | F130: 06016234016 | G130: Ridgewood CHSD 234
A131: 06016401026 | B131: Elmwood Park CUSD 401 | F131: 06016401026 | G131: Elmwood Park CUSD 401
A132: 07016104002 | B132: Summit SD 104 | F132: 07016104002 | G132: Summit SD 104
A133: 07016108002 | B133: Willow Springs SD 108 | F133: 07016108002 | G133: Willow Springs SD 108
A134: 07016109002 | B134: Indian Springs SD 109 | F134: 07016109002 | G134: Indian Springs SD 109
A135: 07016110002 | B135: Central Stickney SD 110 | F135: 07016110002 | G135: Central Stickney SD 110
A136: 07016111002 | B136: Burbank SD 111 | F136: 07016111002 | G136: Burbank SD 111
A137: 07016113A02 | B137: Lemont-Bromberek CSD 113A | F137: 07016113A02 | G137: Lemont-Bromberek CSD 113A
A138: 07016117002 | B138: North Palos SD 117 | F138: 07016117002 | G138: North Palos SD 117
A139: 07016118004 | B139: Palos CCSD 118 | F139: 07016118004 | G139: Palos CCSD 118
A140: 07016122002 | B140: Ridgeland SD 122 | F140: 07016122002 | G140: Ridgeland SD 122
A141: 07016123002 | B141: Oak Lawn-Hometown SD 123 | F141: 07016123002 | G141: Oak Lawn-Hometown SD 123
A142: 07016124002 | B142: Evergreen Park ESD 124 | F142: 07016124002 | G142: Evergreen Park ESD 124
A143: 07016125002 | B143: Atwood Heights SD 125 | F143: 07016125002 | G143: Atwood Heights SD 125
A144: 07016126002 | B144: Alsip-Hazlgrn-Oaklwn SD 126 | F144: 07016126002 | G144: Alsip-Hazlgrn-Oaklwn SD 126
A145: 07016127002 | B145: Worth SD 127 | F145: 07016127002 | G145: Worth SD 127
A146: 07016127502 | B146: Chicago Ridge SD 127-5 | F146: 07016127502 | G146: Chicago Ridge SD 127-5
A147: 07016128002 | B147: Palos Heights SD 128 | F147: 07016128002 | G147: Palos Heights SD 128
A148: 07016130002 | B148: Cook County SD 130 | F148: 07016130002 | G148: Cook County SD 130
A149: 07016132002 | B149: Calumet Public SD 132 | F149: 07016132002 | G149: Calumet Public SD 132
A150: 07016133002 | B150: Gen George Patton SD 133 | F150: 07016133002 | G150: Gen George Patton SD 133
A151: 07016135002 | B151: Orland SD 135 | F151: 07016135002 | G151: Orland SD 135
A152: 07016140002 | B152: Kirby SD 140 | F152: 07016140002 | G152: Kirby SD 140
A153: 07016142002 | B153: Forest Ridge SD 142 | F153: 07016142002 | G153: Forest Ridge SD 142
A154: 07016143002 | B154: Midlothian SD 143 | F154: 07016143002 | G154: Midlothian SD 143
A155: 07016143502 | B155: Posen-Robbins ESD 143-5 | F155: 07016143502 | G155: Posen-Robbins ESD 143-5
A156: 07016144002 | B156: Prairie-Hills ESD 144 | F156: 07016144002 | G156: Prairie-Hills ESD 144
A157: 07016145002 | B157: Arbor Park SD 145 | F157: 07016145002 | G157: Arbor Park SD 145
A158: 07016146004 | B158: CCSD 146 | F158: 07016146004 | G158: CCSD 146
A159: 07016147002 | B159: W Harvey-Dixmoor PSD 147 | F159: 07016147002 | G159: W Harvey-Dixmoor PSD 147
A160: 07016148002 | B160: Dolton SD 148 | F160: 07016148002 | G160: Dolton SD 148
A161: 07016149002 | B161: Dolton SD 149 | F161: 07016149002 | G161: Dolton SD 149
A162: 07016150002 | B162: South Holland SD 150 | F162: 07016150002 | G162: South Holland SD 150
A163: 07016151002 | B163: South Holland SD 151 | F163: 07016151002 | G163: South Holland SD 151
A164: 07016152002 | B164: Harvey SD 152 | F164: 07016152002 | G164: Harvey SD 152
A165: 07016152502 | B165: Hazel Crest SD 152-5 | F165: 07016152502 | G165: Hazel Crest SD 152-5
A166: 07016153002 | B166: Homewood SD 153 | F166: 07016153002 | G166: Homewood SD 153
A167: 07016154002 | B167: Thornton SD 154 | F167: 07016154002 | G167: Thornton SD 154
A168: 07016154502 | B168: Burnham SD 154-5 | F168: 07016154502 | G168: Burnham SD 154-5
A169: 07016155002 | B169: Calumet City SD 155 | F169: 07016155002 | G169: Calumet City SD 155
A170: 07016156002 | B170: Lincoln ESD 156 | F170: 07016156002 | G170: Lincoln ESD 156
A171: 07016157002 | B171: Hoover-Schrum Memorial SD 157 | F171: 07016157002 | G171: Hoover-Schrum Memorial SD 157
A172: 07016158002 | B172: Lansing SD 158 | F172: 07016158002 | G172: Lansing SD 158
A173: 07016159002 | B173: ESD 159 | F173: 07016159002 | G173: ESD 159
A174: 07016160002 | B174: Country Club Hills SD 160 | F174: 07016160002 | G174: Country Club Hills SD 160
A175: 07016161002 | B175: Flossmoor SD 161 | F175: 07016161002 | G175: Flossmoor SD 161
A176: 07016162002 | B176: Matteson ESD 162 | F176: 07016162002 | G176: Matteson ESD 162
A177: 07016163002 | B177: Park Forest SD 163 | F177: 07016163002 | G177: Park Forest SD 163
A178: 07016167002 | B178: Brookwood SD 167 | F178: 07016167002 | G178: Brookwood SD 167
A179: 07016168004 | B179: CCSD 168 | F179: 07016168004 | G179: CCSD 168
A180: 07016169002 | B180: Ford Heights SD 169 | F180: 07016169002 | G180: Ford Heights SD 169
A181: 07016170002 | B181: Chicago Heights SD 170 | F181: 07016170002 | G181: Chicago Heights SD 170
A182: 07016171002 | B182: Sunnybrook SD 171 | F182: 07016171002 | G182: Sunnybrook SD 171
A183: 07016172002 | B183: Sandridge SD 172 | F183: 07016172002 | G183: Sandridge SD 172
A184: 07016194002 | B184: Steger SD 194 | F184: 07016194002 | G184: Steger SD 194
A185: 07016205017 | B185: Thornton Twp HSD 205 | F185: 07016205017 | G185: Thornton Twp HSD 205
A186: 07016206017 | B186: Bloom Twp HSD 206 | F186: 07016206017 | G186: Bloom Twp HSD 206
A187: 07016210017 | B187: Lemont Twp HSD 210 | F187: 07016210017 | G187: Lemont Twp HSD 210
A188: 07016215017 | B188: Thornton Fractional Twp HSD 215 | F188: 07016215017 | G188: Thornton Fractional Twp HSD 215
A189: 07016217016 | B189: Argo CHSD 217 | F189: 07016217016 | G189: Argo CHSD 217
A190: 07016218016 | B190: CHSD 218 | F190: 07016218016 | G190: CHSD 218
A191: 07016220017 | B191: Reavis Twp HSD 220 | F191: 07016220017 | G191: Reavis Twp HSD 220
A192: 07016227017 | B192: Rich Twp HSD 227 | F192: 07016227017 | G192: Rich Twp HSD 227
A193: 07016228016 | B193: Bremen CHSD 228 | F193: 07016228016 | G193: Bremen CHSD 228
A194: 07016229016 | B194: Oak Lawn CHSD 229 | F194: 07016229016 | G194: Oak Lawn CHSD 229
A195: 07016230013 | B195: Cons HSD 230 | F195: 07016230013 | G195: Cons HSD 230
A196: 07016231016 | B196: Evergreen Park CHSD 231 | F196: 07016231016 | G196: Evergreen Park CHSD 231
A197: 07016233016 | B197: Homewood Flossmoor CHSD 233 | F197: 07016233016 | G197: Homewood Flossmoor CHSD 233
A198: 08008308026 | B198: Eastland CUSD 308 | F198: 08008308026 | G198: Eastland CUSD 308
A199: 08008314026 | B199: West Carroll CUSD 314 | F199: 08008314026 | G199: West Carroll CUSD 314
A200: 08008399026 | B200: Chadwick-Milledgeville CUSD 399 | F200: 08008399026 | G200: Chadwick-Milledgeville CUSD 399
... 652 more rows

Sheet Sheet5 (hidden)
A1: ChrAgreNum | B1: 4052 | C1: 4061 | D1: 4070 | E1: 4075 | I1: Field No | J1: SumOf2018
A2: 01001001026 | B2: 1603274 | C2: 5764461 | D2: 1603274 | E2: 4955576 | I2: 4052 | J2: 6473039169
A3: 01001002026 | B3: 1967629 | C3: 6446888 | D3: 1967629 | E3: 6106252 | I3: 4061 | J3: 2.926932107e+10
A4: 01001003026 | B4: 2921256 | C4: 9242043 | D4: 2921256 | E4: 9021535 | I4: 4070 | J4: 6473039169
A5: 01001004026 | B5: 1922882 | C5: 6948271 | D5: 1922882 | E5: 6236456 | I5: 4075 | J5: 2.803020943e+10
A6: 01001172022 | B6: 19032643 | C6: 71340438 | D6: 19032643 | E6: 68866630
A7: 01005001026 | B7: 2400311 | C7: 8033949 | D7: 2400311 | E7: 8299970
A8: 01009015026 | B8: 4410108 | C8: 18143988 | D8: 4410108 | E8: 15774694
A9: 01009064026 | B9: 1310012 | C9: 3510221 | D9: 1310012 | E9: 3381237
A10: 01009262026 | B10: 1443021 | C10: 5019438 | D10: 1443021 | E10: 4626845
A11: 01069001026 | B11: 1205841 | C11: 4122538 | D11: 1205841 | E11: 4137108
A12: 01069006026 | B12: 184388 | C12: 3896163 | D12: 184388 | E12: 3317503
A13: 01069011026 | B13: 1011307 | C13: 3239822 | D13: 1011307 | E13: 3383688
A14: 01069027026 | B14: 1319875 | C14: 4293083 | D14: 1319875 | E14: 4221719
A15: 01069117022 | B15: 10777166 | C15: 42717118 | D15: 10777166 | E15: 40356297
A16: 01075003026 | B16: 1095783 | C16: 3436528 | D16: 1095783 | E16: 3725145
A17: 01075004026 | B17: 962910 | C17: 4202801 | D17: 962910 | E17: 4132448
A18: 01075010026 | B18: 3754074 | C18: 13659512 | D18: 3754074 | E18: 12754737
A19: 01075012026 | B19: 1546687 | C19: 6108845 | D19: 1546687 | E19: 5848048
A20: 01086001026 | B20: 2140197 | C20: 6791343 | D20: 2140197 | E20: 6553866
A21: 01086002026 | B21: 854952 | C21: 2861765 | D21: 854952 | E21: 2817886
A22: 03003001026 | B22: 709780 | C22: 3900479 | D22: 709780 | E22: 3564849
A23: 03003002026 | B23: 6295670 | C23: 22177585 | D23: 6295670 | E23: 21074987
A24: 03011001026 | B24: 1038391 | C24: 3744969 | D24: 1038391 | E24: 3555858
A25: 03011003026 | B25: 6491465 | C25: 25618993 | D25: 6491465 | E25: 25404861
A26: 03011004026 | B26: 717509 | C26: 3099765 | D26: 717509 | E26: 2726123
A27: 03011008026 | B27: 4304378 | C27: 16041928 | D27: 4304378 | E27: 14734805
A28: 03011014024 | B28: 877841 | C28: 3781173 | D28: 877841 | E28: 3352866
A29: 03025010026 | B29: 1336719 | C29: 6928193 | D29: 1336719 | E29: 6788037
A30: 03025020026 | B30: 1360517 | C30: 4146012 | D30: 1360517 | E30: 3855885
A31: 03025030026 | B31: 1567353 | C31: 5072918 | D31: 1567353 | E31: 4713246
A32: 03025040026 | B32: 4289530 | C32: 23477736 | D32: 4289530 | E32: 22218327
A33: 03025050026 | B33: 1719486 | C33: 8872059 | D33: 1719486 | E33: 8263758
A34: 03026201026 | B34: 1189996 | C34: 5195847 | D34: 1189996 | E34: 4833225
A35: 03026202026 | B35: 1688004 | C35: 5290813 | D35: 1688004 | E35: 5147656
A36: 03026203026 | B36: 5617358 | C36: 18098094 | D36: 5617358 | E36: 17685144
A37: 03026204026 | B37: 1439374 | C37: 4937249 | D37: 1439374 | E37: 4761865
A38: 03068002026 | B38: 1733292 | C38: 6145895 | D38: 1733292 | E38: 5952633
A39: 03068003026 | B39: 5441928 | C39: 19004736 | D39: 5441928 | E39: 18716980
A40: 03068012026 | B40: 4463621 | C40: 15932472 | D40: 4463621 | E40: 15707539
A41: 03068022026 | B41: 1750507 | C41: 6976273 | D41: 1750507 | E41: 6416585
A42: 04004100026 | B42: 31440722 | C42: 110895902 | D42: 31440722 | E42: 104163537
A43: 04004200026 | B43: 5631076 | C43: 20820325 | D43: 5631076 | E43: 19738918
A44: 04101122022 | B44: 30011705 | C44: 96272449 | D44: 30011705 | E44: 96862202
A45: 04101131004 | B45: 982303 | C45: 17469153 | D45: 982303 | E45: 15260302
A46: 04101133004 | B46: 403989 | C46: 6273607 | D46: 403989 | E46: 5916284
A47: 04101134004 | B47: 73589 | C47: 1434180 | D47: 73589 | E47: 1369562
A48: 04101140004 | B48: 781285 | C48: 13419441 | D48: 781285 | E48: 12533026
A49: 04101205025 | B49: 116600332 | C49: 428911600 | D49: 116600332 | E49: 413532751
A50: 04101207016 | B50: 7733780 | C50: 29895789 | D50: 7733780 | E50: 29633277
A51: 04101320026 | B51: 497664 | C51: 9726926 | D51: 497664 | E51: 8815476
A52: 04101321026 | B52: 3242398 | C52: 11405022 | D52: 3242398 | E52: 11948223
A53: 04101322026 | B53: 2590858 | C53: 9806740 | D53: 2590858 | E53: 9461642
A54: 04101323026 | B54: 5155387 | C54: 18280148 | D54: 5155387 | E54: 17868967
A55: 05016015004 | B55: 63898292 | C55: 188480719 | D55: 63898292 | E55: 185682404
A56: 05016021004 | B56: 38938828 | C56: 126854114 | D56: 38938828 | E56: 120476416
A57: 05016023002 | B57: 7662158 | C57: 25762164 | D57: 7662158 | E57: 25423967
A58: 05016025002 | B58: 28217385 | C58: 90249671 | D58: 28217385 | E58: 89403944
A59: 05016026002 | B59: 9249862 | C59: 30342006 | D59: 9249862 | E59: 30423098
A60: 05016027002 | B60: 11623026 | C60: 34335276 | D60: 11623026 | E60: 34667596
A61: 05016028002 | B61: 14073844 | C61: 46170192 | D61: 14073844 | E61: 47350231
A62: 05016029002 | B62: 4294352 | C62: 16367111 | D62: 4294352 | E62: 15209076
A63: 05016030002 | B63: 9812552 | C63: 30335655 | D63: 9812552 | E63: 30623489
A64: 05016031002 | B64: 6967783 | C64: 22493149 | D64: 6967783 | E64: 22064545
A65: 05016034004 | B65: 24518362 | C65: 82739210 | D65: 24518362 | E65: 81462435
A66: 05016035002 | B66: 8748337 | C66: 31688615 | D66: 8748337 | E66: 29035969
A67: 05016036002 | B67: 16554564 | C67: 54449942 | D67: 16554564 | E67: 51870442
A68: 05016037002 | B68: 6296530 | C68: 18613653 | D68: 6296530 | E68: 19773987
A69: 05016038002 | B69: 4656050 | C69: 15356156 | D69: 4656050 | E69: 15617212
A70: 05016039002 | B70: 14117237 | C70: 62475086 | D70: 14117237 | E70: 61139151
A71: 05016054004 | B71: 43627489 | C71: 214747472 | D71: 43627489 | E71: 214578410
A72: 05016057002 | B72: 10398181 | C72: 30144861 | D72: 10398181 | E72: 32114303
A73: 05016059004 | B73: 45106358 | C73: 132108693 | D73: 45106358 | E73: 136091979
A74: 05016062004 | B74: 18551136 | C74: 87962198 | D74: 18551136 | E74: 84648199
A75: 05016063002 | B75: 10273084 | C75: 49781083 | D75: 10273084 | E75: 46781644
A76: 05016064004 | B76: 18054149 | C76: 79480065 | D76: 18054149 | E76: 78049482
A77: 05016065004 | C77: 122756571 | E77: 105190692
A78: 05016067002 | B78: 3582301 | C78: 12070780 | D78: 3582301 | E78: 11166765
A79: 05016068002 | B79: 10882622 | C79: 33968585 | D79: 10882622 | E79: 36261767
A80: 05016069002 | B80: 5811348 | C80: 28078427 | D80: 5811348 | E80: 26970200
A81: 05016070002 | B81: 784461 | C81: 12217222 | D81: 784461 | E81: 11940981
A82: 05016071002 | B82: 3415332 | C82: 11433746 | D82: 3415332 | E82: 11411135
A83: 05016072002 | B83: 4793879 | C83: 15115439 | D83: 4793879 | E83: 15407599
A84: 05016073002 | B84: 3045433 | C84: 10223557 | D84: 3045433 | E84: 10138932
A85: 05016073502 | B85: 6247689 | C85: 20010103 | D85: 6247689 | E85: 21500638
A86: 05016074002 | B86: 9014262 | C86: 29533497 | D86: 9014262 | E86: 28311537
A87: 05016202017 | B87: 24308805 | C87: 91109135 | D87: 24308805 | E87: 89224755
A88: 05016203017 | B88: 21531835 | C88: 114175188 | D88: 21531835 | E88: 110680582
A89: 05016207017 | B89: 45678237 | C89: 155313099 | D89: 45678237 | E89: 149263278
A90: 05016211017 | B90: 79932635 | C90: 279071210 | D90: 79932635 | E90: 270746276
A91: 05016214017 | B91: 80863126 | C91: 283875596 | D91: 80863126 | E91: 273972842
A92: 05016219017 | B92: 35215118 | C92: 152693472 | D92: 35215118 | E92: 130723896
A93: 05016225017 | B93: 39625742 | C93: 150108911 | D93: 39625742 | E93: 142627907
A94: 06016078002 | B94: 1661730 | C94: 6133674 | D94: 1661730 | E94: 5527010
A95: 06016079002 | B95: 979779 | C95: 4905511 | D95: 979779 | E95: 4775619
A96: 06016080002 | B96: 2899045 | C96: 13011391 | D96: 2899045 | E96: 13363746
A97: 06016081002 | B97: 3858202 | C97: 19685974 | D97: 3858202 | E97: 19243889
A98: 06016083002 | B98: 15070779 | C98: 52028867 | D98: 15070779 | E98: 49901412
A99: 06016084002 | B99: 6142091 | C99: 22630726 | D99: 6142091 | E99: 21341529
A100: 06016084502 | B100: 3639260 | C100: 13743893 | D100: 3639260 | E100: 11999011
A101: 06016085502 | B101: 1615978 | C101: 8767457 | D101: 1615978 | E101: 8008504
A102: 06016086002 | B102: 463429 | C102: 6939420 | D102: 463429 | E102: 6716567
A103: 06016087002 | B103: 9071627 | C103: 40609578 | D103: 9071627 | E103: 37800378
A104: 06016088002 | B104: 6180017 | C104: 34374179 | D104: 6180017 | E104: 32590597
A105: 06016089002 | B105: 21060557 | C105: 81197433 | D105: 21060557 | E105: 74745101
A106: 06016090002 | B106: 9656034 | C106: 30438265 | D106: 9656034 | E106: 29692460
A107: 06016091002 | B107: 5465976 | C107: 20412038 | D107: 5465976 | E107: 20421335
A108: 06016092002 | C108: 6515313 | E108: 6118142
A109: 06016092502 | B109: 8793407 | C109: 21594850 | D109: 8793407 | E109: 21252729
A110: 06016093002 | B110: 2741906 | C110: 9651131 | D110: 2741906 | E110: 8921294
A111: 06016094002 | B111: 2367107 | C111: 8617429 | D111: 2367107 | E111: 8461705
A112: 06016095002 | B112: 4478688 | C112: 15308142 | D112: 4478688 | E112: 14777772
A113: 06016096002 | B113: 8860233 | C113: 29741332 | D113: 8860233 | E113: 31014795
A114: 06016097002 | B114: 33096463 | C114: 115305502 | D114: 33096463 | E114: 107702469
A115: 06016098002 | B115: 12212081 | C115: 45739584 | D115: 12212081 | E115: 43256891
A116: 06016099002 | B116: 49273942 | C116: 193623721 | D116: 49273942 | E116: 174815117
A117: 06016100002 | B117: 14469582 | C117: 58771530 | D117: 14469582 | E117: 49569173
A118: 06016101002 | B118: 8176636 | C118: 22387732 | D118: 8176636 | E118: 22773784
A119: 06016102002 | B119: 9369409 | C119: 43564700 | D119: 9369409 | E119: 39721804
A120: 06016103002 | B120: 11624726 | C120: 37486128 | D120: 11624726 | E120: 39600950
A121: 06016105002 | B121: 10743576 | C121: 29818502 | D121: 10743576 | E121: 30367596
A122: 06016106002 | B122: 5149482 | C122: 16049129 | D122: 5149482 | E122: 15700855
A123: 06016107002 | B123: 5878088 | C123: 16374076 | D123: 5878088 | E123: 16631247
A124: 06016200013 | B124: 19376475 | C124: 83323777 | D124: 19376475 | E124: 84277371
A125: 06016201017 | B125: 33159525 | C125: 108887357 | D125: 33159525 | E125: 111406929
A126: 06016204017 | B126: 24713606 | C126: 85602094 | D126: 24713606 | E126: 85409155
A127: 06016208017 | B127: 8592084 | C127: 29847983 | D127: 8592084 | E127: 29308124
A128: 06016209017 | B128: 19098221 | C128: 90447330 | D128: 19098221 | E128: 80894520
A129: 06016212016 | B129: 23047041 | C129: 84832227 | D129: 23047041 | E129: 79859939
A130: 06016234016 | B130: 4790542 | C130: 18605795 | D130: 4790542 | E130: 17524694
A131: 06016401026 | B131: 13617126 | C131: 46956977 | D131: 13617126 | E131: 48015505
A132: 07016104002 | B132: 4855793 | C132: 25531749 | D132: 4855793 | E132: 26149940
A133: 07016108002 | B133: 1695661 | C133: 5968073 | D133: 1695661 | E133: 6873015
A134: 07016109002 | B134: 10614978 | C134: 42567282 | D134: 10614978 | E134: 40375805
A135: 07016110002 | B135: 934790 | C135: 5864321 | D135: 934790 | E135: 5396984
A136: 07016111002 | B136: 5866350 | C136: 44012093 | D136: 5866350 | E136: 41341812
A137: 07016113A02 | B137: 7494897 | C137: 28457943 | D137: 7494897 | E137: 26874982
A138: 07016117002 | B138: 2114246 | C138: 41664318 | D138: 2114246 | E138: 34379169
A139: 07016118004 | B139: 5649201 | C139: 26093675 | D139: 5649201 | E139: 26140399
A140: 07016122002 | B140: 4898173 | C140: 29036061 | D140: 4898173 | E140: 27520243
A141: 07016123002 | B141: 8910103 | C141: 42124318 | D141: 8910103 | E141: 42530287
A142: 07016124002 | B142: 5204641 | C142: 26549204 | D142: 5204641 | E142: 27883161
A143: 07016125002 | B143: 2485386 | C143: 9691435 | D143: 2485386 | E143: 9267400
A144: 07016126002 | B144: 4003455 | C144: 26427887 | D144: 4003455 | E144: 21225724
A145: 07016127002 | B145: 4330512 | C145: 16618936 | D145: 4330512 | E145: 15587530
A146: 07016127502 | B146: 3209318 | C146: 20440200 | D146: 3209318 | E146: 17176794
A147: 07016128002 | B147: 477267 | C147: 8695363 | D147: 477267 | E147: 8223390
A148: 07016130002 | B148: 9175976 | C148: 54023478 | D148: 9175976 | E148: 48622274
A149: 07016132002 | B149: 2957484 | C149: 14860577 | D149: 2957484 | E149: 13852134
A150: 07016133002 | B150: 1455499 | C150: 5668969 | D150: 1455499 | E150: 5342883
A151: 07016135002 | B151: 25937301 | C151: 89059829 | D151: 25937301 | E151: 86870595
A152: 07016140002 | B152: 10834810 | C152: 45885113 | D152: 10834810 | E152: 47955936
A153: 07016142002 | B153: 750042 | C153: 14148856 | D153: 750042 | E153: 13054547
A154: 07016143002 | B154: 7275372 | C154: 24611855 | D154: 7275372 | E154: 23744010
A155: 07016143502 | B155: 5555409 | C155: 22993898 | D155: 5555409 | E155: 22026646
A156: 07016144002 | B156: 9216544 | C156: 38172230 | D156: 9216544 | E156: 34831229
A157: 07016145002 | B157: 4407376 | C157: 16767768 | D157: 4407376 | E157: 15640581
A158: 07016146004 | B158: 7822693 | C158: 36952880 | D158: 7822693 | E158: 38003160
A159: 07016147002 | B159: 4477497 | C159: 19677574 | D159: 4477497 | E159: 18127722
A160: 07016148002 | B160: 1782405 | C160: 32155421 | D160: 1782405 | E160: 31290314
A161: 07016149002 | B161: 7524223 | C161: 40105887 | D161: 7524223 | E161: 36946281
A162: 07016150002 | B162: 4270211 | C162: 14358100 | D162: 4270211 | E162: 13827630
A163: 07016151002 | B163: 6640103 | C163: 26511618 | D163: 6640103 | E163: 24792854
A164: 07016152002 | B164: 4739230 | C164: 29072576 | D164: 4739230 | E164: 27781675
A165: 07016152502 | B165: 3336693 | C165: 14125658 | D165: 3336693 | E165: 14596951
A166: 07016153002 | B166: 8618890 | C166: 27700730 | D166: 8618890 | E166: 27370223
A167: 07016154002 | B167: 1179287 | C167: 3681427 | D167: 1179287 | E167: 3491294
A168: 07016154502 | B168: 402149 | C168: 2751374 | D168: 402149 | E168: 2329973
A169: 07016155002 | B169: 3007932 | C169: 16523691 | D169: 3007932 | E169: 16754262
A170: 07016156002 | B170: 2091618 | C170: 12752622 | D170: 2091618 | E170: 11639365
A171: 07016157002 | B171: 2230524 | C171: 12190218 | D171: 2230524 | E171: 12091138
A172: 07016158002 | B172: 5565435 | C172: 31974155 | D172: 5565435 | E172: 29826335
A173: 07016159002 | B173: 5549853 | C173: 30353441 | D173: 5549853 | E173: 30080915
A174: 07016160002 | B174: 4943880 | C174: 18515117 | D174: 4943880 | E174: 18934657
A175: 07016161002 | B175: 10145725 | C175: 35462169 | D175: 10145725 | E175: 35228640
A176: 07016162002 | B176: 7513550 | C176: 39200241 | D176: 7513550 | E176: 38537013
A177: 07016163002 | B177: 8489957 | C177: 30359826 | D177: 8489957 | E177: 28793974
A178: 07016167002 | B178: 4431397 | C178: 17844783 | D178: 4431397 | E178: 17301458
A179: 07016168004 | B179: 6831041 | C179: 23893346 | D179: 6831041 | E179: 23949303
A180: 07016169002 | B180: 2116798 | C180: 7551886 | D180: 2116798 | E180: 8072536
A181: 07016170002 | B181: 14773706 | C181: 53612877 | D181: 14773706 | E181: 50642098
A182: 07016171002 | B182: 3681154 | C182: 14743183 | D182: 3681154 | E182: 13815699
A183: 07016172002 | B183: 1469295 | C183: 5827521 | D183: 1469295 | E183: 5635855
A184: 07016194002 | B184: 5513493 | C184: 19379901 | D184: 5513493 | E184: 18429288
A185: 07016205017 | B185: 31705093 | C185: 122928812 | D185: 31705093 | E185: 117890851
A186: 07016206017 | B186: 17960736 | C186: 61184893 | D186: 17960736 | E186: 58557413
A187: 07016210017 | B187: 8076289 | C187: 28196081 | D187: 8076289 | E187: 26718775
A188: 07016215017 | B188: 12294161 | C188: 57940330 | D188: 12294161 | E188: 59261568
A189: 07016217016 | B189: 11902867 | C189: 41605712 | D189: 11902867 | E189: 41356334
A190: 07016218016 | B190: 20570112 | C190: 102630753 | D190: 20570112 | E190: 104709793
A191: 07016220017 | B191: 6393731 | C191: 32284505 | D191: 6393731 | E191: 32539081
A192: 07016227017 | B192: 18153578 | C192: 66821612 | D192: 18153578 | E192: 65492641
A193: 07016228016 | B193: 29826590 | C193: 103338584 | D193: 29826590 | E193: 104692498
A194: 07016229016 | B194: 5824806 | C194: 32027841 | D194: 5824806 | E194: 30844230
A195: 07016230013 | B195: 50488672 | C195: 165687682 | D195: 50488672 | E195: 154727200
A196: 07016231016 | B196: 5200868 | C196: 21698297 | D196: 5200868 | E196: 19488477
A197: 07016233016 | B197: 16429486 | C197: 59388942 | D197: 16429486 | E197: 56103335
A198: 08008308026 | B198: 371849 | C198: 6444351 | D198: 371849 | E198: 5652415
A199: 08008314026 | B199: 543623 | C199: 11024629 | D199: 543623 | E199: 10607609
A200: 08008399026 | B200: 291069 | C200: 4088840 | D200: 291069 | E200: 4089007
... 659 more rows

Sheet SDJA Field #'s (hidden)
A1: txtFieldNum | B1: 2018 | J1: ChrAgreNum | K1: txtFieldNum | L1: 2018
A2: 4 | B2: 4449380884 | J2: 32000000047 | K2: 4061 | L2: 262098
A3: 11 | B3: 10987732 | J3: 45079122019 | K3: 4061 | L3: 367506
A4: 12 | B4: 2148438515 | J4: 12000000046 | K4: 4061 | L4: 402404
A5: 15 | B5: 9075481 | J5: 01009700045 | K5: 4061 | L5: 456476
A6: 16 | B6: 1.390591101e+10 | J6: 21100801046 | K6: 4061 | L6: 462618
A7: 25 | B7: 114728242 | J7: 53102721045 | K7: 4061 | L7: 466102
A8: 27 | B8: 4524419427 | J8: 17054404041 | K8: 4061 | L8: 502523
A9: 30 | B9: 6161950946 | J9: 17054404046 | K9: 4061 | L9: 513263
A10: 31 | B10: 7490098560 | J10: 13000000041 | K10: 4061 | L10: 550070
A11: 32 | B11: 1.390591101e+10 | J11: 33048205041 | K11: 4061 | L11: 575963
A12: 36 | B12: 449091290 | J12: 13000000047 | K12: 4061 | L12: 586707
A13: 43 | B13: 98822 | J13: 13041099004 | K13: 4061 | L13: 586716.14
A14: 44 | B14: 349694184 | J14: 08000000046 | K14: 4061 | L14: 589040
A15: 47 | B15: 809521 | J15: 40000000046 | K15: 4061 | L15: 599155
A16: 48 | B16: 2013208786 | J16: 30000000046 | K16: 4061 | L16: 604885
A17: 56 | B17: 382003 | J17: 17053090046 | K17: 4061 | L17: 605798
A18: 58 | B18: 533223051 | J18: 12013035046 | K18: 4061 | L18: 625848
A19: 61 | B19: 648260202 | J19: 13041012004 | K19: 4061 | L19: 645735.83
A20: 62 | B20: 1159053683 | J20: 17053425004 | K20: 4061 | L20: 653995
A21: 63 | B21: 2013208786 | J21: 28006098002 | K21: 4061 | L21: 701403
A22: 65 | B22: 453038975 | J22: 33094729045 | K22: 4061 | L22: 726797
A23: 68 | B23: 192660768 | J23: 28006000000 | K23: 4061 | L23: 736095
A24: 69 | B24: 13754738 | J24: 13000000046 | K24: 4061 | L24: 746371
A25: 70 | B25: 2119237365 | J25: 45000000046 | K25: 4061 | L25: 750898
A26: 73 | B26: 460348617 | J26: 54092740045 | K26: 4061 | L26: 766363
A27: 78 | B27: 469306339 | J27: 21044043003 | K27: 4061 | L27: 802709
A28: 79 | B28: 613024456.9 | J28: 24032074003 | K28: 4061 | L28: 858991
A29: 80 | B29: 2119237365 | J29: 13095011004 | K29: 4061 | L29: 862048
A30: 84 | B30: 159323034 | J30: 01001172041 | K30: 4061 | L30: 864562
A31: 92 | B31: 210381344 | J31: 35050120040 | K31: 4061 | L31: 878691
A32: 95 | B32: 188063 | J32: 17053090041 | K32: 4061 | L32: 881524
A33: 96 | B33: 1214539779 | J33: 13041006004 | K33: 4061 | L33: 883479
A34: 103 | B34: 802396 | J34: 48000000046 | K34: 4061 | L34: 886601
A35: 105 | B35: 299084753 | J35: 26000000046 | K35: 4061 | L35: 887355
A36: 108 | B36: 360433788 | J36: 01001172046 | K36: 4061 | L36: 893163
A37: 109 | B37: 686773915.9 | J37: 24047090004 | K37: 4061 | L37: 911479
A38: 110 | B38: 1214539779 | J38: 41057010041 | K38: 4061 | L38: 915681
A39: 112 | B39: 158410779 | J39: 53090606004 | K39: 4061 | L39: 922138
A40: 116 | B40: 109853870 | J40: 20000000046 | K40: 4061 | L40: 925822
A41: 118 | B41: 22713 | J41: 50082746045 | K41: 4061 | L41: 930746
A42: 119 | B42: 663696740.5 | J42: 08043790040 | K42: 4061 | L42: 941216
A43: 123 | B43: 5439635 | J43: 50082030003 | K43: 4061 | L43: 982305
A44: 124 | B44: 175026030 | J44: 30073005002 | K44: 4061 | L44: 1014564.83
A45: 127 | B45: 195258946 | J45: 53000000046 | K45: 4061 | L45: 1021673
A46: 128 | B46: 322545795.6 | J46: 13014062002 | K46: 4061 | L46: 1028497
A47: 129 | B47: 663696740.6 | J47: 04004000051 | K47: 4061 | L47: 1049626
A48: 138 | B48: 459294954 | J48: 07016790045 | K48: 4061 | L48: 1095703
A49: 141 | B49: 34045 | J49: 30073204004 | K49: 4061 | L49: 1121461
A50: 142 | B50: 2637165410 | J50: 17053426004 | K50: 4061 | L50: 1139797
A51: 145 | B51: 9113 | J51: 08089723045 | K51: 4061 | L51: 1141918
A52: 147 | B52: 17494828 | J52: 20096014004 | K52: 4061 | L52: 1145045
A53: 150 | B53: 187253893 | J53: 47052220002 | K53: 4061 | L53: 1148488
A54: 151 | B54: 1210250162 | J54: 35050720045 | K54: 4061 | L54: 1163712
A55: 152 | B55: 2637165410 | J55: 13014057002 | K55: 4061 | L55: 1181813
A56: 212 | B56: 1328601194 | J56: 05016039061 | K56: 4061 | L56: 1188880
A57: 213 | B57: 3.517537565e+10 | J57: 30002748045 | K57: 4061 | L57: 1252185
A58: 214 | B58: 1990590767 | J58: 13058002003 | K58: 4061 | L58: 1252201
A59: 215 | B59: 3803382597 | J59: 28006505016 | K59: 4061 | L59: 1253413
A60: 218 | B60: 4.336177481e+10 | J60: 28006084004 | K60: 4061 | L60: 1258062
A61: 219 | B61: 4.336033953e+10 | J61: 30091016004 | K61: 4061 | L61: 1282059
A62: 220 | B62: 4.336033953e+10 | J62: 35050082004 | K62: 4061 | L62: 1291720
A63: 221 | B63: 1645399108 | J63: 35050065004 | K63: 4061 | L63: 1293926
A64: 222 | B64: 19929913595 | J64: 44000000046 | K64: 4061 | L64: 1295270
A65: 223 | B65: 21575312703 | J65: 13095015004 | K65: 4061 | L65: 1312312.16
A66: 224 | B66: 21576111783 | J66: 47071269004 | K66: 4061 | L66: 1315666
A67: 226 | B67: 21576111783 | J67: 09010142004 | K67: 4061 | L67: 1320172
A68: 227 | B68: 21576111783 | J68: 24032024C04 | K68: 4061 | L68: 1324512
A69: 259 | B69: 19734469 | J69: 21044064002 | K69: 4061 | L69: 1347365
A70: 260 | B70: 5656749 | J70: 17064087041 | K70: 4061 | L70: 1375186
A71: 262 | B71: 13385462 | J71: 03026741045 | K71: 4061 | L71: 1396336
A72: 263 | B72: 24190 | J72: 09010008046 | K72: 4061 | L72: 1399755
A73: 371 | B73: 4568411 | J73: 20096017004 | K73: 4061 | L73: 1409553
A74: 439 | B74: 116325619 | J74: 04101134004 | K74: 4061 | L74: 1434180
A75: 440 | B75: 220808 | J75: 45079134004 | K75: 4061 | L75: 1443932
A76: 557 | B76: 956982138 | J76: 35050230004 | K76: 4061 | L76: 1445742
A77: 558 | B77: 41601698 | J77: 47071144003 | K77: 4061 | L77: 1456080
A78: 559 | B78: 575570 | J78: 13014063002 | K78: 4061 | L78: 1457803
A79: 590 | B79: 311901711 | J79: 35050210004 | K79: 4061 | L79: 1461831
A80: 591 | B80: 7162087 | J80: 54092061003 | K80: 4061 | L80: 1466540
A81: 644 | B81: 6744713631 | J81: 47071161004 | K81: 4061 | L81: 1511611
A82: 645 | B82: 53496043 | J82: 32000000046 | K82: 4061 | L82: 1512260
A83: 651 | B83: 357591986 | J83: 17064087046 | K83: 4061 | L83: 1541091
A84: 655 | B84: 9563036 | J84: 51084731045 | K84: 4061 | L84: 1551147
A85: 656 | B85: 190344821.8 | J85: 13014186002 | K85: 4061 | L85: 1571943
A86: 657 | B86: 286870819.9 | J86: 04000000046 | K86: 4061 | L86: 1610758
A87: 658 | B87: 52342635 | J87: 21028091004 | K87: 4061 | L87: 1612612
A88: 659 | B88: 1.030234103e+10 | J88: 49081030041 | K88: 4061 | L88: 1634381
A89: 660 | B89: 293179837 | J89: 03026203041 | K89: 4061 | L89: 1641090
A90: 661 | B90: 307192926.8 | J90: 24032072C04 | K90: 4061 | L90: 1648043
A91: 662 | B91: 202069750.2 | J91: 28006017004 | K91: 4061 | L91: 1652725
A92: 663 | B92: 147490838 | J92: 13014141502 | K92: 4061 | L92: 1672285
A93: 664 | B93: 228220846.9 | J93: 13014046002 | K93: 4061 | L93: 1673372
A94: 665 | B94: 73107501 | J94: 24032075002 | K94: 4061 | L94: 1678443
A95: 666 | B95: 1251261700 | J95: 17054088002 | K95: 4061 | L95: 1682227
A96: 667 | B96: 292144165 | J96: 06016212046 | K96: 4061 | L96: 1683487
A97: 668 | B97: 221686661.1 | J97: 20093017024 | K97: 4061 | L97: 1750710
A98: 669 | B98: 15972675 | J98: 09027005061 | K98: 4061 | L98: 1754991
A99: 670 | B99: 529803501.1 | J99: 13014060002 | K99: 4061 | L99: 1760051
A100: 671 | B100: 32267130 | J100: 07016218046 | K100: 4061 | L100: 1761459
A101: 672 | B101: 200887854.7 | J101: 40007042026 | K101: 4061 | L101: 1763752
A102: 673 | B102: 319595879.7 | J102: 17053435004 | K102: 4061 | L102: 1773842
A103: 674 | B103: 886967607.6 | J103: 48072328003 | K103: 4061 | L103: 1801736
A104: 675 | B104: 43553785 | J104: 13058001003 | K104: 4061 | L104: 1837848
A105: 676 | B105: 930521392.6 | J105: 30039130004 | K105: 4061 | L105: 1851719
A106: 677 | B106: 52840391 | J106: 35050425026 | K106: 4061 | L106: 1879605
A107: 678 | B107: 113534193.7 | J107: 20096006004 | K107: 4061 | L107: 1880278
A108: 679 | B108: 93837510.16 | J108: 07016228046 | K108: 4061 | L108: 1890280
A109: 680 | B109: 20446100 | J109: 13041082002 | K109: 4061 | L109: 1901847
A110: 681 | B110: 216449522.1 | J110: 35059005061 | K110: 4061 | L110: 2015650
A111: 682 | B111: 11104192 | J111: 48072316004 | K111: 4061 | L111: 2015957
A112: 684 | B112: 508211909 | J112: 13095001004 | K112: 4061 | L112: 2018790
A113: 685 | B113: 7879371 | J113: 41057745045 | K113: 4061 | L113: 2022597
A114: 686 | B114: 16155839 | J114: 31045302041 | K114: 4061 | L114: 2022795
A115: 687 | B115: 24880652 | J115: 11015735045 | K115: 4061 | L115: 2029490
A116: 688 | B116: 61556675 | J116: 54092225017 | K116: 4061 | L116: 2074086
A117: 690 | B117: 100858878.7 | J117: 17053438004 | K117: 4061 | L117: 2079593.99
A118: 692 | B118: 211331415.7 | J118: 01001172061 | K118: 4061 | L118: 2091714
A119: 693 | B119: 15234464 | J119: 53102002004 | K119: 4061 | L119: 2093089
A120: 694 | B120: 3765960262 | J120: 54092010026 | K120: 4061 | L120: 2093527
A121: 695 | B121: 73337542 | J121: 05016207046 | K121: 4061 | L121: 2105561
A122: 696 | B122: 1.414163883e+10 | J122: 09010130004 | K122: 4061 | L122: 2128502
A123: 702 | B123: 1821018203 | J123: 13041079002 | K123: 4061 | L123: 2132229
A124: 703 | B124: 9978449 | J124: 53090085002 | K124: 4061 | L124: 2134839
A125: 709 | B125: 77603853 | J125: 30039086003 | K125: 4061 | L125: 2140172
A126: 713 | B126: 1115459 | J126: 09010188004 | K126: 4061 | L126: 2155658
A127: 714 | B127: 39259201.59 | J127: 49081030046 | K127: 4061 | L127: 2163973
A128: 715 | B128: 21007270.62 | J128: 39000000046 | K128: 4061 | L128: 2179146
A129: 716 | B129: 2467821.77 | J129: 47098005046 | K129: 4061 | L129: 2224479
A130: 717 | B130: 2612016769 | J130: 16019430040 | K130: 4061 | L130: 2232562
A131: 718 | B131: 59836075 | J131: 16000000046 | K131: 4061 | L131: 2252480
A132: 719 | B132: 63757003.75 | J132: 28006094004 | K132: 4061 | L132: 2259339
A133: 720 | B133: 45912924.22 | J133: 13041005004 | K133: 4061 | L133: 2265639
A134: 721 | B134: 27696557 | J134: 48072069002 | K134: 4061 | L134: 2285123
A135: 722 | B135: 43046659.02 | J135: 26034327004 | K135: 4061 | L135: 2300450
A136: 723 | B136: 13044376 | J136: 32038249026 | K136: 4061 | L136: 2356124
A137: 724 | B137: 253293595 | J137: 31045046046 | K137: 4061 | L137: 2380611
A138: 725 | B138: 63786797.57 | J138: 21028115004 | K138: 4061 | L138: 2410931
A139: 726 | B139: 45101253 | J139: 24047066004 | K139: 4061 | L139: 2413953
A140: 727 | B140: 2515869 | J140: 35050017504 | K140: 4061 | L140: 2448316
A141: 728 | B141: 111403919.6 | J141: 49081029002 | K141: 4061 | L141: 2449881
A142: 729 | B142: 25655500 | J142: 11023003026 | K142: 4061 | L142: 2471328
A143: 730 | B143: 41455054 | J143: 50082188022 | K143: 4061 | L143: 2510525
A144: 731 | B144: 88952075 | J144: 35050079004 | K144: 4061 | L144: 2525514
A145: 732 | B145: 210254988.6 | J145: 13058007004 | K145: 4061 | L145: 2549127
A146: 733 | B146: 10311244 | J146: 21044032003 | K146: 4061 | L146: 2574714
A147: 734 | B147: 220566232.6 | J147: 13058010004 | K147: 4061 | L147: 2592871
A148: 735 | B148: 10811716 | J148: 05016214046 | K148: 4061 | L148: 2608834
A149: 736 | B149: 22176878 | J149: 13041003004 | K149: 4061 | L149: 2629566
A150: 737 | B150: 19662012 | J150: 21028174026 | K150: 4061 | L150: 2690620
A151: 738 | B151: 7385651 | J151: 24047018016 | K151: 4061 | L151: 2697184
A152: 739 | B152: 55643356 | J152: 32046850060 | K152: 4061 | L152: 2714629
A153: 740 | B153: 2292965 | J153: 07016154502 | K153: 4061 | L153: 2751374
A154: 742 | B154: 117972578 | J154: 35050185004 | K154: 4061 | L154: 2762227
A155: 743 | B155: 1679739 | J155: 24047000061 | K155: 4061 | L155: 2766034
A156: 744 | B156: 2922069 | J156: 53090137002 | K156: 4061 | L156: 2776099
A157: 745 | B157: 6133028 | J157: 17054092004 | K157: 4061 | L157: 2798569
A158: 746 | B158: 29573396 | J158: 13058100026 | K158: 4061 | L158: 2813766
A159: 748 | B159: 17613708 | J159: 45079001022 | K159: 4061 | L159: 2826233
A160: 750 | B160: 57921940 | J160: 48072070002 | K160: 4061 | L160: 2838115
A161: 751 | B161: 8051524 | J161: 01086002026 | K161: 4061 | L161: 2861765
A162: 752 | B162: 858161864.2 | J162: 13058722026 | K162: 4061 | L162: 2876221
A163: 753 | B163: 13351918 | J163: 30091066022 | K163: 4061 | L163: 2879376
A164: 754 | B164: 3483530551 | J164: 31000000046 | K164: 4061 | L164: 2882990
A165: 760 | B165: 118525163.6 | J165: 09010197004 | K165: 4061 | L165: 2897701
A166: 761 | B166: 532417 | J166: 47052271026 | K166: 4061 | L166: 2902829
A167: 767 | B167: 3006987 | J167: 41057003026 | K167: 4061 | L167: 2914677
A168: 771 | B168: 1898957 | J168: 48072066002 | K168: 4061 | L168: 2923053
A169: 772 | B169: 10715477 | J169: 26034347004 | K169: 4061 | L169: 2931838
A170: 773 | B170: 45738459.88 | J170: 28088001026 | K170: 4061 | L170: 3004112
A171: 774 | B171: 2278939 | J171: 13041178004 | K171: 4061 | L171: 3030763
A172: 775 | B172: 1021348397 | J172: 56099084002 | K172: 4061 | L172: 3031424
A173: 776 | B173: 13485960 | J173: 47098145004 | K173: 4061 | L173: 3049581
A174: 777 | B174: 13800265 | J174: 13014021002 | K174: 4061 | L174: 3050705
A175: 778 | B175: 44284405 | J175: 13058133002 | K175: 4061 | L175: 3052988
A176: 779 | B176: 8709801 | J176: 03011004026 | K176: 4061 | L176: 3099765
A177: 780 | B177: 30261076 | J177: 24032073017 | K177: 4061 | L177: 3121444
A178: 781 | B178: 14200109 | J178: 24032790040 | K178: 4061 | L178: 3149808
A179: 782 | B179: 124741616 | J179: 53090098002 | K179: 4061 | L179: 3150756
A180: 783 | B180: 109199833.5 | J180: 47052170061 | K180: 4061 | L180: 3152105
A181: 784 | B181: 40265620.62 | J181: 56099090002 | K181: 4061 | L181: 3154248
A182: 785 | B182: 23117655 | J182: 12013010026 | K182: 4061 | L182: 3170760
A183: 786 | B183: 172583109.1 | J183: 17054021026 | K183: 4061 | L183: 3215276
A184: 787 | B184: 113476526.8 | J184: 54092800080 | K184: 4061 | L184: 3221511
A185: 788 | B185: 18785116.88 | J185: 01069011026 | K185: 4061 | L185: 3239822
A186: 789 | B186: 156640559.6 | J186: 21061038026 | K186: 4061 | L186: 3244070
A187: 790 | B187: 22179495.33 | J187: 17054061004 | K187: 4061 | L187: 3262541
A188: 791 | B188: 474795 | J188: 51065200026 | K188: 4061 | L188: 3279526
A189: 792 | B189: 22654290.33 | J189: 11023006026 | K189: 4061 | L189: 3296902
A190: 793 | B190: 6816044 | J190: 11015005026 | K190: 4061 | L190: 3324592
A191: 794 | B191: 32605496.79 | J191: 39074057026 | K191: 4061 | L191: 3360731
A192: 795 | B192: 81048192 | J192: 47098020002 | K192: 4061 | L192: 3386458
A193: 796 | B193: 110441017 | J193: 24032002C02 | K193: 4061 | L193: 3434220
A194: 797 | B194: 204594889.8 | J194: 01075003026 | K194: 4061 | L194: 3436528
A195: 798 | B195: 10462403.63 | J195: 12017003026 | K195: 4061 | L195: 3438729
A196: 800 | B196: 445968043.2 | J196: 12017001026 | K196: 4061 | L196: 3476483
A197: 801 | B197: 2398128 | J197: 11087005A26 | K197: 4061 | L197: 3496983
A198: 802 | B198: 5331482 | J198: 01009064026 | K198: 4061 | L198: 3510221
A199: 803 | B199: 16981880 | J199: 56099203004 | K199: 4061 | L199: 3516558
A200: 804 | B200: 15412692 | J200: 20097001026 | K200: 4061 | L200: 3527566
... 2208 more rows

Sheet worksheet (hidden)
A1: All SD's (- Crete Monee) | C1: East STL | D1: City of Clay | E1: Lake Park | F1: All SD's (-CM & ESTL, & revisions for City of Clay and Lake Park)
A2: txtFieldNum | B2: 2018 | C2: 2018 | D2: 2018 | E2: 2018
A3: 4 | B3: 4449380884 | C3: 1317518 | D3: 0 | E3: 0 | F3: 4448063366
A4: 11 | B4: 10965222 | C4: 0 | D4: 0 | E4: 0 | F4: 10965222
A5: 12 | B5: 2085627941 | C5: 0 | D5: 0 | E5: 0 | F5: 2085627941
A6: 15 | B6: 8487467 | C6: 0 | D6: 0 | E6: 0 | F6: 8487467
A7: 16 | B7: 1.360432326e+10 | C7: 53962316 | D7: 0 | E7: 0 | F7: 1.355036095e+10
A8: 25 | B8: 113203890 | C8: 0 | D8: 0 | E8: 0 | F8: 113203890
A9: 27 | B9: 4516526967 | C9: 2900055 | D9: 0 | E9: 0 | F9: 4513626912
A10: 30 | B10: 6103904165 | C10: 7739318 | D10: 0 | E10: 0 | F10: 6096164847
A11: 31 | B11: 7255290592 | C11: 43452423 | D11: 0 | E11: 0 | F11: 7211838169
A12: 32 | B12: 1.360432326e+10 | C12: 53962316 | D12: 0 | E12: 0 | F12: 1.355036095e+10
A13: 36 | B13: 449091290 | C13: 329379 | D13: 0 | E13: 0 | F13: 448761911
A14: 43 | B14: 98822 | C14: 0 | D14: 0 | E14: 0 | F14: 98822
A15: 44 | B15: 352727831 | C15: 0 | D15: 0 | E15: 0 | F15: 352727831
A16: 47 | B16: 809521 | C16: 0 | D16: 0 | E16: 0 | F16: 809521
A17: 48 | B17: 2004389425 | C17: 1694294 | D17: 0 | E17: 0 | F17: 2002695131
A18: 56 | B18: 109272 | C18: 0 | D18: 0 | E18: 0 | F18: 109272
A19: 58 | B19: 532996778 | C19: 210583 | D19: 0 | E19: 0 | F19: 532786195
A20: 61 | B20: 645406398 | C20: 383022 | D20: 0 | E20: 0 | F20: 645023376
A21: 62 | B21: 1153151308 | C21: 0 | D21: 0 | E21: 0 | F21: 1153151308
A22: 63 | B22: 2004389425 | C22: 1694294 | D22: 0 | E22: 0 | F22: 2002695131
A23: 65 | B23: 453038975 | C23: 1138861 | D23: 0 | E23: 0 | F23: 451900114
A24: 68 | B24: 192660768 | C24: 0 | D24: 0 | E24: 0 | F24: 192660768
A25: 69 | B25: 13754738 | C25: 570310 | D25: 0 | E25: 0 | F25: 13184428
A26: 70 | B26: 2118999902 | C26: 7370322 | D26: 0 | E26: 0 | F26: 2111629580
A27: 73 | B27: 460348617 | C27: 728106 | D27: 0 | E27: 0 | F27: 459620511
A28: 78 | B28: 469306339 | C28: 728106 | D28: 0 | E28: 0 | F28: 468578233
A29: 79 | B29: 612786993.9 | C29: 1757627 | D29: 0 | E29: 0 | F29: 611029366.9
A30: 80 | B30: 2118999902 | C30: 7370322 | D30: 0 | E30: 0 | F30: 2111629580
A31: 84 | B31: 159323034 | C31: 131752 | D31: 0 | E31: 0 | F31: 159191282
A32: 92 | B32: 210291838 | C32: 0 | D32: 0 | E32: 0 | F32: 210291838
A33: 95 | B33: 188063 | C33: 0 | D33: 0 | E33: 0 | F33: 188063
A34: 96 | B34: 1208901307 | C34: 2519922 | D34: 0 | E34: 0 | F34: 1206381385
A35: 103 | B35: 660741 | C35: 0 | D35: 0 | E35: 0 | F35: 660741
A36: 105 | B36: 298210918 | C36: 733927 | D36: 0 | E36: 0 | F36: 297476991
A37: 108 | B37: 357072463 | C37: 858330 | D37: 0 | E37: 0 | F37: 356214133
A38: 109 | B38: 684573002.9 | C38: 0 | D38: 0 | E38: 0 | F38: 684573002.9
A39: 110 | B39: 1208901307 | C39: 2519922 | D39: 0 | E39: 0 | F39: 1206381385
A40: 112 | B40: 158410779 | C40: 1526804 | D40: 0 | E40: 0 | F40: 156883975
A41: 116 | B41: 109853870 | C41: 0 | D41: 0 | E41: 0 | F41: 109853870
A42: 118 | B42: 22713 | C42: 0 | D42: 0 | E42: 0 | F42: 22713
A43: 119 | B43: 661600222.5 | C43: 4937924 | D43: 0 | E43: 0 | F43: 656662298.5
A44: 123 | B44: 5439635 | C44: 0 | D44: 0 | E44: 0 | F44: 5439635
A45: 124 | B45: 175026030 | C45: 976129 | D45: 0 | E45: 0 | F45: 174049901
A46: 127 | B46: 194799093 | C46: 976129 | D46: 0 | E46: 0 | F46: 193822964
A47: 128 | B47: 320909130.6 | C47: 2040364 | D47: 0 | E47: 0 | F47: 318868766.6
A48: 129 | B48: 661600222.6 | C48: 4937924 | D48: 0 | E48: 0 | F48: 656662298.6
A49: 138 | B49: 459294954 | C49: 0 | D49: 0 | E49: 0 | F49: 459294954
A50: 141 | B50: 34045 | C50: 0 | D50: 0 | E50: 0 | F50: 34045
A51: 142 | B51: 2636761886 | C51: 1386767 | D51: 0 | E51: 0 | F51: 2635375119
A52: 145 | B52: 9113 | C52: 0 | D52: 0 | E52: 0 | F52: 9113
A53: 147 | B53: 17494828 | C53: 0 | D53: 0 | E53: 0 | F53: 17494828
A54: 150 | B54: 187253893 | C54: 0 | D54: 0 | E54: 0 | F54: 187253893
A55: 151 | B55: 1209846638 | C55: 0 | D55: 0 | E55: 0 | F55: 1209846638
A56: 152 | B56: 2636761886 | C56: 1386767 | D56: 0 | E56: 0 | F56: 2635375119
A57: 212 | B57: 1322298013 | C57: 815300 | D57: 0 | E57: 0 | F57: 1321482713
A58: 213 | B58: 3.492564703e+10 | C58: 214644813 | D58: 0 | E58: 0 | F58: 3.471100222e+10
A59: 214 | B59: 1971193146 | C59: 4604112 | D59: 0 | E59: 0 | F59: 1966589034
A60: 215 | B60: 3710974507 | C60: 20966469 | D60: 0 | E60: 0 | F60: 3690008038
A61: 218 | B61: 4.299205244e+10 | C61: 241030694 | D61: 0 | E61: 0 | F61: 4.275102175e+10
A62: 219 | B62: 4.299205244e+10 | C62: 241030694 | D62: 0 | E62: 0 | F62: 4.275102175e+10
A63: 220 | B63: 4.299205244e+10 | C63: 241030694 | D63: 0 | E63: 0 | F63: 4.275102175e+10
A64: 221 | B64: 1645160085 | C64: 6642216 | D64: 0 | E64: 0 | F64: 1638517869
A65: 222 | B65: 19912185421 | C65: 23577784 | D65: 0 | E65: 0 | F65: 19888607637
A66: 223 | B66: 21557345506 | C66: 30220000 | D66: 0 | E66: 0 | F66: 21527125506
A67: 224 | B67: 21557256289 | C67: 30220000 | D67: 0 | E67: 0 | F67: 21527036289
A68: 226 | B68: 21557256289 | C68: 30220000 | D68: 0 | E68: 0 | F68: 21527036289
A69: 227 | B69: 21557256289 | C69: 30220000 | D69: 0 | E69: 0 | F69: 21527036289
A70: 259 | B70: 19734469 | C70: 0 | D70: 0 | E70: 0 | F70: 19734469
A71: 260 | B71: 5656749 | C71: 0 | D71: 0 | E71: 0 | F71: 5656749
A72: 262 | B72: 13385462 | C72: 0 | D72: 0 | E72: 0 | F72: 13385462
A73: 263 | B73: 24190 | C73: 0 | D73: 0 | E73: 0 | F73: 24190
A74: 371 | B74: 4568411 | C74: 0 | D74: 0 | E74: 0 | F74: 4568411
A75: 439 | B75: 116325619 | C75: 0 | D75: 0 | E75: 0 | F75: 116325619
A76: 440 | B76: 220808 | C76: 0 | D76: 0 | E76: 0 | F76: 220808
A77: 557 | B77: 956982138 | C77: 0 | D77: 0 | E77: 0 | F77: 956982138
A78: 558 | B78: 41601698 | C78: 0 | D78: 0 | E78: 0 | F78: 41601698
A79: 559 | B79: 575570 | C79: 0 | D79: 0 | E79: 0 | F79: 575570
A80: 590 | B80: 311901711 | C80: 0 | D80: 0 | E80: 0 | F80: 311901711
A81: 591 | B81: 7162087 | C81: 0 | D81: 0 | E81: 0 | F81: 7162087
A82: 644 | B82: 6741171855 | C82: 15183063 | D82: 0 | E82: 0 | F82: 6725988792
A83: 645 | B83: 53496043 | C83: 0 | D83: 0 | E83: 0 | F83: 53496043
A84: 651 | B84: 357544899 | C84: 181439 | D84: 0 | E84: 0 | F84: 357363460
A85: 655 | B85: 8234532 | C85: 0 | D85: 0 | E85: 0 | F85: 8234532
A86: 656 | B86: 169299761.8 | C86: 535228 | D86: 0 | E86: 0 | F86: 168764533.8
A87: 657 | B87: 286601372.9 | C87: 194052 | D87: 0 | E87: 0 | F87: 286407320.9
A88: 658 | B88: 47627036 | C88: 0 | D88: 0 | E88: 0 | F88: 47627036
A89: 659 | B89: 1.005228101e+10 | C89: 26930010 | D89: 0 | E89: 0 | F89: 1.0025351e+10
A90: 660 | B90: 267877815 | C90: 1720517 | D90: 0 | E90: 0 | F90: 266157298
A91: 661 | B91: 305511212.8 | C91: 558433 | D91: 0 | E91: 0 | F91: 304952779.8
A92: 662 | B92: 153858708.2 | C92: 314722 | D92: 0 | E92: 0 | F92: 153543986.2
A93: 663 | B93: 124376076 | C93: 488843 | D93: 0 | E93: 0 | F93: 123887233
A94: 664 | B94: 197865876.9 | C94: 348066 | D94: 0 | E94: 0 | F94: 197517810.9
A95: 665 | B95: 70251496 | C95: 75937 | D95: 0 | E95: 0 | F95: 70175559
A96: 666 | B96: 1119741185 | C96: 3506518 | D96: 0 | E96: 0 | F96: 1116234667
A97: 667 | B97: 279910784 | C97: 2480594 | D97: 0 | E97: 0 | F97: 277430190
A98: 668 | B98: 220632626.1 | C98: 434427 | D98: 0 | E98: 0 | F98: 220198199.1
A99: 669 | B99: 13958619 | C99: 10300 | D99: 0 | E99: 0 | F99: 13948319
A100: 670 | B100: 514502029.1 | C100: 2925321 | D100: 0 | E100: 0 | F100: 511576708.1
A101: 671 | B101: 31051748 | C101: 0 | D101: 0 | E101: 0 | F101: 31051748
A102: 672 | B102: 177937895.7 | C102: 990976 | D102: 0 | E102: 0 | F102: 176946919.7
A103: 673 | B103: 282991242.7 | C103: 1609578 | D103: 0 | E103: 0 | F103: 281381664.7
A104: 674 | B104: 874404091.6 | C104: 2894209 | D104: 0 | E104: 0 | F104: 871509882.6
A105: 675 | B105: 42342730 | C105: 91313 | D105: 0 | E105: 0 | F105: 42251417
A106: 676 | B106: 916746821.6 | C106: 2985522 | D106: 0 | E106: 0 | F106: 913761299.6
A107: 677 | B107: 50098057 | C107: 0 | D107: 0 | E107: 0 | F107: 50098057
A108: 678 | B108: 109019241.7 | C108: 625775 | D108: 0 | E108: 0 | F108: 108393466.7
A109: 679 | B109: 89779274.16 | C109: 2615 | D109: 0 | E109: 0 | F109: 89776659.16
A110: 680 | B110: 19237105 | C110: 27796 | D110: 0 | E110: 0 | F110: 19209309
A111: 681 | B111: 215621257.1 | C111: 77657 | D111: 0 | E111: 0 | F111: 215543600.1
A112: 682 | B112: 10997332 | C112: 231731 | D112: 0 | E112: 0 | F112: 10765601
A113: 684 | B113: 494752267 | C113: 965574 | D113: 0 | E113: 0 | F113: 493786693
A114: 685 | B114: 7546862 | C114: 750447 | D114: 0 | E114: 0 | F114: 6796415
A115: 686 | B115: 15955554 | C115: 369632 | D115: 0 | E115: 0 | F115: 15585922
A116: 687 | B116: 24210062 | C116: 0 | D116: 0 | E116: 0 | F116: 24210062
A117: 688 | B117: 60814347 | C117: 382838 | D117: 0 | E117: 0 | F117: 60431509
A118: 690 | B118: 99617794.68 | C118: 501145 | D118: 0 | E118: 0 | F118: 99116649.68
A119: 692 | B119: 208144619.7 | C119: 2004062 | D119: 0 | E119: 0 | F119: 206140557.7
A120: 693 | B120: 13142507 | C120: 577912 | D120: 0 | E120: 0 | F120: 12564595
A121: 694 | B121: 3550020672 | C121: 14574487 | D121: 0 | E121: 0 | F121: 3535446185
A122: 695 | B122: 71914890 | C122: 183519 | D122: 0 | E122: 0 | F122: 71731371
A123: 696 | B123: 1.367421657e+10 | C123: 41688016 | D123: 0 | E123: 0 | F123: 1.363252855e+10
A124: 702 | B124: 1820198464 | C124: 2345912 | D124: 0 | E124: 0 | F124: 1817852552
A125: 703 | B125: 9978449 | C125: 0 | D125: 0 | E125: 0 | F125: 9978449
A126: 709 | B126: 77589893 | C126: 43022 | D126: 0 | E126: 0 | F126: 77546871
A127: 713 | B127: 757212 | C127: 0 | D127: 0 | E127: 0 | F127: 757212
A128: 714 | B128: 34246764.59 | C128: 102377 | D128: 0 | E128: 0 | F128: 34144387.59
A129: 715 | B129: 20977445.62 | C129: 19566 | D129: 0 | E129: 0 | F129: 20957879.62
A130: 716 | B130: 2033666.77 | C130: 0 | D130: 0 | E130: 0 | F130: 2033666.77
A131: 717 | B131: 2539185409 | C131: 5352930 | D131: 0 | E131: 0 | F131: 2533832479
A132: 718 | B132: 55138428 | C132: 377350 | D132: 0 | E132: 0 | F132: 54761078
A133: 719 | B133: 63325892.75 | C133: 108203 | D133: 0 | E133: 0 | F133: 63217689.75
A134: 720 | B134: 31792513.22 | C134: 90123 | D134: 0 | E134: 0 | F134: 31702390.22
A135: 721 | B135: 23313846 | C135: 102847 | D135: 0 | E135: 0 | F135: 23210999
A136: 722 | B136: 37425100.02 | C136: 67669 | D136: 0 | E136: 0 | F136: 37357431.02
A137: 723 | B137: 12299869 | C137: 10592 | D137: 0 | E137: 0 | F137: 12289277
A138: 724 | B138: 223295649 | C138: 756784 | D138: 0 | E138: 0 | F138: 222538865
A139: 725 | B139: 60661474.57 | C139: 529034 | D139: 0 | E139: 0 | F139: 60132440.57
A140: 726 | B140: 44815372 | C140: 89681 | D140: 0 | E140: 0 | F140: 44725691
A141: 727 | B141: 1940491 | C141: 0 | D141: 0 | E141: 0 | F141: 1940491
A142: 728 | B142: 107417337.6 | C142: 618715 | D142: 0 | E142: 0 | F142: 106798622.6
A143: 729 | B143: 24908300 | C143: 2192 | D143: 0 | E143: 0 | F143: 24906108
A144: 730 | B144: 34813147 | C144: 146992 | D144: 0 | E144: 0 | F144: 34666155
A145: 731 | B145: 78375357 | C145: 268727 | D145: 0 | E145: 0 | F145: 78106630
A146: 732 | B146: 206706118.6 | C146: 481585 | D146: 0 | E146: 0 | F146: 206224533.6
A147: 733 | B147: 10022096 | C147: 12003 | D147: 0 | E147: 0 | F147: 10010093
A148: 734 | B148: 216728214.6 | C148: 493588 | D148: 0 | E148: 0 | F148: 216234626.6
A149: 735 | B149: 10015932 | C149: 0 | D149: 0 | E149: 0 | F149: 10015932
A150: 736 | B150: 20666413 | C150: 78236 | D150: 0 | E150: 0 | F150: 20588177
A151: 737 | B151: 18154691 | C151: 42155 | D151: 0 | E151: 0 | F151: 18112536
A152: 738 | B152: 6861872 | C152: 2401 | D152: 0 | E152: 0 | F152: 6859471
A153: 739 | B153: 55331968 | C153: 0 | D153: 0 | E153: 0 | F153: 55331968
A154: 740 | B154: 2285625 | C154: 36161 | D154: 0 | E154: 0 | F154: 2249464
A155: 742 | B155: 113316501 | C155: 158953 | D155: 0 | E155: 0 | F155: 113157548
A156: 743 | B156: 1527345 | C156: 145202 | D156: 0 | E156: 0 | F156: 1382143
A157: 744 | B157: 2884336 | C157: 66772 | D157: 0 | E157: 0 | F157: 2817564
A158: 745 | B158: 5786704 | C158: 0 | D158: 0 | E158: 0 | F158: 5786704
A159: 746 | B159: 29291752 | C159: 59224 | D159: 0 | E159: 0 | F159: 29232528
A160: 748 | B160: 17161311 | C160: 95182 | D160: 0 | E160: 0 | F160: 17066129
A161: 750 | B161: 56651448 | C161: 366380 | D161: 0 | E161: 0 | F161: 56285068
A162: 751 | B162: 7489563 | C162: 51441 | D162: 0 | E162: 0 | F162: 7438122
A163: 752 | B163: 803274070.2 | C163: 2714588 | D163: 0 | E163: 0 | F163: 800559482.2
A164: 753 | B164: 12852816 | C164: 35840 | D164: 0 | E164: 0 | F164: 12816976
A165: 754 | B165: 3355312295 | C165: 8103358 | D165: 0 | E165: 0 | F165: 3347208937
A166: 760 | B166: 118163391.6 | C166: 708049 | D166: 0 | E166: 0 | F166: 117455342.6
A167: 761 | B167: 532417 | C167: 0 | D167: 0 | E167: 0 | F167: 532417
A168: 767 | B168: 3004843 | C168: 0 | D168: 0 | E168: 0 | F168: 3004843
A169: 771 | B169: 1571457 | C169: 0 | D169: 0 | E169: 0 | F169: 1571457
A170: 772 | B170: 7573657 | C170: 58842 | D170: 0 | E170: 0 | F170: 7514815
A171: 773 | B171: 45674846.88 | C171: 450543 | D171: 0 | E171: 0 | F171: 45224303.88
A172: 774 | B172: 1843734 | C172: 0 | D172: 0 | E172: 0 | F172: 1843734
A173: 775 | B173: 1000923412 | C173: 3303205 | D173: 0 | E173: 0 | F173: 997620207.5
A174: 776 | B174: 12748405 | C174: 35613 | D174: 0 | E174: 0 | F174: 12712792
A175: 777 | B175: 12949838 | C175: 6489 | D175: 0 | E175: 0 | F175: 12943349
A176: 778 | B176: 34796077 | C176: 318234 | D176: 0 | E176: 0 | F176: 34477843
A177: 779 | B177: 7532428 | C177: 5016 | D177: 0 | E177: 0 | F177: 7527412
A178: 780 | B178: 24515469 | C178: 0 | D178: 0 | E178: 0 | F178: 24515469
A179: 781 | B179: 12962938 | C179: 0 | D179: 0 | E179: 0 | F179: 12962938
A180: 782 | B180: 105505155 | C180: 365352 | D180: 0 | E180: 0 | F180: 105139803
A181: 783 | B181: 101648199.5 | C181: 880056 | D181: 0 | E181: 0 | F181: 100768143.5
A182: 784 | B182: 39746237.62 | C182: 134 | D182: 0 | E182: 0 | F182: 39746103.62
A183: 785 | B183: 22858547 | C183: 22633 | D183: 0 | E183: 0 | F183: 22835914
A184: 786 | B184: 164252984.1 | C184: 902823 | D184: 0 | E184: 0 | F184: 163350161.1
A185: 787 | B185: 111071387.8 | C185: 112939 | D185: 0 | E185: 0 | F185: 110958448.8
A186: 788 | B186: 12253329.88 | C186: 251399 | D186: 0 | E186: 0 | F186: 12001930.88
A187: 789 | B187: 144089490.6 | C187: 373094 | D187: 0 | E187: 0 | F187: 143716396.6
A188: 790 | B188: 21803884.33 | C188: 141352 | D188: 0 | E188: 0 | F188: 21662532.33
A189: 791 | B189: 382088 | C189: 0 | D189: 0 | E189: 0 | F189: 382088
A190: 792 | B190: 22185972.33 | C190: 141352 | D190: 0 | E190: 0 | F190: 22044620.33
A191: 793 | B191: 5858787 | C191: 0 | D191: 0 | E191: 0 | F191: 5858787
A192: 794 | B192: 31426012.79 | C192: 85822 | D192: 0 | E192: 0 | F192: 31340190.79
A193: 795 | B193: 72299634 | C193: 159359 | D193: 0 | E193: 0 | F193: 72140275
A194: 796 | B194: 109471562 | C194: 0 | D194: -148798 | E194: 0 | F194: 109620360
A195: 797 | B195: 202610553.8 | C195: 2811494 | D195: 148798 | E195: 0 | F195: 199650261.8
A196: 798 | B196: 9997150.63 | C196: 17436 | D196: 0 | E196: 0 | F196: 9979714.63
A197: 800 | B197: 431663700.2 | C197: 3074111 | D197: 0 | E197: 0 | F197: 428589589.2
A198: 801 | B198: 2264478 | C198: 32634 | D198: 0 | E198: 0 | F198: 2231844
A199: 802 | B199: 5319354 | C199: 331919 | D199: 0 | E199: 0 | F199: 4987435
A200: 803 | B200: 16360688 | C200: 38755 | D200: 0 | E200: 0 | F200: 16321933
... 2206 more rows

Sheet Data pull 5-1-19 (hidden)
A1: txtFieldNum | B1: 2018
A2: 4 | B2: 4449380884
A3: 11 | B3: 10965222
A4: 12 | B4: 2085627941
A5: 15 | B5: 8487467
A6: 16 | B6: 1.360432326e+10
A7: 25 | B7: 113203890
A8: 27 | B8: 4516526967
A9: 30 | B9: 6103904165
A10: 31 | B10: 7255290592
A11: 32 | B11: 1.360432326e+10
A12: 36 | B12: 449091290
A13: 43 | B13: 98822
A14: 44 | B14: 352727831
A15: 47 | B15: 809521
A16: 48 | B16: 2004389425
A17: 56 | B17: 109272
A18: 58 | B18: 532996778
A19: 61 | B19: 645406398
A20: 62 | B20: 1153151308
A21: 63 | B21: 2004389425
A22: 65 | B22: 453038975
A23: 68 | B23: 192660768
A24: 69 | B24: 13754738
A25: 70 | B25: 2118999902
A26: 73 | B26: 460348617
A27: 78 | B27: 469306339
A28: 79 | B28: 612786993.9
A29: 80 | B29: 2118999902
A30: 84 | B30: 159323034
A31: 92 | B31: 210291838
A32: 95 | B32: 188063
A33: 96 | B33: 1208901307
A34: 103 | B34: 660741
A35: 105 | B35: 298210918
A36: 108 | B36: 357072463
A37: 109 | B37: 684573002.9
A38: 110 | B38: 1208901307
A39: 112 | B39: 158410779
A40: 116 | B40: 109853870
A41: 118 | B41: 22713
A42: 119 | B42: 661600222.5
A43: 123 | B43: 5439635
A44: 124 | B44: 175026030
A45: 127 | B45: 194799093
A46: 128 | B46: 320909130.6
A47: 129 | B47: 661600222.6
A48: 138 | B48: 459294954
A49: 141 | B49: 34045
A50: 142 | B50: 2636761886
A51: 145 | B51: 9113
A52: 147 | B52: 17494828
A53: 150 | B53: 187253893
A54: 151 | B54: 1209846638
A55: 152 | B55: 2636761886
A56: 212 | B56: 1322298013
A57: 213 | B57: 3.492564703e+10
A58: 214 | B58: 1971193146
A59: 215 | B59: 3710974507
A60: 218 | B60: 4.299205244e+10
A61: 219 | B61: 4.299205244e+10
A62: 220 | B62: 4.299205244e+10
A63: 221 | B63: 1645160085
A64: 222 | B64: 19912185421
A65: 223 | B65: 21557345506
A66: 224 | B66: 21557256289
A67: 226 | B67: 21557256289
A68: 227 | B68: 21557256289
A69: 259 | B69: 19734469
A70: 260 | B70: 5656749
A71: 262 | B71: 13385462
A72: 263 | B72: 24190
A73: 371 | B73: 4568411
A74: 439 | B74: 116325619
A75: 440 | B75: 220808
A76: 557 | B76: 956982138
A77: 558 | B77: 41601698
A78: 559 | B78: 575570
A79: 590 | B79: 311901711
A80: 591 | B80: 7162087
A81: 644 | B81: 6741171855
A82: 645 | B82: 53496043
A83: 651 | B83: 357544899
A84: 655 | B84: 8234532
A85: 656 | B85: 169299761.8
A86: 657 | B86: 286601372.9
A87: 658 | B87: 47627036
A88: 659 | B88: 1.005228101e+10
A89: 660 | B89: 267877815
A90: 661 | B90: 305511212.8
A91: 662 | B91: 153858708.2
A92: 663 | B92: 124376076
A93: 664 | B93: 197865876.9
A94: 665 | B94: 70251496
A95: 666 | B95: 1119741185
A96: 667 | B96: 279910784
A97: 668 | B97: 220632626.1
A98: 669 | B98: 13958619
A99: 670 | B99: 514502029.1
A100: 671 | B100: 31051748
A101: 672 | B101: 177937895.7
A102: 673 | B102: 282991242.7
A103: 674 | B103: 874404091.6
A104: 675 | B104: 42342730
A105: 676 | B105: 916746821.6
A106: 677 | B106: 50098057
A107: 678 | B107: 109019241.7
A108: 679 | B108: 89779274.16
A109: 680 | B109: 19237105
A110: 681 | B110: 215621257.1
A111: 682 | B111: 10997332
A112: 684 | B112: 494752267
A113: 685 | B113: 7546862
A114: 686 | B114: 15955554
A115: 687 | B115: 24210062
A116: 688 | B116: 60814347
A117: 690 | B117: 99617794.68
A118: 692 | B118: 208144619.7
A119: 693 | B119: 13142507
A120: 694 | B120: 3550020672
A121: 695 | B121: 71914890
A122: 696 | B122: 1.367421657e+10
A123: 702 | B123: 1820198464
A124: 703 | B124: 9978449
A125: 709 | B125: 77589893
A126: 713 | B126: 757212
A127: 714 | B127: 34246764.59
A128: 715 | B128: 20977445.62
A129: 716 | B129: 2033666.77
A130: 717 | B130: 2539185409
A131: 718 | B131: 55138428
A132: 719 | B132: 63325892.75
A133: 720 | B133: 31792513.22
A134: 721 | B134: 23313846
A135: 722 | B135: 37425100.02
A136: 723 | B136: 12299869
A137: 724 | B137: 223295649
A138: 725 | B138: 60661474.57
A139: 726 | B139: 44815372
A140: 727 | B140: 1940491
A141: 728 | B141: 107417337.6
A142: 729 | B142: 24908300
A143: 730 | B143: 34813147
A144: 731 | B144: 78375357
A145: 732 | B145: 206706118.6
A146: 733 | B146: 10022096
A147: 734 | B147: 216728214.6
A148: 735 | B148: 10015932
A149: 736 | B149: 20666413
A150: 737 | B150: 18154691
A151: 738 | B151: 6861872
A152: 739 | B152: 55331968
A153: 740 | B153: 2285625
A154: 742 | B154: 113316501
A155: 743 | B155: 1527345
A156: 744 | B156: 2884336
A157: 745 | B157: 5786704
A158: 746 | B158: 29291752
A159: 748 | B159: 17161311
A160: 750 | B160: 56651448
A161: 751 | B161: 7489563
A162: 752 | B162: 803274070.2
A163: 753 | B163: 12852816
A164: 754 | B164: 3355312295
A165: 760 | B165: 118163391.6
A166: 761 | B166: 532417
A167: 767 | B167: 3004843
A168: 771 | B168: 1571457
A169: 772 | B169: 7573657
A170: 773 | B170: 45674846.88
A171: 774 | B171: 1843734
A172: 775 | B172: 1000923412
A173: 776 | B173: 12748405
A174: 777 | B174: 12949838
A175: 778 | B175: 34796077
A176: 779 | B176: 7532428
A177: 780 | B177: 24515469
A178: 781 | B178: 12962938
A179: 782 | B179: 105505155
A180: 783 | B180: 101648199.5
A181: 784 | B181: 39746237.62
A182: 785 | B182: 22858547
A183: 786 | B183: 164252984.1
A184: 787 | B184: 111071387.8
A185: 788 | B185: 12253329.88
A186: 789 | B186: 144089490.6
A187: 790 | B187: 21803884.33
A188: 791 | B188: 382088
A189: 792 | B189: 22185972.33
A190: 793 | B190: 5858787
A191: 794 | B191: 31426012.79
A192: 795 | B192: 72299634
A193: 796 | B193: 109471562
A194: 797 | B194: 202610553.8
A195: 798 | B195: 9997150.63
A196: 800 | B196: 431663700.2
A197: 801 | B197: 2264478
A198: 802 | B198: 5319354
A199: 803 | B199: 16360688
A200: 804 | B200: 15273675
... 2205 more rows

Sheet 5-7-19 Data Pull (hidden)
A1: All SD's (- Crete Monee) | B1: 5/7 Data Pull
A2: txtFieldNum | B2: 2018
A3: 4 | B3: 4449380884
A4: 11 | B4: 10965222
A5: 12 | B5: 2085627941
A6: 15 | B6: 8487467
A7: 16 | B7: 1.360432326e+10
A8: 25 | B8: 113203890
A9: 27 | B9: 4516526967
A10: 30 | B10: 6103904165
A11: 31 | B11: 7255290592
A12: 32 | B12: 1.360432326e+10
A13: 36 | B13: 449091290
A14: 43 | B14: 98822
A15: 44 | B15: 352727831
A16: 47 | B16: 809521
A17: 48 | B17: 2004389425
A18: 56 | B18: 109272
A19: 58 | B19: 532996778
A20: 61 | B20: 645406398
A21: 62 | B21: 1153151308
A22: 63 | B22: 2004389425
A23: 65 | B23: 453038975
A24: 68 | B24: 192660768
A25: 69 | B25: 13754738
A26: 70 | B26: 2118999902
A27: 73 | B27: 460348617
A28: 78 | B28: 469306339
A29: 79 | B29: 612786993.9
A30: 80 | B30: 2118999902
A31: 84 | B31: 159323034
A32: 92 | B32: 210291838
A33: 95 | B33: 188063
A34: 96 | B34: 1208901307
A35: 103 | B35: 660741
A36: 105 | B36: 298210918
A37: 108 | B37: 357072463
A38: 109 | B38: 684573002.9
A39: 110 | B39: 1208901307
A40: 112 | B40: 158410779
A41: 116 | B41: 109853870
A42: 118 | B42: 22713
A43: 119 | B43: 661600222.5
A44: 123 | B44: 5439635
A45: 124 | B45: 175026030
A46: 127 | B46: 194799093
A47: 128 | B47: 320909130.6
A48: 129 | B48: 661600222.6
A49: 138 | B49: 459294954
A50: 141 | B50: 34045
A51: 142 | B51: 2636761886
A52: 145 | B52: 9113
A53: 147 | B53: 17494828
A54: 150 | B54: 187253893
A55: 151 | B55: 1209846638
A56: 152 | B56: 2636761886
A57: 212 | B57: 1322298013
A58: 213 | B58: 3.492564703e+10
A59: 214 | B59: 1971193146
A60: 215 | B60: 3710974507
A61: 218 | B61: 4.299205244e+10
A62: 219 | B62: 4.299205244e+10
A63: 220 | B63: 4.299205244e+10
A64: 221 | B64: 1645160085
A65: 222 | B65: 19912185421
A66: 223 | B66: 21557345506
A67: 224 | B67: 21557256289
A68: 226 | B68: 21557256289
A69: 227 | B69: 21557256289
A70: 259 | B70: 19734469
A71: 260 | B71: 5656749
A72: 262 | B72: 13385462
A73: 263 | B73: 24190
A74: 371 | B74: 4568411
A75: 439 | B75: 116325619
A76: 440 | B76: 220808
A77: 557 | B77: 956982138
A78: 558 | B78: 41601698
A79: 559 | B79: 575570
A80: 590 | B80: 311901711
A81: 591 | B81: 7162087
A82: 644 | B82: 6741171855
A83: 645 | B83: 53496043
A84: 651 | B84: 357544899
A85: 655 | B85: 8234532
A86: 656 | B86: 169299761.8
A87: 657 | B87: 286601372.9
A88: 658 | B88: 47627036
A89: 659 | B89: 1.005228101e+10
A90: 660 | B90: 267877815
A91: 661 | B91: 305511212.8
A92: 662 | B92: 153858708.2
A93: 663 | B93: 124376076
A94: 664 | B94: 197865876.9
A95: 665 | B95: 70251496
A96: 666 | B96: 1119741185
A97: 667 | B97: 279910784
A98: 668 | B98: 220632626.1
A99: 669 | B99: 13958619
A100: 670 | B100: 514502029.1
A101: 671 | B101: 31051748
A102: 672 | B102: 177937895.7
A103: 673 | B103: 282991242.7
A104: 674 | B104: 874404091.6
A105: 675 | B105: 42342730
A106: 676 | B106: 916746821.6
A107: 677 | B107: 50098057
A108: 678 | B108: 109019241.7
A109: 679 | B109: 89779274.16
A110: 680 | B110: 19237105
A111: 681 | B111: 215621257.1
A112: 682 | B112: 10997332
A113: 684 | B113: 494752267
A114: 685 | B114: 7546862
A115: 686 | B115: 15955554
A116: 687 | B116: 24210062
A117: 688 | B117: 60814347
A118: 690 | B118: 99617794.68
A119: 692 | B119: 208144619.7
A120: 693 | B120: 13142507
A121: 694 | B121: 3550020672
A122: 695 | B122: 71914890
A123: 696 | B123: 1.367421657e+10
A124: 702 | B124: 1820198464
A125: 703 | B125: 9978449
A126: 709 | B126: 77589893
A127: 713 | B127: 757212
A128: 714 | B128: 34246764.59
A129: 715 | B129: 20977445.62
A130: 716 | B130: 2033666.77
A131: 717 | B131: 2539185409
A132: 718 | B132: 55138428
A133: 719 | B133: 63325892.75
A134: 720 | B134: 31792513.22
A135: 721 | B135: 23313846
A136: 722 | B136: 37425100.02
A137: 723 | B137: 12299869
A138: 724 | B138: 223295649
A139: 725 | B139: 60661474.57
A140: 726 | B140: 44815372
A141: 727 | B141: 1940491
A142: 728 | B142: 107417337.6
A143: 729 | B143: 24908300
A144: 730 | B144: 34813147
A145: 731 | B145: 78375357
A146: 732 | B146: 206706118.6
A147: 733 | B147: 10022096
A148: 734 | B148: 216728214.6
A149: 735 | B149: 10015932
A150: 736 | B150: 20666413
A151: 737 | B151: 18154691
A152: 738 | B152: 6861872
A153: 739 | B153: 55331968
A154: 740 | B154: 2285625
A155: 742 | B155: 113316501
A156: 743 | B156: 1527345
A157: 744 | B157: 2884336
A158: 745 | B158: 5786704
A159: 746 | B159: 29291752
A160: 748 | B160: 17161311
A161: 750 | B161: 56651448
A162: 751 | B162: 7489563
A163: 752 | B163: 803274070.2
A164: 753 | B164: 12852816
A165: 754 | B165: 3355312295
A166: 760 | B166: 118163391.6
A167: 761 | B167: 532417
A168: 767 | B168: 3004843
A169: 771 | B169: 1571457
A170: 772 | B170: 7573657
A171: 773 | B171: 45674846.88
A172: 774 | B172: 1843734
A173: 775 | B173: 1000923412
A174: 776 | B174: 12748405
A175: 777 | B175: 12949838
A176: 778 | B176: 34796077
A177: 779 | B177: 7532428
A178: 780 | B178: 24515469
A179: 781 | B179: 12962938
A180: 782 | B180: 105505155
A181: 783 | B181: 101648199.5
A182: 784 | B182: 39746237.62
A183: 785 | B183: 22858547
A184: 786 | B184: 164252984.1
A185: 787 | B185: 111071387.8
A186: 788 | B186: 12253329.88
A187: 789 | B187: 144089490.6
A188: 790 | B188: 21803884.33
A189: 791 | B189: 382088
A190: 792 | B190: 22185972.33
A191: 793 | B191: 5858787
A192: 794 | B192: 31426012.79
A193: 795 | B193: 72299634
A194: 796 | B194: 109471562
A195: 797 | B195: 202610553.8
A196: 798 | B196: 9997150.63
A197: 800 | B197: 431663700.2
A198: 801 | B198: 2264478
A199: 802 | B199: 5319354
A200: 803 | B200: 16360688
... 2208 more rows

Sheet ESTL,CoC,LkPk ttls 5-1-19 (hidden)
A1: txtFieldNum | B1: City of Clay | C1: Lake Park | D1: East STL | E1: adjusted
A2: 4 | C2: 0 | D2: 1317518 | E2: 1317518
A3: 12 | C3: 0 | E3: 0
A4: 16 | C4: 0 | D4: 53962316 | E4: 53962316
A5: 25 | C5: 0 | E5: 0
A6: 27 | C6: 0 | D6: 2900055 | E6: 2900055
A7: 30 | C7: 0 | D7: 7739318 | E7: 7739318
A8: 31 | C8: 0 | D8: 43452423 | E8: 43452423
A9: 32 | C9: 0 | D9: 53962316 | E9: 53962316
